Workbook

Sheet Custos Diversos
B2: Custos Administrativos Diversos | F2: Ano 1 | K2: Ano 2
B3: (R$/veíc./mês) | C3: Histórico | D3: R$/Ano | F3: Custos Administrativos Diversos - Revisão Tarifa | K3: =F3 -> Custos Administrativos Diversos - Revisão Tarifa
B4: Valor total Licitação | C4: Ano | D4: =D5*12 -> 3335598 | F4: Mês | G4: R$ Veíc. | H4: Frota | I4: R$ Total | K4: Mês | L4: R$ Veíc. | M4: Frota | N4: R$ Total
B5: Valor total Licitação | C5: Mês | D5: ='Plan4 R$ Pessoal'!D30 -> 277966.5 | F5: Referência | G5: Mês | H5: Operante | I5: Mês | K5: Referência | L5: Mês | M5: Operante | N5: Mês
B6: Frota Total | C6: Qtde. | D6: =Q.Frota!R5 -> 565 | F6: 2014-01-01 | G6: =D8 -> 491.9761062 | H6: =Q.Frota!R6 -> 565 | I6: =G6*H6 -> 277966.5 | K6: 2015-01-01 | L6: =G6 -> 491.9761062 | M6: =Q.Frota!R23 -> 565 | N6: =L6*M6 -> 277966.5
C7: R$ Por | F7: =DATE(YEAR(F6),MONTH(F6)+1,DAY(F6)) -> 2014-02-01 | G7: =G6 -> 491.9761062 | H7: =Q.Frota!R7 -> 565 | I7: 277966.5 | K7: =DATE(YEAR(K6),MONTH(K6)+1,DAY(K6)) -> 2015-02-01 | L7: =L6 -> 491.9761062 | M7: =Q.Frota!R24 -> 565 | N7: 277966.5
C8: Veículo | D8: =D5/D6 -> 491.9761062 | F8: 2014-03-01 | G8: 491.9761062 | H8: =Q.Frota!R8 -> 565 | I8: 277966.5 | K8: 2015-03-01 | L8: 491.9761062 | M8: =Q.Frota!R25 -> 565 | N8: 277966.5
C9: Por mês | F9: 2014-04-01 | G9: 491.9761062 | H9: =Q.Frota!R9 -> 565 | I9: 277966.5 | K9: 2015-04-01 | L9: 491.9761062 | M9: =Q.Frota!R26 -> 565 | N9: 277966.5
F10: 2014-05-01 | G10: 491.9761062 | H10: =Q.Frota!R10 -> 565 | I10: 277966.5 | K10: 2015-05-01 | L10: 491.9761062 | M10: =Q.Frota!R27 -> 565 | N10: 277966.5
F11: 2014-06-01 | G11: 491.9761062 | H11: =Q.Frota!R11 -> 565 | I11: 277966.5 | K11: 2015-06-01 | L11: 491.9761062 | M11: =Q.Frota!R28 -> 565 | N11: 277966.5
F12: 2014-07-01 | G12: 491.9761062 | H12: =Q.Frota!R12 -> 565 | I12: 277966.5 | K12: 2015-07-01 | L12: 491.9761062 | M12: =Q.Frota!R29 -> 565 | N12: 277966.5
F13: 2014-08-01 | G13: 491.9761062 | H13: =Q.Frota!R13 -> 565 | I13: 277966.5 | K13: 2015-08-01 | L13: 491.9761062 | M13: =Q.Frota!R30 -> 565 | N13: 277966.5
F14: 2014-09-01 | G14: 491.9761062 | H14: =Q.Frota!R14 -> 565 | I14: 277966.5 | K14: 2015-09-01 | L14: 491.9761062 | M14: =Q.Frota!R31 -> 565 | N14: 277966.5
F15: 2014-10-01 | G15: 491.9761062 | H15: =Q.Frota!R15 -> 565 | I15: 277966.5 | K15: 2015-10-01 | L15: 491.9761062 | M15: =Q.Frota!R32 -> 565 | N15: 277966.5
F16: 2014-11-01 | G16: 491.9761062 | H16: =Q.Frota!R16 -> 565 | I16: 277966.5 | K16: 2015-11-01 | L16: 491.9761062 | M16: =Q.Frota!R33 -> 565 | N16: 277966.5
F17: 2014-12-01 | G17: 491.9761062 | H17: =Q.Frota!R17 -> 565 | I17: 277966.5 | K17: 2015-12-01 | L17: 491.9761062 | M17: =Q.Frota!R34 -> 565 | N17: 277966.5
H18: Total Ano 1 | I18: =SUM(I6:I17) -> 3335598 | M18: Total Ano 2 | N18: =SUM(N6:N17) -> 3335598
K20: Valor Anual Demais Anos....................... | N20: =N17*12 -> 3335598
B23: Sistemas - CCO e Equips. Dos Ônibus | F23: Ano 1 | K23: Ano 2
B24: (R$/veíc./mês) | C24: Histórico | D24: R$/Ano | F24: Sistemas - CCO e Equips. Dos Ônibus - Revisão Tarifa | K24: =F24 -> Sistemas - CCO e Equips. Dos Ônibus - Revisão Tarifa
B25: Valor total Licitação | C25: Ano | D25: 434700 | F25: Mês | G25: R$ Veíc. | H25: Frota | I25: R$ Total | K25: Mês | L25: R$ Veíc. | M25: Frota | N25: R$ Total
B26: Valor total Licitação | C26: Mês | D26: =D25/12 -> 36225 | F26: Referência | G26: Mês | H26: Operante | I26: Mês | K26: Referência | L26: Mês | M26: Operante | N26: Mês
B27: Frota Total | C27: Qtde. | D27: =Q.Frota!R5 -> 565 | F27: 2014-01-01 | G27: =D29 -> 64.11504425 | H27: =Q.Frota!R6 -> 565 | I27: =G27*H27 -> 36225 | K27: 2015-01-01 | L27: =G27 -> 64.11504425 | M27: =Q.Frota!R23 -> 565 | N27: =L27*M27 -> 36225
B28: Sist.Bilhetagem Eletrônica | C28: R$ Por | F28: =DATE(YEAR(F27),MONTH(F27)+1,DAY(F27)) -> 2014-02-01 | G28: =G27 -> 64.11504425 | H28: =Q.Frota!R7 -> 565 | I28: 36225 | K28: =DATE(YEAR(K27),MONTH(K27)+1,DAY(K27)) -> 2015-02-01 | L28: =L27 -> 64.11504425 | M28: =Q.Frota!R24 -> 565 | N28: 36225
B29: Sist.Monitoração frota | C29: Veículo | D29: =D26/D27 -> 64.11504425 | F29: 2014-03-01 | G29: 64.11504425 | H29: =Q.Frota!R8 -> 565 | I29: 36225 | K29: 2015-03-01 | L29: 64.11504425 | M29: =Q.Frota!R25 -> 565 | N29: 36225
B30: Sist.Vigilância frota | C30: Por mês | F30: 2014-04-01 | G30: 64.11504425 | H30: =Q.Frota!R9 -> 565 | I30: 36225 | K30: 2015-04-01 | L30: 64.11504425 | M30: =Q.Frota!R26 -> 565 | N30: 36225
F31: 2014-05-01 | G31: 64.11504425 | H31: =Q.Frota!R10 -> 565 | I31: 36225 | K31: 2015-05-01 | L31: 64.11504425 | M31: =Q.Frota!R27 -> 565 | N31: 36225
F32: 2014-06-01 | G32: 64.11504425 | H32: =Q.Frota!R11 -> 565 | I32: 36225 | K32: 2015-06-01 | L32: 64.11504425 | M32: =Q.Frota!R28 -> 565 | N32: 36225
F33: 2014-07-01 | G33: 64.11504425 | H33: =Q.Frota!R12 -> 565 | I33: 36225 | K33: 2015-07-01 | L33: 64.11504425 | M33: =Q.Frota!R29 -> 565 | N33: 36225
F34: 2014-08-01 | G34: 64.11504425 | H34: =Q.Frota!R13 -> 565 | I34: 36225 | K34: 2015-08-01 | L34: 64.11504425 | M34: =Q.Frota!R30 -> 565 | N34: 36225
F35: 2014-09-01 | G35: 64.11504425 | H35: =Q.Frota!R14 -> 565 | I35: 36225 | K35: 2015-09-01 | L35: 64.11504425 | M35: =Q.Frota!R31 -> 565 | N35: 36225
F36: 2014-10-01 | G36: 64.11504425 | H36: =Q.Frota!R15 -> 565 | I36: 36225 | K36: 2015-10-01 | L36: 64.11504425 | M36: =Q.Frota!R32 -> 565 | N36: 36225
F37: 2014-11-01 | G37: 64.11504425 | H37: =Q.Frota!R16 -> 565 | I37: 36225 | K37: 2015-11-01 | L37: 64.11504425 | M37: =Q.Frota!R33 -> 565 | N37: 36225
F38: 2014-12-01 | G38: 64.11504425 | H38: =Q.Frota!R17 -> 565 | I38: 36225 | K38: 2015-12-01 | L38: 64.11504425 | M38: =Q.Frota!R34 -> 565 | N38: 36225
H39: Total Ano 1 | I39: =SUM(I27:I38) -> 434700 | M39: Total Ano 2 | N39: =SUM(N27:N38) -> 434700
K41: Valor Anual Demais Anos....................... | N41: =N38*12 -> 434700
B44: Custos com Seguros Diversos | F44: Ano 1 | K44: Ano 2
B45: (R$/veíc./mês) | C45: Histórico | D45: R$/Ano | F45: Sistemas - CCO e Equips. Dos Ônibus - Revisão Tarifa | K45: =F45 -> Sistemas - CCO e Equips. Dos Ônibus - Revisão Tarifa
B46: Valor total Licitação | C46: Ano | D46: 674499.84 | F46: Mês | G46: R$ Veíc. | H46: Frota | I46: R$ Total | K46: Mês | L46: R$ Veíc. | M46: Frota | N46: R$ Total
B47: Valor total Licitação | C47: Mês | D47: =D46/12 -> 56208.32 | F47: Referência | G47: Mês | H47: Operante | I47: Mês | K47: Referência | L47: Mês | M47: Operante | N47: Mês
B48: Frota Total | C48: Qtde. | D48: =Q.Frota!R5 -> 565 | F48: 2014-01-01 | G48: =D50 -> 99.48375221 | H48: =Q.Frota!R6 -> 565 | I48: =G48*H48 -> 56208.32 | K48: 2015-01-01 | L48: =G48 -> 99.48375221 | M48: =Q.Frota!R23 -> 565 | N48: =L48*M48 -> 56208.32
B49: Sist.Bilhetagem Eletrônica | C49: R$ Por | F49: =DATE(YEAR(F48),MONTH(F48)+1,DAY(F48)) -> 2014-02-01 | G49: =G48 -> 99.48375221 | H49: =Q.Frota!R7 -> 565 | I49: 56208.32 | K49: =DATE(YEAR(K48),MONTH(K48)+1,DAY(K48)) -> 2015-02-01 | L49: =L48 -> 99.48375221 | M49: =Q.Frota!R24 -> 565 | N49: 56208.32
B50: Sist.Monitoração frota | C50: Veículo | D50: =D47/D48 -> 99.48375221 | F50: 2014-03-01 | G50: 99.48375221 | H50: =Q.Frota!R8 -> 565 | I50: 56208.32 | K50: 2015-03-01 | L50: 99.48375221 | M50: =Q.Frota!R25 -> 565 | N50: 56208.32
B51: Sist.Vigilância frota | C51: Por mês | F51: 2014-04-01 | G51: 99.48375221 | H51: =Q.Frota!R9 -> 565 | I51: 56208.32 | K51: 2015-04-01 | L51: 99.48375221 | M51: =Q.Frota!R26 -> 565 | N51: 56208.32
F52: 2014-05-01 | G52: 99.48375221 | H52: =Q.Frota!R10 -> 565 | I52: 56208.32 | K52: 2015-05-01 | L52: 99.48375221 | M52: =Q.Frota!R27 -> 565 | N52: 56208.32
F53: 2014-06-01 | G53: 99.48375221 | H53: =Q.Frota!R11 -> 565 | I53: 56208.32 | K53: 2015-06-01 | L53: 99.48375221 | M53: =Q.Frota!R28 -> 565 | N53: 56208.32
F54: 2014-07-01 | G54: 99.48375221 | H54: =Q.Frota!R12 -> 565 | I54: 56208.32 | K54: 2015-07-01 | L54: 99.48375221 | M54: =Q.Frota!R29 -> 565 | N54: 56208.32
F55: 2014-08-01 | G55: 99.48375221 | H55: =Q.Frota!R13 -> 565 | I55: 56208.32 | K55: 2015-08-01 | L55: 99.48375221 | M55: =Q.Frota!R30 -> 565 | N55: 56208.32
F56: 2014-09-01 | G56: 99.48375221 | H56: =Q.Frota!R14 -> 565 | I56: 56208.32 | K56: 2015-09-01 | L56: 99.48375221 | M56: =Q.Frota!R31 -> 565 | N56: 56208.32
F57: 2014-10-01 | G57: 99.48375221 | H57: =Q.Frota!R15 -> 565 | I57: 56208.32 | K57: 2015-10-01 | L57: 99.48375221 | M57: =Q.Frota!R32 -> 565 | N57: 56208.32
F58: 2014-11-01 | G58: 99.48375221 | H58: =Q.Frota!R16 -> 565 | I58: 56208.32 | K58: 2015-11-01 | L58: 99.48375221 | M58: =Q.Frota!R33 -> 565 | N58: 56208.32
F59: 2014-12-01 | G59: 99.48375221 | H59: =Q.Frota!R17 -> 565 | I59: 56208.32 | K59: 2015-12-01 | L59: 99.48375221 | M59: =Q.Frota!R34 -> 565 | N59: 56208.32
H60: Total Ano 1 | I60: =SUM(I48:I59) -> 674499.84 | M60: Total Ano 2 | N60: =SUM(N48:N59) -> 674499.84
K62: Valor Anual Demais Anos....................... | N62: =N59*12 -> 674499.84

Sheet Benefícios
B2: Valores dos Benefícios
B4: Item | C4: Valor Base (R$) | D4: Parcela | E4: Valor Final (R$)
D5: Empregador
B6: Cesta básica | C6: 131.6 | D6: 1 | E6: =C6*D6 -> 131.6
B7: Vale refeição | C7: 325.98 | D7: 0.9 | E7: 293.382
B8: Plano de Saúde | C8: 150 | D8: 1 | E8: 150
B9: Plano Odontológico | C9: 15 | D9: 1 | E9: 15
B10: Seguro de vida em grupo | C10: 3.2 | D10: 0.5 | E10: 1.6
B11: Total | E11: =SUM(E6:E10) -> 591.582
B13: Motoristas | C13: Fatores de utilização (equivalentes) | F13: ='Plan2 R$ Pessoal'!D8 -> 2.09034
C14: Fatores de utilização (empregados) | F14: 2.00739 | G14: 2.00652176 | H14: utilizou no cálculo benefícios
C15: Frota operacional | F15: =Q.Frota!T22 -> 538
C16: Quantidade de empregados | F16: =G14*F15 -> 1079.508707
B18: Cobradores | C18: Fatores de utilização (equivalentes) | F18: 2.12955
C19: Fatores de utilização (empregados) | F19: 2.04385 | G19: 2.044334975 | H19: utilizou no cálculo benefícios
C20: Frota operacional | F20: =Q.Frota!T22-Q.Frota!E22 -> 492
C21: Quantidade de empregados | F21: =G19*F20 -> 1005.812808
B23: O cálculo do custo de salários e encargos sociais dos motoristas e cobradores consideram o fator de utilização equivalente.
B24: O cálculo do custo de benefícios considera a quantidade empregados

Sheet Plan2 R$ Pessoal
B2: Planilha 2 - Demonstração do Custo com Pessoal | L2: URBI
B3: Composição do Custo mensal com Pessoal | K3: Bacia/Lote: | L3: 3
B5: Funções | C5: Cargo | D5: Fator de | E5: Qtde. de | F5: Salário Base | G5: Salário Total | H5: % Encargos | I5: Encargos | J5: Salário + Enc. | K5: Benefícios | L5: Total
D6: Utilização | E6: Funcionários | F6: (R$/mês) | G6: R$ | H6: aplicáveis | I6: R$ | J6: R$/mês | K6: R$/mês | L6: R$/mês
B8: Motorista | C8: Motoristas | D8: 2.09034 | E8: =(Benefícios!G14*Benefícios!F15) -> 1079.508707 | F8: 1506.5 | G8: =D8*F8*Benefícios!F15 -> 1694214.299 | H8: =Enc.Sociais!B37 -> 0.375275345 | I8: =G8*H8 -> 635796.8556 | J8: =G8+I8 -> 2330011.155 | K8: =E8*Benefícios!E11 -> 638617.9198 | L8: =J8+K8 -> 2968629.074
C9: Sub-total Motoristas | D9: =D8 -> 2.09034 | E9: =SUM(E8) -> 1079.508707 | F9: =F8 -> 1506.5 | G9: =SUM(G8) -> 1694214.299 | H9: =H8 -> 0.375275345 | I9: =SUM(I8) -> 635796.8556 | J9: 2330011.155 | K9: 638617.9198 | L9: 2968629.074
B11: Cobrador | C11: Cobradores ônibus básico | D11: 2.12955 | E11: =Benefícios!G19*Benefícios!F20 -> 1005.812808 | F11: 787.52 | G11: =D11*F11*Benefícios!F20 -> 825115.1023 | H11: =Enc.Sociais!C37 -> 0.38747873 | I11: =G11*H11 -> 319714.5519 | J11: =G11+I11 -> 1144829.654 | K11: =E11*Benefícios!E11 -> 595020.7524 | L11: =J11+K11 -> 1739850.407
C12: Sub-total Cobradores | D12: =D11 -> 2.12955 | E12: 1005.812808 | F12: 787.52 | G12: 825115.1023 | H12: 0.38747873 | I12: 319714.5519 | J12: 1144829.654 | K12: 595020.7524 | L12: 1739850.407
B14: Controle | C14: Chefe de tráfego | D14: 0.00217 | E14: =ROUNDUP(D14*Benefícios!$F$15,0) -> 2 | F14: 5400 | G14: =E14*F14 -> 10800 | H14: =Enc.Sociais!D37 -> 0.40106926 | I14: =G14*H14 -> 4331.548008 | J14: =G14+I14 -> 15131.54801 | K14: =E14*Benefícios!$E$11 -> 1183.164 | L14: =J14+K14 -> 16314.71201
B15: operacional | C15: Inspetores de Tráfego | D15: 0.02173913 | E15: =D15*Benefícios!$F$15 -> 11.69565194 | F15: 1800 | G15: 21052.17349 | H15: =H14 -> 0.40106926 | I15: 8443.379644 | J15: 29495.55314 | K15: =E15*Benefícios!$E$11 -> 6918.937166 | L15: 36414.4903
C16: Escalador | D16: 0.01086956 | E16: =D16*Benefícios!$F$15 -> 5.84782328 | F16: 1350 | G16: 7894.561428 | H16: 0.40106926 | I16: 3166.26591 | J16: 11060.82734 | K16: =E16*Benefícios!$E$11 -> 3459.466992 | L16: 14520.29433
C17: Programadores | D17: 0.00434783 | E17: =D17*Benefícios!$F$15 -> 2.33913254 | F17: 1350 | G17: 3157.828929 | H17: 0.40106926 | I17: 1266.508112 | J17: 4424.337041 | K17: =E17*Benefícios!$E$11 -> 1383.788706 | L17: 5808.125747
C18: Fiscal | D18: 0.0565217463 | E18: =D18*Benefícios!$F$15 -> 30.40869951 | F18: 1500 | G18: 45613.04926 | H18: =H17+0.000044% -> 0.4010697 | I18: 18294.01198 | J18: 63907.06125 | K18: =E18*Benefícios!$E$11 -> 17989.23927 | L18: 81896.30052
C19: Controle de Operação | D19: 0.00869565 | E19: =D19*Benefícios!$F$15 -> 4.6782597 | F19: 2550 | G19: 11929.56223 | H19: =H18 -> 0.4010697 | I19: 4784.585947 | J19: 16714.14818 | K19: =E19*Benefícios!$E$11 -> 2767.57423 | L19: 19481.72241
C20: Auxiliares | D20: 0.01304348 | E20: =D20*Benefícios!$F$15 -> 7.01739224 | F20: 1000 | G20: 7017.39224 | H20: 0.4010697 | I20: 2814.4634 | J20: 9831.85564 | K20: =E20*Benefícios!$E$11 -> 4151.362936 | L20: 13983.21858
C21: Sub-total Controle Operac. | D21: =SUM(D14:D20) -> 0.1173873963 | E21: 63.98695921 | F21: =G21/E21 -> 1679.476083 | G21: =SUM(G14:G20) -> 107464.5676 | H21: 0.4010697 | I21: 43100.78188 | J21: =SUM(J14:J20) -> 150565.3306 | K21: 37853.5333 | L21: 188418.8639
B23: Manutenção | C23: Chefe de Manutenção | D23: 0.02391304 | E23: =D23*Benefícios!$F$15 -> 12.86521552 | F23: 2250 | G23: =E23*F23 -> 28946.73492 | H23: =Enc.Sociais!E37 -> 0.4010699 | I23: =G23*H23 -> 11609.66408 | J23: =G23+I23 -> 40556.399 | K23: =E23*Benefícios!$E$11 -> 7610.829928 | L23: =J23+K23 -> 48167.22893
C24: Mecânicos | D24: 0.080434776 | E24: =D24*Benefícios!$F$15 -> 43.27390949 | F24: 1500 | G24: 64910.86423 | H24: =H23-0.00002% -> 0.4010697 | I24: 26033.78084 | J24: 90944.64508 | K24: =E24*Benefícios!$E$11 -> 25600.06592 | L24: 116544.711
C25: Eletricista | D25: 0.03695652 | E25: =D25*Benefícios!$F$15 -> 19.88260776 | F25: 1500 | G25: 29823.91164 | H25: =H24 -> 0.4010697 | I25: 11961.46729 | J25: 41785.37893 | K25: =E25*Benefícios!$E$11 -> 11762.19286 | L25: 53547.5718
C26: Funileiro | D26: 0.03043478 | E26: =D26*Benefícios!$F$15 -> 16.37391164 | F26: 1500 | G26: 24560.86746 | H26: 0.4010697 | I26: 9850.619744 | J26: 34411.4872 | K26: =E26*Benefícios!$E$11 -> 9686.511396 | L26: 44097.9986
C27: Pintor | D27: 0.02391305 | E27: =D27*Benefícios!$F$15 -> 12.8652209 | F27: 1300 | G27: 16724.78717 | H27: 0.4010697 | I27: 6707.805373 | J27: 23432.59254 | K27: =E27*Benefícios!$E$11 -> 7610.83311 | L27: 31043.42565
C28: Borracheiro | D28: 0.02391305 | E28: =D28*Benefícios!$F$15 -> 12.8652209 | F28: 1400 | G28: 18011.30926 | H28: 0.4010697 | I28: 7223.790402 | J28: 25235.09966 | K28: =E28*Benefícios!$E$11 -> 7610.83311 | L28: 32845.93277
C29: Auxiliares | D29: 0.0847826 | E29: =D29*Benefícios!$F$15 -> 45.6130388 | F29: 660 | G29: 30104.60561 | H29: 0.4010697 | I29: 12074.04514 | J29: 42178.65075 | K29: =E29*Benefícios!$E$11 -> 26983.85272 | L29: 69162.50347
C30: Outros | D30: 0.15217391 | E30: =D30*Benefícios!$F$15 -> 81.86956358 | F30: 1000 | G30: 81869.56358 | H30: 0.4010697 | I30: 32835.4013 | J30: 114704.9649 | K30: =E30*Benefícios!$E$11 -> 48432.56016 | L30: 163137.525
C31: Sub-total Manutenção | D31: =SUM(D23:D30) -> 0.456521726 | E31: 245.6086886 | F31: =G31/E31 -> 1200.904763 | G31: =SUM(G23:G30) -> 294952.6439 | I31: =SUM(I23:I30) -> 118296.5742 | J31: 413249.2181 | K31: 145297.6792 | L31: 558546.8973
B33: Total | D33: =D9+D12+D21+D31 -> 4.793799122 | E33: 2394.917162 | G33: =G9+G12+G21+G31 -> 2921746.613 | I33: =I9+I12+I21+I31 -> 1116908.764 | J33: 4038655.357 | K33: 1416789.885 | L33: 5455445.242

Sheet MO Oper_Adm. ano 1 a 10
A1: Planilha 2 - Demonstração do Custo com Pessoal | F1: =G2 -> Ano 1 | K1: =F1 -> Ano 1 | P1: =K1 -> Ano 1 | U1: =P1 -> Ano 1 | AA1: =U1 -> Ano 1 | AF1: =AA1 -> Ano 1 | AK1: =AF1 -> Ano 1 | BE1: =AK1 -> Ano 1 | BJ1: =BE1 -> Ano 1
A2: Motoristas e Cobradores - Composição do Custo Unitário Por Função | G2: Ano 1 | H2: Motoristas e Cobradores - Composição de Custo Total Mensal | T2: R$ | X2: FU Lei Motorista Salário | Y2: FU Mot. | AA2: =Z2 -> 0 | AB2: 0 | AC2: 0 | AD2: 0 | AE2: 0 | AF2: 0 | AG2: 0 | AH2: 0 | AI2: 0 | AJ2: 0 | AK2: 0
A3: Funções | B3: Cargo | C3: Salário | D3: Hs Extras | E3: Enc. | F3: R$ Total | G3: Benefícios | H3: 2014-01-01 | I3: =DATE(YEAR(H3),MONTH(H3)+1,DAY(H3)) -> 2014-02-01 | J3: 2014-03-01 | K3: 2014-04-01 | L3: 2014-05-01 | M3: 2014-06-01 | N3: 2014-07-01 | O3: 2014-08-01 | P3: 2014-09-01 | Q3: 2014-10-01 | R3: 2014-11-01 | S3: 2014-12-01 | T3: Total | V3: Fator Utilização Mensal | X3: =U1 -> Ano 1 | Y3: FU Cob. | AA3: =Z3 -> 0 | AB3: 0 | AC3: 0 | AD3: 0 | AE3: 0 | AF3: 0 | AG3: 0 | AH3: 0 | AI3: 0 | AJ3: 0 | AK3: 0 | AM3: =X3 -> Ano 1 | AN3: FU Benefícios | AO3: FU FÍSICO PARA CÁLCULOS DOS BENEFÍCIOS | BB3: Frota Mensal | BE3: =AK1 -> Ano 1
C4: base | D4: e Adic. | E4: Soc. | F4: Por | G4: R$ por | H4: R$ | I4: R$ | J4: R$ | K4: R$ | L4: R$ | M4: R$ | N4: R$ | O4: R$ | P4: R$ | Q4: R$ | R4: R$ | S4: R$ | T4: Durante o | V4: Funções | W4: Cargo | X4: FU | Z4: =H3 -> 2014-01-01 | AA4: 2014-02-01 | AB4: 2014-03-01 | AC4: 2014-04-01 | AD4: 2014-05-01 | AE4: 2014-06-01 | AF4: 2014-07-01 | AG4: 2014-08-01 | AH4: 2014-09-01 | AI4: 2014-10-01 | AJ4: 2014-11-01 | AK4: 2014-12-01 | AM4: Funções | AN4: Cargo | AO4: =Z4 -> 2014-01-01 | AP4: 2014-02-01 | AQ4: 2014-03-01 | AR4: 2014-04-01 | AS4: 2014-05-01 | AT4: 2014-06-01 | AU4: 2014-07-01 | AV4: 2014-08-01 | AW4: 2014-09-01 | AX4: 2014-10-01 | AY4: 2014-11-01 | AZ4: 2014-12-01 | BB4: Funções | BC4: Cargo | BD4: Frota | BE4: =Z4 -> 2014-01-01 | BF4: 2014-02-01 | BG4: 2014-03-01 | BH4: 2014-04-01 | BI4: 2014-05-01 | BJ4: 2014-06-01 | BK4: 2014-07-01 | BL4: 2014-08-01 | BM4: 2014-09-01 | BN4: 2014-10-01 | BO4: 2014-11-01 | BP4: 2014-12-01
C5: (R$/mês) | D5: Not. | E5: % | F5: Função | G5: mês | T5: =P1 -> Ano 1 | X5: Licitação | Z5: FU | AA5: FU | AB5: FU | AC5: FU | AD5: FU | AE5: FU | AF5: FU | AG5: FU | AH5: FU | AI5: FU | AJ5: FU | AK5: FU | BD5: Licitação | BE5: Frota | BF5: Frota | BG5: Frota | BH5: Frota | BI5: Frota | BJ5: Frota | BK5: Frota | BL5: Frota | BM5: Frota | BN5: Frota | BO5: Frota | BP5: Frota | BS5: ='Histórico Frota Alocada'!N16 -> 2014-01-31 | BT5: ='Histórico Frota Alocada'!O16 -> 2014-02-28 | BU5: ='Histórico Frota Alocada'!P16 -> 2014-03-31 | BV5: ='Histórico Frota Alocada'!Q16 -> 2014-04-30 | BW5: ='Histórico Frota Alocada'!R16 -> 2014-05-30 | BX5: ='Histórico Frota Alocada'!S16 -> 2014-06-30 | BY5: ='Histórico Frota Alocada'!T16 -> 2014-07-31 | BZ5: ='Histórico Frota Alocada'!U16 -> 2014-08-29 | CA5: ='Histórico Frota Alocada'!V16 -> 2014-09-30 | CB5: ='Histórico Frota Alocada'!W16 -> 2014-10-31 | CC5: ='Histórico Frota Alocada'!X16 -> 2014-11-28 | CD5: ='Histórico Frota Alocada'!Y16 -> 2014-12-31
A6: Motorista | B6: Miniônibus | C6: ='Plan2 R$ Pessoal'!F8 -> 1506.5 | D6: 0 | E6: ='Plan2 R$ Pessoal'!H8 -> 0.375275345 | F6: =(C6+D6)*(E6/100*100+1) -> 2071.852307 | G6: =Benefícios!E11 -> 591.582 | H6: =(($F6*Z6)+($G6*AO6))*BE6 -> 0 | I6: 267489.0766 | J6: 409379.9999 | K6: 364895.6376 | L6: 364895.6376 | M6: 367009.4527 | N6: 374260.6276 | O6: 379971.3865 | P6: 396583.0635 | Q6: 403592.9462 | R6: 384899.9257 | S6: 380982.2268 | T6: =SUM(H6:S6) -> 4093959.981 | V6: Motorista | W6: =B6 -> Miniônibus | X6: ='Plan2 R$ Pessoal'!$D$8 -> 2.09034 | Y6: =X6/X11 -> 1 | Z6: =Z11*$Y6+Z2 -> 2.9757 | AA6: 3.0704 | AB6: 3.0406 | AC6: 2.7102 | AD6: 2.7102 | AE6: 2.7259 | AF6: 2.7263 | AG6: 2.7679 | AH6: 2.8344 | AI6: 2.8845 | AJ6: 2.7509 | AK6: 2.7229 | AM6: Motorista | AN6: =W6 -> Miniônibus | AO6: =AO11*$Y6 -> 2.857616667 | AP6: 2.94855873 | AQ6: 2.91994127 | AR6: 2.602652381 | AS6: 2.602652381 | AT6: 2.617729365 | AU6: 2.618113492 | AV6: 2.658062698 | AW6: 2.72192381 | AX6: 2.770035714 | AY6: 2.641737302 | AZ6: 2.614848413 | BB6: Motorista | BC6: =W6 -> Miniônibus | BD6: 57 | BE6: 0 | BF6: 33 | BG6: 51 | BH6: 51 | BI6: 51 | BJ6: 51 | BK6: 52 | BL6: 52 | BM6: 53 | BN6: 53 | BO6: 53 | BP6: 53 | BR6: Miniônibus | BS6: ='Histórico Frota Alocada'!N17 -> 0 | BT6: ='Histórico Frota Alocada'!O17 -> 10 | BU6: ='Histórico Frota Alocada'!P17 -> 27 | BV6: ='Histórico Frota Alocada'!Q17 -> 26 | BW6: ='Histórico Frota Alocada'!R17 -> 26 | BX6: ='Histórico Frota Alocada'!S17 -> 26 | BY6: ='Histórico Frota Alocada'!T17 -> 26 | BZ6: ='Histórico Frota Alocada'!U17 -> 26 | CA6: ='Histórico Frota Alocada'!V17 -> 36 | CB6: ='Histórico Frota Alocada'!W17 -> 40 | CC6: ='Histórico Frota Alocada'!X17 -> 27 | CD6: ='Histórico Frota Alocada'!Y17 -> 27
B7: Ônibus Básico | C7: =C6 -> 1506.5 | D7: 0 | E7: =E6 -> 0.375275345 | F7: 2071.852307 | G7: =G6 -> 591.582 | H7: =(($F7*Z7)+($G7*AO7))*BE7 -> 911264.1573 | I7: 2950485.573 | J7: 3010147.058 | K7: 2683056.159 | L7: 2683056.159 | M7: 2698598.917 | N7: 2742178.829 | O7: 2784021.12 | P7: 2850908.437 | Q7: 2901300.236 | R7: 2766922.107 | S7: 2767512.402 | T7: 31749451.15 | W7: Ônibus Básico | X7: =X6 -> 2.09034 | Y7: =X7/X11 -> 1 | Z7: =Z11*$Y7+Z2 -> 2.9757 | AA7: 3.0704 | AB7: 3.0406 | AC7: 2.7102 | AD7: 2.7102 | AE7: 2.7259 | AF7: 2.7263 | AG7: 2.7679 | AH7: 2.8344 | AI7: 2.8845 | AJ7: 2.7509 | AK7: 2.7229 | AN7: Ônibus Básico | AO7: =AO11*$Y7 -> 2.857616667 | AP7: 2.94855873 | AQ7: 2.91994127 | AR7: 2.602652381 | AS7: 2.602652381 | AT7: 2.617729365 | AU7: 2.618113492 | AV7: 2.658062698 | AW7: 2.72192381 | AX7: 2.770035714 | AY7: 2.641737302 | AZ7: 2.614848413 | BC7: Ônibus Básico | BD7: 408 | BE7: 116 | BF7: 364 | BG7: 375 | BH7: 375 | BI7: 375 | BJ7: 375 | BK7: 381 | BL7: 381 | BM7: 381 | BN7: 381 | BO7: 381 | BP7: 385 | BR7: Ônibus Básico | BS7: ='Histórico Frota Alocada'!N18 -> 86 | BT7: ='Histórico Frota Alocada'!O18 -> 409 | BU7: ='Histórico Frota Alocada'!P18 -> 441 | BV7: ='Histórico Frota Alocada'!Q18 -> 443 | BW7: ='Histórico Frota Alocada'!R18 -> 443 | BX7: ='Histórico Frota Alocada'!S18 -> 443 | BY7: ='Histórico Frota Alocada'!T18 -> 443 | BZ7: ='Histórico Frota Alocada'!U18 -> 433 | CA7: ='Histórico Frota Alocada'!V18 -> 417 | CB7: ='Histórico Frota Alocada'!W18 -> 412 | CC7: ='Histórico Frota Alocada'!X18 -> 435 | CD7: ='Histórico Frota Alocada'!Y18 -> 423
B8: Padron | C8: 1506.5 | D8: 0 | E8: 0.375275345 | F8: 2071.852307 | G8: 591.582 | H8: =(($F8*Z8)+($G8*AO8))*BE8 -> 0 | I8: 0 | J8: 0 | K8: 0 | L8: 0 | M8: 0 | N8: 0 | O8: 0 | P8: 0 | Q8: 0 | R8: 0 | S8: 0 | T8: 0 | W8: Padron | X8: 2.09034 | Y8: =X8/X11 -> 1 | Z8: =Z11*$Y8+Z2 -> 2.9757 | AA8: 3.0704 | AB8: 3.0406 | AC8: 2.7102 | AD8: 2.7102 | AE8: 2.7259 | AF8: 2.7263 | AG8: 2.7679 | AH8: 2.8344 | AI8: 2.8845 | AJ8: 2.7509 | AK8: 2.7229 | AN8: Padron | AO8: =AO11*$Y8 -> 2.857616667 | AP8: 2.94855873 | AQ8: 2.91994127 | AR8: 2.602652381 | AS8: 2.602652381 | AT8: 2.617729365 | AU8: 2.618113492 | AV8: 2.658062698 | AW8: 2.72192381 | AX8: 2.770035714 | AY8: 2.641737302 | AZ8: 2.614848413 | BC8: Padron | BD8: 0 | BE8: 0 | BF8: 0 | BG8: 0 | BH8: 0 | BI8: 0 | BJ8: 0 | BK8: 0 | BL8: 0 | BM8: 0 | BN8: 0 | BO8: 0 | BP8: 0 | BR8: Padron | BS8: ='Histórico Frota Alocada'!N19 -> 0 | BT8: ='Histórico Frota Alocada'!O19 -> 0 | BU8: ='Histórico Frota Alocada'!P19 -> 0 | BV8: ='Histórico Frota Alocada'!Q19 -> 0 | BW8: ='Histórico Frota Alocada'!R19 -> 0 | BX8: ='Histórico Frota Alocada'!S19 -> 0 | BY8: ='Histórico Frota Alocada'!T19 -> 0 | BZ8: ='Histórico Frota Alocada'!U19 -> 0 | CA8: ='Histórico Frota Alocada'!V19 -> 0 | CB8: ='Histórico Frota Alocada'!W19 -> 0 | CC8: ='Histórico Frota Alocada'!X19 -> 0 | CD8: ='Histórico Frota Alocada'!Y19 -> 0
B9: Articulado | C9: 1506.5 | D9: 0 | E9: 0.375275345 | F9: 2071.852307 | G9: 591.582 | H9: =(($F9*Z9)+($G9*AO9))*BE9 -> 0 | I9: 0 | J9: 88297.64704 | K9: 78702.98066 | L9: 78702.98066 | M9: 79158.90155 | N9: 172735.6743 | O9: 233828.5456 | P9: 261894.4759 | Q9: 289368.5274 | R9: 421211.2394 | S9: 445677.3219 | T9: 2149578.294 | W9: Articulado | X9: 2.09034 | Y9: =X9/X11 -> 1 | Z9: =Z11*$Y9+Z2 -> 2.9757 | AA9: 3.0704 | AB9: 3.0406 | AC9: 2.7102 | AD9: 2.7102 | AE9: 2.7259 | AF9: 2.7263 | AG9: 2.7679 | AH9: 2.8344 | AI9: 2.8845 | AJ9: 2.7509 | AK9: 2.7229 | AN9: Articulado | AO9: =AO11*$Y9 -> 2.857616667 | AP9: 2.94855873 | AQ9: 2.91994127 | AR9: 2.602652381 | AS9: 2.602652381 | AT9: 2.617729365 | AU9: 2.618113492 | AV9: 2.658062698 | AW9: 2.72192381 | AX9: 2.770035714 | AY9: 2.641737302 | AZ9: 2.614848413 | BC9: Articulado | BD9: 65 | BE9: 0 | BF9: 0 | BG9: 11 | BH9: 11 | BI9: 11 | BJ9: 11 | BK9: 24 | BL9: 32 | BM9: 35 | BN9: 38 | BO9: 58 | BP9: 62 | BR9: Articulado | BS9: ='Histórico Frota Alocada'!N20 -> 0 | BT9: ='Histórico Frota Alocada'!O20 -> 0 | BU9: ='Histórico Frota Alocada'!P20 -> 13 | BV9: ='Histórico Frota Alocada'!Q20 -> 35 | BW9: ='Histórico Frota Alocada'!R20 -> 35 | BX9: ='Histórico Frota Alocada'!S20 -> 35 | BY9: ='Histórico Frota Alocada'!T20 -> 35 | BZ9: ='Histórico Frota Alocada'!U20 -> 35 | CA9: ='Histórico Frota Alocada'!V20 -> 35 | CB9: ='Histórico Frota Alocada'!W20 -> 35 | CC9: ='Histórico Frota Alocada'!X20 -> 37 | CD9: ='Histórico Frota Alocada'!Y20 -> 35
B10: Articulado BRT | C10: 1506.5 | D10: 0 | E10: 0.375275345 | F10: 2071.852307 | G10: 591.582 | H10: =(($F10*Z10)+($G10*AO10))*BE10 -> 0 | I10: 0 | J10: 0 | K10: 0 | L10: 0 | M10: 0 | N10: 0 | O10: 0 | P10: 0 | Q10: 0 | R10: 0 | S10: 0 | T10: 0 | W10: Articulado BRT | X10: 2.09034 | Y10: =X10/X11 -> 1 | Z10: =Z11*$Y10+Z2 -> 2.9757 | AA10: 3.0704 | AB10: 3.0406 | AC10: 2.7102 | AD10: 2.7102 | AE10: 2.7259 | AF10: 2.7263 | AG10: 2.7679 | AH10: 2.8344 | AI10: 2.8845 | AJ10: 2.7509 | AK10: 2.7229 | AN10: Articulado BRT | AO10: =AO11*$Y10 -> 2.857616667 | AP10: 2.94855873 | AQ10: 2.91994127 | AR10: 2.602652381 | AS10: 2.602652381 | AT10: 2.617729365 | AU10: 2.618113492 | AV10: 2.658062698 | AW10: 2.72192381 | AX10: 2.770035714 | AY10: 2.641737302 | AZ10: 2.614848413 | BC10: Articulado BRT | BD10: 0 | BE10: =IF(BS10>$BD10,ROUNDUP($BD10*0.95,0),BS10) -> 0 | BF10: 0 | BG10: 0 | BH10: 0 | BI10: 0 | BJ10: 0 | BK10: 0 | BL10: 0 | BM10: 0 | BN10: 0 | BO10: 0 | BP10: 0 | BR10: Articulado BRT | BS10: ='Histórico Frota Alocada'!N21 -> 0 | BT10: ='Histórico Frota Alocada'!O21 -> 0 | BU10: ='Histórico Frota Alocada'!P21 -> 0 | BV10: ='Histórico Frota Alocada'!Q21 -> 0 | BW10: ='Histórico Frota Alocada'!R21 -> 0 | BX10: ='Histórico Frota Alocada'!S21 -> 0 | BY10: ='Histórico Frota Alocada'!T21 -> 0 | BZ10: ='Histórico Frota Alocada'!U21 -> 0 | CA10: ='Histórico Frota Alocada'!V21 -> 0 | CB10: ='Histórico Frota Alocada'!W21 -> 0 | CC10: ='Histórico Frota Alocada'!X21 -> 0 | CD10: ='Histórico Frota Alocada'!Y21 -> 0
B11: Totais........................ | F11: Totais... | H11: =SUM(H6:H10) -> 911264.1573 | I11: 3217974.649 | J11: 3507824.705 | K11: 3126654.777 | L11: 3126654.777 | M11: 3144767.271 | N11: 3289175.131 | O11: 3397821.053 | P11: 3509385.977 | Q11: 3594261.709 | R11: 3573033.272 | S11: 3594171.951 | T11: 37992989.43 | W11: Totais........................ | X11: 2.09034 | Z11: ='FU Folha FGV'!$AK$25 -> 2.9757 | AA11: ='FU Folha FGV'!$AK$26 -> 3.0704 | AB11: ='FU Folha FGV'!$AK$27 -> 3.0406 | AC11: ='FU Folha FGV'!$AK$28 -> 2.7102 | AD11: ='FU Folha FGV'!$AK$29 -> 2.7102 | AE11: ='FU Folha FGV'!$AK$30 -> 2.7259 | AF11: ='FU Folha FGV'!$AK$31 -> 2.7263 | AG11: ='FU Folha FGV'!$AK$32 -> 2.7679 | AH11: ='FU Folha FGV'!$AK$33 -> 2.8344 | AI11: ='FU Folha FGV'!$AK$34 -> 2.8845 | AJ11: ='FU Folha FGV'!$AK$35 -> 2.7509 | AK11: ='FU Folha FGV'!$AK$36 -> 2.7229 | AL11: 3.0135 | AN11: Totais........................ | AO11: ='FU Folha FGV'!$AR$25 -> 2.857616667 | AP11: ='FU Folha FGV'!$AR$26 -> 2.94855873 | AQ11: ='FU Folha FGV'!$AR$27 -> 2.91994127 | AR11: ='FU Folha FGV'!$AR$28 -> 2.602652381 | AS11: ='FU Folha FGV'!$AR$29 -> 2.602652381 | AT11: ='FU Folha FGV'!$AR$30 -> 2.617729365 | AU11: ='FU Folha FGV'!$AR$31 -> 2.618113492 | AV11: ='FU Folha FGV'!$AR$32 -> 2.658062698 | AW11: ='FU Folha FGV'!$AR$33 -> 2.72192381 | AX11: ='FU Folha FGV'!$AR$34 -> 2.770035714 | AY11: ='FU Folha FGV'!$AR$35 -> 2.641737302 | AZ11: ='FU Folha FGV'!$AR$36 -> 2.614848413 | BC11: Totais........................ | BD11: =SUM(BD6:BD10) -> 530 | BE11: 116 | BF11: 397 | BG11: 437 | BH11: 437 | BI11: 437 | BJ11: 437 | BK11: 457 | BL11: 465 | BM11: 469 | BN11: 472 | BO11: 492 | BP11: 500 | BR11: TOTAL | BS11: =SUM(BS6:BS10) -> 86 | BT11: 419 | BU11: 481 | BV11: 504 | BW11: 504 | BX11: 504 | BY11: 504 | BZ11: 494 | CA11: 488 | CB11: 487 | CC11: 499 | CD11: 485
A12: Cobrador | B12: Miniônibus | C12: 787.52 | D12: 0 | E12: 0.38747873 | F12: =(C12+D12)*(E12/100*100+1) -> 1092.667249 | G12: =$G$6 -> 591.582 | H12: =(($F12*Z12)+($G12*AO12))*BE12 -> 0 | I12: 171479.6642 | J12: 262465.0819 | K12: 233910.1275 | L12: 233910.1275 | M12: 235290.453 | N12: 239938.5285 | O12: 243590.8368 | P12: 254233.1082 | Q12: 258730.0835 | R12: 246761.617 | S12: 244235.9186 | T12: =SUM(H12:S12) -> 2624545.547 | V12: Cobrador | W12: =B12 -> Miniônibus | X12: ='Plan2 R$ Pessoal'!$D$11 -> 2.12955 | Y12: =X12/X17 -> 1 | Z12: =Z17*$Y12+Z3 -> 3.0313 | AA12: 3.1295 | AB12: 3.0994 | AC12: 2.7622 | AD12: 2.7622 | AE12: 2.7785 | AF12: 2.7789 | AG12: 2.8212 | AH12: 2.8889 | AI12: 2.94 | AJ12: 2.804 | AK12: 2.7753 | AM12: Cobrador | AN12: Miniônibus | AO12: =AO17*$Y12 -> 2.909310655 | AP12: 3.003558768 | AQ12: 2.97467009 | AR12: 2.651040112 | AS12: 2.651040112 | AT12: 2.666684147 | AU12: 2.66706805 | AV12: 2.70766576 | AW12: 2.772641293 | AX12: 2.821684863 | AY12: 2.691157944 | AZ12: 2.663612925 | BB12: Cobrador | BC12: =W12 -> Miniônibus | BD12: =BD6 -> 57 | BE12: 0 | BF12: 33 | BG12: 51 | BH12: 51 | BI12: 51 | BJ12: 51 | BK12: 52 | BL12: 52 | BM12: 53 | BN12: 53 | BO12: 53 | BP12: 53
B13: Ônibus Básico | C13: 787.52 | D13: 0 | E13: 0.38747873 | F13: 1092.667249 | G13: 591.582 | H13: =(($F13*Z13)+($G13*AO13))*BE13 -> 583862.5737 | I13: 1891472.66 | J13: 1929890.308 | K13: 1719927.408 | L13: 1719927.408 | M13: 1730076.86 | N13: 1758011.141 | O13: 1784771.324 | P13: 1827600.268 | Q13: 1859927.581 | R13: 1773890.115 | S13: 1774166.578 | T13: 20353524.22 | W13: Ônibus Básico | X13: =X12 -> 2.12955 | Y13: =X13/X17 -> 1 | Z13: =Z17*$Y13+Z3 -> 3.0313 | AA13: 3.1295 | AB13: 3.0994 | AC13: 2.7622 | AD13: 2.7622 | AE13: 2.7785 | AF13: 2.7789 | AG13: 2.8212 | AH13: 2.8889 | AI13: 2.94 | AJ13: 2.804 | AK13: 2.7753 | AN13: Ônibus Básico | AO13: =AO17*$Y13 -> 2.909310655 | AP13: 3.003558768 | AQ13: 2.97467009 | AR13: 2.651040112 | AS13: 2.651040112 | AT13: 2.666684147 | AU13: 2.66706805 | AV13: 2.70766576 | AW13: 2.772641293 | AX13: 2.821684863 | AY13: 2.691157944 | AZ13: 2.663612925 | BC13: Ônibus Básico | BD13: =BD7 -> 408 | BE13: 116 | BF13: 364 | BG13: 375 | BH13: 375 | BI13: 375 | BJ13: 375 | BK13: 381 | BL13: 381 | BM13: 381 | BN13: 381 | BO13: 381 | BP13: 385
B14: Padron | C14: 787.52 | D14: 0 | E14: 0.38747873 | F14: 1092.667249 | G14: 591.582 | H14: =(($F14*Z14)+($G14*AO14))*BE14 -> 0 | I14: 0 | J14: 0 | K14: 0 | L14: 0 | M14: 0 | N14: 0 | O14: 0 | P14: 0 | Q14: 0 | R14: 0 | S14: 0 | T14: 0 | W14: Padron | X14: 2.12955 | Y14: =X14/X17 -> 1 | Z14: =Z17*$Y14+Z3 -> 3.0313 | AA14: 3.1295 | AB14: 3.0994 | AC14: 2.7622 | AD14: 2.7622 | AE14: 2.7785 | AF14: 2.7789 | AG14: 2.8212 | AH14: 2.8889 | AI14: 2.94 | AJ14: 2.804 | AK14: 2.7753 | AN14: Padron | AO14: =AO17*$Y14 -> 2.909310655 | AP14: 3.003558768 | AQ14: 2.97467009 | AR14: 2.651040112 | AS14: 2.651040112 | AT14: 2.666684147 | AU14: 2.66706805 | AV14: 2.70766576 | AW14: 2.772641293 | AX14: 2.821684863 | AY14: 2.691157944 | AZ14: 2.663612925 | BC14: Padron | BD14: =BD8 -> 0 | BE14: 0 | BF14: 0 | BG14: 0 | BH14: 0 | BI14: 0 | BJ14: 0 | BK14: 0 | BL14: 0 | BM14: 0 | BN14: 0 | BO14: 0 | BP14: 0
B15: Articulado | C15: 787.52 | D15: 0 | E15: 0.38747873 | F15: 1092.667249 | G15: 591.582 | H15: =(($F15*Z15)+($G15*AO15))*BE15 -> 0 | I15: 0 | J15: 56610.11569 | K15: 50451.20397 | L15: 50451.20397 | M15: 50748.92123 | N15: 110740.8593 | O15: 149902.0534 | P15: 167889.7884 | Q15: 185504.5881 | R15: 270041.0149 | S15: 285709.9425 | T15: 1378049.692 | W15: Articulado | X15: 2.12955 | Y15: =X15/X17 -> 1 | Z15: =Z17*$Y15+Z3 -> 3.0313 | AA15: 3.1295 | AB15: 3.0994 | AC15: 2.7622 | AD15: 2.7622 | AE15: 2.7785 | AF15: 2.7789 | AG15: 2.8212 | AH15: 2.8889 | AI15: 2.94 | AJ15: 2.804 | AK15: 2.7753 | AN15: Articulado | AO15: =AO17*$Y15 -> 2.909310655 | AP15: 3.003558768 | AQ15: 2.97467009 | AR15: 2.651040112 | AS15: 2.651040112 | AT15: 2.666684147 | AU15: 2.66706805 | AV15: 2.70766576 | AW15: 2.772641293 | AX15: 2.821684863 | AY15: 2.691157944 | AZ15: 2.663612925 | BC15: Articulado | BD15: =BD9 -> 65 | BE15: 0 | BF15: 0 | BG15: 11 | BH15: 11 | BI15: 11 | BJ15: 11 | BK15: 24 | BL15: 32 | BM15: 35 | BN15: 38 | BO15: 58 | BP15: 62
B16: Articulado BRT | C16: 787.52 | D16: 0 | E16: 0.38747873 | F16: 1092.667249 | G16: 591.582 | H16: =(($F16*Z16)+($G16*AO16))*BE16 -> 0 | I16: 0 | J16: 0 | K16: 0 | L16: 0 | M16: 0 | N16: 0 | O16: 0 | P16: 0 | Q16: 0 | R16: 0 | S16: 0 | T16: 0 | W16: Articulado BRT | X16: 2.12955 | Y16: =X16/X17 -> 1 | Z16: =Z17*$Y16+Z3 -> 3.0313 | AA16: 3.1295 | AB16: 3.0994 | AC16: 2.7622 | AD16: 2.7622 | AE16: 2.7785 | AF16: 2.7789 | AG16: 2.8212 | AH16: 2.8889 | AI16: 2.94 | AJ16: 2.804 | AK16: 2.7753 | AN16: Articulado BRT | AO16: =AO17*$Y16 -> 2.909310655 | AP16: 3.003558768 | AQ16: 2.97467009 | AR16: 2.651040112 | AS16: 2.651040112 | AT16: 2.666684147 | AU16: 2.66706805 | AV16: 2.70766576 | AW16: 2.772641293 | AX16: 2.821684863 | AY16: 2.691157944 | AZ16: 2.663612925 | BC16: Articulado BRT | BD16: =BD10 -> 0 | BE16: 0 | BF16: 0 | BG16: 0 | BH16: 0 | BI16: 0 | BJ16: 0 | BK16: 0 | BL16: 0 | BM16: 0 | BN16: 0 | BO16: 0 | BP16: 0
B17: Totais........................ | F17: Totais... | H17: =SUM(H12:H16) -> 583862.5737 | I17: 2062952.324 | J17: 2248965.505 | K17: 2004288.739 | L17: 2004288.739 | M17: 2016116.234 | N17: 2108690.529 | O17: 2178264.214 | P17: 2249723.165 | Q17: 2304162.253 | R17: 2290692.747 | S17: 2304112.439 | T17: 24356119.46 | W17: Totais........................ | X17: 2.12955 | Z17: ='FU Folha FGV'!$AL$25 -> 3.0313 | AA17: ='FU Folha FGV'!$AL$26 -> 3.1295 | AB17: ='FU Folha FGV'!$AL$27 -> 3.0994 | AC17: ='FU Folha FGV'!$AL$28 -> 2.7622 | AD17: ='FU Folha FGV'!$AL$29 -> 2.7622 | AE17: ='FU Folha FGV'!$AL$30 -> 2.7785 | AF17: ='FU Folha FGV'!$AL$31 -> 2.7789 | AG17: ='FU Folha FGV'!$AL$32 -> 2.8212 | AH17: ='FU Folha FGV'!$AL$33 -> 2.8889 | AI17: ='FU Folha FGV'!$AL$34 -> 2.94 | AJ17: ='FU Folha FGV'!$AL$35 -> 2.804 | AK17: ='FU Folha FGV'!$AL$36 -> 2.7753 | AN17: Totais........................ | AO17: ='FU Folha FGV'!$AS$25 -> 2.909310655 | AP17: ='FU Folha FGV'!$AS$26 -> 3.003558768 | AQ17: ='FU Folha FGV'!$AS$27 -> 2.97467009 | AR17: ='FU Folha FGV'!$AS$28 -> 2.651040112 | AS17: ='FU Folha FGV'!$AS$29 -> 2.651040112 | AT17: ='FU Folha FGV'!$AS$30 -> 2.666684147 | AU17: ='FU Folha FGV'!$AS$31 -> 2.66706805 | AV17: ='FU Folha FGV'!$AS$32 -> 2.70766576 | AW17: ='FU Folha FGV'!$AS$33 -> 2.772641293 | AX17: ='FU Folha FGV'!$AS$34 -> 2.821684863 | AY17: ='FU Folha FGV'!$AS$35 -> 2.691157944 | AZ17: ='FU Folha FGV'!$AS$36 -> 2.663612925 | BC17: Totais........................ | BD17: =SUM(BD12:BD16) -> 530 | BE17: 116 | BF17: 397 | BG17: 437 | BH17: 437 | BI17: 437 | BJ17: 437 | BK17: 457 | BL17: 465 | BM17: 469 | BN17: 472 | BO17: 492 | BP17: 500
F18: Total Mensal Mot./Cob. | H18: =H11+H17 -> 1495126.731 | I18: 5280926.973 | J18: 5756790.21 | K18: 5130943.517 | L18: 5130943.517 | M18: 5160883.505 | N18: 5397865.66 | O18: 5576085.267 | P18: 5759109.142 | Q18: 5898423.962 | R18: 5863726.019 | S18: 5898284.39 | T18: 62349108.89 | Z18: 0.959902
A20: Controle Operacional - Composição do Custo Unitário Por Função | G20: Ano 1 | H20: Controle Operacional - Composição de Custo Total Mensal | T20: R$
A21: Funções | B21: Cargo | C21: Salário | D21: Hs Extras | E21: Enc. | F21: R$ Total | G21: Benefícios | H21: =H3 -> 2014-01-01 | I21: =DATE(YEAR(H21),MONTH(H21)+1,DAY(H21)) -> 2014-02-01 | J21: 2014-03-01 | K21: 2014-04-01 | L21: 2014-05-01 | M21: 2014-06-01 | N21: 2014-07-01 | O21: 2014-08-01 | P21: 2014-09-01 | Q21: 2014-10-01 | R21: 2014-11-01 | S21: 2014-12-01 | T21: Total | V21: Fator Utilização Mensal | X21: =U1 -> Ano 1 | Z21: FU FOLHA DE PAGAMENTO | AM21: =X21 -> Ano 1 | AN21: FU Benefícios | AO21: FU FÍSICO PARA CÁLCULOS DOS BENEFÍCIOS | BE21: =BE3 -> Ano 1
C22: base | D22: e Adic. | E22: Soc. | F22: Por | G22: R$ por | H22: R$ | I22: R$ | J22: R$ | K22: R$ | L22: R$ | M22: R$ | N22: R$ | O22: R$ | P22: R$ | Q22: R$ | R22: R$ | S22: R$ | T22: Durante o | V22: Funções | W22: Cargo | X22: FU | Z22: =H21 -> 2014-01-01 | AA22: 2014-02-01 | AB22: 2014-03-01 | AC22: 2014-04-01 | AD22: 2014-05-01 | AE22: 2014-06-01 | AF22: 2014-07-01 | AG22: 2014-08-01 | AH22: 2014-09-01 | AI22: 2014-10-01 | AJ22: 2014-11-01 | AK22: 2014-12-01 | AM22: Funções | AN22: Cargo | AO22: =Z22 -> 2014-01-01 | AP22: 2014-02-01 | AQ22: 2014-03-01 | AR22: 2014-04-01 | AS22: 2014-05-01 | AT22: 2014-06-01 | AU22: 2014-07-01 | AV22: 2014-08-01 | AW22: 2014-09-01 | AX22: 2014-10-01 | AY22: 2014-11-01 | AZ22: 2014-12-01 | BB22: Funções | BC22: Cargo | BD22: Frota | BE22: =Z22 -> 2014-01-01 | BF22: 2014-02-01 | BG22: 2014-03-01 | BH22: 2014-04-01 | BI22: 2014-05-01 | BJ22: 2014-06-01 | BK22: 2014-07-01 | BL22: 2014-08-01 | BM22: 2014-09-01 | BN22: 2014-10-01 | BO22: 2014-11-01 | BP22: 2014-12-01
C23: (R$/mês) | D23: Not. | E23: % | F23: Função | G23: mês | T23: =T5 -> Ano 1 | X23: Licitação | Z23: FU | AA23: FU | AB23: FU | AC23: FU | AD23: FU | AE23: FU | AF23: FU | AG23: FU | AH23: FU | AI23: FU | AJ23: FU | AK23: FU | BD23: Licitação | BE23: Frota | BF23: Frota | BG23: Frota | BH23: Frota | BI23: Frota | BJ23: Frota | BK23: Frota | BL23: Frota | BM23: Frota | BN23: Frota | BO23: Frota | BP23: Frota
A24: Controle Operacional | B24: Chefe de Tráfego | C24: ='Plan2 R$ Pessoal'!F14 -> 5400 | D24: 0 | E24: ='Plan2 R$ Pessoal'!H14 -> 0.40106926 | F24: =(C24+D24)*(E24/100*100+1) -> 7565.774004 | G24: =G16 -> 591.582 | H24: =(($F24*Z24)+($G24*AO24))*BE24 -> 2053.369653 | I24: 7027.480624 | J24: 7735.539125 | K24: 7735.539125 | L24: 7735.539125 | M24: 7735.539125 | N24: 8089.568376 | O24: 8231.180076 | P24: 8301.985926 | Q24: 8355.090314 | R24: 8709.119564 | S24: 8850.731264 | T24: =SUM(H24:S24) -> 90560.6823 | V24: Controle Operacional | W24: =B24 -> Chefe de Tráfego | X24: ='Plan2 R$ Pessoal'!D14 -> 0.00217 | Y24: =X24/X31 -> 0.01848580059 | Z24: =Z31*$Y24 -> 0.00217 | AA24: 0.00217 | AB24: 0.00217 | AC24: 0.00217 | AD24: 0.00217 | AE24: 0.00217 | AF24: 0.00217 | AG24: 0.00217 | AH24: 0.00217 | AI24: 0.00217 | AJ24: 0.00217 | AK24: 0.00217 | AM24: Controle Operacional | AN24: =W24 -> Chefe de Tráfego | AO24: =AO31*$Y24 -> 0.00217 | AP24: 0.00217 | AQ24: 0.00217 | AR24: 0.00217 | AS24: 0.00217 | AT24: 0.00217 | AU24: 0.00217 | AV24: 0.00217 | AW24: 0.00217 | AX24: 0.00217 | AY24: 0.00217 | AZ24: 0.00217 | BB24: Controle Operacional | BC24: Fiscal | BD24: =BD$11 -> 530 | BE24: 116 | BF24: 397 | BG24: 437 | BH24: 437 | BI24: 437 | BJ24: 437 | BK24: 457 | BL24: 465 | BM24: 469 | BN24: 472 | BO24: 492 | BP24: 500
B25: Inspetor de Tráfego | C25: ='Plan2 R$ Pessoal'!F15 -> 1800 | D25: 0 | E25: ='Plan2 R$ Pessoal'!H15 -> 0.40106926 | F25: 2521.924668 | G25: =G24 -> 591.582 | H25: =(($F25*Z25)+($G25*AO25))*BE25 -> 7851.451441 | I25: 26870.91571 | J25: 29578.31275 | K25: 29578.31275 | L25: 29578.31275 | M25: 29578.31275 | N25: 30932.01128 | O25: 31473.49069 | P25: 31744.23039 | Q25: 31947.28517 | R25: 33300.9837 | S25: 33842.46311 | T25: 346276.0825 | W25: Inspetor de Tráfego | X25: ='Plan2 R$ Pessoal'!D15 -> 0.02173913 | Y25: =X25/X31 -> 0.1851913466 | Z25: =Z31*$Y25 -> 0.02173913 | AA25: 0.02173913 | AB25: 0.02173913 | AC25: 0.02173913 | AD25: 0.02173913 | AE25: 0.02173913 | AF25: 0.02173913 | AG25: 0.02173913 | AH25: 0.02173913 | AI25: 0.02173913 | AJ25: 0.02173913 | AK25: 0.02173913 | AN25: Inspetor de Tráfego | AO25: =AO31*$Y25 -> 0.02173913 | AP25: 0.02173913 | AQ25: 0.02173913 | AR25: 0.02173913 | AS25: 0.02173913 | AT25: 0.02173913 | AU25: 0.02173913 | AV25: 0.02173913 | AW25: 0.02173913 | AX25: 0.02173913 | AY25: 0.02173913 | AZ25: 0.02173913 | BC25: Inspetores de Tráfego | BD25: =BD$11 -> 530 | BE25: 116 | BF25: 397 | BG25: 437 | BH25: 437 | BI25: 437 | BJ25: 437 | BK25: 457 | BL25: 465 | BM25: 469 | BN25: 472 | BO25: 492 | BP25: 500
B26: Escalador | C26: ='Plan2 R$ Pessoal'!F16 -> 1350 | D26: 0 | E26: ='Plan2 R$ Pessoal'!H16 -> 0.40106926 | F26: 1891.443501 | G26: 591.582 | H26: =(($F26*Z26)+($G26*AO26))*BE26 -> 3130.769781 | I26: 10714.78968 | J26: 11794.36547 | K26: 11794.36547 | L26: 11794.36547 | M26: 11794.36547 | N26: 12334.15336 | O26: 12550.06852 | P26: 12658.0261 | Q26: 12738.99428 | R26: 13278.78218 | S26: 13494.69733 | T26: 138077.7431 | W26: Escalador | X26: ='Plan2 R$ Pessoal'!D16 -> 0.01086956 | Y26: =X26/X31 -> 0.09259563073 | Z26: =Z31*$Y26 -> 0.01086956 | AA26: 0.01086956 | AB26: 0.01086956 | AC26: 0.01086956 | AD26: 0.01086956 | AE26: 0.01086956 | AF26: 0.01086956 | AG26: 0.01086956 | AH26: 0.01086956 | AI26: 0.01086956 | AJ26: 0.01086956 | AK26: 0.01086956 | AN26: Escalador | AO26: =AO31*$Y26 -> 0.01086956 | AP26: 0.01086956 | AQ26: 0.01086956 | AR26: 0.01086956 | AS26: 0.01086956 | AT26: 0.01086956 | AU26: 0.01086956 | AV26: 0.01086956 | AW26: 0.01086956 | AX26: 0.01086956 | AY26: 0.01086956 | AZ26: 0.01086956 | BC26: Chefe de Tráfego | BD26: =BD$11 -> 530 | BE26: 116 | BF26: 397 | BG26: 437 | BH26: 437 | BI26: 437 | BJ26: 437 | BK26: 457 | BL26: 465 | BM26: 469 | BN26: 472 | BO26: 492 | BP26: 500
B27: Programadores | C27: ='Plan2 R$ Pessoal'!F17 -> 1350 | D27: 0 | E27: ='Plan2 R$ Pessoal'!H17 -> 0.40106926 | F27: 1891.443501 | G27: 591.582 | H27: =(($F27*Z27)+($G27*AO27))*BE27 -> 1252.309641 | I27: 4285.921787 | J27: 4717.752698 | K27: 4717.752698 | L27: 4717.752698 | M27: 4717.752698 | N27: 4933.668153 | O27: 5020.034335 | P27: 5063.217426 | Q27: 5095.604745 | R27: 5311.5202 | S27: 5397.886382 | T27: 55231.17346 | W27: Programadores | X27: ='Plan2 R$ Pessoal'!D17 -> 0.00434783 | Y27: =X27/X31 -> 0.0370383034 | Z27: =Z31*$Y27 -> 0.00434783 | AA27: 0.00434783 | AB27: 0.00434783 | AC27: 0.00434783 | AD27: 0.00434783 | AE27: 0.00434783 | AF27: 0.00434783 | AG27: 0.00434783 | AH27: 0.00434783 | AI27: 0.00434783 | AJ27: 0.00434783 | AK27: 0.00434783 | AN27: Programadores | AO27: =AO31*$Y27 -> 0.00434783 | AP27: 0.00434783 | AQ27: 0.00434783 | AR27: 0.00434783 | AS27: 0.00434783 | AT27: 0.00434783 | AU27: 0.00434783 | AV27: 0.00434783 | AW27: 0.00434783 | AX27: 0.00434783 | AY27: 0.00434783 | AZ27: 0.00434783 | BC27: Instrutor | BD27: =BD$11 -> 530 | BE27: 116 | BF27: 397 | BG27: 437 | BH27: 437 | BI27: 437 | BJ27: 437 | BK27: 457 | BL27: 465 | BM27: 469 | BN27: 472 | BO27: 492 | BP27: 500
B28: Fiscal | C28: ='Plan2 R$ Pessoal'!F18 -> 1500 | D28: 0 | E28: ='Plan2 R$ Pessoal'!H18 -> 0.4010697 | F28: 2101.60455 | G28: 591.582 | H28: =(($F28*Z28)+($G28*AO28))*BE28 -> 17657.9384 | I28: 60432.77195 | J28: 66521.71622 | K28: 66521.71622 | L28: 66521.71622 | M28: 66521.71622 | N28: 69566.18836 | O28: 70783.97722 | P28: 71392.87164 | Q28: 71849.54247 | R28: 74894.0146 | S28: 76111.80346 | T28: 778775.973 | W28: Fiscal | X28: ='Plan2 R$ Pessoal'!D18 -> 0.0565217463 | Y28: =X28/X31 -> 0.481497572 | Z28: =Z31*$Y28 -> 0.0565217463 | AA28: 0.0565217463 | AB28: 0.0565217463 | AC28: 0.0565217463 | AD28: 0.0565217463 | AE28: 0.0565217463 | AF28: 0.0565217463 | AG28: 0.0565217463 | AH28: 0.0565217463 | AI28: 0.0565217463 | AJ28: 0.0565217463 | AK28: 0.0565217463 | AN28: Fiscal | AO28: =AO31*$Y28 -> 0.0565217463 | AP28: 0.0565217463 | AQ28: 0.0565217463 | AR28: 0.0565217463 | AS28: 0.0565217463 | AT28: 0.0565217463 | AU28: 0.0565217463 | AV28: 0.0565217463 | AW28: 0.0565217463 | AX28: 0.0565217463 | AY28: 0.0565217463 | AZ28: 0.0565217463 | BC28: Programadores | BD28: =BD$11 -> 530 | BE28: 116 | BF28: 397 | BG28: 437 | BH28: 437 | BI28: 437 | BJ28: 437 | BK28: 457 | BL28: 465 | BM28: 469 | BN28: 472 | BO28: 492 | BP28: 500
B29: Controle de Operação | C29: ='Plan2 R$ Pessoal'!F19 -> 2550 | D29: 0 | E29: ='Plan2 R$ Pessoal'!H19 -> 0.4010697 | F29: 3572.727735 | G29: 591.582 | H29: =(($F29*Z29)+($G29*AO29))*BE29 -> 4200.520074 | I29: 14375.91784 | J29: 15824.37304 | K29: 15824.37304 | L29: 15824.37304 | M29: 15824.37304 | N29: 16548.60064 | O29: 16838.29168 | P29: 16983.1372 | Q29: 17091.77134 | R29: 17815.99893 | S29: 18105.68997 | T29: 185257.4198 | W29: Controle de Operação | X29: ='Plan2 R$ Pessoal'!D19 -> 0.00869565 | Y29: =X29/X31 -> 0.07407652162 | Z29: =Z31*$Y29 -> 0.00869565 | AA29: 0.00869565 | AB29: 0.00869565 | AC29: 0.00869565 | AD29: 0.00869565 | AE29: 0.00869565 | AF29: 0.00869565 | AG29: 0.00869565 | AH29: 0.00869565 | AI29: 0.00869565 | AJ29: 0.00869565 | AK29: 0.00869565 | AN29: Controle de Operação | AO29: =AO31*$Y29 -> 0.00869565 | AP29: 0.00869565 | AQ29: 0.00869565 | AR29: 0.00869565 | AS29: 0.00869565 | AT29: 0.00869565 | AU29: 0.00869565 | AV29: 0.00869565 | AW29: 0.00869565 | AX29: 0.00869565 | AY29: 0.00869565 | AZ29: 0.00869565 | BC29: Escaladores | BD29: =BD$11 -> 530 | BE29: 116 | BF29: 397 | BG29: 437 | BH29: 437 | BI29: 437 | BJ29: 437 | BK29: 457 | BL29: 465 | BM29: 469 | BN29: 472 | BO29: 492 | BP29: 500
B30: Auxiliares | C30: ='Plan2 R$ Pessoal'!F20 -> 1000 | D30: 0 | E30: ='Plan2 R$ Pessoal'!H20 -> 0.4010697 | F30: 1401.0697 | G30: 591.582 | H30: =(($F30*Z30)+($G30*AO30))*BE30 -> 3014.969061 | I30: 10318.4717 | J30: 11358.1162 | K30: 11358.1162 | L30: 11358.1162 | M30: 11358.1162 | N30: 11877.93846 | O30: 12085.86736 | P30: 12189.83181 | Q30: 12267.80515 | R30: 12787.6274 | S30: 12995.5563 | T30: 132970.532 | W30: Auxiliares | X30: ='Plan2 R$ Pessoal'!D20 -> 0.01304348 | Y30: =X30/X31 -> 0.111114825 | Z30: =Z31*$Y30 -> 0.01304348 | AA30: 0.01304348 | AB30: 0.01304348 | AC30: 0.01304348 | AD30: 0.01304348 | AE30: 0.01304348 | AF30: 0.01304348 | AG30: 0.01304348 | AH30: 0.01304348 | AI30: 0.01304348 | AJ30: 0.01304348 | AK30: 0.01304348 | AN30: Auxiliares | AO30: =AO31*$Y30 -> 0.01304348 | AP30: 0.01304348 | AQ30: 0.01304348 | AR30: 0.01304348 | AS30: 0.01304348 | AT30: 0.01304348 | AU30: 0.01304348 | AV30: 0.01304348 | AW30: 0.01304348 | AX30: 0.01304348 | AY30: 0.01304348 | AZ30: 0.01304348 | BC30: Auxiliares | BD30: =BD$11 -> 530 | BE30: 116 | BF30: 397 | BG30: 437 | BH30: 437 | BI30: 437 | BJ30: 437 | BK30: 457 | BL30: 465 | BM30: 469 | BN30: 472 | BO30: 492 | BP30: 500
B31: Totais........................ | F31: Totais... | G31: 591.582 | H31: =SUM(H24:H30) -> 39161.32805 | I31: 134026.2693 | J31: 147530.1755 | K31: 147530.1755 | L31: 147530.1755 | M31: 147530.1755 | N31: 154282.1286 | O31: 156982.9099 | P31: 158333.3005 | Q31: 159346.0935 | R31: 166098.0466 | S31: 168798.8278 | T31: 1727149.606 | W31: Totais........................ | X31: =SUM(X24:X30) -> 0.1173873963 | Y31: 1 | Z31: ='FU Folha FGV'!$AM198 -> 0.1173873963 | AA31: ='FU Folha FGV'!$AM199 -> 0.1173873963 | AB31: ='FU Folha FGV'!$AM200 -> 0.1173873963 | AC31: ='FU Folha FGV'!$AM201 -> 0.1173873963 | AD31: ='FU Folha FGV'!$AM202 -> 0.1173873963 | AE31: ='FU Folha FGV'!$AM203 -> 0.1173873963 | AF31: ='FU Folha FGV'!$AM204 -> 0.1173873963 | AG31: ='FU Folha FGV'!$AM205 -> 0.1173873963 | AH31: ='FU Folha FGV'!$AM206 -> 0.1173873963 | AI31: ='FU Folha FGV'!$AM207 -> 0.1173873963 | AJ31: ='FU Folha FGV'!$AM208 -> 0.1173873963 | AK31: ='FU Folha FGV'!$AM209 -> 0.1173873963 | AN31: Totais........................ | AO31: ='FU Folha FGV'!$AT$198 -> 0.1173873963 | AP31: ='FU Folha FGV'!$AT$199 -> 0.1173873963 | AQ31: ='FU Folha FGV'!$AT$200 -> 0.1173873963 | AR31: ='FU Folha FGV'!$AT$201 -> 0.1173873963 | AS31: ='FU Folha FGV'!$AT$202 -> 0.1173873963 | AT31: ='FU Folha FGV'!$AT$203 -> 0.1173873963 | AU31: ='FU Folha FGV'!$AT$204 -> 0.1173873963 | AV31: ='FU Folha FGV'!$AT$205 -> 0.1173873963 | AW31: ='FU Folha FGV'!$AT$206 -> 0.1173873963 | AX31: ='FU Folha FGV'!$AT$207 -> 0.1173873963 | AY31: ='FU Folha FGV'!$AT$208 -> 0.1173873963 | AZ31: ='FU Folha FGV'!$AT$209 -> 0.1173873963 | BC31: Totais........................ | BD31: =BD$11 -> 530 | BE31: 116 | BF31: 397 | BG31: 437 | BH31: 437 | BI31: 437 | BJ31: 437 | BK31: 457 | BL31: 465 | BM31: 469 | BN31: 472 | BO31: 492 | BP31: 500
A32: Manutenção | B32: Chefe de Manutenção | C32: ='Plan2 R$ Pessoal'!F23 -> 2250 | D32: 0 | E32: ='Plan2 R$ Pessoal'!H23 -> 0.4010699 | F32: =(C32+D32)*(E32/100*100+1) -> 3152.407275 | G32: 591.582 | H32: =(($F32*Z32)+($G32*AO32))*BE32 -> 10385.49917 | I32: 35543.47562 | J32: 39124.68223 | K32: 39124.68223 | L32: 39124.68223 | M32: 39124.68223 | N32: 40915.28554 | O32: 41631.52686 | P32: 41989.64752 | Q32: 42258.23802 | R32: 44048.84132 | S32: 44765.08265 | T32: =SUM(H32:S32) -> 458036.3256 | V32: Manutenção | W32: Chefe de Manutenção | X32: ='Plan2 R$ Pessoal'!D23 -> 0.02391304 | Y32: =X32/X40 -> 0.05238094627 | Z32: =Z40*$Y32 -> 0.02391304 | AA32: 0.02391304 | AB32: 0.02391304 | AC32: 0.02391304 | AD32: 0.02391304 | AE32: 0.02391304 | AF32: 0.02391304 | AG32: 0.02391304 | AH32: 0.02391304 | AI32: 0.02391304 | AJ32: 0.02391304 | AK32: 0.02391304 | AM32: Manutenção | AN32: Chefe de Manutenção | AO32: =AO40*$Y32 -> 0.02391304 | AP32: 0.02391304 | AQ32: 0.02391304 | AR32: 0.02391304 | AS32: 0.02391304 | AT32: 0.02391304 | AU32: 0.02391304 | AV32: 0.02391304 | AW32: 0.02391304 | AX32: 0.02391304 | AY32: 0.02391304 | AZ32: 0.02391304 | BB32: Manutenção | BC32: 1/2 Oficial Eletricista | BD32: =BD$11 -> 530 | BE32: 116 | BF32: 397 | BG32: 437 | BH32: 437 | BI32: 437 | BJ32: 437 | BK32: 457 | BL32: 465 | BM32: 469 | BN32: 472 | BO32: 492 | BP32: 500
B33: Mecânicos | C33: ='Plan2 R$ Pessoal'!F24 -> 1500 | D33: 0 | E33: ='Plan2 R$ Pessoal'!H24 -> 0.4010697 | F33: 2101.60455 | G33: 591.582 | H33: =(($F33*Z33)+($G33*AO33))*BE33 -> 25128.5994 | I33: 86000.46518 | J33: 94665.49945 | K33: 94665.49945 | L33: 94665.49945 | M33: 94665.49945 | N33: 98998.01659 | O33: 100731.0234 | P33: 101597.5269 | Q33: 102247.4044 | R33: 106579.9216 | S33: 108312.9284 | T33: 1108257.884 | W33: Mecânicos | X33: ='Plan2 R$ Pessoal'!D24 -> 0.080434776 | Y33: =X33/X40 -> 0.1761904668 | Z33: =Z40*$Y33 -> 0.080434776 | AA33: 0.080434776 | AB33: 0.080434776 | AC33: 0.080434776 | AD33: 0.080434776 | AE33: 0.080434776 | AF33: 0.080434776 | AG33: 0.080434776 | AH33: 0.080434776 | AI33: 0.080434776 | AJ33: 0.080434776 | AK33: 0.080434776 | AN33: Mecânicos | AO33: =AO40*$Y33 -> 0.080434776 | AP33: 0.080434776 | AQ33: 0.080434776 | AR33: 0.080434776 | AS33: 0.080434776 | AT33: 0.080434776 | AU33: 0.080434776 | AV33: 0.080434776 | AW33: 0.080434776 | AX33: 0.080434776 | AY33: 0.080434776 | AZ33: 0.080434776 | BC33: 1/2 Oficial Funileiro | BD33: =BD$11 -> 530 | BE33: 116 | BF33: 397 | BG33: 437 | BH33: 437 | BI33: 437 | BJ33: 437 | BK33: 457 | BL33: 465 | BM33: 469 | BN33: 472 | BO33: 492 | BP33: 500
B34: Eletricista | C34: ='Plan2 R$ Pessoal'!F25 -> 1500 | D34: 0 | E34: ='Plan2 R$ Pessoal'!H25 -> 0.4010697 | F34: 2101.60455 | G34: 591.582 | H34: =(($F34*Z34)+($G34*AO34))*BE34 -> 11545.5731 | I34: 39513.72863 | J34: 43494.96074 | K34: 43494.96074 | L34: 43494.96074 | M34: 43494.96074 | N34: 45485.57679 | O34: 46281.82321 | P34: 46679.94642 | Q34: 46978.53883 | R34: 48969.15488 | S34: 49765.4013 | T34: 509199.5861 | W34: Eletricista | X34: ='Plan2 R$ Pessoal'!D25 -> 0.03695652 | Y34: =X34/X40 -> 0.08095237947 | Z34: =Z40*$Y34 -> 0.03695652 | AA34: 0.03695652 | AB34: 0.03695652 | AC34: 0.03695652 | AD34: 0.03695652 | AE34: 0.03695652 | AF34: 0.03695652 | AG34: 0.03695652 | AH34: 0.03695652 | AI34: 0.03695652 | AJ34: 0.03695652 | AK34: 0.03695652 | AN34: Eletricista | AO34: =AO40*$Y34 -> 0.03695652 | AP34: 0.03695652 | AQ34: 0.03695652 | AR34: 0.03695652 | AS34: 0.03695652 | AT34: 0.03695652 | AU34: 0.03695652 | AV34: 0.03695652 | AW34: 0.03695652 | AX34: 0.03695652 | AY34: 0.03695652 | AZ34: 0.03695652 | BC34: Abastecedor | BD34: =BD$11 -> 530 | BE34: 116 | BF34: 397 | BG34: 437 | BH34: 437 | BI34: 437 | BJ34: 437 | BK34: 457 | BL34: 465 | BM34: 469 | BN34: 472 | BO34: 492 | BP34: 500
B35: Funileiro | C35: ='Plan2 R$ Pessoal'!F26 -> 1500 | D35: 0 | E35: ='Plan2 R$ Pessoal'!H26 -> 0.4010697 | F35: 2101.60455 | G35: 591.582 | H35: =(($F35*Z35)+($G35*AO35))*BE35 -> 9508.118657 | I35: 32540.71644 | J35: 35819.37804 | K35: 35819.37804 | L35: 35819.37804 | M35: 35819.37804 | N35: 37458.70885 | O35: 38114.44117 | P35: 38442.30733 | Q35: 38688.20695 | R35: 40327.53775 | S35: 40983.27007 | T35: 419340.8194 | W35: Funileiro | X35: ='Plan2 R$ Pessoal'!D26 -> 0.03043478 | Y35: =X35/X40 -> 0.06666666287 | Z35: =Z40*$Y35 -> 0.03043478 | AA35: 0.03043478 | AB35: 0.03043478 | AC35: 0.03043478 | AD35: 0.03043478 | AE35: 0.03043478 | AF35: 0.03043478 | AG35: 0.03043478 | AH35: 0.03043478 | AI35: 0.03043478 | AJ35: 0.03043478 | AK35: 0.03043478 | AN35: Funileiro | AO35: =AO40*$Y35 -> 0.03043478 | AP35: 0.03043478 | AQ35: 0.03043478 | AR35: 0.03043478 | AS35: 0.03043478 | AT35: 0.03043478 | AU35: 0.03043478 | AV35: 0.03043478 | AW35: 0.03043478 | AX35: 0.03043478 | AY35: 0.03043478 | AZ35: 0.03043478 | BC35: Auxiliar Almoxarife | BD35: =BD$11 -> 530 | BE35: 116 | BF35: 397 | BG35: 437 | BH35: 437 | BI35: 437 | BJ35: 437 | BK35: 457 | BL35: 465 | BM35: 469 | BN35: 472 | BO35: 492 | BP35: 500
B36: Pintor | C36: ='Plan2 R$ Pessoal'!F27 -> 1300 | D36: 0 | E36: ='Plan2 R$ Pessoal'!H27 -> 0.4010697 | F36: 1821.39061 | G36: 591.582 | H36: =(($F36*Z36)+($G36*AO36))*BE36 -> 6693.378022 | I36: 22907.50926 | J36: 25215.57065 | K36: 25215.57065 | L36: 25215.57065 | M36: 25215.57065 | N36: 26369.60134 | O36: 26831.21362 | P36: 27062.01976 | Q36: 27235.12436 | R36: 28389.15506 | S36: 28850.76734 | T36: 295201.0514 | W36: Pintor | X36: ='Plan2 R$ Pessoal'!D27 -> 0.02391305 | Y36: =X36/X40 -> 0.05238096817 | Z36: =Z40*$Y36 -> 0.02391305 | AA36: 0.02391305 | AB36: 0.02391305 | AC36: 0.02391305 | AD36: 0.02391305 | AE36: 0.02391305 | AF36: 0.02391305 | AG36: 0.02391305 | AH36: 0.02391305 | AI36: 0.02391305 | AJ36: 0.02391305 | AK36: 0.02391305 | AN36: Pintor | AO36: =AO40*$Y36 -> 0.02391305 | AP36: 0.02391305 | AQ36: 0.02391305 | AR36: 0.02391305 | AS36: 0.02391305 | AT36: 0.02391305 | AU36: 0.02391305 | AV36: 0.02391305 | AW36: 0.02391305 | AX36: 0.02391305 | AY36: 0.02391305 | AZ36: 0.02391305 | BC36: Auxiliar de serv.gerais | BD36: =BD$11 -> 530 | BE36: 116 | BF36: 397 | BG36: 437 | BH36: 437 | BI36: 437 | BJ36: 437 | BK36: 457 | BL36: 465 | BM36: 469 | BN36: 472 | BO36: 492 | BP36: 500
B37: Borracheiro | C37: ='Plan2 R$ Pessoal'!F28 -> 1400 | D37: 0 | E37: ='Plan2 R$ Pessoal'!H28 -> 0.4010697 | F37: 1961.49758 | G37: 591.582 | H37: =(($F37*Z37)+($G37*AO37))*BE37 -> 7082.022679 | I37: 24237.6121 | J37: 26679.68889 | K37: 26679.68889 | L37: 26679.68889 | M37: 26679.68889 | N37: 27900.72728 | O37: 28389.14264 | P37: 28633.35032 | Q37: 28816.50608 | R37: 30037.54447 | S37: 30525.95983 | T37: 312341.6209 | W37: Borracheiro | X37: ='Plan2 R$ Pessoal'!D28 -> 0.02391305 | Y37: =X37/X40 -> 0.05238096817 | Z37: =Z40*$Y37 -> 0.02391305 | AA37: 0.02391305 | AB37: 0.02391305 | AC37: 0.02391305 | AD37: 0.02391305 | AE37: 0.02391305 | AF37: 0.02391305 | AG37: 0.02391305 | AH37: 0.02391305 | AI37: 0.02391305 | AJ37: 0.02391305 | AK37: 0.02391305 | AN37: Borracheiro | AO37: =AO40*$Y37 -> 0.02391305 | AP37: 0.02391305 | AQ37: 0.02391305 | AR37: 0.02391305 | AS37: 0.02391305 | AT37: 0.02391305 | AU37: 0.02391305 | AV37: 0.02391305 | AW37: 0.02391305 | AX37: 0.02391305 | AY37: 0.02391305 | AZ37: 0.02391305 | BC37: Borracheiro | BD37: =BD$11 -> 530 | BE37: 116 | BF37: 397 | BG37: 437 | BH37: 437 | BI37: 437 | BJ37: 437 | BK37: 457 | BL37: 465 | BM37: 469 | BN37: 472 | BO37: 492 | BP37: 500
B38: Auxiliares | C38: ='Plan2 R$ Pessoal'!F29 -> 660 | D38: 0 | E38: ='Plan2 R$ Pessoal'!H29 -> 0.4010697 | F38: 924.706002 | G38: 591.582 | H38: =(($F38*Z38)+($G38*AO38))*BE38 -> 14912.36134 | I38: 51036.27115 | J38: 56178.46471 | K38: 56178.46471 | L38: 56178.46471 | M38: 56178.46471 | N38: 58749.5615 | O38: 59778.00021 | P38: 60292.21957 | Q38: 60677.88408 | R38: 63248.98087 | S38: 64277.41958 | T38: 657686.5571 | W38: Auxiliares | X38: ='Plan2 R$ Pessoal'!D29 -> 0.0847826 | Y38: =X38/X40 -> 0.185714272 | Z38: =Z40*$Y38 -> 0.0847826 | AA38: 0.0847826 | AB38: 0.0847826 | AC38: 0.0847826 | AD38: 0.0847826 | AE38: 0.0847826 | AF38: 0.0847826 | AG38: 0.0847826 | AH38: 0.0847826 | AI38: 0.0847826 | AJ38: 0.0847826 | AK38: 0.0847826 | AN38: Auxiliares | AO38: =AO40*$Y38 -> 0.0847826 | AP38: 0.0847826 | AQ38: 0.0847826 | AR38: 0.0847826 | AS38: 0.0847826 | AT38: 0.0847826 | AU38: 0.0847826 | AV38: 0.0847826 | AW38: 0.0847826 | AX38: 0.0847826 | AY38: 0.0847826 | AZ38: 0.0847826 | BC38: Comprador/Almoxarife | BD38: =BD$11 -> 530 | BE38: 116 | BF38: 397 | BG38: 437 | BH38: 437 | BI38: 437 | BJ38: 437 | BK38: 457 | BL38: 465 | BM38: 469 | BN38: 472 | BO38: 492 | BP38: 500
B39: Outros | C39: ='Plan2 R$ Pessoal'!F30 -> 1000 | D39: 0 | E39: ='Plan2 R$ Pessoal'!H30 -> 0.4010697 | F39: 1401.0697 | G39: 591.582 | H39: =(($F39*Z39)+($G39*AO39))*BE39 -> 35174.63365 | I39: 120382.1514 | J39: 132511.3354 | K39: 132511.3354 | L39: 132511.3354 | M39: 132511.3354 | N39: 138575.9274 | O39: 141001.7642 | P39: 142214.6826 | Q39: 143124.3714 | R39: 149188.9634 | S39: 151614.8002 | T39: 1551322.636 | W39: Outros | X39: ='Plan2 R$ Pessoal'!D30 -> 0.15217391 | Y39: =X39/X40 -> 0.3333333363 | Z39: =Z40*$Y39 -> 0.15217391 | AA39: 0.15217391 | AB39: 0.15217391 | AC39: 0.15217391 | AD39: 0.15217391 | AE39: 0.15217391 | AF39: 0.15217391 | AG39: 0.15217391 | AH39: 0.15217391 | AI39: 0.15217391 | AJ39: 0.15217391 | AK39: 0.15217391 | AN39: Outros | AO39: =AO40*$Y39 -> 0.15217391 | AP39: 0.15217391 | AQ39: 0.15217391 | AR39: 0.15217391 | AS39: 0.15217391 | AT39: 0.15217391 | AU39: 0.15217391 | AV39: 0.15217391 | AW39: 0.15217391 | AX39: 0.15217391 | AY39: 0.15217391 | AZ39: 0.15217391 | BC39: Controlador de Manut. | BD39: =BD$11 -> 530 | BE39: 116 | BF39: 397 | BG39: 437 | BH39: 437 | BI39: 437 | BJ39: 437 | BK39: 457 | BL39: 465 | BM39: 469 | BN39: 472 | BO39: 492 | BP39: 500
B40: Totais........................ | F40: Totais... | H40: =SUM(H32:H39) -> 120430.186 | I40: 412161.9298 | J40: 453689.5801 | K40: 453689.5801 | L40: 453689.5801 | M40: 453689.5801 | N40: 474453.4053 | O40: 482758.9354 | P40: 486911.7004 | Q40: 490026.2742 | R40: 510790.0994 | S40: 519095.6294 | T40: 5311386.48 | W40: Totais........................ | X40: =SUM(X32:X39) -> 0.456521726 | Y40: 1 | Z40: ='FU Folha FGV'!$AN198 -> 0.456521726 | AA40: ='FU Folha FGV'!$AN199 -> 0.456521726 | AB40: ='FU Folha FGV'!$AN200 -> 0.456521726 | AC40: ='FU Folha FGV'!$AN201 -> 0.456521726 | AD40: ='FU Folha FGV'!$AN202 -> 0.456521726 | AE40: ='FU Folha FGV'!$AN203 -> 0.456521726 | AF40: ='FU Folha FGV'!$AN204 -> 0.456521726 | AG40: ='FU Folha FGV'!$AN205 -> 0.456521726 | AH40: ='FU Folha FGV'!$AN206 -> 0.456521726 | AI40: ='FU Folha FGV'!$AN207 -> 0.456521726 | AJ40: ='FU Folha FGV'!$AN208 -> 0.456521726 | AK40: ='FU Folha FGV'!$AN209 -> 0.456521726 | AN40: Totais........................ | AO40: ='FU Folha FGV'!$AU$198 -> 0.456521726 | AP40: ='FU Folha FGV'!$AU$199 -> 0.456521726 | AQ40: ='FU Folha FGV'!$AU$200 -> 0.456521726 | AR40: ='FU Folha FGV'!$AU$201 -> 0.456521726 | AS40: ='FU Folha FGV'!$AU$202 -> 0.456521726 | AT40: ='FU Folha FGV'!$AU$203 -> 0.456521726 | AU40: ='FU Folha FGV'!$AU$204 -> 0.456521726 | AV40: ='FU Folha FGV'!$AU$205 -> 0.456521726 | AW40: ='FU Folha FGV'!$AU$206 -> 0.456521726 | AX40: ='FU Folha FGV'!$AU$207 -> 0.456521726 | AY40: ='FU Folha FGV'!$AU$208 -> 0.456521726 | AZ40: ='FU Folha FGV'!$AU$209 -> 0.456521726 | BC40: Totais........................ | BD40: =BD$11 -> 530 | BE40: 116 | BF40: 397 | BG40: 437 | BH40: 437 | BI40: 437 | BJ40: 437 | BK40: 457 | BL40: 465 | BM40: 469 | BN40: 472 | BO40: 492 | BP40: 500
F41: Total Geral Mensal Pessoal de Operação | H41: =H18+H31+H40 -> 1654718.245 | I41: 5827115.172 | J41: 6358009.966 | K41: 5732163.272 | L41: 5732163.272 | M41: 5762103.261 | N41: 6026601.194 | O41: 6215827.112 | P41: 6404354.143 | Q41: 6547796.33 | R41: 6540614.165 | S41: 6586178.847 | T41: 69387644.98
A43: Administração - Composição do Custo Unitário Por Função | G43: Ano 1 | H43: Administração - Composição de Custo Total Mensal | T43: R$
A44: Funções | B44: Cargo | C44: Salário | D44: Hs Extras | E44: Enc. | F44: R$ Total | G44: Benefícios | H44: =H3 -> 2014-01-01 | I44: =DATE(YEAR(H44),MONTH(H44)+1,DAY(H44)) -> 2014-02-01 | J44: 2014-03-01 | K44: 2014-04-01 | L44: 2014-05-01 | M44: 2014-06-01 | N44: 2014-07-01 | O44: 2014-08-01 | P44: 2014-09-01 | Q44: 2014-10-01 | R44: 2014-11-01 | S44: 2014-12-01 | T44: Total | V44: Fator Utilização Mensal | X44: =X21 -> Ano 1 | Z44: FU FOLHA DE PAGAMENTO | AM44: =X44 -> Ano 1 | AN44: FU Benefícios | AO44: FU FÍSICO PARA CÁLCULOS DOS BENEFÍCIOS | BB44: Frota Mensal | BE44: =BE21 -> Ano 1
C45: base | D45: e Adic. | E45: Soc. | F45: Por | G45: R$ por | H45: R$ | I45: R$ | J45: R$ | K45: R$ | L45: R$ | M45: R$ | N45: R$ | O45: R$ | P45: R$ | Q45: R$ | R45: R$ | S45: R$ | T45: Durante o | V45: Funções | W45: Cargo | X45: FU | Z45: =H44 -> 2014-01-01 | AA45: 2014-02-01 | AB45: 2014-03-01 | AC45: 2014-04-01 | AD45: 2014-05-01 | AE45: 2014-06-01 | AF45: 2014-07-01 | AG45: 2014-08-01 | AH45: 2014-09-01 | AI45: 2014-10-01 | AJ45: 2014-11-01 | AK45: 2014-12-01 | AM45: Funções | AN45: Cargo | AO45: =Z45 -> 2014-01-01 | AP45: 2014-02-01 | AQ45: 2014-03-01 | AR45: 2014-04-01 | AS45: 2014-05-01 | AT45: 2014-06-01 | AU45: 2014-07-01 | AV45: 2014-08-01 | AW45: 2014-09-01 | AX45: 2014-10-01 | AY45: 2014-11-01 | AZ45: 2014-12-01 | BB45: Funções | BC45: Cargo | BD45: Frota | BE45: =Z45 -> 2014-01-01 | BF45: 2014-02-01 | BG45: 2014-03-01 | BH45: 2014-04-01 | BI45: 2014-05-01 | BJ45: 2014-06-01 | BK45: 2014-07-01 | BL45: 2014-08-01 | BM45: 2014-09-01 | BN45: 2014-10-01 | BO45: 2014-11-01 | BP45: 2014-12-01
C46: (R$/mês) | D46: Not. | E46: % | F46: Função | G46: mês | T46: =T23 -> Ano 1 | X46: Licitação | Z46: FU | AA46: FU | AB46: FU | AC46: FU | AD46: FU | AE46: FU | AF46: FU | AG46: FU | AH46: FU | AI46: FU | AJ46: FU | AK46: FU | BD46: Licitação | BE46: Frota | BF46: Frota | BG46: Frota | BH46: Frota | BI46: Frota | BJ46: Frota | BK46: Frota | BL46: Frota | BM46: Frota | BN46: Frota | BO46: Frota | BP46: Frota
A47: Administração | B47: Assistente Administrativo | C47: ='Plan4 R$ Pessoal'!F8 -> 1800 | D47: 0 | E47: ='Plan4 R$ Pessoal'!H8 -> 0.40106926 | F47: =(C47+D47)*(E47/100*100+1) -> 2521.924668 | G47: =G39 -> 591.582 | H47: =(($F47*Z47)+($G47*AO47))*BE47 -> 7851.451441 | I47: 26870.91571 | J47: 29578.31275 | K47: 29578.31275 | L47: 29578.31275 | M47: 29578.31275 | N47: 30932.01128 | O47: 31473.49069 | P47: 31744.23039 | Q47: 31947.28517 | R47: 33300.9837 | S47: 33842.46311 | T47: =SUM(H47:S47) -> 346276.0825 | V47: Administração | W47: =B47 -> Assistente Administrativo | X47: ='Plan4 R$ Pessoal'!D8 -> 0.02173913 | Y47: =X47/X64 -> 0.1087010144 | Z47: =Z64*$Y47 -> 0.02173913 | AA47: 0.02173913 | AB47: 0.02173913 | AC47: 0.02173913 | AD47: 0.02173913 | AE47: 0.02173913 | AF47: 0.02173913 | AG47: 0.02173913 | AH47: 0.02173913 | AI47: 0.02173913 | AJ47: 0.02173913 | AK47: 0.02173913 | AM47: Administração | AN47: =W47 -> Assistente Administrativo | AO47: =AO64*$Y47 -> 0.02173913 | AP47: 0.02173913 | AQ47: 0.02173913 | AR47: 0.02173913 | AS47: 0.02173913 | AT47: 0.02173913 | AU47: 0.02173913 | AV47: 0.02173913 | AW47: 0.02173913 | AX47: 0.02173913 | AY47: 0.02173913 | AZ47: 0.02173913 | BB47: Administração | BC47: Gerente Adm. Financ. | BD47: =BD$11 -> 530 | BE47: 116 | BF47: 397 | BG47: 437 | BH47: 437 | BI47: 437 | BJ47: 437 | BK47: 457 | BL47: 465 | BM47: 469 | BN47: 472 | BO47: 492 | BP47: 500
B48: Assistente Financeiro | C48: ='Plan4 R$ Pessoal'!F9 -> 2160 | D48: 0 | E48: ='Plan4 R$ Pessoal'!H9 -> 0.40106926 | F48: 3026.309602 | G48: =G47 -> 591.582 | H48: =(($F48*Z48)+($G48*AO48))*BE48 -> 7298.57533 | I48: 24978.74488 | J48: 27495.49499 | K48: 27495.49499 | L48: 27495.49499 | M48: 27495.49499 | N48: 28753.87005 | O48: 29257.22007 | P48: 29508.89508 | Q48: 29697.65134 | R48: 30956.0264 | S48: 31459.37642 | T48: 321892.3395 | W48: Assistente Financeiro | X48: ='Plan4 R$ Pessoal'!D9 -> 0.017391 | Y48: =X48/X64 -> 0.08695929144 | Z48: =Z64*$Y48 -> 0.017391 | AA48: 0.017391 | AB48: 0.017391 | AC48: 0.017391 | AD48: 0.017391 | AE48: 0.017391 | AF48: 0.017391 | AG48: 0.017391 | AH48: 0.017391 | AI48: 0.017391 | AJ48: 0.017391 | AK48: 0.017391 | AN48: Assistente Financeiro | AO48: =AO64*$Y48 -> 0.017391 | AP48: 0.017391 | AQ48: 0.017391 | AR48: 0.017391 | AS48: 0.017391 | AT48: 0.017391 | AU48: 0.017391 | AV48: 0.017391 | AW48: 0.017391 | AX48: 0.017391 | AY48: 0.017391 | AZ48: 0.017391 | BC48: Gerente de Operação | BD48: =BD$11 -> 530 | BE48: 116 | BF48: 397 | BG48: 437 | BH48: 437 | BI48: 437 | BJ48: 437 | BK48: 457 | BL48: 465 | BM48: 469 | BN48: 472 | BO48: 492 | BP48: 500
B49: Auxiliar de CPD | C49: ='Plan4 R$ Pessoal'!F10 -> 2880 | D49: 0 | E49: ='Plan4 R$ Pessoal'!H10 -> 0.40106926 | F49: 4035.079469 | G49: 591.582 | H49: =(($F49*Z49)+($G49*AO49))*BE49 -> 6998.473204 | I49: 23951.67122 | J49: 26364.93785 | K49: 26364.93785 | L49: 26364.93785 | M49: 26364.93785 | N49: 27571.57116 | O49: 28054.22448 | P49: 28295.55114 | Q49: 28476.54614 | R49: 29683.17945 | S49: 30165.83278 | T49: 308656.801 | W49: Auxiliar de CPD | X49: ='Plan4 R$ Pessoal'!D10 -> 0.01304 | Y49: =X49/X64 -> 0.06520321778 | Z49: =Z64*$Y49 -> 0.01304 | AA49: 0.01304 | AB49: 0.01304 | AC49: 0.01304 | AD49: 0.01304 | AE49: 0.01304 | AF49: 0.01304 | AG49: 0.01304 | AH49: 0.01304 | AI49: 0.01304 | AJ49: 0.01304 | AK49: 0.01304 | AN49: Auxiliar de CPD | AO49: =AO64*$Y49 -> 0.01304 | AP49: 0.01304 | AQ49: 0.01304 | AR49: 0.01304 | AS49: 0.01304 | AT49: 0.01304 | AU49: 0.01304 | AV49: 0.01304 | AW49: 0.01304 | AX49: 0.01304 | AY49: 0.01304 | AZ49: 0.01304 | BC49: Controle Manutenção | BD49: =BD$11 -> 530 | BE49: 116 | BF49: 397 | BG49: 437 | BH49: 437 | BI49: 437 | BJ49: 437 | BK49: 457 | BL49: 465 | BM49: 469 | BN49: 472 | BO49: 492 | BP49: 500
B50: Auxiliar de Compra | C50: ='Plan4 R$ Pessoal'!F11 -> 1530 | D50: 0 | E50: ='Plan4 R$ Pessoal'!H11 -> 0.40106926 | F50: 2143.635968 | G50: 591.582 | H50: =(($F50*Z50)+($G50*AO50))*BE50 -> 2760.381973 | I50: 9447.169339 | J50: 10399.02519 | K50: 10399.02519 | L50: 10399.02519 | M50: 10399.02519 | N50: 10874.95312 | O50: 11065.32429 | P50: 11160.50987 | Q50: 11231.89906 | R50: 11707.82699 | S50: 11898.19816 | T50: 121742.3636 | W50: Auxiliar de Compra | X50: ='Plan4 R$ Pessoal'!D11 -> 0.0087 | Y50: =X50/X64 -> 0.04350214683 | Z50: =Z64*$Y50 -> 0.0087 | AA50: 0.0087 | AB50: 0.0087 | AC50: 0.0087 | AD50: 0.0087 | AE50: 0.0087 | AF50: 0.0087 | AG50: 0.0087 | AH50: 0.0087 | AI50: 0.0087 | AJ50: 0.0087 | AK50: 0.0087 | AN50: Auxiliar de Compra | AO50: =AO64*$Y50 -> 0.0087 | AP50: 0.0087 | AQ50: 0.0087 | AR50: 0.0087 | AS50: 0.0087 | AT50: 0.0087 | AU50: 0.0087 | AV50: 0.0087 | AW50: 0.0087 | AX50: 0.0087 | AY50: 0.0087 | AZ50: 0.0087 | BC50: Auxiliar Contabilidade | BD50: =BD$11 -> 530 | BE50: 116 | BF50: 397 | BG50: 437 | BH50: 437 | BI50: 437 | BJ50: 437 | BK50: 457 | BL50: 465 | BM50: 469 | BN50: 472 | BO50: 492 | BP50: 500
B51: Auxiliar de Contabilidade | C51: ='Plan4 R$ Pessoal'!F12 -> 1800 | D51: 0 | E51: ='Plan4 R$ Pessoal'!H12 -> 0.4010697 | F51: 2521.92546 | G51: 591.582 | H51: =(($F51*Z51)+($G51*AO51))*BE51 -> 3925.883826 | I51: 13435.99896 | J51: 14789.752 | K51: 14789.752 | L51: 14789.752 | M51: 14789.752 | N51: 15466.62852 | O51: 15737.37913 | P51: 15872.75444 | Q51: 15974.28591 | R51: 16651.16244 | S51: 16921.91305 | T51: 173145.0143 | W51: Auxiliar de Contabilidade | X51: ='Plan4 R$ Pessoal'!D12 -> 0.01087 | Y51: =X51/X64 -> 0.0543526823 | Z51: =Z64*$Y51 -> 0.01087 | AA51: 0.01087 | AB51: 0.01087 | AC51: 0.01087 | AD51: 0.01087 | AE51: 0.01087 | AF51: 0.01087 | AG51: 0.01087 | AH51: 0.01087 | AI51: 0.01087 | AJ51: 0.01087 | AK51: 0.01087 | AN51: Auxiliar de Contabilidade | AO51: =AO64*$Y51 -> 0.01087 | AP51: 0.01087 | AQ51: 0.01087 | AR51: 0.01087 | AS51: 0.01087 | AT51: 0.01087 | AU51: 0.01087 | AV51: 0.01087 | AW51: 0.01087 | AX51: 0.01087 | AY51: 0.01087 | AZ51: 0.01087 | BC51: Assist. Adm./financeiro | BD51: =BD$11 -> 530 | BE51: 116 | BF51: 397 | BG51: 437 | BH51: 437 | BI51: 437 | BJ51: 437 | BK51: 457 | BL51: 465 | BM51: 469 | BN51: 472 | BO51: 492 | BP51: 500
B52: Auxiliar Depto.Pessoal | C52: ='Plan4 R$ Pessoal'!F13 -> 1125 | D52: 0 | E52: ='Plan4 R$ Pessoal'!H13 -> 0.4010697 | F52: 1576.203413 | G52: 591.582 | H52: =(($F52*Z52)+($G52*AO52))*BE52 -> 9839.75141 | I52: 33675.70095 | J52: 37068.71867 | K52: 37068.71867 | L52: 37068.71867 | M52: 37068.71867 | N52: 38765.22754 | O52: 39443.83108 | P52: 39783.13286 | Q52: 40037.60919 | R52: 41734.11805 | S52: 42412.7216 | T52: 433966.9674 | W52: Auxiliar Depto.Pessoal | X52: ='Plan4 R$ Pessoal'!D13 -> 0.03913 | Y52: =X52/X64 -> 0.1956596558 | Z52: =Z64*$Y52 -> 0.03913 | AA52: 0.03913 | AB52: 0.03913 | AC52: 0.03913 | AD52: 0.03913 | AE52: 0.03913 | AF52: 0.03913 | AG52: 0.03913 | AH52: 0.03913 | AI52: 0.03913 | AJ52: 0.03913 | AK52: 0.03913 | AN52: Auxiliar Depto.Pessoal | AO52: =AO64*$Y52 -> 0.03913 | AP52: 0.03913 | AQ52: 0.03913 | AR52: 0.03913 | AS52: 0.03913 | AT52: 0.03913 | AU52: 0.03913 | AV52: 0.03913 | AW52: 0.03913 | AX52: 0.03913 | AY52: 0.03913 | AZ52: 0.03913 | BC52: Contador | BD52: =BD$11 -> 530 | BE52: 116 | BF52: 397 | BG52: 437 | BH52: 437 | BI52: 437 | BJ52: 437 | BK52: 457 | BL52: 465 | BM52: 469 | BN52: 472 | BO52: 492 | BP52: 500
B53: Auxiliar de Serv.Gerais | C53: ='Plan4 R$ Pessoal'!F14 -> 750 | D53: 0 | E53: ='Plan4 R$ Pessoal'!H14 -> 0.4010697 | F53: 1050.802275 | G53: 591.582 | H53: =(($F53*Z53)+($G53*AO53))*BE53 -> 2899.662285 | I53: 9923.8442 | J53: 10923.72775 | K53: 10923.72775 | L53: 10923.72775 | M53: 10923.72775 | N53: 11423.66952 | O53: 11623.64623 | P53: 11723.63458 | Q53: 11798.62585 | R53: 12298.56762 | S53: 12498.54433 | T53: 127885.1056 | W53: Auxiliar de Serv.Gerais | X53: ='Plan4 R$ Pessoal'!D14 -> 0.01522 | Y53: =X53/X64 -> 0.07610375572 | Z53: =Z64*$Y53 -> 0.01522 | AA53: 0.01522 | AB53: 0.01522 | AC53: 0.01522 | AD53: 0.01522 | AE53: 0.01522 | AF53: 0.01522 | AG53: 0.01522 | AH53: 0.01522 | AI53: 0.01522 | AJ53: 0.01522 | AK53: 0.01522 | AN53: Auxiliar de Serv.Gerais | AO53: =AO64*$Y53 -> 0.01522 | AP53: 0.01522 | AQ53: 0.01522 | AR53: 0.01522 | AS53: 0.01522 | AT53: 0.01522 | AU53: 0.01522 | AV53: 0.01522 | AW53: 0.01522 | AX53: 0.01522 | AY53: 0.01522 | AZ53: 0.01522 | BC53: Auxiliar Adm./Financ. | BD53: =BD$11 -> 530 | BE53: 116 | BF53: 397 | BG53: 437 | BH53: 437 | BI53: 437 | BJ53: 437 | BK53: 457 | BL53: 465 | BM53: 469 | BN53: 472 | BO53: 492 | BP53: 500
B54: Auxiliares Administrativ. | C54: ='Plan4 R$ Pessoal'!F15 -> 750 | D54: 0 | E54: ='Plan4 R$ Pessoal'!H15 -> 0.4010697 | F54: 1050.802275 | G54: 591.582 | H54: =(($F54*Z54)+($G54*AO54))*BE54 -> 3728.40939 | I54: 12760.15972 | J54: 14045.81813 | K54: 14045.81813 | L54: 14045.81813 | M54: 14045.81813 | N54: 14688.64734 | O54: 14945.77902 | P54: 15074.34486 | Q54: 15170.76924 | R54: 15813.59845 | S54: 16070.73013 | T54: 164435.7107 | W54: Auxiliares Administrativ. | X54: ='Plan4 R$ Pessoal'!D15 -> 0.01957 | Y54: =X54/X64 -> 0.09785482914 | Z54: =Z64*$Y54 -> 0.01957 | AA54: 0.01957 | AB54: 0.01957 | AC54: 0.01957 | AD54: 0.01957 | AE54: 0.01957 | AF54: 0.01957 | AG54: 0.01957 | AH54: 0.01957 | AI54: 0.01957 | AJ54: 0.01957 | AK54: 0.01957 | AN54: Auxiliares Administrativ. | AO54: =AO64*$Y54 -> 0.01957 | AP54: 0.01957 | AQ54: 0.01957 | AR54: 0.01957 | AS54: 0.01957 | AT54: 0.01957 | AU54: 0.01957 | AV54: 0.01957 | AW54: 0.01957 | AX54: 0.01957 | AY54: 0.01957 | AZ54: 0.01957 | BC54: Secretária Executiva | BD54: =BD$11 -> 530 | BE54: 116 | BF54: 397 | BG54: 437 | BH54: 437 | BI54: 437 | BJ54: 437 | BK54: 457 | BL54: 465 | BM54: 469 | BN54: 472 | BO54: 492 | BP54: 500
B55: Contador | C55: ='Plan4 R$ Pessoal'!F16 -> 4500 | D55: 0 | E55: ='Plan4 R$ Pessoal'!H16 -> 0.4010697 | F55: 6304.81365 | G55: 591.582 | H55: =(($F55*Z55)+($G55*AO55))*BE55 -> 1735.960713 | I55: 5941.175889 | J55: 6539.783031 | K55: 6539.783031 | L55: 6539.783031 | M55: 6539.783031 | N55: 6839.086602 | O55: 6958.808031 | P55: 7018.668745 | Q55: 7063.564281 | R55: 7362.867852 | S55: 7482.58928 | T55: 76561.85352 | W55: Contador | X55: ='Plan4 R$ Pessoal'!D16 -> 0.00217 | Y55: =X55/X64 -> 0.01085053547 | Z55: =Z64*$Y55 -> 0.00217 | AA55: 0.00217 | AB55: 0.00217 | AC55: 0.00217 | AD55: 0.00217 | AE55: 0.00217 | AF55: 0.00217 | AG55: 0.00217 | AH55: 0.00217 | AI55: 0.00217 | AJ55: 0.00217 | AK55: 0.00217 | AN55: Contador | AO55: =AO64*$Y55 -> 0.00217 | AP55: 0.00217 | AQ55: 0.00217 | AR55: 0.00217 | AS55: 0.00217 | AT55: 0.00217 | AU55: 0.00217 | AV55: 0.00217 | AW55: 0.00217 | AX55: 0.00217 | AY55: 0.00217 | AZ55: 0.00217 | BC55: Telefonista | BD55: =BD$11 -> 530 | BE55: 116 | BF55: 397 | BG55: 437 | BH55: 437 | BI55: 437 | BJ55: 437 | BK55: 457 | BL55: 465 | BM55: 469 | BN55: 472 | BO55: 492 | BP55: 500
B56: Controle de Manutenção | C56: ='Plan4 R$ Pessoal'!F17 -> 5400 | D56: 0 | E56: ='Plan4 R$ Pessoal'!H17 -> 0.4010697 | F56: 7565.77638 | G56: 591.582 | H56: =(($F56*Z56)+($G56*AO56))*BE56 -> 2053.370251 | I56: 7027.482671 | J56: 7735.541378 | K56: 7735.541378 | L56: 7735.541378 | M56: 7735.541378 | N56: 8089.570732 | O56: 8231.182473 | P56: 8301.988344 | Q56: 8355.092747 | R56: 8709.122101 | S56: 8850.733842 | T56: 90560.70867 | W56: Controle de Manutenção | X56: ='Plan4 R$ Pessoal'!D17 -> 0.00217 | Y56: =X56/X64 -> 0.01085053547 | Z56: =Z64*$Y56 -> 0.00217 | AA56: 0.00217 | AB56: 0.00217 | AC56: 0.00217 | AD56: 0.00217 | AE56: 0.00217 | AF56: 0.00217 | AG56: 0.00217 | AH56: 0.00217 | AI56: 0.00217 | AJ56: 0.00217 | AK56: 0.00217 | AN56: Controle de Manutenção | AO56: =AO64*$Y56 -> 0.00217 | AP56: 0.00217 | AQ56: 0.00217 | AR56: 0.00217 | AS56: 0.00217 | AT56: 0.00217 | AU56: 0.00217 | AV56: 0.00217 | AW56: 0.00217 | AX56: 0.00217 | AY56: 0.00217 | AZ56: 0.00217 | BC56: Aux de serviços gerais | BD56: =BD$11 -> 530 | BE56: 116 | BF56: 397 | BG56: 437 | BH56: 437 | BI56: 437 | BJ56: 437 | BK56: 457 | BL56: 465 | BM56: 469 | BN56: 472 | BO56: 492 | BP56: 500
B57: Encarreg.Depto.Pessoal | C57: ='Plan4 R$ Pessoal'!F18 -> 3150 | D57: 0 | E57: ='Plan4 R$ Pessoal'!H18 -> 0.4010697 | F57: 4413.369555 | G57: 591.582 | H57: =(($F57*Z57)+($G57*AO57))*BE57 -> 3785.34496 | I57: 12955.0168 | J57: 14260.30817 | K57: 14260.30817 | L57: 14260.30817 | M57: 14260.30817 | N57: 14912.95385 | O57: 15174.01212 | P57: 15304.54126 | Q57: 15402.43811 | R57: 16055.0838 | S57: 16316.14207 | T57: 166946.7657 | W57: Encarreg.Depto.Pessoal | X57: ='Plan4 R$ Pessoal'!D18 -> 0.00652 | Y57: =X57/X64 -> 0.03260160889 | Z57: =Z64*$Y57 -> 0.00652 | AA57: 0.00652 | AB57: 0.00652 | AC57: 0.00652 | AD57: 0.00652 | AE57: 0.00652 | AF57: 0.00652 | AG57: 0.00652 | AH57: 0.00652 | AI57: 0.00652 | AJ57: 0.00652 | AK57: 0.00652 | AN57: Encarreg.Depto.Pessoal | AO57: =AO64*$Y57 -> 0.00652 | AP57: 0.00652 | AQ57: 0.00652 | AR57: 0.00652 | AS57: 0.00652 | AT57: 0.00652 | AU57: 0.00652 | AV57: 0.00652 | AW57: 0.00652 | AX57: 0.00652 | AY57: 0.00652 | AZ57: 0.00652 | BC57: Enc. Depto de Pessoal | BD57: =BD$11 -> 530 | BE57: 116 | BF57: 397 | BG57: 437 | BH57: 437 | BI57: 437 | BJ57: 437 | BK57: 457 | BL57: 465 | BM57: 469 | BN57: 472 | BO57: 492 | BP57: 500
B58: Eng.Segurança Trabalho | C58: ='Plan4 R$ Pessoal'!F19 -> 3870 | D58: 0 | E58: ='Plan4 R$ Pessoal'!H19 -> 0.4010697 | F58: 5422.139739 | G58: 591.582 | H58: =(($F58*Z58)+($G58*AO58))*BE58 -> 1513.774036 | I58: 5180.761141 | J58: 5702.752188 | K58: 5702.752188 | L58: 5702.752188 | M58: 5702.752188 | N58: 5963.747711 | O58: 6068.145921 | P58: 6120.345025 | Q58: 6159.494354 | R58: 6420.489877 | S58: 6524.888087 | T58: 66762.6549 | W58: Eng.Segurança Trabalho | X58: ='Plan4 R$ Pessoal'!D19 -> 0.00217 | Y58: =X58/X64 -> 0.01085053547 | Z58: =Z64*$Y58 -> 0.00217 | AA58: 0.00217 | AB58: 0.00217 | AC58: 0.00217 | AD58: 0.00217 | AE58: 0.00217 | AF58: 0.00217 | AG58: 0.00217 | AH58: 0.00217 | AI58: 0.00217 | AJ58: 0.00217 | AK58: 0.00217 | AN58: Eng.Segurança Trabalho | AO58: =AO64*$Y58 -> 0.00217 | AP58: 0.00217 | AQ58: 0.00217 | AR58: 0.00217 | AS58: 0.00217 | AT58: 0.00217 | AU58: 0.00217 | AV58: 0.00217 | AW58: 0.00217 | AX58: 0.00217 | AY58: 0.00217 | AZ58: 0.00217 | BC58: Auxiliar Administrativo | BD58: =BD$11 -> 530 | BE58: 116 | BF58: 397 | BG58: 437 | BH58: 437 | BI58: 437 | BJ58: 437 | BK58: 457 | BL58: 465 | BM58: 469 | BN58: 472 | BO58: 492 | BP58: 500
B59: Gerente Administrativo | C59: ='Plan4 R$ Pessoal'!F20 -> 8100 | D59: 0 | E59: ='Plan4 R$ Pessoal'!H20 -> 0.4010697 | F59: 11348.66457 | G59: 591.582 | H59: =(($F59*Z59)+($G59*AO59))*BE59 -> 24086.34299 | I59: 82433.43248 | J59: 90739.06799 | K59: 90739.06799 | L59: 90739.06799 | M59: 90739.06799 | N59: 94891.88575 | O59: 96553.01285 | P59: 97383.5764 | Q59: 98006.49907 | R59: 102159.3168 | S59: 103820.4439 | T59: 1062290.782 | W59: Gerente Administrativo | X59: ='Plan4 R$ Pessoal'!D20 -> 0.01739 | Y59: =X59/X64 -> 0.08695429119 | Z59: =Z64*$Y59 -> 0.01739 | AA59: 0.01739 | AB59: 0.01739 | AC59: 0.01739 | AD59: 0.01739 | AE59: 0.01739 | AF59: 0.01739 | AG59: 0.01739 | AH59: 0.01739 | AI59: 0.01739 | AJ59: 0.01739 | AK59: 0.01739 | AN59: Gerente Administrativo | AO59: =AO64*$Y59 -> 0.01739 | AP59: 0.01739 | AQ59: 0.01739 | AR59: 0.01739 | AS59: 0.01739 | AT59: 0.01739 | AU59: 0.01739 | AV59: 0.01739 | AW59: 0.01739 | AX59: 0.01739 | AY59: 0.01739 | AZ59: 0.01739 | BC59: Psicólogo | BD59: =BD$11 -> 530 | BE59: 116 | BF59: 397 | BG59: 437 | BH59: 437 | BI59: 437 | BJ59: 437 | BK59: 457 | BL59: 465 | BM59: 469 | BN59: 472 | BO59: 492 | BP59: 500
B60: Médico do trabalho | C60: ='Plan4 R$ Pessoal'!F21 -> 4500 | D60: 0 | E60: ='Plan4 R$ Pessoal'!H21 -> 0.4010697 | F60: 6304.81365 | G60: 591.582 | H60: =(($F60*Z60)+($G60*AO60))*BE60 -> 1735.960713 | I60: 5941.175889 | J60: 6539.783031 | K60: 6539.783031 | L60: 6539.783031 | M60: 6539.783031 | N60: 6839.086602 | O60: 6958.808031 | P60: 7018.668745 | Q60: 7063.564281 | R60: 7362.867852 | S60: 7482.58928 | T60: 76561.85352 | W60: Médico do trabalho | X60: ='Plan4 R$ Pessoal'!D21 -> 0.00217 | Y60: =X60/X64 -> 0.01085053547 | Z60: =Z64*$Y60 -> 0.00217 | AA60: 0.00217 | AB60: 0.00217 | AC60: 0.00217 | AD60: 0.00217 | AE60: 0.00217 | AF60: 0.00217 | AG60: 0.00217 | AH60: 0.00217 | AI60: 0.00217 | AJ60: 0.00217 | AK60: 0.00217 | AN60: Médico do trabalho | AO60: =AO64*$Y60 -> 0.00217 | AP60: 0.00217 | AQ60: 0.00217 | AR60: 0.00217 | AS60: 0.00217 | AT60: 0.00217 | AU60: 0.00217 | AV60: 0.00217 | AW60: 0.00217 | AX60: 0.00217 | AY60: 0.00217 | AZ60: 0.00217 | BC60: Auxiliar Administrativo | BD60: =BD$11 -> 530 | BE60: 116 | BF60: 397 | BG60: 437 | BH60: 437 | BI60: 437 | BJ60: 437 | BK60: 457 | BL60: 465 | BM60: 469 | BN60: 472 | BO60: 492 | BP60: 500
B61: Secretaria | C61: ='Plan4 R$ Pessoal'!F22 -> 1260 | D61: 0 | E61: ='Plan4 R$ Pessoal'!H22 -> 0.4010697 | F61: 1765.347822 | G61: 591.582 | H61: =(($F61*Z61)+($G61*AO61))*BE61 -> 1189.306788 | I61: 4070.299956 | J61: 4480.405745 | K61: 4480.405745 | L61: 4480.405745 | M61: 4480.405745 | N61: 4685.45864 | O61: 4767.479797 | P61: 4808.490376 | Q61: 4839.248311 | R61: 5044.301205 | S61: 5126.322363 | T61: 52452.53042 | W61: Secretaria | X61: ='Plan4 R$ Pessoal'!D22 -> 0.00435 | Y61: =X61/X64 -> 0.02175107342 | Z61: =Z64*$Y61 -> 0.00435 | AA61: 0.00435 | AB61: 0.00435 | AC61: 0.00435 | AD61: 0.00435 | AE61: 0.00435 | AF61: 0.00435 | AG61: 0.00435 | AH61: 0.00435 | AI61: 0.00435 | AJ61: 0.00435 | AK61: 0.00435 | AN61: Secretaria | AO61: =AO64*$Y61 -> 0.00435 | AP61: 0.00435 | AQ61: 0.00435 | AR61: 0.00435 | AS61: 0.00435 | AT61: 0.00435 | AU61: 0.00435 | AV61: 0.00435 | AW61: 0.00435 | AX61: 0.00435 | AY61: 0.00435 | AZ61: 0.00435 | BC61: Assist.Recrut. e Seleção | BD61: =BD$11 -> 530 | BE61: 116 | BF61: 397 | BG61: 437 | BH61: 437 | BI61: 437 | BJ61: 437 | BK61: 457 | BL61: 465 | BM61: 469 | BN61: 472 | BO61: 492 | BP61: 500
B62: Téc.Enfermag.Trabalho | C62: ='Plan4 R$ Pessoal'!F23 -> 1100 | D62: 0 | E62: ='Plan4 R$ Pessoal'!H23 -> 0.4010697 | F62: 1541.17667 | G62: 591.582 | H62: =(($F62*Z62)+($G62*AO62))*BE62 -> 1076.190025 | I62: 3683.167585 | J62: 4054.267594 | K62: 4054.267594 | L62: 4054.267594 | M62: 4054.267594 | N62: 4239.817598 | O62: 4314.0376 | P62: 4351.147601 | Q62: 4378.980101 | R62: 4564.530106 | S62: 4638.750107 | T62: 47463.6911 | W62: Téc.Enfermag.Trabalho | X62: ='Plan4 R$ Pessoal'!D23 -> 0.00435 | Y62: =X62/X64 -> 0.02175107342 | Z62: =Z64*$Y62 -> 0.00435 | AA62: 0.00435 | AB62: 0.00435 | AC62: 0.00435 | AD62: 0.00435 | AE62: 0.00435 | AF62: 0.00435 | AG62: 0.00435 | AH62: 0.00435 | AI62: 0.00435 | AJ62: 0.00435 | AK62: 0.00435 | AN62: Téc.Enfermag.Trabalho | AO62: =AO64*$Y62 -> 0.00435 | AP62: 0.00435 | AQ62: 0.00435 | AR62: 0.00435 | AS62: 0.00435 | AT62: 0.00435 | AU62: 0.00435 | AV62: 0.00435 | AW62: 0.00435 | AX62: 0.00435 | AY62: 0.00435 | AZ62: 0.00435 | BC62: Assist.Tre./capacitação | BD62: =BD$11 -> 530 | BE62: 116 | BF62: 397 | BG62: 437 | BH62: 437 | BI62: 437 | BJ62: 437 | BK62: 457 | BL62: 465 | BM62: 469 | BN62: 472 | BO62: 492 | BP62: 500
B63: Téc.Segurança Trabalho | C63: ='Plan4 R$ Pessoal'!F24 -> 1260 | D63: 0 | E63: ='Plan4 R$ Pessoal'!H24 -> 0.4010697 | F63: 1765.347822 | G63: 591.582 | H63: =(($F63*Z63)+($G63*AO63))*BE63 -> 3565.186326 | I63: 12201.54286 | J63: 13430.91745 | K63: 13430.91745 | L63: 13430.91745 | M63: 13430.91745 | N63: 14045.60475 | O63: 14291.47967 | P63: 14414.41713 | Q63: 14506.62022 | R63: 15121.30752 | S63: 15367.18244 | T63: 157237.0107 | W63: Téc.Segurança Trabalho | X63: ='Plan4 R$ Pessoal'!D24 -> 0.01304 | Y63: =X63/X64 -> 0.06520321778 | Z63: =Z64*$Y63 -> 0.01304 | AA63: 0.01304 | AB63: 0.01304 | AC63: 0.01304 | AD63: 0.01304 | AE63: 0.01304 | AF63: 0.01304 | AG63: 0.01304 | AH63: 0.01304 | AI63: 0.01304 | AJ63: 0.01304 | AK63: 0.01304 | AN63: Téc.Segurança Trabalho | AO63: =AO64*$Y63 -> 0.01304 | AP63: 0.01304 | AQ63: 0.01304 | AR63: 0.01304 | AS63: 0.01304 | AT63: 0.01304 | AU63: 0.01304 | AV63: 0.01304 | AW63: 0.01304 | AX63: 0.01304 | AY63: 0.01304 | AZ63: 0.01304 | BC63: Assessor Jurídico | BD63: =BD$11 -> 530 | BE63: 116 | BF63: 397 | BG63: 437 | BH63: 437 | BI63: 437 | BJ63: 437 | BK63: 457 | BL63: 465 | BM63: 469 | BN63: 472 | BO63: 492 | BP63: 500
B64: Totais......................... | F64: Totais... | H64: =SUM(H47:H63) -> 86044.02566 | I64: 294478.2602 | J64: 324148.6139 | K64: 324148.6139 | L64: 324148.6139 | M64: 324148.6139 | N64: 338983.7908 | O64: 344917.8615 | P64: 347884.8969 | Q64: 350110.1734 | R64: 364945.3502 | S64: 370879.421 | T64: 3794838.235 | W64: Totais......................... | X64: =SUM(X47:X63) -> 0.19999013 | Y64: 1 | Z64: ='FU Folha FGV'!$AO198 -> 0.19999013 | AA64: ='FU Folha FGV'!$AO199 -> 0.19999013 | AB64: ='FU Folha FGV'!$AO200 -> 0.19999013 | AC64: ='FU Folha FGV'!$AO201 -> 0.19999013 | AD64: ='FU Folha FGV'!$AO202 -> 0.19999013 | AE64: ='FU Folha FGV'!$AO203 -> 0.19999013 | AF64: ='FU Folha FGV'!$AO204 -> 0.19999013 | AG64: ='FU Folha FGV'!$AO205 -> 0.19999013 | AH64: ='FU Folha FGV'!$AO206 -> 0.19999013 | AI64: ='FU Folha FGV'!$AO207 -> 0.19999013 | AJ64: ='FU Folha FGV'!$AO208 -> 0.19999013 | AK64: ='FU Folha FGV'!$AO209 -> 0.19999013 | AN64: Totais......................... | AO64: ='FU Folha FGV'!$AV$198 -> 0.19999013 | AP64: ='FU Folha FGV'!$AV$199 -> 0.19999013 | AQ64: ='FU Folha FGV'!$AV$200 -> 0.19999013 | AR64: ='FU Folha FGV'!$AV$201 -> 0.19999013 | AS64: ='FU Folha FGV'!$AV$202 -> 0.19999013 | AT64: ='FU Folha FGV'!$AV$203 -> 0.19999013 | AU64: ='FU Folha FGV'!$AV$204 -> 0.19999013 | AV64: ='FU Folha FGV'!$AV$205 -> 0.19999013 | AW64: ='FU Folha FGV'!$AV$206 -> 0.19999013 | AX64: ='FU Folha FGV'!$AV$207 -> 0.19999013 | AY64: ='FU Folha FGV'!$AV$208 -> 0.19999013 | AZ64: ='FU Folha FGV'!$AV$209 -> 0.19999013 | BC64: Totais......................... | BD64: =BD$11 -> 530 | BE64: 116 | BF64: 397 | BG64: 437 | BH64: 437 | BI64: 437 | BJ64: 437 | BK64: 457 | BL64: 465 | BM64: 469 | BN64: 472 | BO64: 492 | BP64: 500
A65: Planilha 2 - Demonstração do Custo com Pessoal | F65: =G66 -> Ano 2 | K65: =F65 -> Ano 2 | P65: =K65 -> Ano 2 | U65: =P65 -> Ano 2 | AA65: =U65 -> Ano 2 | AF65: =AA65 -> Ano 2 | AK65: =AF65 -> Ano 2 | BE65: =AK65 -> Ano 2 | BJ65: =BE65 -> Ano 2
A66: Motoristas e Cobradores - Composição do Custo Unitário Por Função | G66: Ano 2 | H66: Motoristas e Cobradores - Composição de Custo Total Mensal | T66: R$ | X66: FU Lei Motorista Salário | Y66: FU Mot. | Z66: =$Z$2 -> 0 | AA66: =Z66 -> 0 | AB66: 0 | AC66: 0 | AD66: 0 | AE66: 0 | AF66: 0 | AG66: 0 | AH66: 0 | AI66: 0 | AJ66: 0 | AK66: 0
A67: Funções | B67: Cargo | C67: Salário | D67: Hs Extras | E67: Enc. | F67: R$ Total | G67: Benefícios | H67: =DATE(YEAR(S44),MONTH(S44)+1,DAY(S44)) -> 2015-01-01 | I67: =DATE(YEAR(H67),MONTH(H67)+1,DAY(H67)) -> 2015-02-01 | J67: 2015-03-01 | K67: 2015-04-01 | L67: 2015-05-01 | M67: 2015-06-01 | N67: 2015-07-01 | O67: 2015-08-01 | P67: 2015-09-01 | Q67: 2015-10-01 | R67: 2015-11-01 | S67: 2015-12-01 | T67: Total | V67: Fator Utilização Mensal | X67: =U65 -> Ano 2 | Y67: FU Cob. | Z67: =$Z$3 -> 0 | AA67: =Z67 -> 0 | AB67: 0 | AC67: 0 | AD67: 0 | AE67: 0 | AF67: 0 | AG67: 0 | AH67: 0 | AI67: 0 | AJ67: 0 | AK67: 0 | AM67: =X67 -> Ano 2 | AN67: FU Benefícios | AO67: FU FÍSICO PARA CÁLCULOS DOS BENEFÍCIOS | BB67: Frota Mensal | BE67: =AK65 -> Ano 2
C68: base | D68: e Adic. | E68: Soc. | F68: Por | G68: R$ por | H68: R$ | I68: R$ | J68: R$ | K68: R$ | L68: R$ | M68: R$ | N68: R$ | O68: R$ | P68: R$ | Q68: R$ | R68: R$ | S68: R$ | T68: Durante o | V68: Funções | W68: Cargo | X68: FU | Z68: =H67 -> 2015-01-01 | AA68: 2015-02-01 | AB68: 2015-03-01 | AC68: 2015-04-01 | AD68: 2015-05-01 | AE68: 2015-06-01 | AF68: 2015-07-01 | AG68: 2015-08-01 | AH68: 2015-09-01 | AI68: 2015-10-01 | AJ68: 2015-11-01 | AK68: 2015-12-01 | AM68: Funções | AN68: Cargo | AO68: =Z68 -> 2015-01-01 | AP68: 2015-02-01 | AQ68: 2015-03-01 | AR68: 2015-04-01 | AS68: 2015-05-01 | AT68: 2015-06-01 | AU68: 2015-07-01 | AV68: 2015-08-01 | AW68: 2015-09-01 | AX68: 2015-10-01 | AY68: 2015-11-01 | AZ68: 2015-12-01 | BB68: Funções | BC68: Cargo | BD68: Frota | BE68: =Z68 -> 2015-01-01 | BF68: 2015-02-01 | BG68: 2015-03-01 | BH68: 2015-04-01 | BI68: 2015-05-01 | BJ68: 2015-06-01 | BK68: 2015-07-01 | BL68: 2015-08-01 | BM68: 2015-09-01 | BN68: 2015-10-01 | BO68: 2015-11-01 | BP68: 2015-12-01
C69: (R$/mês) | D69: Not. | E69: % | F69: Função | G69: mês | T69: =P65 -> Ano 2 | X69: Licitação | Z69: FU | AA69: FU | AB69: FU | AC69: FU | AD69: FU | AE69: FU | AF69: FU | AG69: FU | AH69: FU | AI69: FU | AJ69: FU | AK69: FU | BD69: Licitação | BE69: Frota | BF69: Frota | BG69: Frota | BH69: Frota | BI69: Frota | BJ69: Frota | BK69: Frota | BL69: Frota | BM69: Frota | BN69: Frota | BO69: Frota | BP69: Frota | BS69: ='Histórico Frota Alocada'!Z16 -> 2015-01-30 | BT69: ='Histórico Frota Alocada'!AA16 -> 2015-02-27 | BU69: ='Histórico Frota Alocada'!AB16 -> 2015-03-31 | BV69: ='Histórico Frota Alocada'!AC16 -> 2015-04-30 | BW69: ='Histórico Frota Alocada'!AD16 -> 2015-05-29 | BX69: ='Histórico Frota Alocada'!AE16 -> 2015-06-30 | BY69: ='Histórico Frota Alocada'!AF16 -> 2015-07-31 | BZ69: ='Histórico Frota Alocada'!AG16 -> 2015-08-31 | CA69: ='Histórico Frota Alocada'!AH16 -> 2015-09-30 | CB69: ='Histórico Frota Alocada'!AI16 -> 2015-10-29 | CC69: ='Histórico Frota Alocada'!AJ16 -> 2015-11-30 | CD69: ='Histórico Frota Alocada'!AK16 -> 2015-12-31
A70: Motorista | B70: Miniônibus | C70: =C6 -> 1506.5 | D70: 0 | E70: 0.375275345 | F70: =(C70+D70)*(E70/100*100+1) -> 2071.852307 | G70: =G6 -> 591.582 | H70: =(($F70*Z70)+($G70*AO70))*BE70 -> 379429.139 | I70: 390174.8274 | J70: 390174.8274 | K70: 390230.7945 | L70: 479498.3624 | M70: 497225.95 | N70: 502081.0983 | O70: 490873.681 | P70: 493392.2018 | Q70: 493546.1114 | R70: 492832.5305 | S70: 522802.9271 | T70: =SUM(H70:S70) -> 5522262.451 | V70: Motorista | W70: =B70 -> Miniônibus | X70: =X6 -> 2.09034 | Y70: =X70/X75 -> 1 | Z70: =Z75*$Y70+Z66 -> 2.7118 | AA70: 2.7886 | AB70: 2.7886 | AC70: 2.789 | AD70: 3.427 | AE70: 3.5537 | AF70: 3.5884 | AG70: 3.5083 | AH70: 3.5263 | AI70: 3.5274 | AJ70: 3.5223 | AK70: 3.7365 | AM70: Motorista | AN70: =W70 -> Miniônibus | AO70: =AO75*$Y70 -> 2.604188889 | AP70: 2.67794127 | AQ70: 2.67794127 | AR70: 2.678325397 | AS70: 3.291007937 | AT70: 3.412680159 | AU70: 3.446003175 | AV70: 3.369081746 | AW70: 3.38636746 | AX70: 3.38742381 | AY70: 3.38252619 | AZ70: 3.58822619 | BB70: Motorista | BC70: =W70 -> Miniônibus | BD70: =BD6 -> 57 | BE70: 53 | BF70: 53 | BG70: 53 | BH70: 53 | BI70: 53 | BJ70: 53 | BK70: 53 | BL70: 53 | BM70: 53 | BN70: 53 | BO70: 53 | BP70: 53 | BR70: Miniônibus | BS70: ='Histórico Frota Alocada'!Z17 -> 27 | BT70: ='Histórico Frota Alocada'!AA17 -> 27 | BU70: ='Histórico Frota Alocada'!AB17 -> 27 | BV70: ='Histórico Frota Alocada'!AC17 -> 27 | BW70: ='Histórico Frota Alocada'!AD17 -> 40 | BX70: ='Histórico Frota Alocada'!AE17 -> 59 | BY70: ='Histórico Frota Alocada'!AF17 -> 59 | BZ70: ='Histórico Frota Alocada'!AG17 -> 61 | CA70: ='Histórico Frota Alocada'!AH17 -> 61 | CB70: ='Histórico Frota Alocada'!AI17 -> 61 | CC70: ='Histórico Frota Alocada'!AJ17 -> 61 | CD70: ='Histórico Frota Alocada'!AK17 -> 30
B71: Ônibus Básico | C71: =C7 -> 1506.5 | D71: 0 | E71: 0.375275345 | F71: 2071.852307 | G71: =G70 -> 591.582 | H71: =(($F71*Z71)+($G71*AO71))*BE71 -> 2784866.699 | I71: 2863735.997 | J71: 2863735.997 | K71: 2864146.775 | L71: 3519337.038 | M71: 3649450.84 | N71: 3685085.797 | O71: 3602827.584 | P71: 3621312.575 | Q71: 3622442.214 | R71: 3617204.799 | S71: 3837176.201 | T71: 40531322.52 | W71: Ônibus Básico | X71: =X70 -> 2.09034 | Y71: =X71/X75 -> 1 | Z71: =Z75*$Y71+Z66 -> 2.7118 | AA71: 2.7886 | AB71: 2.7886 | AC71: 2.789 | AD71: 3.427 | AE71: 3.5537 | AF71: 3.5884 | AG71: 3.5083 | AH71: 3.5263 | AI71: 3.5274 | AJ71: 3.5223 | AK71: 3.7365 | AN71: Ônibus Básico | AO71: =AO75*$Y71 -> 2.604188889 | AP71: 2.67794127 | AQ71: 2.67794127 | AR71: 2.678325397 | AS71: 3.291007937 | AT71: 3.412680159 | AU71: 3.446003175 | AV71: 3.369081746 | AW71: 3.38636746 | AX71: 3.38742381 | AY71: 3.38252619 | AZ71: 3.58822619 | BC71: Ônibus Básico | BD71: 408 | BE71: 389 | BF71: 389 | BG71: 389 | BH71: 389 | BI71: 389 | BJ71: 389 | BK71: 389 | BL71: 389 | BM71: 389 | BN71: 389 | BO71: 389 | BP71: 389 | BQ71: =BE71/BD71 -> 0.9534313725 | BR71: Ônibus Básico | BS71: ='Histórico Frota Alocada'!Z18 -> 427 | BT71: ='Histórico Frota Alocada'!AA18 -> 441 | BU71: ='Histórico Frota Alocada'!AB18 -> 441 | BV71: ='Histórico Frota Alocada'!AC18 -> 441 | BW71: ='Histórico Frota Alocada'!AD18 -> 392 | BX71: ='Histórico Frota Alocada'!AE18 -> 372 | BY71: ='Histórico Frota Alocada'!AF18 -> 382 | BZ71: ='Histórico Frota Alocada'!AG18 -> 382 | CA71: ='Histórico Frota Alocada'!AH18 -> 384 | CB71: ='Histórico Frota Alocada'!AI18 -> 385 | CC71: ='Histórico Frota Alocada'!AJ18 -> 386 | CD71: ='Histórico Frota Alocada'!AK18 -> 402
B72: Padron | C72: =C8 -> 1506.5 | D72: 0 | E72: 0.375275345 | F72: 2071.852307 | G72: 591.582 | H72: =(($F72*Z72)+($G72*AO72))*BE72 -> 0 | I72: 0 | J72: 0 | K72: 0 | L72: 0 | M72: 0 | N72: 0 | O72: 0 | P72: 0 | Q72: 0 | R72: 0 | S72: 0 | T72: 0 | W72: Padron | X72: 2.09034 | Y72: =X72/X75 -> 1 | Z72: =Z75*$Y72+Z66 -> 2.7118 | AA72: 2.7886 | AB72: 2.7886 | AC72: 2.789 | AD72: 3.427 | AE72: 3.5537 | AF72: 3.5884 | AG72: 3.5083 | AH72: 3.5263 | AI72: 3.5274 | AJ72: 3.5223 | AK72: 3.7365 | AN72: Padron | AO72: =AO75*$Y72 -> 2.604188889 | AP72: 2.67794127 | AQ72: 2.67794127 | AR72: 2.678325397 | AS72: 3.291007937 | AT72: 3.412680159 | AU72: 3.446003175 | AV72: 3.369081746 | AW72: 3.38636746 | AX72: 3.38742381 | AY72: 3.38252619 | AZ72: 3.58822619 | BC72: Padron | BD72: 0 | BE72: 0 | BF72: 0 | BG72: 0 | BH72: 0 | BI72: 0 | BJ72: 0 | BK72: 0 | BL72: 0 | BM72: 0 | BN72: 0 | BO72: 0 | BP72: 0 | BR72: Padron | BS72: ='Histórico Frota Alocada'!Z19 -> 0 | BT72: ='Histórico Frota Alocada'!AA19 -> 0 | BU72: ='Histórico Frota Alocada'!AB19 -> 0 | BV72: ='Histórico Frota Alocada'!AC19 -> 0 | BW72: ='Histórico Frota Alocada'!AD19 -> 0 | BX72: ='Histórico Frota Alocada'!AE19 -> 0 | BY72: ='Histórico Frota Alocada'!AF19 -> 0 | BZ72: ='Histórico Frota Alocada'!AG19 -> 0 | CA72: ='Histórico Frota Alocada'!AH19 -> 0 | CB72: ='Histórico Frota Alocada'!AI19 -> 0 | CC72: ='Histórico Frota Alocada'!AJ19 -> 0 | CD72: ='Histórico Frota Alocada'!AK19 -> 0
B73: Articulado | C73: =C9*1.1 -> 1657.15 | D73: =D9 -> 0 | E73: 0.375275345 | F73: 2279.037538 | G73: 591.582 | H73: =(($F73*Z73)+($G73*AO73))*BE73 -> 478694.8865 | I73: 492251.8477 | J73: 492251.8477 | K73: 492322.4569 | L73: 604944.0874 | M73: 627309.5428 | N73: 633434.8886 | O73: 619295.4017 | P73: 622472.8145 | Q73: 622666.9897 | R73: 621766.7228 | S73: 659577.9348 | T73: 6966989.421 | W73: Articulado | X73: 2.09034 | Y73: =X73/X75 -> 1 | Z73: =Z75*$Y73+Z66 -> 2.7118 | AA73: 2.7886 | AB73: 2.7886 | AC73: 2.789 | AD73: 3.427 | AE73: 3.5537 | AF73: 3.5884 | AG73: 3.5083 | AH73: 3.5263 | AI73: 3.5274 | AJ73: 3.5223 | AK73: 3.7365 | AN73: Articulado | AO73: =AO75*$Y73 -> 2.604188889 | AP73: 2.67794127 | AQ73: 2.67794127 | AR73: 2.678325397 | AS73: 3.291007937 | AT73: 3.412680159 | AU73: 3.446003175 | AV73: 3.369081746 | AW73: 3.38636746 | AX73: 3.38742381 | AY73: 3.38252619 | AZ73: 3.58822619 | BC73: Articulado | BD73: 65 | BE73: 62 | BF73: 62 | BG73: 62 | BH73: 62 | BI73: 62 | BJ73: 62 | BK73: 62 | BL73: 62 | BM73: 62 | BN73: 62 | BO73: 62 | BP73: 62 | BR73: Articulado | BS73: ='Histórico Frota Alocada'!Z20 -> 35 | BT73: ='Histórico Frota Alocada'!AA20 -> 37 | BU73: ='Histórico Frota Alocada'!AB20 -> 37 | BV73: ='Histórico Frota Alocada'!AC20 -> 37 | BW73: ='Histórico Frota Alocada'!AD20 -> 57 | BX73: ='Histórico Frota Alocada'!AE20 -> 81 | BY73: ='Histórico Frota Alocada'!AF20 -> 72 | BZ73: ='Histórico Frota Alocada'!AG20 -> 72 | CA73: ='Histórico Frota Alocada'!AH20 -> 72 | CB73: ='Histórico Frota Alocada'!AI20 -> 72 | CC73: ='Histórico Frota Alocada'!AJ20 -> 72 | CD73: ='Histórico Frota Alocada'!AK20 -> 53
B74: Articulado BRT | C74: =C10*1.1 -> 1657.15 | D74: =D10 -> 0 | E74: 0.375275345 | F74: 2279.037538 | G74: 591.582 | H74: =(($F74*Z74)+($G74*AO74))*BE74 -> 0 | I74: 0 | J74: 0 | K74: 0 | L74: 0 | M74: 0 | N74: 0 | O74: 0 | P74: 0 | Q74: 0 | R74: 0 | S74: 0 | T74: 0 | W74: Articulado BRT | X74: 2.09034 | Y74: =X74/X75 -> 1 | Z74: =Z75*$Y74+Z66 -> 2.7118 | AA74: 2.7886 | AB74: 2.7886 | AC74: 2.789 | AD74: 3.427 | AE74: 3.5537 | AF74: 3.5884 | AG74: 3.5083 | AH74: 3.5263 | AI74: 3.5274 | AJ74: 3.5223 | AK74: 3.7365 | AN74: Articulado BRT | AO74: =AO75*$Y74 -> 2.604188889 | AP74: 2.67794127 | AQ74: 2.67794127 | AR74: 2.678325397 | AS74: 3.291007937 | AT74: 3.412680159 | AU74: 3.446003175 | AV74: 3.369081746 | AW74: 3.38636746 | AX74: 3.38742381 | AY74: 3.38252619 | AZ74: 3.58822619 | BC74: Articulado BRT | BD74: 0 | BE74: =IF(BS74>$BD74,ROUNDUP($BD74*0.95,0),BS74) -> 0 | BF74: 0 | BG74: 0 | BH74: 0 | BI74: 0 | BJ74: 0 | BK74: 0 | BL74: 0 | BM74: 0 | BN74: 0 | BO74: 0 | BP74: 0 | BR74: Articulado BRT | BS74: ='Histórico Frota Alocada'!Z21 -> 0 | BT74: ='Histórico Frota Alocada'!AA21 -> 0 | BU74: ='Histórico Frota Alocada'!AB21 -> 0 | BV74: ='Histórico Frota Alocada'!AC21 -> 0 | BW74: ='Histórico Frota Alocada'!AD21 -> 0 | BX74: ='Histórico Frota Alocada'!AE21 -> 0 | BY74: ='Histórico Frota Alocada'!AF21 -> 0 | BZ74: ='Histórico Frota Alocada'!AG21 -> 0 | CA74: ='Histórico Frota Alocada'!AH21 -> 0 | CB74: ='Histórico Frota Alocada'!AI21 -> 0 | CC74: ='Histórico Frota Alocada'!AJ21 -> 0 | CD74: ='Histórico Frota Alocada'!AK21 -> 0
B75: Totais........................ | F75: Totais... | G75: 591.582 | H75: =SUM(H70:H74) -> 3642990.725 | I75: 3746162.672 | J75: 3746162.672 | K75: 3746700.026 | L75: 4603779.487 | M75: 4773986.333 | N75: 4820601.784 | O75: 4712996.666 | P75: 4737177.592 | Q75: 4738655.315 | R75: 4731804.053 | S75: 5019557.063 | T75: 53020574.39 | W75: Totais........................ | X75: 2.09034 | Z75: ='FU Folha FGV'!$AK$42 -> 2.7118 | AA75: ='FU Folha FGV'!$AK$43 -> 2.7886 | AB75: ='FU Folha FGV'!$AK$44 -> 2.7886 | AC75: ='FU Folha FGV'!$AK$45 -> 2.789 | AD75: ='FU Folha FGV'!$AK$46 -> 3.427 | AE75: ='FU Folha FGV'!$AK$47 -> 3.5537 | AF75: ='FU Folha FGV'!$AK$48 -> 3.5884 | AG75: ='FU Folha FGV'!$AK$49 -> 3.5083 | AH75: ='FU Folha FGV'!$AK$50 -> 3.5263 | AI75: ='FU Folha FGV'!$AK$51 -> 3.5274 | AJ75: ='FU Folha FGV'!$AK$52 -> 3.5223 | AK75: ='FU Folha FGV'!$AK$53 -> 3.7365 | AN75: Totais........................ | AO75: ='FU Folha FGV'!$AR$42 -> 2.604188889 | AP75: ='FU Folha FGV'!$AR$43 -> 2.67794127 | AQ75: ='FU Folha FGV'!$AR$44 -> 2.67794127 | AR75: ='FU Folha FGV'!$AR$45 -> 2.678325397 | AS75: ='FU Folha FGV'!$AR$46 -> 3.291007937 | AT75: ='FU Folha FGV'!$AR$47 -> 3.412680159 | AU75: ='FU Folha FGV'!$AR$48 -> 3.446003175 | AV75: ='FU Folha FGV'!$AR$49 -> 3.369081746 | AW75: ='FU Folha FGV'!$AR$50 -> 3.38636746 | AX75: ='FU Folha FGV'!$AR$51 -> 3.38742381 | AY75: ='FU Folha FGV'!$AR$52 -> 3.38252619 | AZ75: ='FU Folha FGV'!$AR$53 -> 3.58822619 | BC75: Totais........................ | BD75: =SUM(BD70:BD74) -> 530 | BE75: 504 | BF75: 504 | BG75: 504 | BH75: 504 | BI75: 504 | BJ75: 504 | BK75: 504 | BL75: 504 | BM75: 504 | BN75: 504 | BO75: 504 | BP75: 504 | BR75: TOTAL | BS75: =SUM(BS70:BS74) -> 489 | BT75: 505 | BU75: 505 | BV75: 505 | BW75: 489 | BX75: 512 | BY75: 513 | BZ75: 515 | CA75: 517 | CB75: 518 | CC75: 519 | CD75: 485
A76: Cobrador | B76: Miniônibus | C76: =$C$12 -> 787.52 | E76: =$E$12 -> 0.38747873 | F76: =(C76+D76)*(E76/100*100+1) -> 1092.667249 | G76: =$G$70 -> 591.582 | H76: =(($F76*Z76)+($G76*AO76))*BE76 -> 243232.6795 | I76: 250132.1484 | J76: 250132.1484 | K76: 250167.3497 | L76: 307536.7856 | M76: 318915.6291 | N76: 322110.1536 | O76: 314911.473 | P76: 316521.9358 | Q76: 316618.7396 | R76: 316161.1217 | S76: 335337.0691 | T76: =SUM(H76:S76) -> 3541777.233 | V76: Cobrador | W76: =B76 -> Miniônibus | X76: =X12 -> 2.12955 | Y76: =X76/X81 -> 1 | Z76: =Z81*$Y76+Z67 -> 2.7639 | AA76: 2.8423 | AB76: 2.8423 | AC76: 2.8427 | AD76: 3.4946 | AE76: 3.6239 | AF76: 3.6602 | AG76: 3.5784 | AH76: 3.5967 | AI76: 3.5978 | AJ76: 3.5926 | AK76: 3.8105 | AM76: Cobrador | AN76: Miniônibus | AO76: =AO81*$Y76 -> 2.652671698 | AP76: 2.727916628 | AQ76: 2.727916628 | AR76: 2.728300531 | AS76: 3.35396596 | AT76: 3.478062509 | AU76: 3.512901679 | AV76: 3.434393576 | AW76: 3.451957125 | AX76: 3.453012857 | AY76: 3.448022122 | AZ76: 3.657153119 | BB76: Cobrador | BC76: =W76 -> Miniônibus | BD76: =BD12 -> 57 | BE76: =BE70 -> 53 | BF76: 53 | BG76: 53 | BH76: 53 | BI76: 53 | BJ76: 53 | BK76: 53 | BL76: 53 | BM76: 53 | BN76: 53 | BO76: 53 | BP76: 53
B77: Ônibus Básico | C77: 787.52 | E77: 0.38747873 | F77: 1092.667249 | G77: 591.582 | H77: =(($F77*Z77)+($G77*AO77))*BE77 -> 1785236.082 | I77: 1835875.58 | J77: 1835875.58 | K77: 1836133.944 | L77: 2257203.955 | M77: 2340720.372 | N77: 2364166.976 | O77: 2311331.377 | P77: 2323151.566 | Q77: 2323862.07 | R77: 2320503.327 | S77: 2461247.545 | T77: 25995308.37 | W77: Ônibus Básico | X77: =X76 -> 2.12955 | Y77: =X77/X81 -> 1 | Z77: =Z81*$Y77+Z67 -> 2.7639 | AA77: 2.8423 | AB77: 2.8423 | AC77: 2.8427 | AD77: 3.4946 | AE77: 3.6239 | AF77: 3.6602 | AG77: 3.5784 | AH77: 3.5967 | AI77: 3.5978 | AJ77: 3.5926 | AK77: 3.8105 | AN77: Ônibus Básico | AO77: =AO81*$Y77 -> 2.652671698 | AP77: 2.727916628 | AQ77: 2.727916628 | AR77: 2.728300531 | AS77: 3.35396596 | AT77: 3.478062509 | AU77: 3.512901679 | AV77: 3.434393576 | AW77: 3.451957125 | AX77: 3.453012857 | AY77: 3.448022122 | AZ77: 3.657153119 | BC77: Ônibus Básico | BD77: 408 | BE77: =BE71 -> 389 | BF77: 389 | BG77: 389 | BH77: 389 | BI77: 389 | BJ77: 389 | BK77: 389 | BL77: 389 | BM77: 389 | BN77: 389 | BO77: 389 | BP77: 389
B78: Padron | C78: 787.52 | E78: 0.38747873 | F78: 1092.667249 | G78: 591.582 | H78: =(($F78*Z78)+($G78*AO78))*BE78 -> 0 | I78: 0 | J78: 0 | K78: 0 | L78: 0 | M78: 0 | N78: 0 | O78: 0 | P78: 0 | Q78: 0 | R78: 0 | S78: 0 | T78: 0 | W78: Padron | X78: 2.12955 | Y78: =X78/X81 -> 1 | Z78: =Z81*$Y78+Z67 -> 2.7639 | AA78: 2.8423 | AB78: 2.8423 | AC78: 2.8427 | AD78: 3.4946 | AE78: 3.6239 | AF78: 3.6602 | AG78: 3.5784 | AH78: 3.5967 | AI78: 3.5978 | AJ78: 3.5926 | AK78: 3.8105 | AN78: Padron | AO78: =AO81*$Y78 -> 2.652671698 | AP78: 2.727916628 | AQ78: 2.727916628 | AR78: 2.728300531 | AS78: 3.35396596 | AT78: 3.478062509 | AU78: 3.512901679 | AV78: 3.434393576 | AW78: 3.451957125 | AX78: 3.453012857 | AY78: 3.448022122 | AZ78: 3.657153119 | BC78: Padron | BD78: 0 | BE78: =BE72 -> 0 | BF78: 0 | BG78: 0 | BH78: 0 | BI78: 0 | BJ78: 0 | BK78: 0 | BL78: 0 | BM78: 0 | BN78: 0 | BO78: 0 | BP78: 0
B79: Articulado | C79: 787.52 | E79: 0.38747873 | F79: 1092.667249 | G79: 591.582 | H79: =(($F79*Z79)+($G79*AO79))*BE79 -> 284536.342 | I79: 292607.4189 | J79: 292607.4189 | K79: 292648.5978 | L79: 359760.0133 | M79: 373071.1133 | N79: 376808.1042 | O79: 368387.0062 | P79: 370270.9437 | Q79: 370384.1859 | R79: 369848.8594 | S79: 392281.0997 | T79: 4143211.103 | W79: Articulado | X79: 2.12955 | Y79: =X79/X81 -> 1 | Z79: =Z81*$Y79+Z67 -> 2.7639 | AA79: 2.8423 | AB79: 2.8423 | AC79: 2.8427 | AD79: 3.4946 | AE79: 3.6239 | AF79: 3.6602 | AG79: 3.5784 | AH79: 3.5967 | AI79: 3.5978 | AJ79: 3.5926 | AK79: 3.8105 | AN79: Articulado | AO79: =AO81*$Y79 -> 2.652671698 | AP79: 2.727916628 | AQ79: 2.727916628 | AR79: 2.728300531 | AS79: 3.35396596 | AT79: 3.478062509 | AU79: 3.512901679 | AV79: 3.434393576 | AW79: 3.451957125 | AX79: 3.453012857 | AY79: 3.448022122 | AZ79: 3.657153119 | BC79: Articulado | BD79: 65 | BE79: =BE73 -> 62 | BF79: 62 | BG79: 62 | BH79: 62 | BI79: 62 | BJ79: 62 | BK79: 62 | BL79: 62 | BM79: 62 | BN79: 62 | BO79: 62 | BP79: 62
B80: Articulado BRT | C80: 787.52 | E80: 0.38747873 | F80: 1092.667249 | G80: 591.582 | H80: =(($F80*Z80)+($G80*AO80))*BE80 -> 0 | I80: 0 | J80: 0 | K80: 0 | L80: 0 | M80: 0 | N80: 0 | O80: 0 | P80: 0 | Q80: 0 | R80: 0 | S80: 0 | T80: 0 | W80: Articulado BRT | X80: 2.12955 | Y80: =X80/X81 -> 1 | Z80: =Z81*$Y80+Z67 -> 2.7639 | AA80: 2.8423 | AB80: 2.8423 | AC80: 2.8427 | AD80: 3.4946 | AE80: 3.6239 | AF80: 3.6602 | AG80: 3.5784 | AH80: 3.5967 | AI80: 3.5978 | AJ80: 3.5926 | AK80: 3.8105 | AN80: Articulado BRT | AO80: =AO81*$Y80 -> 2.652671698 | AP80: 2.727916628 | AQ80: 2.727916628 | AR80: 2.728300531 | AS80: 3.35396596 | AT80: 3.478062509 | AU80: 3.512901679 | AV80: 3.434393576 | AW80: 3.451957125 | AX80: 3.453012857 | AY80: 3.448022122 | AZ80: 3.657153119 | BC80: Articulado BRT | BD80: 0 | BE80: =BE74 -> 0 | BF80: 0 | BG80: 0 | BH80: 0 | BI80: 0 | BJ80: 0 | BK80: 0 | BL80: 0 | BM80: 0 | BN80: 0 | BO80: 0 | BP80: 0
B81: Totais........................ | F81: Totais... | H81: =SUM(H76:H80) -> 2313005.103 | I81: 2378615.147 | J81: 2378615.147 | K81: 2378949.892 | L81: 2924500.754 | M81: 3032707.114 | N81: 3063085.234 | O81: 2994629.857 | P81: 3009944.446 | Q81: 3010864.995 | R81: 3006513.308 | S81: 3188865.713 | T81: 33680296.71 | W81: Totais........................ | X81: 2.12955 | Z81: ='FU Folha FGV'!$AL$42 -> 2.7639 | AA81: ='FU Folha FGV'!$AL$43 -> 2.8423 | AB81: ='FU Folha FGV'!$AL$44 -> 2.8423 | AC81: ='FU Folha FGV'!$AL$45 -> 2.8427 | AD81: ='FU Folha FGV'!$AL$46 -> 3.4946 | AE81: ='FU Folha FGV'!$AL$47 -> 3.6239 | AF81: ='FU Folha FGV'!$AL$48 -> 3.6602 | AG81: ='FU Folha FGV'!$AL$49 -> 3.5784 | AH81: ='FU Folha FGV'!$AL$50 -> 3.5967 | AI81: ='FU Folha FGV'!$AL$51 -> 3.5978 | AJ81: ='FU Folha FGV'!$AL$52 -> 3.5926 | AK81: ='FU Folha FGV'!$AL$53 -> 3.8105 | AN81: Totais........................ | AO81: ='FU Folha FGV'!$AS$42 -> 2.652671698 | AP81: ='FU Folha FGV'!$AS$43 -> 2.727916628 | AQ81: ='FU Folha FGV'!$AS$44 -> 2.727916628 | AR81: ='FU Folha FGV'!$AS$45 -> 2.728300531 | AS81: ='FU Folha FGV'!$AS$46 -> 3.35396596 | AT81: ='FU Folha FGV'!$AS$47 -> 3.478062509 | AU81: ='FU Folha FGV'!$AS$48 -> 3.512901679 | AV81: ='FU Folha FGV'!$AS$49 -> 3.434393576 | AW81: ='FU Folha FGV'!$AS$50 -> 3.451957125 | AX81: ='FU Folha FGV'!$AS$51 -> 3.453012857 | AY81: ='FU Folha FGV'!$AS$52 -> 3.448022122 | AZ81: ='FU Folha FGV'!$AS$53 -> 3.657153119 | BC81: Totais........................ | BD81: =SUM(BD76:BD80) -> 530 | BE81: 504 | BF81: 504 | BG81: 504 | BH81: 504 | BI81: 504 | BJ81: 504 | BK81: 504 | BL81: 504 | BM81: 504 | BN81: 504 | BO81: 504 | BP81: 504
F82: Total Mensal Mot./Cob. | H82: =H75+H81 -> 5955995.828 | I82: 6124777.819 | J82: 6124777.819 | K82: 6125649.918 | L82: 7528280.241 | M82: 7806693.447 | N82: 7883687.018 | O82: 7707626.523 | P82: 7747122.037 | Q82: 7749520.31 | R82: 7738317.361 | S82: 8208422.776 | T82: 86700871.1
A84: Controle Operacional - Composição do Custo Unitário Por Função | G84: =G66 -> Ano 2 | H84: Controle Operacional - Composição de Custo Total Mensal | T84: R$
A85: Funções | B85: Cargo | C85: Salário | D85: Hs Extras | E85: Enc. | F85: R$ Total | G85: Benefícios | H85: =H67 -> 2015-01-01 | I85: =DATE(YEAR(H85),MONTH(H85)+1,DAY(H85)) -> 2015-02-01 | J85: 2015-03-01 | K85: 2015-04-01 | L85: 2015-05-01 | M85: 2015-06-01 | N85: 2015-07-01 | O85: 2015-08-01 | P85: 2015-09-01 | Q85: 2015-10-01 | R85: 2015-11-01 | S85: 2015-12-01 | T85: Total | V85: Fator Utilização Mensal | X85: =U65 -> Ano 2 | Z85: FU FOLHA DE PAGAMENTO | AM85: =X85 -> Ano 2 | AN85: FU Benefícios | AO85: FU FÍSICO PARA CÁLCULOS DOS BENEFÍCIOS | BB85: Frota Mensal | BE85: =BE67 -> Ano 2
C86: base | D86: e Adic. | E86: Soc. | F86: Por | G86: R$ por | H86: R$ | I86: R$ | J86: R$ | K86: R$ | L86: R$ | M86: R$ | N86: R$ | O86: R$ | P86: R$ | Q86: R$ | R86: R$ | S86: R$ | T86: Durante o | V86: Funções | W86: Cargo | X86: FU | Z86: =H85 -> 2015-01-01 | AA86: 2015-02-01 | AB86: 2015-03-01 | AC86: 2015-04-01 | AD86: 2015-05-01 | AE86: 2015-06-01 | AF86: 2015-07-01 | AG86: 2015-08-01 | AH86: 2015-09-01 | AI86: 2015-10-01 | AJ86: 2015-11-01 | AK86: 2015-12-01 | AM86: Funções | AN86: Cargo | AO86: =Z86 -> 2015-01-01 | AP86: 2015-02-01 | AQ86: 2015-03-01 | AR86: 2015-04-01 | AS86: 2015-05-01 | AT86: 2015-06-01 | AU86: 2015-07-01 | AV86: 2015-08-01 | AW86: 2015-09-01 | AX86: 2015-10-01 | AY86: 2015-11-01 | AZ86: 2015-12-01 | BB86: Funções | BC86: Cargo | BD86: Frota | BE86: =Z86 -> 2015-01-01 | BF86: 2015-02-01 | BG86: 2015-03-01 | BH86: 2015-04-01 | BI86: 2015-05-01 | BJ86: 2015-06-01 | BK86: 2015-07-01 | BL86: 2015-08-01 | BM86: 2015-09-01 | BN86: 2015-10-01 | BO86: 2015-11-01 | BP86: 2015-12-01
C87: (R$/mês) | D87: Not. | E87: % | F87: Função | G87: mês | T87: =T69 -> Ano 2 | X87: Licitação | Z87: FU | AA87: FU | AB87: FU | AC87: FU | AD87: FU | AE87: FU | AF87: FU | AG87: FU | AH87: FU | AI87: FU | AJ87: FU | AK87: FU | BD87: Licitação | BE87: Frota | BF87: Frota | BG87: Frota | BH87: Frota | BI87: Frota | BJ87: Frota | BK87: Frota | BL87: Frota | BM87: Frota | BN87: Frota | BO87: Frota | BP87: Frota
A88: Controle Operacional | B88: =B24 -> Chefe de Tráfego | C88: 5400 | D88: 0 | E88: 0.40106926 | F88: =(C88+D88)*(E88/100*100+1) -> 7565.774004 | G88: =G39 -> 591.582 | H88: =(($F88*Z88)+($G88*AO88))*BE88 -> 8921.537114 | I88: 8921.537114 | J88: 8921.537114 | K88: 8921.537114 | L88: 8921.537114 | M88: 8921.537114 | N88: 8921.537114 | O88: 8921.537114 | P88: 8921.537114 | Q88: 8921.537114 | R88: 8921.537114 | S88: 8921.537114 | T88: =SUM(H88:S88) -> 107058.4454 | V88: Controle Operacional | W88: =B88 -> Chefe de Tráfego | X88: =X24 -> 0.00217 | Y88: =X88/X95 -> 0.01848580059 | Z88: =Z95*$Y88 -> 0.00217 | AA88: 0.00217 | AB88: 0.00217 | AC88: 0.00217 | AD88: 0.00217 | AE88: 0.00217 | AF88: 0.00217 | AG88: 0.00217 | AH88: 0.00217 | AI88: 0.00217 | AJ88: 0.00217 | AK88: 0.00217 | AM88: Controle Operacional | AN88: =W88 -> Chefe de Tráfego | AO88: =AO95*$Y88 -> 0.00217 | AP88: 0.00217 | AQ88: 0.00217 | AR88: 0.00217 | AS88: 0.00217 | AT88: 0.00217 | AU88: 0.00217 | AV88: 0.00217 | AW88: 0.00217 | AX88: 0.00217 | AY88: 0.00217 | AZ88: 0.00217 | BB88: Controle Operacional | BC88: Fiscal | BD88: =BD$11 -> 530 | BE88: =BE75 -> 504 | BF88: 504 | BG88: 504 | BH88: 504 | BI88: 504 | BJ88: 504 | BK88: 504 | BL88: 504 | BM88: 504 | BN88: 504 | BO88: 504 | BP88: 504
B89: =B25 -> Inspetor de Tráfego | C89: 1800 | D89: 0 | E89: 0.40106926 | F89: 2521.924668 | G89: =G88 -> 591.582 | H89: =(($F89*Z89)+($G89*AO89))*BE89 -> 34113.20281 | I89: 34113.20281 | J89: 34113.20281 | K89: 34113.20281 | L89: 34113.20281 | M89: 34113.20281 | N89: 34113.20281 | O89: 34113.20281 | P89: 34113.20281 | Q89: 34113.20281 | R89: 34113.20281 | S89: 34113.20281 | T89: 409358.4337 | W89: Inspetor de Tráfego | X89: 0.02173913 | Y89: =X89/X95 -> 0.1851913466 | Z89: =Z95*$Y89 -> 0.02173913 | AA89: 0.02173913 | AB89: 0.02173913 | AC89: 0.02173913 | AD89: 0.02173913 | AE89: 0.02173913 | AF89: 0.02173913 | AG89: 0.02173913 | AH89: 0.02173913 | AI89: 0.02173913 | AJ89: 0.02173913 | AK89: 0.02173913 | AN89: Inspetor de Tráfego | AO89: =AO95*$Y89 -> 0.02173913 | AP89: 0.02173913 | AQ89: 0.02173913 | AR89: 0.02173913 | AS89: 0.02173913 | AT89: 0.02173913 | AU89: 0.02173913 | AV89: 0.02173913 | AW89: 0.02173913 | AX89: 0.02173913 | AY89: 0.02173913 | AZ89: 0.02173913 | BC89: Inspetores de Tráfego | BD89: 530 | BE89: =BE88 -> 504 | BF89: 504 | BG89: 504 | BH89: 504 | BI89: 504 | BJ89: 504 | BK89: 504 | BL89: 504 | BM89: 504 | BN89: 504 | BO89: 504 | BP89: 504
B90: =B26 -> Escalador | C90: 1350 | D90: 0 | E90: 0.40106926 | F90: 1891.443501 | G90: 591.582 | H90: =(($F90*Z90)+($G90*AO90))*BE90 -> 13602.65491 | I90: 13602.65491 | J90: 13602.65491 | K90: 13602.65491 | L90: 13602.65491 | M90: 13602.65491 | N90: 13602.65491 | O90: 13602.65491 | P90: 13602.65491 | Q90: 13602.65491 | R90: 13602.65491 | S90: 13602.65491 | T90: 163231.8589 | W90: Escalador | X90: 0.01086956 | Y90: =X90/X95 -> 0.09259563073 | Z90: =Z95*$Y90 -> 0.01086956 | AA90: 0.01086956 | AB90: 0.01086956 | AC90: 0.01086956 | AD90: 0.01086956 | AE90: 0.01086956 | AF90: 0.01086956 | AG90: 0.01086956 | AH90: 0.01086956 | AI90: 0.01086956 | AJ90: 0.01086956 | AK90: 0.01086956 | AN90: Escalador | AO90: =AO95*$Y90 -> 0.01086956 | AP90: 0.01086956 | AQ90: 0.01086956 | AR90: 0.01086956 | AS90: 0.01086956 | AT90: 0.01086956 | AU90: 0.01086956 | AV90: 0.01086956 | AW90: 0.01086956 | AX90: 0.01086956 | AY90: 0.01086956 | AZ90: 0.01086956 | BC90: Chefe de Tráfego | BD90: 530 | BE90: =BE89 -> 504 | BF90: 504 | BG90: 504 | BH90: 504 | BI90: 504 | BJ90: 504 | BK90: 504 | BL90: 504 | BM90: 504 | BN90: 504 | BO90: 504 | BP90: 504
B91: =B27 -> Programadores | C91: 1350 | D91: 0 | E91: 0.40106926 | F91: 1891.443501 | G91: 591.582 | H91: =(($F91*Z91)+($G91*AO91))*BE91 -> 5441.069473 | I91: 5441.069473 | J91: 5441.069473 | K91: 5441.069473 | L91: 5441.069473 | M91: 5441.069473 | N91: 5441.069473 | O91: 5441.069473 | P91: 5441.069473 | Q91: 5441.069473 | R91: 5441.069473 | S91: 5441.069473 | T91: 65292.83368 | W91: Programadores | X91: 0.00434783 | Y91: =X91/X95 -> 0.0370383034 | Z91: =Z95*$Y91 -> 0.00434783 | AA91: 0.00434783 | AB91: 0.00434783 | AC91: 0.00434783 | AD91: 0.00434783 | AE91: 0.00434783 | AF91: 0.00434783 | AG91: 0.00434783 | AH91: 0.00434783 | AI91: 0.00434783 | AJ91: 0.00434783 | AK91: 0.00434783 | AN91: Programadores | AO91: =AO95*$Y91 -> 0.00434783 | AP91: 0.00434783 | AQ91: 0.00434783 | AR91: 0.00434783 | AS91: 0.00434783 | AT91: 0.00434783 | AU91: 0.00434783 | AV91: 0.00434783 | AW91: 0.00434783 | AX91: 0.00434783 | AY91: 0.00434783 | AZ91: 0.00434783 | BC91: Instrutor | BD91: 530 | BE91: =BE90 -> 504 | BF91: 504 | BG91: 504 | BH91: 504 | BI91: 504 | BJ91: 504 | BK91: 504 | BL91: 504 | BM91: 504 | BN91: 504 | BO91: 504 | BP91: 504
B92: =B28 -> Fiscal | C92: 1500 | D92: 0 | E92: 0.4010697 | F92: 2101.60455 | G92: 591.582 | H92: =(($F92*Z92)+($G92*AO92))*BE92 -> 76720.69789 | I92: 76720.69789 | J92: 76720.69789 | K92: 76720.69789 | L92: 76720.69789 | M92: 76720.69789 | N92: 76720.69789 | O92: 76720.69789 | P92: 76720.69789 | Q92: 76720.69789 | R92: 76720.69789 | S92: 76720.69789 | T92: 920648.3746 | W92: Fiscal | X92: 0.0565217463 | Y92: =X92/X95 -> 0.481497572 | Z92: =Z95*$Y92 -> 0.0565217463 | AA92: 0.0565217463 | AB92: 0.0565217463 | AC92: 0.0565217463 | AD92: 0.0565217463 | AE92: 0.0565217463 | AF92: 0.0565217463 | AG92: 0.0565217463 | AH92: 0.0565217463 | AI92: 0.0565217463 | AJ92: 0.0565217463 | AK92: 0.0565217463 | AN92: Fiscal | AO92: =AO95*$Y92 -> 0.0565217463 | AP92: 0.0565217463 | AQ92: 0.0565217463 | AR92: 0.0565217463 | AS92: 0.0565217463 | AT92: 0.0565217463 | AU92: 0.0565217463 | AV92: 0.0565217463 | AW92: 0.0565217463 | AX92: 0.0565217463 | AY92: 0.0565217463 | AZ92: 0.0565217463 | BC92: Programadores | BD92: 530 | BE92: =BE91 -> 504 | BF92: 504 | BG92: 504 | BH92: 504 | BI92: 504 | BJ92: 504 | BK92: 504 | BL92: 504 | BM92: 504 | BN92: 504 | BO92: 504 | BP92: 504
B93: =B29 -> Controle de Operação | C93: 2550 | D93: 0 | E93: 0.4010697 | F93: 3572.727735 | G93: 591.582 | H93: =(($F93*Z93)+($G93*AO93))*BE93 -> 18250.53549 | I93: 18250.53549 | J93: 18250.53549 | K93: 18250.53549 | L93: 18250.53549 | M93: 18250.53549 | N93: 18250.53549 | O93: 18250.53549 | P93: 18250.53549 | Q93: 18250.53549 | R93: 18250.53549 | S93: 18250.53549 | T93: 219006.4259 | W93: Controle de Operação | X93: 0.00869565 | Y93: =X93/X95 -> 0.07407652162 | Z93: =Z95*$Y93 -> 0.00869565 | AA93: 0.00869565 | AB93: 0.00869565 | AC93: 0.00869565 | AD93: 0.00869565 | AE93: 0.00869565 | AF93: 0.00869565 | AG93: 0.00869565 | AH93: 0.00869565 | AI93: 0.00869565 | AJ93: 0.00869565 | AK93: 0.00869565 | AN93: Controle de Operação | AO93: =AO95*$Y93 -> 0.00869565 | AP93: 0.00869565 | AQ93: 0.00869565 | AR93: 0.00869565 | AS93: 0.00869565 | AT93: 0.00869565 | AU93: 0.00869565 | AV93: 0.00869565 | AW93: 0.00869565 | AX93: 0.00869565 | AY93: 0.00869565 | AZ93: 0.00869565 | BC93: Escaladores | BD93: 530 | BE93: =BE92 -> 504 | BF93: 504 | BG93: 504 | BH93: 504 | BI93: 504 | BJ93: 504 | BK93: 504 | BL93: 504 | BM93: 504 | BN93: 504 | BO93: 504 | BP93: 504
B94: =B30 -> Auxiliares | C94: 1000 | D94: 0 | E94: 0.4010697 | F94: 1401.0697 | G94: 591.582 | H94: =(($F94*Z94)+($G94*AO94))*BE94 -> 13099.52075 | I94: 13099.52075 | J94: 13099.52075 | K94: 13099.52075 | L94: 13099.52075 | M94: 13099.52075 | N94: 13099.52075 | O94: 13099.52075 | P94: 13099.52075 | Q94: 13099.52075 | R94: 13099.52075 | S94: 13099.52075 | T94: 157194.249 | W94: Auxiliares | X94: 0.01304348 | Y94: =X94/X95 -> 0.111114825 | Z94: =Z95*$Y94 -> 0.01304348 | AA94: 0.01304348 | AB94: 0.01304348 | AC94: 0.01304348 | AD94: 0.01304348 | AE94: 0.01304348 | AF94: 0.01304348 | AG94: 0.01304348 | AH94: 0.01304348 | AI94: 0.01304348 | AJ94: 0.01304348 | AK94: 0.01304348 | AN94: Auxiliares | AO94: =AO95*$Y94 -> 0.01304348 | AP94: 0.01304348 | AQ94: 0.01304348 | AR94: 0.01304348 | AS94: 0.01304348 | AT94: 0.01304348 | AU94: 0.01304348 | AV94: 0.01304348 | AW94: 0.01304348 | AX94: 0.01304348 | AY94: 0.01304348 | AZ94: 0.01304348 | BC94: Auxiliares | BD94: 530 | BE94: =BE93 -> 504 | BF94: 504 | BG94: 504 | BH94: 504 | BI94: 504 | BJ94: 504 | BK94: 504 | BL94: 504 | BM94: 504 | BN94: 504 | BO94: 504 | BP94: 504
B95: =B31 -> Totais........................ | F95: Totais... | G95: 591.582 | H95: =SUM(H88:H94) -> 170149.2184 | I95: 170149.2184 | J95: 170149.2184 | K95: 170149.2184 | L95: 170149.2184 | M95: 170149.2184 | N95: 170149.2184 | O95: 170149.2184 | P95: 170149.2184 | Q95: 170149.2184 | R95: 170149.2184 | S95: 170149.2184 | T95: 2041790.621 | W95: Totais........................ | X95: =SUM(X88:X94) -> 0.1173873963 | Y95: 1 | Z95: ='FU Folha FGV'!$AM215 -> 0.1173873963 | AA95: ='FU Folha FGV'!$AM216 -> 0.1173873963 | AB95: ='FU Folha FGV'!$AM217 -> 0.1173873963 | AC95: ='FU Folha FGV'!$AM218 -> 0.1173873963 | AD95: ='FU Folha FGV'!$AM219 -> 0.1173873963 | AE95: ='FU Folha FGV'!$AM220 -> 0.1173873963 | AF95: ='FU Folha FGV'!$AM221 -> 0.1173873963 | AG95: ='FU Folha FGV'!$AM222 -> 0.1173873963 | AH95: ='FU Folha FGV'!$AM223 -> 0.1173873963 | AI95: ='FU Folha FGV'!$AM224 -> 0.1173873963 | AJ95: ='FU Folha FGV'!$AM225 -> 0.1173873963 | AK95: ='FU Folha FGV'!$AM226 -> 0.1173873963 | AN95: Totais........................ | AO95: ='FU Folha FGV'!$AT$215 -> 0.1173873963 | AP95: ='FU Folha FGV'!$AT$216 -> 0.1173873963 | AQ95: ='FU Folha FGV'!$AT$217 -> 0.1173873963 | AR95: ='FU Folha FGV'!$AT$218 -> 0.1173873963 | AS95: ='FU Folha FGV'!$AT$219 -> 0.1173873963 | AT95: ='FU Folha FGV'!$AT$220 -> 0.1173873963 | AU95: ='FU Folha FGV'!$AT$221 -> 0.1173873963 | AV95: ='FU Folha FGV'!$AT$222 -> 0.1173873963 | AW95: ='FU Folha FGV'!$AT$223 -> 0.1173873963 | AX95: ='FU Folha FGV'!$AT$224 -> 0.1173873963 | AY95: ='FU Folha FGV'!$AT$225 -> 0.1173873963 | AZ95: ='FU Folha FGV'!$AT$226 -> 0.1173873963 | BC95: Totais........................ | BD95: 530 | BE95: =BE94 -> 504 | BF95: 504 | BG95: 504 | BH95: 504 | BI95: 504 | BJ95: 504 | BK95: 504 | BL95: 504 | BM95: 504 | BN95: 504 | BO95: 504 | BP95: 504
A96: Manutenção | B96: Chefe de Manutenção | C96: =C32 -> 2250 | D96: 0 | E96: 0.4010699 | F96: =(C96+D96)*(E96/100*100+1) -> 3152.407275 | G96: 591.582 | H96: =(($F96*Z96)+($G96*AO96))*BE96 -> 45123.20331 | I96: 45123.20331 | J96: 45123.20331 | K96: 45123.20331 | L96: 45123.20331 | M96: 45123.20331 | N96: 45123.20331 | O96: 45123.20331 | P96: 45123.20331 | Q96: 45123.20331 | R96: 45123.20331 | S96: 45123.20331 | T96: =SUM(H96:S96) -> 541478.4397 | V96: Manutenção | W96: Chefe de Manutenção | X96: =X32 -> 0.02391304 | Y96: =X96/X104 -> 0.05238094627 | Z96: =Z104*$Y96 -> 0.02391304 | AA96: 0.02391304 | AB96: 0.02391304 | AC96: 0.02391304 | AD96: 0.02391304 | AE96: 0.02391304 | AF96: 0.02391304 | AG96: 0.02391304 | AH96: 0.02391304 | AI96: 0.02391304 | AJ96: 0.02391304 | AK96: 0.02391304 | AM96: Manutenção | AN96: Chefe de Manutenção | AO96: =AO104*$Y96 -> 0.02391304 | AP96: 0.02391304 | AQ96: 0.02391304 | AR96: 0.02391304 | AS96: 0.02391304 | AT96: 0.02391304 | AU96: 0.02391304 | AV96: 0.02391304 | AW96: 0.02391304 | AX96: 0.02391304 | AY96: 0.02391304 | AZ96: 0.02391304 | BB96: Manutenção | BC96: 1/2 Oficial Eletricista | BD96: 530 | BE96: =BE94 -> 504 | BF96: 504 | BG96: 504 | BH96: 504 | BI96: 504 | BJ96: 504 | BK96: 504 | BL96: 504 | BM96: 504 | BN96: 504 | BO96: 504 | BP96: 504
B97: Mecânicos | C97: =C33 -> 1500 | D97: 0 | E97: 0.4010697 | F97: 2101.60455 | G97: 591.582 | H97: =(($F97*Z97)+($G97*AO97))*BE97 -> 109179.4319 | I97: 109179.4319 | J97: 109179.4319 | K97: 109179.4319 | L97: 109179.4319 | M97: 109179.4319 | N97: 109179.4319 | O97: 109179.4319 | P97: 109179.4319 | Q97: 109179.4319 | R97: 109179.4319 | S97: 109179.4319 | T97: 1310153.182 | W97: Mecânicos | X97: 0.080434776 | Y97: =X97/X104 -> 0.1761904668 | Z97: =Z104*$Y97 -> 0.080434776 | AA97: 0.080434776 | AB97: 0.080434776 | AC97: 0.080434776 | AD97: 0.080434776 | AE97: 0.080434776 | AF97: 0.080434776 | AG97: 0.080434776 | AH97: 0.080434776 | AI97: 0.080434776 | AJ97: 0.080434776 | AK97: 0.080434776 | AN97: Mecânicos | AO97: =AO104*$Y97 -> 0.080434776 | AP97: 0.080434776 | AQ97: 0.080434776 | AR97: 0.080434776 | AS97: 0.080434776 | AT97: 0.080434776 | AU97: 0.080434776 | AV97: 0.080434776 | AW97: 0.080434776 | AX97: 0.080434776 | AY97: 0.080434776 | AZ97: 0.080434776 | BC97: 1/2 Oficial Funileiro | BD97: 530 | BE97: =BE96 -> 504 | BF97: 504 | BG97: 504 | BH97: 504 | BI97: 504 | BJ97: 504 | BK97: 504 | BL97: 504 | BM97: 504 | BN97: 504 | BO97: 504 | BP97: 504
B98: Eletricista | C98: =C34 -> 1500 | D98: 0 | E98: 0.4010697 | F98: 2101.60455 | G98: 591.582 | H98: =(($F98*Z98)+($G98*AO98))*BE98 -> 50163.52451 | I98: 50163.52451 | J98: 50163.52451 | K98: 50163.52451 | L98: 50163.52451 | M98: 50163.52451 | N98: 50163.52451 | O98: 50163.52451 | P98: 50163.52451 | Q98: 50163.52451 | R98: 50163.52451 | S98: 50163.52451 | T98: 601962.2941 | W98: Eletricista | X98: 0.03695652 | Y98: =X98/X104 -> 0.08095237947 | Z98: =Z104*$Y98 -> 0.03695652 | AA98: 0.03695652 | AB98: 0.03695652 | AC98: 0.03695652 | AD98: 0.03695652 | AE98: 0.03695652 | AF98: 0.03695652 | AG98: 0.03695652 | AH98: 0.03695652 | AI98: 0.03695652 | AJ98: 0.03695652 | AK98: 0.03695652 | AN98: Eletricista | AO98: =AO104*$Y98 -> 0.03695652 | AP98: 0.03695652 | AQ98: 0.03695652 | AR98: 0.03695652 | AS98: 0.03695652 | AT98: 0.03695652 | AU98: 0.03695652 | AV98: 0.03695652 | AW98: 0.03695652 | AX98: 0.03695652 | AY98: 0.03695652 | AZ98: 0.03695652 | BC98: Abastecedor | BD98: 530 | BE98: =BE97 -> 504 | BF98: 504 | BG98: 504 | BH98: 504 | BI98: 504 | BJ98: 504 | BK98: 504 | BL98: 504 | BM98: 504 | BN98: 504 | BO98: 504 | BP98: 504
B99: Funileiro | C99: =C35 -> 1500 | D99: 0 | E99: 0.4010697 | F99: 2101.60455 | G99: 591.582 | H99: =(($F99*Z99)+($G99*AO99))*BE99 -> 41311.13623 | I99: 41311.13623 | J99: 41311.13623 | K99: 41311.13623 | L99: 41311.13623 | M99: 41311.13623 | N99: 41311.13623 | O99: 41311.13623 | P99: 41311.13623 | Q99: 41311.13623 | R99: 41311.13623 | S99: 41311.13623 | T99: 495733.6348 | W99: Funileiro | X99: 0.03043478 | Y99: =X99/X104 -> 0.06666666287 | Z99: =Z104*$Y99 -> 0.03043478 | AA99: 0.03043478 | AB99: 0.03043478 | AC99: 0.03043478 | AD99: 0.03043478 | AE99: 0.03043478 | AF99: 0.03043478 | AG99: 0.03043478 | AH99: 0.03043478 | AI99: 0.03043478 | AJ99: 0.03043478 | AK99: 0.03043478 | AN99: Funileiro | AO99: =AO104*$Y99 -> 0.03043478 | AP99: 0.03043478 | AQ99: 0.03043478 | AR99: 0.03043478 | AS99: 0.03043478 | AT99: 0.03043478 | AU99: 0.03043478 | AV99: 0.03043478 | AW99: 0.03043478 | AX99: 0.03043478 | AY99: 0.03043478 | AZ99: 0.03043478 | BC99: Auxiliar Almoxarife | BD99: 530 | BE99: =BE98 -> 504 | BF99: 504 | BG99: 504 | BH99: 504 | BI99: 504 | BJ99: 504 | BK99: 504 | BL99: 504 | BM99: 504 | BN99: 504 | BO99: 504 | BP99: 504
B100: Pintor | C100: =C36 -> 1300 | D100: 0 | E100: 0.4010697 | F100: 1821.39061 | G100: 591.582 | H100: =(($F100*Z100)+($G100*AO100))*BE100 -> 29081.57347 | I100: 29081.57347 | J100: 29081.57347 | K100: 29081.57347 | L100: 29081.57347 | M100: 29081.57347 | N100: 29081.57347 | O100: 29081.57347 | P100: 29081.57347 | Q100: 29081.57347 | R100: 29081.57347 | S100: 29081.57347 | T100: 348978.8817 | W100: Pintor | X100: 0.02391305 | Y100: =X100/X104 -> 0.05238096817 | Z100: =Z104*$Y100 -> 0.02391305 | AA100: 0.02391305 | AB100: 0.02391305 | AC100: 0.02391305 | AD100: 0.02391305 | AE100: 0.02391305 | AF100: 0.02391305 | AG100: 0.02391305 | AH100: 0.02391305 | AI100: 0.02391305 | AJ100: 0.02391305 | AK100: 0.02391305 | AN100: Pintor | AO100: =AO104*$Y100 -> 0.02391305 | AP100: 0.02391305 | AQ100: 0.02391305 | AR100: 0.02391305 | AS100: 0.02391305 | AT100: 0.02391305 | AU100: 0.02391305 | AV100: 0.02391305 | AW100: 0.02391305 | AX100: 0.02391305 | AY100: 0.02391305 | AZ100: 0.02391305 | BC100: Auxiliar de serv.gerais | BD100: 530 | BE100: =BE99 -> 504 | BF100: 504 | BG100: 504 | BH100: 504 | BI100: 504 | BJ100: 504 | BK100: 504 | BL100: 504 | BM100: 504 | BN100: 504 | BO100: 504 | BP100: 504
B101: Borracheiro | C101: =C37 -> 1400 | D101: 0 | E101: 0.4010697 | F101: 1961.49758 | G101: 591.582 | H101: =(($F101*Z101)+($G101*AO101))*BE101 -> 30770.1675 | I101: 30770.1675 | J101: 30770.1675 | K101: 30770.1675 | L101: 30770.1675 | M101: 30770.1675 | N101: 30770.1675 | O101: 30770.1675 | P101: 30770.1675 | Q101: 30770.1675 | R101: 30770.1675 | S101: 30770.1675 | T101: 369242.01 | W101: Borracheiro | X101: 0.02391305 | Y101: =X101/X104 -> 0.05238096817 | Z101: =Z104*$Y101 -> 0.02391305 | AA101: 0.02391305 | AB101: 0.02391305 | AC101: 0.02391305 | AD101: 0.02391305 | AE101: 0.02391305 | AF101: 0.02391305 | AG101: 0.02391305 | AH101: 0.02391305 | AI101: 0.02391305 | AJ101: 0.02391305 | AK101: 0.02391305 | AN101: Borracheiro | AO101: =AO104*$Y101 -> 0.02391305 | AP101: 0.02391305 | AQ101: 0.02391305 | AR101: 0.02391305 | AS101: 0.02391305 | AT101: 0.02391305 | AU101: 0.02391305 | AV101: 0.02391305 | AW101: 0.02391305 | AX101: 0.02391305 | AY101: 0.02391305 | AZ101: 0.02391305 | BC101: Borracheiro | BD101: 530 | BE101: =BE100 -> 504 | BF101: 504 | BG101: 504 | BH101: 504 | BI101: 504 | BJ101: 504 | BK101: 504 | BL101: 504 | BM101: 504 | BN101: 504 | BO101: 504 | BP101: 504
B102: Auxiliares | C102: =C38 -> 660 | D102: 0 | E102: 0.4010697 | F102: 924.706002 | G102: 591.582 | H102: =(($F102*Z102)+($G102*AO102))*BE102 -> 64791.63894 | I102: 64791.63894 | J102: 64791.63894 | K102: 64791.63894 | L102: 64791.63894 | M102: 64791.63894 | N102: 64791.63894 | O102: 64791.63894 | P102: 64791.63894 | Q102: 64791.63894 | R102: 64791.63894 | S102: 64791.63894 | T102: 777499.6672 | W102: Auxiliares | X102: 0.0847826 | Y102: =X102/X104 -> 0.185714272 | Z102: =Z104*$Y102 -> 0.0847826 | AA102: 0.0847826 | AB102: 0.0847826 | AC102: 0.0847826 | AD102: 0.0847826 | AE102: 0.0847826 | AF102: 0.0847826 | AG102: 0.0847826 | AH102: 0.0847826 | AI102: 0.0847826 | AJ102: 0.0847826 | AK102: 0.0847826 | AN102: Auxiliares | AO102: =AO104*$Y102 -> 0.0847826 | AP102: 0.0847826 | AQ102: 0.0847826 | AR102: 0.0847826 | AS102: 0.0847826 | AT102: 0.0847826 | AU102: 0.0847826 | AV102: 0.0847826 | AW102: 0.0847826 | AX102: 0.0847826 | AY102: 0.0847826 | AZ102: 0.0847826 | BC102: Comprador/Almoxarife | BD102: 530 | BE102: =BE101 -> 504 | BF102: 504 | BG102: 504 | BH102: 504 | BI102: 504 | BJ102: 504 | BK102: 504 | BL102: 504 | BM102: 504 | BN102: 504 | BO102: 504 | BP102: 504
B103: Outros | C103: =C39 -> 1000 | D103: 0 | E103: 0.4010697 | F103: 1401.0697 | G103: 591.582 | H103: =(($F103*Z103)+($G103*AO103))*BE103 -> 152827.7186 | I103: 152827.7186 | J103: 152827.7186 | K103: 152827.7186 | L103: 152827.7186 | M103: 152827.7186 | N103: 152827.7186 | O103: 152827.7186 | P103: 152827.7186 | Q103: 152827.7186 | R103: 152827.7186 | S103: 152827.7186 | T103: 1833932.624 | W103: Outros | X103: 0.15217391 | Y103: =X103/X104 -> 0.3333333363 | Z103: =Z104*$Y103 -> 0.15217391 | AA103: 0.15217391 | AB103: 0.15217391 | AC103: 0.15217391 | AD103: 0.15217391 | AE103: 0.15217391 | AF103: 0.15217391 | AG103: 0.15217391 | AH103: 0.15217391 | AI103: 0.15217391 | AJ103: 0.15217391 | AK103: 0.15217391 | AN103: Outros | AO103: =AO104*$Y103 -> 0.15217391 | AP103: 0.15217391 | AQ103: 0.15217391 | AR103: 0.15217391 | AS103: 0.15217391 | AT103: 0.15217391 | AU103: 0.15217391 | AV103: 0.15217391 | AW103: 0.15217391 | AX103: 0.15217391 | AY103: 0.15217391 | AZ103: 0.15217391 | BC103: Controlador de Manut. | BD103: 530 | BE103: =BE102 -> 504 | BF103: 504 | BG103: 504 | BH103: 504 | BI103: 504 | BJ103: 504 | BK103: 504 | BL103: 504 | BM103: 504 | BN103: 504 | BO103: 504 | BP103: 504
B104: Totais........................ | F104: Totais... | H104: =SUM(H96:H103) -> 523248.3945 | I104: 523248.3945 | J104: 523248.3945 | K104: 523248.3945 | L104: 523248.3945 | M104: 523248.3945 | N104: 523248.3945 | O104: 523248.3945 | P104: 523248.3945 | Q104: 523248.3945 | R104: 523248.3945 | S104: 523248.3945 | T104: 6278980.734 | W104: Totais........................ | X104: =SUM(X96:X103) -> 0.456521726 | Y104: 1 | Z104: ='FU Folha FGV'!$AN215 -> 0.456521726 | AA104: ='FU Folha FGV'!$AN216 -> 0.456521726 | AB104: ='FU Folha FGV'!$AN217 -> 0.456521726 | AC104: ='FU Folha FGV'!$AN218 -> 0.456521726 | AD104: ='FU Folha FGV'!$AN219 -> 0.456521726 | AE104: ='FU Folha FGV'!$AN220 -> 0.456521726 | AF104: ='FU Folha FGV'!$AN221 -> 0.456521726 | AG104: ='FU Folha FGV'!$AN222 -> 0.456521726 | AH104: ='FU Folha FGV'!$AN223 -> 0.456521726 | AI104: ='FU Folha FGV'!$AN224 -> 0.456521726 | AJ104: ='FU Folha FGV'!$AN225 -> 0.456521726 | AK104: ='FU Folha FGV'!$AN226 -> 0.456521726 | AN104: Totais........................ | AO104: ='FU Folha FGV'!$AU$215 -> 0.456521726 | AP104: ='FU Folha FGV'!$AU$216 -> 0.456521726 | AQ104: ='FU Folha FGV'!$AU$217 -> 0.456521726 | AR104: ='FU Folha FGV'!$AU$218 -> 0.456521726 | AS104: ='FU Folha FGV'!$AU$219 -> 0.456521726 | AT104: ='FU Folha FGV'!$AU$220 -> 0.456521726 | AU104: ='FU Folha FGV'!$AU$221 -> 0.456521726 | AV104: ='FU Folha FGV'!$AU$222 -> 0.456521726 | AW104: ='FU Folha FGV'!$AU$223 -> 0.456521726 | AX104: ='FU Folha FGV'!$AU$224 -> 0.456521726 | AY104: ='FU Folha FGV'!$AU$225 -> 0.456521726 | AZ104: ='FU Folha FGV'!$AU$226 -> 0.456521726 | BC104: Totais........................ | BD104: 530 | BE104: =BE103 -> 504 | BF104: 504 | BG104: 504 | BH104: 504 | BI104: 504 | BJ104: 504 | BK104: 504 | BL104: 504 | BM104: 504 | BN104: 504 | BO104: 504 | BP104: 504
F105: Total Geral Mensal Pessoal de Operação | H105: =H82+H95+H104 -> 6649393.441 | I105: 6818175.432 | J105: 6818175.432 | K105: 6819047.531 | L105: 8221677.854 | M105: 8500091.06 | N105: 8577084.63 | O105: 8401024.136 | P105: 8440519.65 | Q105: 8442917.923 | R105: 8431714.974 | S105: 8901820.389 | T105: 95021642.45
A107: Administração - Composição do Custo Unitário Por Função | G107: Ano 2 | H107: Administração - Composição de Custo Total Mensal | T107: R$
A108: Funções | B108: Cargo | C108: Salário | D108: Hs Extras | E108: Enc. | F108: R$ Total | G108: Benefícios | H108: =H67 -> 2015-01-01 | I108: =DATE(YEAR(H108),MONTH(H108)+1,DAY(H108)) -> 2015-02-01 | J108: 2015-03-01 | K108: 2015-04-01 | L108: 2015-05-01 | M108: 2015-06-01 | N108: 2015-07-01 | O108: 2015-08-01 | P108: 2015-09-01 | Q108: 2015-10-01 | R108: 2015-11-01 | S108: 2015-12-01 | T108: Total | V108: Fator Utilização Mensal | X108: =X85 -> Ano 2 | Z108: FU FOLHA DE PAGAMENTO | AM108: =X108 -> Ano 2 | AN108: FU Benefícios | AO108: FU FÍSICO PARA CÁLCULOS DOS BENEFÍCIOS | BB108: Frota Mensal | BE108: =BE85 -> Ano 2
C109: base | D109: e Adic. | E109: Soc. | F109: Por | G109: R$ por | H109: R$ | I109: R$ | J109: R$ | K109: R$ | L109: R$ | M109: R$ | N109: R$ | O109: R$ | P109: R$ | Q109: R$ | R109: R$ | S109: R$ | T109: Durante o | V109: Funções | W109: Cargo | X109: FU | Z109: =H108 -> 2015-01-01 | AA109: 2015-02-01 | AB109: 2015-03-01 | AC109: 2015-04-01 | AD109: 2015-05-01 | AE109: 2015-06-01 | AF109: 2015-07-01 | AG109: 2015-08-01 | AH109: 2015-09-01 | AI109: 2015-10-01 | AJ109: 2015-11-01 | AK109: 2015-12-01 | AM109: Funções | AN109: Cargo | AO109: =Z109 -> 2015-01-01 | AP109: 2015-02-01 | AQ109: 2015-03-01 | AR109: 2015-04-01 | AS109: 2015-05-01 | AT109: 2015-06-01 | AU109: 2015-07-01 | AV109: 2015-08-01 | AW109: 2015-09-01 | AX109: 2015-10-01 | AY109: 2015-11-01 | AZ109: 2015-12-01 | BB109: Funções | BC109: Cargo | BD109: Frota | BE109: =Z109 -> 2015-01-01 | BF109: 2015-02-01 | BG109: 2015-03-01 | BH109: 2015-04-01 | BI109: 2015-05-01 | BJ109: 2015-06-01 | BK109: 2015-07-01 | BL109: 2015-08-01 | BM109: 2015-09-01 | BN109: 2015-10-01 | BO109: 2015-11-01 | BP109: 2015-12-01
C110: (R$/mês) | D110: Not. | E110: % | F110: Função | G110: mês | T110: =T87 -> Ano 2 | X110: Licitação | Z110: FU | AA110: FU | AB110: FU | AC110: FU | AD110: FU | AE110: FU | AF110: FU | AG110: FU | AH110: FU | AI110: FU | AJ110: FU | AK110: FU | BD110: Licitação | BE110: Frota | BF110: Frota | BG110: Frota | BH110: Frota | BI110: Frota | BJ110: Frota | BK110: Frota | BL110: Frota | BM110: Frota | BN110: Frota | BO110: Frota | BP110: Frota
A111: Administração | B111: =B47 -> Assistente Administrativo | C111: 1800 | D111: 0 | E111: 0.40106926 | F111: =(C111+D111)*(E111/100*100+1) -> 2521.924668 | G111: =G103 -> 591.582 | H111: =(($F111*Z111)+($G111*AO111))*BE111 -> 34113.20281 | I111: 34113.20281 | J111: 34113.20281 | K111: 34113.20281 | L111: 34113.20281 | M111: 34113.20281 | N111: 34113.20281 | O111: 34113.20281 | P111: 34113.20281 | Q111: 34113.20281 | R111: 34113.20281 | S111: 34113.20281 | T111: =SUM(H111:S111) -> 409358.4337 | V111: Administração | W111: =B111 -> Assistente Administrativo | X111: =X47 -> 0.02173913 | Y111: =X111/X128 -> 0.1087010144 | Z111: =Z128*$Y111 -> 0.02173913 | AA111: 0.02173913 | AB111: 0.02173913 | AC111: 0.02173913 | AD111: 0.02173913 | AE111: 0.02173913 | AF111: 0.02173913 | AG111: 0.02173913 | AH111: 0.02173913 | AI111: 0.02173913 | AJ111: 0.02173913 | AK111: 0.02173913 | AM111: Administração | AN111: =W111 -> Assistente Administrativo | AO111: =AO128*$Y111 -> 0.02173913 | AP111: 0.02173913 | AQ111: 0.02173913 | AR111: 0.02173913 | AS111: 0.02173913 | AT111: 0.02173913 | AU111: 0.02173913 | AV111: 0.02173913 | AW111: 0.02173913 | AX111: 0.02173913 | AY111: 0.02173913 | AZ111: 0.02173913 | BB111: Administração | BC111: Gerente Adm. Financ. | BD111: =BD$11 -> 530 | BE111: =BE104 -> 504 | BF111: 504 | BG111: 504 | BH111: 504 | BI111: 504 | BJ111: 504 | BK111: 504 | BL111: 504 | BM111: 504 | BN111: 504 | BO111: 504 | BP111: 504
B112: =B48 -> Assistente Financeiro | C112: 2160 | D112: 0 | E112: 0.40106926 | F112: 3026.309602 | G112: =G111 -> 591.582 | H112: =(($F112*Z112)+($G112*AO112))*BE112 -> 31711.05143 | I112: 31711.05143 | J112: 31711.05143 | K112: 31711.05143 | L112: 31711.05143 | M112: 31711.05143 | N112: 31711.05143 | O112: 31711.05143 | P112: 31711.05143 | Q112: 31711.05143 | R112: 31711.05143 | S112: 31711.05143 | T112: 380532.6172 | W112: Assistente Financeiro | X112: 0.017391 | Y112: =X112/X128 -> 0.08695929144 | Z112: =Z128*$Y112 -> 0.017391 | AA112: 0.017391 | AB112: 0.017391 | AC112: 0.017391 | AD112: 0.017391 | AE112: 0.017391 | AF112: 0.017391 | AG112: 0.017391 | AH112: 0.017391 | AI112: 0.017391 | AJ112: 0.017391 | AK112: 0.017391 | AN112: Assistente Financeiro | AO112: =AO128*$Y112 -> 0.017391 | AP112: 0.017391 | AQ112: 0.017391 | AR112: 0.017391 | AS112: 0.017391 | AT112: 0.017391 | AU112: 0.017391 | AV112: 0.017391 | AW112: 0.017391 | AX112: 0.017391 | AY112: 0.017391 | AZ112: 0.017391 | BC112: Gerente de Operação | BD112: 530 | BE112: =BE111 -> 504 | BF112: 504 | BG112: 504 | BH112: 504 | BI112: 504 | BJ112: 504 | BK112: 504 | BL112: 504 | BM112: 504 | BN112: 504 | BO112: 504 | BP112: 504
B113: =B49 -> Auxiliar de CPD | C113: 2880 | D113: 0 | E113: 0.40106926 | F113: 4035.079469 | G113: 591.582 | H113: =(($F113*Z113)+($G113*AO113))*BE113 -> 30407.15944 | I113: 30407.15944 | J113: 30407.15944 | K113: 30407.15944 | L113: 30407.15944 | M113: 30407.15944 | N113: 30407.15944 | O113: 30407.15944 | P113: 30407.15944 | Q113: 30407.15944 | R113: 30407.15944 | S113: 30407.15944 | T113: 364885.9133 | W113: Auxiliar de CPD | X113: 0.01304 | Y113: =X113/X128 -> 0.06520321778 | Z113: =Z128*$Y113 -> 0.01304 | AA113: 0.01304 | AB113: 0.01304 | AC113: 0.01304 | AD113: 0.01304 | AE113: 0.01304 | AF113: 0.01304 | AG113: 0.01304 | AH113: 0.01304 | AI113: 0.01304 | AJ113: 0.01304 | AK113: 0.01304 | AN113: Auxiliar de CPD | AO113: =AO128*$Y113 -> 0.01304 | AP113: 0.01304 | AQ113: 0.01304 | AR113: 0.01304 | AS113: 0.01304 | AT113: 0.01304 | AU113: 0.01304 | AV113: 0.01304 | AW113: 0.01304 | AX113: 0.01304 | AY113: 0.01304 | AZ113: 0.01304 | BC113: Controle Manutenção | BD113: 530 | BE113: =BE112 -> 504 | BF113: 504 | BG113: 504 | BH113: 504 | BI113: 504 | BJ113: 504 | BK113: 504 | BL113: 504 | BM113: 504 | BN113: 504 | BO113: 504 | BP113: 504
B114: =B50 -> Auxiliar de Compra | C114: 1530 | D114: 0 | E114: 0.40106926 | F114: 2143.635968 | G114: 591.582 | H114: =(($F114*Z114)+($G114*AO114))*BE114 -> 11993.38375 | I114: 11993.38375 | J114: 11993.38375 | K114: 11993.38375 | L114: 11993.38375 | M114: 11993.38375 | N114: 11993.38375 | O114: 11993.38375 | P114: 11993.38375 | Q114: 11993.38375 | R114: 11993.38375 | S114: 11993.38375 | T114: 143920.6049 | W114: Auxiliar de Compra | X114: 0.0087 | Y114: =X114/X128 -> 0.04350214683 | Z114: =Z128*$Y114 -> 0.0087 | AA114: 0.0087 | AB114: 0.0087 | AC114: 0.0087 | AD114: 0.0087 | AE114: 0.0087 | AF114: 0.0087 | AG114: 0.0087 | AH114: 0.0087 | AI114: 0.0087 | AJ114: 0.0087 | AK114: 0.0087 | AN114: Auxiliar de Compra | AO114: =AO128*$Y114 -> 0.0087 | AP114: 0.0087 | AQ114: 0.0087 | AR114: 0.0087 | AS114: 0.0087 | AT114: 0.0087 | AU114: 0.0087 | AV114: 0.0087 | AW114: 0.0087 | AX114: 0.0087 | AY114: 0.0087 | AZ114: 0.0087 | BC114: Auxiliar Contabilidade | BD114: 530 | BE114: =BE113 -> 504 | BF114: 504 | BG114: 504 | BH114: 504 | BI114: 504 | BJ114: 504 | BK114: 504 | BL114: 504 | BM114: 504 | BN114: 504 | BO114: 504 | BP114: 504
B115: =B51 -> Auxiliar de Contabilidade | C115: 1800 | D115: 0 | E115: 0.4010697 | F115: 2521.92546 | G115: 591.582 | H115: =(($F115*Z115)+($G115*AO115))*BE115 -> 17057.28835 | I115: 17057.28835 | J115: 17057.28835 | K115: 17057.28835 | L115: 17057.28835 | M115: 17057.28835 | N115: 17057.28835 | O115: 17057.28835 | P115: 17057.28835 | Q115: 17057.28835 | R115: 17057.28835 | S115: 17057.28835 | T115: 204687.4602 | W115: Auxiliar de Contabilidade | X115: 0.01087 | Y115: =X115/X128 -> 0.0543526823 | Z115: =Z128*$Y115 -> 0.01087 | AA115: 0.01087 | AB115: 0.01087 | AC115: 0.01087 | AD115: 0.01087 | AE115: 0.01087 | AF115: 0.01087 | AG115: 0.01087 | AH115: 0.01087 | AI115: 0.01087 | AJ115: 0.01087 | AK115: 0.01087 | AN115: Auxiliar de Contabilidade | AO115: =AO128*$Y115 -> 0.01087 | AP115: 0.01087 | AQ115: 0.01087 | AR115: 0.01087 | AS115: 0.01087 | AT115: 0.01087 | AU115: 0.01087 | AV115: 0.01087 | AW115: 0.01087 | AX115: 0.01087 | AY115: 0.01087 | AZ115: 0.01087 | BC115: Assist. Adm./financeiro | BD115: 530 | BE115: =BE114 -> 504 | BF115: 504 | BG115: 504 | BH115: 504 | BI115: 504 | BJ115: 504 | BK115: 504 | BL115: 504 | BM115: 504 | BN115: 504 | BO115: 504 | BP115: 504
B116: =B52 -> Auxiliar Depto.Pessoal | C116: 1125 | D116: 0 | E116: 0.4010697 | F116: 1576.203413 | G116: 591.582 | H116: =(($F116*Z116)+($G116*AO116))*BE116 -> 42752.02337 | I116: 42752.02337 | J116: 42752.02337 | K116: 42752.02337 | L116: 42752.02337 | M116: 42752.02337 | N116: 42752.02337 | O116: 42752.02337 | P116: 42752.02337 | Q116: 42752.02337 | R116: 42752.02337 | S116: 42752.02337 | T116: 513024.2804 | W116: Auxiliar Depto.Pessoal | X116: 0.03913 | Y116: =X116/X128 -> 0.1956596558 | Z116: =Z128*$Y116 -> 0.03913 | AA116: 0.03913 | AB116: 0.03913 | AC116: 0.03913 | AD116: 0.03913 | AE116: 0.03913 | AF116: 0.03913 | AG116: 0.03913 | AH116: 0.03913 | AI116: 0.03913 | AJ116: 0.03913 | AK116: 0.03913 | AN116: Auxiliar Depto.Pessoal | AO116: =AO128*$Y116 -> 0.03913 | AP116: 0.03913 | AQ116: 0.03913 | AR116: 0.03913 | AS116: 0.03913 | AT116: 0.03913 | AU116: 0.03913 | AV116: 0.03913 | AW116: 0.03913 | AX116: 0.03913 | AY116: 0.03913 | AZ116: 0.03913 | BC116: Contador | BD116: 530 | BE116: =BE115 -> 504 | BF116: 504 | BG116: 504 | BH116: 504 | BI116: 504 | BJ116: 504 | BK116: 504 | BL116: 504 | BM116: 504 | BN116: 504 | BO116: 504 | BP116: 504
B117: =B53 -> Auxiliar de Serv.Gerais | C117: 750 | D117: 0 | E117: 0.4010697 | F117: 1050.802275 | G117: 591.582 | H117: =(($F117*Z117)+($G117*AO117))*BE117 -> 12598.53269 | I117: 12598.53269 | J117: 12598.53269 | K117: 12598.53269 | L117: 12598.53269 | M117: 12598.53269 | N117: 12598.53269 | O117: 12598.53269 | P117: 12598.53269 | Q117: 12598.53269 | R117: 12598.53269 | S117: 12598.53269 | T117: 151182.3922 | W117: Auxiliar de Serv.Gerais | X117: 0.01522 | Y117: =X117/X128 -> 0.07610375572 | Z117: =Z128*$Y117 -> 0.01522 | AA117: 0.01522 | AB117: 0.01522 | AC117: 0.01522 | AD117: 0.01522 | AE117: 0.01522 | AF117: 0.01522 | AG117: 0.01522 | AH117: 0.01522 | AI117: 0.01522 | AJ117: 0.01522 | AK117: 0.01522 | AN117: Auxiliar de Serv.Gerais | AO117: =AO128*$Y117 -> 0.01522 | AP117: 0.01522 | AQ117: 0.01522 | AR117: 0.01522 | AS117: 0.01522 | AT117: 0.01522 | AU117: 0.01522 | AV117: 0.01522 | AW117: 0.01522 | AX117: 0.01522 | AY117: 0.01522 | AZ117: 0.01522 | BC117: Auxiliar Adm./Financ. | BD117: 530 | BE117: =BE116 -> 504 | BF117: 504 | BG117: 504 | BH117: 504 | BI117: 504 | BJ117: 504 | BK117: 504 | BL117: 504 | BM117: 504 | BN117: 504 | BO117: 504 | BP117: 504
B118: =B54 -> Auxiliares Administrativ. | C118: 750 | D118: 0 | E118: 0.4010697 | F118: 1050.802275 | G118: 591.582 | H118: =(($F118*Z118)+($G118*AO118))*BE118 -> 16199.29597 | I118: 16199.29597 | J118: 16199.29597 | K118: 16199.29597 | L118: 16199.29597 | M118: 16199.29597 | N118: 16199.29597 | O118: 16199.29597 | P118: 16199.29597 | Q118: 16199.29597 | R118: 16199.29597 | S118: 16199.29597 | T118: 194391.5517 | W118: Auxiliares Administrativ. | X118: 0.01957 | Y118: =X118/X128 -> 0.09785482914 | Z118: =Z128*$Y118 -> 0.01957 | AA118: 0.01957 | AB118: 0.01957 | AC118: 0.01957 | AD118: 0.01957 | AE118: 0.01957 | AF118: 0.01957 | AG118: 0.01957 | AH118: 0.01957 | AI118: 0.01957 | AJ118: 0.01957 | AK118: 0.01957 | AN118: Auxiliares Administrativ. | AO118: =AO128*$Y118 -> 0.01957 | AP118: 0.01957 | AQ118: 0.01957 | AR118: 0.01957 | AS118: 0.01957 | AT118: 0.01957 | AU118: 0.01957 | AV118: 0.01957 | AW118: 0.01957 | AX118: 0.01957 | AY118: 0.01957 | AZ118: 0.01957 | BC118: Secretária Executiva | BD118: 530 | BE118: =BE117 -> 504 | BF118: 504 | BG118: 504 | BH118: 504 | BI118: 504 | BJ118: 504 | BK118: 504 | BL118: 504 | BM118: 504 | BN118: 504 | BO118: 504 | BP118: 504
B119: =B55 -> Contador | C119: 4500 | D119: 0 | E119: 0.4010697 | F119: 6304.81365 | G119: 591.582 | H119: =(($F119*Z119)+($G119*AO119))*BE119 -> 7542.449994 | I119: 7542.449994 | J119: 7542.449994 | K119: 7542.449994 | L119: 7542.449994 | M119: 7542.449994 | N119: 7542.449994 | O119: 7542.449994 | P119: 7542.449994 | Q119: 7542.449994 | R119: 7542.449994 | S119: 7542.449994 | T119: 90509.39993 | W119: Contador | X119: 0.00217 | Y119: =X119/X128 -> 0.01085053547 | Z119: =Z128*$Y119 -> 0.00217 | AA119: 0.00217 | AB119: 0.00217 | AC119: 0.00217 | AD119: 0.00217 | AE119: 0.00217 | AF119: 0.00217 | AG119: 0.00217 | AH119: 0.00217 | AI119: 0.00217 | AJ119: 0.00217 | AK119: 0.00217 | AN119: Contador | AO119: =AO128*$Y119 -> 0.00217 | AP119: 0.00217 | AQ119: 0.00217 | AR119: 0.00217 | AS119: 0.00217 | AT119: 0.00217 | AU119: 0.00217 | AV119: 0.00217 | AW119: 0.00217 | AX119: 0.00217 | AY119: 0.00217 | AZ119: 0.00217 | BC119: Telefonista | BD119: 530 | BE119: =BE118 -> 504 | BF119: 504 | BG119: 504 | BH119: 504 | BI119: 504 | BJ119: 504 | BK119: 504 | BL119: 504 | BM119: 504 | BN119: 504 | BO119: 504 | BP119: 504
B120: =B56 -> Controle de Manutenção | C120: 5400 | D120: 0 | E120: 0.4010697 | F120: 7565.77638 | G120: 591.582 | H120: =(($F120*Z120)+($G120*AO120))*BE120 -> 8921.539713 | I120: 8921.539713 | J120: 8921.539713 | K120: 8921.539713 | L120: 8921.539713 | M120: 8921.539713 | N120: 8921.539713 | O120: 8921.539713 | P120: 8921.539713 | Q120: 8921.539713 | R120: 8921.539713 | S120: 8921.539713 | T120: 107058.4766 | W120: Controle de Manutenção | X120: 0.00217 | Y120: =X120/X128 -> 0.01085053547 | Z120: =Z128*$Y120 -> 0.00217 | AA120: 0.00217 | AB120: 0.00217 | AC120: 0.00217 | AD120: 0.00217 | AE120: 0.00217 | AF120: 0.00217 | AG120: 0.00217 | AH120: 0.00217 | AI120: 0.00217 | AJ120: 0.00217 | AK120: 0.00217 | AN120: Controle de Manutenção | AO120: =AO128*$Y120 -> 0.00217 | AP120: 0.00217 | AQ120: 0.00217 | AR120: 0.00217 | AS120: 0.00217 | AT120: 0.00217 | AU120: 0.00217 | AV120: 0.00217 | AW120: 0.00217 | AX120: 0.00217 | AY120: 0.00217 | AZ120: 0.00217 | BC120: Aux de serviços gerais | BD120: 530 | BE120: =BE119 -> 504 | BF120: 504 | BG120: 504 | BH120: 504 | BI120: 504 | BJ120: 504 | BK120: 504 | BL120: 504 | BM120: 504 | BN120: 504 | BO120: 504 | BP120: 504
B121: =B57 -> Encarreg.Depto.Pessoal | C121: 3150 | D121: 0 | E121: 0.4010697 | F121: 4413.369555 | G121: 591.582 | H121: =(($F121*Z121)+($G121*AO121))*BE121 -> 16446.67121 | I121: 16446.67121 | J121: 16446.67121 | K121: 16446.67121 | L121: 16446.67121 | M121: 16446.67121 | N121: 16446.67121 | O121: 16446.67121 | P121: 16446.67121 | Q121: 16446.67121 | R121: 16446.67121 | S121: 16446.67121 | T121: 197360.0545 | W121: Encarreg.Depto.Pessoal | X121: 0.00652 | Y121: =X121/X128 -> 0.03260160889 | Z121: =Z128*$Y121 -> 0.00652 | AA121: 0.00652 | AB121: 0.00652 | AC121: 0.00652 | AD121: 0.00652 | AE121: 0.00652 | AF121: 0.00652 | AG121: 0.00652 | AH121: 0.00652 | AI121: 0.00652 | AJ121: 0.00652 | AK121: 0.00652 | AN121: Encarreg.Depto.Pessoal | AO121: =AO128*$Y121 -> 0.00652 | AP121: 0.00652 | AQ121: 0.00652 | AR121: 0.00652 | AS121: 0.00652 | AT121: 0.00652 | AU121: 0.00652 | AV121: 0.00652 | AW121: 0.00652 | AX121: 0.00652 | AY121: 0.00652 | AZ121: 0.00652 | BC121: Enc. Depto de Pessoal | BD121: 530 | BE121: =BE120 -> 504 | BF121: 504 | BG121: 504 | BH121: 504 | BI121: 504 | BJ121: 504 | BK121: 504 | BL121: 504 | BM121: 504 | BN121: 504 | BO121: 504 | BP121: 504
B122: =B58 -> Eng.Segurança Trabalho | C122: 3870 | D122: 0 | E122: 0.4010697 | F122: 5422.139739 | G122: 591.582 | H122: =(($F122*Z122)+($G122*AO122))*BE122 -> 6577.087192 | I122: 6577.087192 | J122: 6577.087192 | K122: 6577.087192 | L122: 6577.087192 | M122: 6577.087192 | N122: 6577.087192 | O122: 6577.087192 | P122: 6577.087192 | Q122: 6577.087192 | R122: 6577.087192 | S122: 6577.087192 | T122: 78925.0463 | W122: Eng.Segurança Trabalho | X122: 0.00217 | Y122: =X122/X128 -> 0.01085053547 | Z122: =Z128*$Y122 -> 0.00217 | AA122: 0.00217 | AB122: 0.00217 | AC122: 0.00217 | AD122: 0.00217 | AE122: 0.00217 | AF122: 0.00217 | AG122: 0.00217 | AH122: 0.00217 | AI122: 0.00217 | AJ122: 0.00217 | AK122: 0.00217 | AN122: Eng.Segurança Trabalho | AO122: =AO128*$Y122 -> 0.00217 | AP122: 0.00217 | AQ122: 0.00217 | AR122: 0.00217 | AS122: 0.00217 | AT122: 0.00217 | AU122: 0.00217 | AV122: 0.00217 | AW122: 0.00217 | AX122: 0.00217 | AY122: 0.00217 | AZ122: 0.00217 | BC122: Auxiliar Administrativo | BD122: 530 | BE122: =BE121 -> 504 | BF122: 504 | BG122: 504 | BH122: 504 | BI122: 504 | BJ122: 504 | BK122: 504 | BL122: 504 | BM122: 504 | BN122: 504 | BO122: 504 | BP122: 504
B123: =B59 -> Gerente Administrativo | C123: 8100 | D123: 0 | E123: 0.4010697 | F123: 11348.66457 | G123: 591.582 | H123: =(($F123*Z123)+($G123*AO123))*BE123 -> 104651.0075 | I123: 104651.0075 | J123: 104651.0075 | K123: 104651.0075 | L123: 104651.0075 | M123: 104651.0075 | N123: 104651.0075 | O123: 104651.0075 | P123: 104651.0075 | Q123: 104651.0075 | R123: 104651.0075 | S123: 104651.0075 | T123: 1255812.09 | W123: Gerente Administrativo | X123: 0.01739 | Y123: =X123/X128 -> 0.08695429119 | Z123: =Z128*$Y123 -> 0.01739 | AA123: 0.01739 | AB123: 0.01739 | AC123: 0.01739 | AD123: 0.01739 | AE123: 0.01739 | AF123: 0.01739 | AG123: 0.01739 | AH123: 0.01739 | AI123: 0.01739 | AJ123: 0.01739 | AK123: 0.01739 | AN123: Gerente Administrativo | AO123: =AO128*$Y123 -> 0.01739 | AP123: 0.01739 | AQ123: 0.01739 | AR123: 0.01739 | AS123: 0.01739 | AT123: 0.01739 | AU123: 0.01739 | AV123: 0.01739 | AW123: 0.01739 | AX123: 0.01739 | AY123: 0.01739 | AZ123: 0.01739 | BC123: Psicólogo | BD123: 530 | BE123: =BE122 -> 504 | BF123: 504 | BG123: 504 | BH123: 504 | BI123: 504 | BJ123: 504 | BK123: 504 | BL123: 504 | BM123: 504 | BN123: 504 | BO123: 504 | BP123: 504
B124: =B60 -> Médico do trabalho | C124: 4500 | D124: 0 | E124: 0.4010697 | F124: 6304.81365 | G124: 591.582 | H124: =(($F124*Z124)+($G124*AO124))*BE124 -> 7542.449994 | I124: 7542.449994 | J124: 7542.449994 | K124: 7542.449994 | L124: 7542.449994 | M124: 7542.449994 | N124: 7542.449994 | O124: 7542.449994 | P124: 7542.449994 | Q124: 7542.449994 | R124: 7542.449994 | S124: 7542.449994 | T124: 90509.39993 | W124: Médico do trabalho | X124: 0.00217 | Y124: =X124/X128 -> 0.01085053547 | Z124: =Z128*$Y124 -> 0.00217 | AA124: 0.00217 | AB124: 0.00217 | AC124: 0.00217 | AD124: 0.00217 | AE124: 0.00217 | AF124: 0.00217 | AG124: 0.00217 | AH124: 0.00217 | AI124: 0.00217 | AJ124: 0.00217 | AK124: 0.00217 | AN124: Médico do trabalho | AO124: =AO128*$Y124 -> 0.00217 | AP124: 0.00217 | AQ124: 0.00217 | AR124: 0.00217 | AS124: 0.00217 | AT124: 0.00217 | AU124: 0.00217 | AV124: 0.00217 | AW124: 0.00217 | AX124: 0.00217 | AY124: 0.00217 | AZ124: 0.00217 | BC124: Auxiliar Administrativo | BD124: 530 | BE124: =BE123 -> 504 | BF124: 504 | BG124: 504 | BH124: 504 | BI124: 504 | BJ124: 504 | BK124: 504 | BL124: 504 | BM124: 504 | BN124: 504 | BO124: 504 | BP124: 504
B125: =B61 -> Secretaria | C125: 1260 | D125: 0 | E125: 0.4010697 | F125: 1765.347822 | G125: 591.582 | H125: =(($F125*Z125)+($G125*AO125))*BE125 -> 5167.332942 | I125: 5167.332942 | J125: 5167.332942 | K125: 5167.332942 | L125: 5167.332942 | M125: 5167.332942 | N125: 5167.332942 | O125: 5167.332942 | P125: 5167.332942 | Q125: 5167.332942 | R125: 5167.332942 | S125: 5167.332942 | T125: 62007.9953 | W125: Secretaria | X125: 0.00435 | Y125: =X125/X128 -> 0.02175107342 | Z125: =Z128*$Y125 -> 0.00435 | AA125: 0.00435 | AB125: 0.00435 | AC125: 0.00435 | AD125: 0.00435 | AE125: 0.00435 | AF125: 0.00435 | AG125: 0.00435 | AH125: 0.00435 | AI125: 0.00435 | AJ125: 0.00435 | AK125: 0.00435 | AN125: Secretaria | AO125: =AO128*$Y125 -> 0.00435 | AP125: 0.00435 | AQ125: 0.00435 | AR125: 0.00435 | AS125: 0.00435 | AT125: 0.00435 | AU125: 0.00435 | AV125: 0.00435 | AW125: 0.00435 | AX125: 0.00435 | AY125: 0.00435 | AZ125: 0.00435 | BC125: Assist.Recrut. e Seleção | BD125: 530 | BE125: =BE124 -> 504 | BF125: 504 | BG125: 504 | BH125: 504 | BI125: 504 | BJ125: 504 | BK125: 504 | BL125: 504 | BM125: 504 | BN125: 504 | BO125: 504 | BP125: 504
B126: =B62 -> Téc.Enfermag.Trabalho | C126: 1100 | D126: 0 | E126: 0.4010697 | F126: 1541.17667 | G126: 591.582 | H126: =(($F126*Z126)+($G126*AO126))*BE126 -> 4675.860108 | I126: 4675.860108 | J126: 4675.860108 | K126: 4675.860108 | L126: 4675.860108 | M126: 4675.860108 | N126: 4675.860108 | O126: 4675.860108 | P126: 4675.860108 | Q126: 4675.860108 | R126: 4675.860108 | S126: 4675.860108 | T126: 56110.3213 | W126: Téc.Enfermag.Trabalho | X126: 0.00435 | Y126: =X126/X128 -> 0.02175107342 | Z126: =Z128*$Y126 -> 0.00435 | AA126: 0.00435 | AB126: 0.00435 | AC126: 0.00435 | AD126: 0.00435 | AE126: 0.00435 | AF126: 0.00435 | AG126: 0.00435 | AH126: 0.00435 | AI126: 0.00435 | AJ126: 0.00435 | AK126: 0.00435 | AN126: Téc.Enfermag.Trabalho | AO126: =AO128*$Y126 -> 0.00435 | AP126: 0.00435 | AQ126: 0.00435 | AR126: 0.00435 | AS126: 0.00435 | AT126: 0.00435 | AU126: 0.00435 | AV126: 0.00435 | AW126: 0.00435 | AX126: 0.00435 | AY126: 0.00435 | AZ126: 0.00435 | BC126: Assist.Tre./capacitação | BD126: 530 | BE126: =BE125 -> 504 | BF126: 504 | BG126: 504 | BH126: 504 | BI126: 504 | BJ126: 504 | BK126: 504 | BL126: 504 | BM126: 504 | BN126: 504 | BO126: 504 | BP126: 504
B127: =B63 -> Téc.Segurança Trabalho | C127: 1260 | D127: 0 | E127: 0.4010697 | F127: 1765.347822 | G127: 591.582 | H127: =(($F127*Z127)+($G127*AO127))*BE127 -> 15490.1199 | I127: 15490.1199 | J127: 15490.1199 | K127: 15490.1199 | L127: 15490.1199 | M127: 15490.1199 | N127: 15490.1199 | O127: 15490.1199 | P127: 15490.1199 | Q127: 15490.1199 | R127: 15490.1199 | S127: 15490.1199 | T127: 185881.4388 | W127: Téc.Segurança Trabalho | X127: 0.01304 | Y127: =X127/X128 -> 0.06520321778 | Z127: =Z128*$Y127 -> 0.01304 | AA127: 0.01304 | AB127: 0.01304 | AC127: 0.01304 | AD127: 0.01304 | AE127: 0.01304 | AF127: 0.01304 | AG127: 0.01304 | AH127: 0.01304 | AI127: 0.01304 | AJ127: 0.01304 | AK127: 0.01304 | AN127: Téc.Segurança Trabalho | AO127: =AO128*$Y127 -> 0.01304 | AP127: 0.01304 | AQ127: 0.01304 | AR127: 0.01304 | AS127: 0.01304 | AT127: 0.01304 | AU127: 0.01304 | AV127: 0.01304 | AW127: 0.01304 | AX127: 0.01304 | AY127: 0.01304 | AZ127: 0.01304 | BC127: Assessor Jurídico | BD127: 530 | BE127: =BE126 -> 504 | BF127: 504 | BG127: 504 | BH127: 504 | BI127: 504 | BJ127: 504 | BK127: 504 | BL127: 504 | BM127: 504 | BN127: 504 | BO127: 504 | BP127: 504
B128: Totais......................... | F128: Totais... | H128: =SUM(H111:H127) -> 373846.4563 | I128: 373846.4563 | J128: 373846.4563 | K128: 373846.4563 | L128: 373846.4563 | M128: 373846.4563 | N128: 373846.4563 | O128: 373846.4563 | P128: 373846.4563 | Q128: 373846.4563 | R128: 373846.4563 | S128: 373846.4563 | T128: 4486157.476 | W128: Totais......................... | X128: =SUM(X111:X127) -> 0.19999013 | Y128: 1 | Z128: ='FU Folha FGV'!$AO215 -> 0.19999013 | AA128: ='FU Folha FGV'!$AO216 -> 0.19999013 | AB128: ='FU Folha FGV'!$AO217 -> 0.19999013 | AC128: ='FU Folha FGV'!$AO218 -> 0.19999013 | AD128: ='FU Folha FGV'!$AO219 -> 0.19999013 | AE128: ='FU Folha FGV'!$AO220 -> 0.19999013 | AF128: ='FU Folha FGV'!$AO221 -> 0.19999013 | AG128: ='FU Folha FGV'!$AO222 -> 0.19999013 | AH128: ='FU Folha FGV'!$AO223 -> 0.19999013 | AI128: ='FU Folha FGV'!$AO224 -> 0.19999013 | AJ128: ='FU Folha FGV'!$AO225 -> 0.19999013 | AK128: ='FU Folha FGV'!$AO226 -> 0.19999013 | AN128: Totais......................... | AO128: ='FU Folha FGV'!$AV$215 -> 0.19999013 | AP128: ='FU Folha FGV'!$AV$216 -> 0.19999013 | AQ128: ='FU Folha FGV'!$AV$217 -> 0.19999013 | AR128: ='FU Folha FGV'!$AV$218 -> 0.19999013 | AS128: ='FU Folha FGV'!$AV$219 -> 0.19999013 | AT128: ='FU Folha FGV'!$AV$220 -> 0.19999013 | AU128: ='FU Folha FGV'!$AV$221 -> 0.19999013 | AV128: ='FU Folha FGV'!$AV$222 -> 0.19999013 | AW128: ='FU Folha FGV'!$AV$223 -> 0.19999013 | AX128: ='FU Folha FGV'!$AV$224 -> 0.19999013 | AY128: ='FU Folha FGV'!$AV$225 -> 0.19999013 | AZ128: ='FU Folha FGV'!$AV$226 -> 0.19999013 | BC128: Totais......................... | BD128: 530 | BE128: =BE104 -> 504 | BF128: 504 | BG128: 504 | BH128: 504 | BI128: 504 | BJ128: 504 | BK128: 504 | BL128: 504 | BM128: 504 | BN128: 504 | BO128: 504 | BP128: 504
A129: Planilha 2 - Demonstração do Custo com Pessoal | F129: =G130 -> Ano 3 | K129: =F129 -> Ano 3 | P129: =K129 -> Ano 3 | U129: =P129 -> Ano 3 | AA129: =U129 -> Ano 3 | AF129: =AA129 -> Ano 3 | AK129: =AF129 -> Ano 3 | BE129: =AK129 -> Ano 3 | BJ129: =BE129 -> Ano 3
A130: Motoristas e Cobradores - Composição do Custo Unitário Por Função | G130: Ano 3 | H130: Motoristas e Cobradores - Composição de Custo Total Mensal | T130: R$ | X130: FU Lei Motorista Salário | Y130: FU Mot. | Z130: =$Z$2 -> 0 | AA130: =Z130 -> 0 | AB130: 0 | AC130: 0 | AD130: 0 | AE130: 0 | AF130: 0 | AG130: 0 | AH130: 0 | AI130: 0 | AJ130: 0 | AK130: 0
A131: Funções | B131: Cargo | C131: Salário | D131: Hs Extras | E131: Enc. | F131: R$ Total | G131: Benefícios | H131: =DATE(YEAR(S108),MONTH(S108)+1,DAY(S108)) -> 2016-01-01 | I131: =DATE(YEAR(H131),MONTH(H131)+1,DAY(H131)) -> 2016-02-01 | J131: 2016-03-01 | K131: 2016-04-01 | L131: 2016-05-01 | M131: 2016-06-01 | N131: 2016-07-01 | O131: 2016-08-01 | P131: 2016-09-01 | Q131: 2016-10-01 | R131: 2016-11-01 | S131: 2016-12-01 | T131: Total | V131: Fator Utilização Mensal | X131: =U129 -> Ano 3 | Y131: FU Cob. | Z131: =$Z$3 -> 0 | AA131: =Z131 -> 0 | AB131: 0 | AC131: 0 | AD131: 0 | AE131: 0 | AF131: 0 | AG131: 0 | AH131: 0 | AI131: 0 | AJ131: 0 | AK131: 0 | AM131: =X131 -> Ano 3 | AN131: FU Benefícios | AO131: FU FÍSICO PARA CÁLCULOS DOS BENEFÍCIOS | BB131: Frota Mensal | BE131: =BE129 -> Ano 3
C132: base | D132: e Adic. | E132: Soc. | F132: Por | G132: R$ por | H132: R$ | I132: R$ | J132: R$ | K132: R$ | L132: R$ | M132: R$ | N132: R$ | O132: R$ | P132: R$ | Q132: R$ | R132: R$ | S132: R$ | T132: Durante o | V132: Funções | W132: Cargo | X132: FU | Z132: =H131 -> 2016-01-01 | AA132: 2016-02-01 | AB132: 2016-03-01 | AC132: 2016-04-01 | AD132: 2016-05-01 | AE132: 2016-06-01 | AF132: 2016-07-01 | AG132: 2016-08-01 | AH132: 2016-09-01 | AI132: 2016-10-01 | AJ132: 2016-11-01 | AK132: 2016-12-01 | AM132: Funções | AN132: Cargo | AO132: =Z132 -> 2016-01-01 | AP132: 2016-02-01 | AQ132: 2016-03-01 | AR132: 2016-04-01 | AS132: 2016-05-01 | AT132: 2016-06-01 | AU132: 2016-07-01 | AV132: 2016-08-01 | AW132: 2016-09-01 | AX132: 2016-10-01 | AY132: 2016-11-01 | AZ132: 2016-12-01 | BB132: Funções | BC132: Cargo | BD132: Frota | BE132: =Z132 -> 2016-01-01 | BF132: 2016-02-01 | BG132: 2016-03-01 | BH132: 2016-04-01 | BI132: 2016-05-01 | BJ132: 2016-06-01 | BK132: 2016-07-01 | BL132: 2016-08-01 | BM132: 2016-09-01 | BN132: 2016-10-01 | BO132: 2016-11-01 | BP132: 2016-12-01
C133: (R$/mês) | D133: Not. | E133: % | F133: Função | G133: mês | T133: =P129 -> Ano 3 | X133: Licitação | Z133: FU | AA133: FU | AB133: FU | AC133: FU | AD133: FU | AE133: FU | AF133: FU | AG133: FU | AH133: FU | AI133: FU | AJ133: FU | AK133: FU | BD133: Licitação | BE133: Frota | BF133: Frota | BG133: Frota | BH133: Frota | BI133: Frota | BJ133: Frota | BK133: Frota | BL133: Frota | BM133: Frota | BN133: Frota | BO133: Frota | BP133: Frota | BS133: ='Histórico Frota Alocada'!AL16 -> 2016-01-29 | BT133: ='Histórico Frota Alocada'!AM16 -> 2016-02-29 | BU133: ='Histórico Frota Alocada'!AN16 -> 2016-03-31 | BV133: ='Histórico Frota Alocada'!AO16 -> 2016-04-30 | BW133: ='Histórico Frota Alocada'!AP16 -> 2016-05-31 | BX133: ='Histórico Frota Alocada'!AQ16 -> 2016-06-30 | BY133: ='Histórico Frota Alocada'!AR16 -> 2016-07-31 | BZ133: ='Histórico Frota Alocada'!AS16 -> 2016-08-31 | CA133: ='Histórico Frota Alocada'!AT16 -> 2016-09-30 | CB133: ='Histórico Frota Alocada'!AU16 -> 2016-10-31 | CC133: ='Histórico Frota Alocada'!AV16 -> 2016-11-30 | CD133: ='Histórico Frota Alocada'!AW16 -> 2016-12-31
A134: Motorista | B134: Miniônibus | C134: =C70 -> 1506.5 | D134: 0 | E134: 0.375275345 | F134: =(C134+D134)*(E134/100*100+1) -> 2071.852307 | G134: =G70 -> 591.582 | H134: =(($F134*Z134)+($G134*AO134))*BE134 -> 522802.9271 | I134: 487641.5795 | J134: 489964.2152 | K134: 497086.0322 | L134: 497086.0322 | M134: 496064.6321 | N134: 498569.161 | O134: 501857.2298 | P134: 501857.2298 | Q134: 501857.2298 | R134: 499674.5118 | S134: 494959.2813 | T134: =SUM(H134:S134) -> 5989420.062 | V134: Motorista | W134: =B134 -> Miniônibus | X134: =X70 -> 2.09034 | Y134: =X134/X139 -> 1 | Z134: =Z139*$Y134+Z130 -> 3.7365 | AA134: 3.4852 | AB134: 3.5018 | AC134: 3.5527 | AD134: 3.5527 | AE134: 3.5454 | AF134: 3.5633 | AG134: 3.5868 | AH134: 3.5868 | AI134: 3.5868 | AJ134: 3.5712 | AK134: 3.5375 | AM134: Motorista | AN134: =W134 -> Miniônibus | AO134: =AO139*$Y134 -> 3.58822619 | AP134: 3.346898413 | AQ134: 3.362839683 | AR134: 3.411719841 | AS134: 3.411719841 | AT134: 3.404709524 | AU134: 3.421899206 | AV134: 3.444466667 | AW134: 3.444466667 | AX134: 3.444466667 | AY134: 3.429485714 | AZ134: 3.397123016 | BB134: Motorista | BC134: =W134 -> Miniônibus | BD134: =BD70 -> 57 | BE134: 53 | BF134: 53 | BG134: 53 | BH134: 53 | BI134: 53 | BJ134: 53 | BK134: 53 | BL134: 53 | BM134: 53 | BN134: 53 | BO134: 53 | BP134: 53 | BR134: Miniônibus | BS134: ='Histórico Frota Alocada'!AL17 -> 30 | BT134: ='Histórico Frota Alocada'!AM17 -> 53 | BU134: ='Histórico Frota Alocada'!AN17 -> 33 | BV134: ='Histórico Frota Alocada'!AO17 -> 52 | BW134: ='Histórico Frota Alocada'!AP17 -> 52 | BX134: ='Histórico Frota Alocada'!AQ17 -> 51 | BY134: ='Histórico Frota Alocada'!AR17 -> 51 | BZ134: ='Histórico Frota Alocada'!AS17 -> 51 | CA134: ='Histórico Frota Alocada'!AT17 -> 55 | CB134: ='Histórico Frota Alocada'!AU17 -> 55 | CC134: ='Histórico Frota Alocada'!AV17 -> 55 | CD134: ='Histórico Frota Alocada'!AW17 -> 59
B135: Ônibus Básico | C135: =C71 -> 1506.5 | D135: 0 | E135: 0.375275345 | F135: 2071.852307 | G135: =G134 -> 591.582 | H135: =(($F135*Z135)+($G135*AO135))*BE135 -> 3837176.201 | I135: 3579105.177 | J135: 3596152.448 | K135: 3657802.878 | L135: 3657802.878 | M135: 3650286.915 | N135: 3659309.503 | O135: 3683442.686 | P135: 3683442.686 | Q135: 3683442.686 | R135: 3667422.36 | S135: 3632814.348 | T135: 43988200.77 | W135: Ônibus Básico | X135: =X134 -> 2.09034 | Y135: =X135/X139 -> 1 | Z135: =Z139*$Y135+Z130 -> 3.7365 | AA135: 3.4852 | AB135: 3.5018 | AC135: 3.5527 | AD135: 3.5527 | AE135: 3.5454 | AF135: 3.5633 | AG135: 3.5868 | AH135: 3.5868 | AI135: 3.5868 | AJ135: 3.5712 | AK135: 3.5375 | AN135: Ônibus Básico | AO135: =AO139*$Y135 -> 3.58822619 | AP135: 3.346898413 | AQ135: 3.362839683 | AR135: 3.411719841 | AS135: 3.411719841 | AT135: 3.404709524 | AU135: 3.421899206 | AV135: 3.444466667 | AW135: 3.444466667 | AX135: 3.444466667 | AY135: 3.429485714 | AZ135: 3.397123016 | BC135: Ônibus Básico | BD135: 408 | BE135: 389 | BF135: 389 | BG135: 389 | BH135: 390 | BI135: 390 | BJ135: 390 | BK135: 389 | BL135: 389 | BM135: 389 | BN135: 389 | BO135: 389 | BP135: 389 | BR135: Ônibus Básico | BS135: ='Histórico Frota Alocada'!AL18 -> 402 | BT135: ='Histórico Frota Alocada'!AM18 -> 405 | BU135: ='Histórico Frota Alocada'!AN18 -> 407 | BV135: ='Histórico Frota Alocada'!AO18 -> 407 | BW135: ='Histórico Frota Alocada'!AP18 -> 407 | BX135: ='Histórico Frota Alocada'!AQ18 -> 404 | BY135: ='Histórico Frota Alocada'!AR18 -> 406 | BZ135: ='Histórico Frota Alocada'!AS18 -> 402 | CA135: ='Histórico Frota Alocada'!AT18 -> 398 | CB135: ='Histórico Frota Alocada'!AU18 -> 398 | CC135: ='Histórico Frota Alocada'!AV18 -> 393 | CD135: ='Histórico Frota Alocada'!AW18 -> 391
B136: Padron | C136: =C72 -> 1506.5 | D136: 0 | E136: 0.375275345 | F136: 2071.852307 | G136: 591.582 | H136: =(($F136*Z136)+($G136*AO136))*BE136 -> 0 | I136: 0 | J136: 0 | K136: 0 | L136: 0 | M136: 0 | N136: 0 | O136: 0 | P136: 0 | Q136: 0 | R136: 0 | S136: 0 | T136: 0 | W136: Padron | X136: 2.09034 | Y136: =X136/X139 -> 1 | Z136: =Z139*$Y136+Z130 -> 3.7365 | AA136: 3.4852 | AB136: 3.5018 | AC136: 3.5527 | AD136: 3.5527 | AE136: 3.5454 | AF136: 3.5633 | AG136: 3.5868 | AH136: 3.5868 | AI136: 3.5868 | AJ136: 3.5712 | AK136: 3.5375 | AN136: Padron | AO136: =AO139*$Y136 -> 3.58822619 | AP136: 3.346898413 | AQ136: 3.362839683 | AR136: 3.411719841 | AS136: 3.411719841 | AT136: 3.404709524 | AU136: 3.421899206 | AV136: 3.444466667 | AW136: 3.444466667 | AX136: 3.444466667 | AY136: 3.429485714 | AZ136: 3.397123016 | BC136: Padron | BD136: 0 | BE136: 0 | BF136: 0 | BG136: 0 | BH136: 0 | BI136: 0 | BJ136: 0 | BK136: 0 | BL136: 0 | BM136: 0 | BN136: 0 | BO136: 0 | BP136: 0 | BR136: Padron | BS136: ='Histórico Frota Alocada'!AL19 -> 0 | BT136: ='Histórico Frota Alocada'!AM19 -> 0 | BU136: ='Histórico Frota Alocada'!AN19 -> 0 | BV136: ='Histórico Frota Alocada'!AO19 -> 0 | BW136: ='Histórico Frota Alocada'!AP19 -> 0 | BX136: ='Histórico Frota Alocada'!AQ19 -> 0 | BY136: ='Histórico Frota Alocada'!AR19 -> 0 | BZ136: ='Histórico Frota Alocada'!AS19 -> 0 | CA136: ='Histórico Frota Alocada'!AT19 -> 0 | CB136: ='Histórico Frota Alocada'!AU19 -> 0 | CC136: ='Histórico Frota Alocada'!AV19 -> 0 | CD136: ='Histórico Frota Alocada'!AW19 -> 0
B137: Articulado | C137: =C73 -> 1657.15 | D137: 0 | E137: 0.375275345 | F137: 2279.037538 | G137: 591.582 | H137: =(($F137*Z137)+($G137*AO137))*BE137 -> 659577.9348 | I137: 615217.722 | J137: 618148.0027 | K137: 627133.0199 | L137: 627133.0199 | M137: 625844.4025 | N137: 629004.163 | O137: 633152.4519 | P137: 633152.4519 | Q137: 633152.4519 | R137: 630398.6942 | S137: 624449.8713 | T137: 7556364.186 | W137: Articulado | X137: 2.09034 | Y137: =X137/X139 -> 1 | Z137: =Z139*$Y137+Z130 -> 3.7365 | AA137: 3.4852 | AB137: 3.5018 | AC137: 3.5527 | AD137: 3.5527 | AE137: 3.5454 | AF137: 3.5633 | AG137: 3.5868 | AH137: 3.5868 | AI137: 3.5868 | AJ137: 3.5712 | AK137: 3.5375 | AN137: Articulado | AO137: =AO139*$Y137 -> 3.58822619 | AP137: 3.346898413 | AQ137: 3.362839683 | AR137: 3.411719841 | AS137: 3.411719841 | AT137: 3.404709524 | AU137: 3.421899206 | AV137: 3.444466667 | AW137: 3.444466667 | AX137: 3.444466667 | AY137: 3.429485714 | AZ137: 3.397123016 | BC137: Articulado | BD137: 65 | BE137: 62 | BF137: 62 | BG137: 62 | BH137: 62 | BI137: 62 | BJ137: 62 | BK137: 62 | BL137: 62 | BM137: 62 | BN137: 62 | BO137: 62 | BP137: 62 | BR137: Articulado | BS137: ='Histórico Frota Alocada'!AL20 -> 53 | BT137: ='Histórico Frota Alocada'!AM20 -> 63 | BU137: ='Histórico Frota Alocada'!AN20 -> 65 | BV137: ='Histórico Frota Alocada'!AO20 -> 65 | BW137: ='Histórico Frota Alocada'!AP20 -> 65 | BX137: ='Histórico Frota Alocada'!AQ20 -> 65 | BY137: ='Histórico Frota Alocada'!AR20 -> 65 | BZ137: ='Histórico Frota Alocada'!AS20 -> 65 | CA137: ='Histórico Frota Alocada'!AT20 -> 65 | CB137: ='Histórico Frota Alocada'!AU20 -> 65 | CC137: ='Histórico Frota Alocada'!AV20 -> 65 | CD137: ='Histórico Frota Alocada'!AW20 -> 65
B138: Articulado BRT | C138: =C74 -> 1657.15 | D138: 0 | E138: 0.375275345 | F138: 2279.037538 | G138: 591.582 | H138: =(($F138*Z138)+($G138*AO138))*BE138 -> 0 | I138: 0 | J138: 0 | K138: 0 | L138: 0 | M138: 0 | N138: 0 | O138: 0 | P138: 0 | Q138: 0 | R138: 0 | S138: 0 | T138: 0 | W138: Articulado BRT | X138: 2.09034 | Y138: =X138/X139 -> 1 | Z138: =Z139*$Y138+Z130 -> 3.7365 | AA138: 3.4852 | AB138: 3.5018 | AC138: 3.5527 | AD138: 3.5527 | AE138: 3.5454 | AF138: 3.5633 | AG138: 3.5868 | AH138: 3.5868 | AI138: 3.5868 | AJ138: 3.5712 | AK138: 3.5375 | AN138: Articulado BRT | AO138: =AO139*$Y138 -> 3.58822619 | AP138: 3.346898413 | AQ138: 3.362839683 | AR138: 3.411719841 | AS138: 3.411719841 | AT138: 3.404709524 | AU138: 3.421899206 | AV138: 3.444466667 | AW138: 3.444466667 | AX138: 3.444466667 | AY138: 3.429485714 | AZ138: 3.397123016 | BC138: Articulado BRT | BD138: 0 | BE138: =IF(BS138>$BD138,ROUNDUP($BD138*0.95,0),BS138) -> 0 | BF138: 0 | BG138: 0 | BH138: 0 | BI138: 0 | BJ138: 0 | BK138: 0 | BL138: 0 | BM138: 0 | BN138: 0 | BO138: 0 | BP138: 0 | BR138: Articulado BRT | BS138: ='Histórico Frota Alocada'!AL21 -> 0 | BT138: ='Histórico Frota Alocada'!AM21 -> 0 | BU138: ='Histórico Frota Alocada'!AN21 -> 0 | BV138: ='Histórico Frota Alocada'!AO21 -> 0 | BW138: ='Histórico Frota Alocada'!AP21 -> 0 | BX138: ='Histórico Frota Alocada'!AQ21 -> 0 | BY138: ='Histórico Frota Alocada'!AR21 -> 0 | BZ138: ='Histórico Frota Alocada'!AS21 -> 0 | CA138: ='Histórico Frota Alocada'!AT21 -> 0 | CB138: ='Histórico Frota Alocada'!AU21 -> 0 | CC138: ='Histórico Frota Alocada'!AV21 -> 0 | CD138: ='Histórico Frota Alocada'!AW21 -> 0
B139: Totais........................ | F139: Totais... | G139: 591.582 | H139: =SUM(H134:H138) -> 5019557.063 | I139: 4681964.479 | J139: 4704264.666 | K139: 4782021.93 | L139: 4782021.93 | M139: 4772195.95 | N139: 4786882.827 | O139: 4818452.368 | P139: 4818452.368 | Q139: 4818452.368 | R139: 4797495.566 | S139: 4752223.501 | T139: 57533985.02 | W139: Totais........................ | X139: 2.09034 | Z139: ='FU Folha FGV'!$AK$59 -> 3.7365 | AA139: ='FU Folha FGV'!$AK$60 -> 3.4852 | AB139: ='FU Folha FGV'!$AK$61 -> 3.5018 | AC139: ='FU Folha FGV'!$AK$62 -> 3.5527 | AD139: ='FU Folha FGV'!$AK$63 -> 3.5527 | AE139: ='FU Folha FGV'!$AK$64 -> 3.5454 | AF139: ='FU Folha FGV'!$AK$65 -> 3.5633 | AG139: ='FU Folha FGV'!$AK$66 -> 3.5868 | AH139: ='FU Folha FGV'!$AK$67 -> 3.5868 | AI139: ='FU Folha FGV'!$AK$68 -> 3.5868 | AJ139: ='FU Folha FGV'!$AK$69 -> 3.5712 | AK139: ='FU Folha FGV'!$AK$70 -> 3.5375 | AN139: Totais........................ | AO139: ='FU Folha FGV'!$AR$59 -> 3.58822619 | AP139: ='FU Folha FGV'!$AR$60 -> 3.346898413 | AQ139: ='FU Folha FGV'!$AR$61 -> 3.362839683 | AR139: ='FU Folha FGV'!$AR$62 -> 3.411719841 | AS139: ='FU Folha FGV'!$AR$63 -> 3.411719841 | AT139: ='FU Folha FGV'!$AR$64 -> 3.404709524 | AU139: ='FU Folha FGV'!$AR$65 -> 3.421899206 | AV139: ='FU Folha FGV'!$AR$66 -> 3.444466667 | AW139: ='FU Folha FGV'!$AR$67 -> 3.444466667 | AX139: ='FU Folha FGV'!$AR$68 -> 3.444466667 | AY139: ='FU Folha FGV'!$AR$69 -> 3.429485714 | AZ139: ='FU Folha FGV'!$AR$70 -> 3.397123016 | BC139: Totais........................ | BD139: =SUM(BD134:BD138) -> 530 | BE139: 504 | BF139: 504 | BG139: 504 | BH139: 505 | BI139: 505 | BJ139: 505 | BK139: 504 | BL139: 504 | BM139: 504 | BN139: 504 | BO139: 504 | BP139: 504 | BR139: TOTAL | BS139: =SUM(BS134:BS138) -> 485 | BT139: 521 | BU139: 505 | BV139: 524 | BW139: 524 | BX139: 520 | BY139: 522 | BZ139: 518 | CA139: 518 | CB139: 518 | CC139: 513 | CD139: 515
A140: Cobrador | B140: Miniônibus | C140: =$C$76 -> 787.52 | E140: =$E$76 -> 0.38747873 | F140: =(C140+D140)*(E140/100*100+1) -> 1092.667249 | G140: =$G$134 -> 591.582 | H140: =(($F140*Z140)+($G140*AO140))*BE140 -> 335337.0691 | I140: 312843.3924 | J140: 314321.85 | K140: 318898.0284 | L140: 318898.0284 | M140: 318264.4037 | N140: 319892.4671 | O140: 322004.5495 | P140: 322004.5495 | Q140: 322004.5495 | R140: 320614.0953 | S140: 317542.7756 | T140: =SUM(H140:S140) -> 3842625.758 | V140: Cobrador | W140: =B140 -> Miniônibus | X140: =X76 -> 2.12955 | Y140: =X140/X145 -> 1 | Z140: =Z145*$Y140+Z131 -> 3.8105 | AA140: 3.5549 | AB140: 3.5717 | AC140: 3.6237 | AD140: 3.6237 | AE140: 3.6165 | AF140: 3.635 | AG140: 3.659 | AH140: 3.659 | AI140: 3.659 | AJ140: 3.6432 | AK140: 3.6083 | AM140: Cobrador | AN140: Miniônibus | AO140: =AO145*$Y140 -> 3.657153119 | AP140: 3.411839292 | AQ140: 3.427963206 | AR140: 3.477870557 | AS140: 3.477870557 | AT140: 3.470960309 | AU140: 3.488715809 | AV140: 3.511749971 | AW140: 3.511749971 | AX140: 3.511749971 | AY140: 3.496585814 | AZ140: 3.463090303 | BB140: Cobrador | BC140: =W140 -> Miniônibus | BD140: =BD76 -> 57 | BE140: =BE134 -> 53 | BF140: 53 | BG140: 53 | BH140: 53 | BI140: 53 | BJ140: 53 | BK140: 53 | BL140: 53 | BM140: 53 | BN140: 53 | BO140: 53 | BP140: 53
B141: Ônibus Básico | C141: 787.52 | E141: 0.38747873 | F141: 1092.667249 | G141: 591.582 | H141: =(($F141*Z141)+($G141*AO141))*BE141 -> 2461247.545 | I141: 2296152.446 | J141: 2307003.767 | K141: 2346608.133 | L141: 2346608.133 | M141: 2341945.612 | N141: 2347889.995 | O141: 2363391.882 | P141: 2363391.882 | Q141: 2363391.882 | R141: 2353186.473 | S141: 2330644.145 | T141: 28221461.9 | W141: Ônibus Básico | X141: =X140 -> 2.12955 | Y141: =X141/X145 -> 1 | Z141: =Z145*$Y141+Z131 -> 3.8105 | AA141: 3.5549 | AB141: 3.5717 | AC141: 3.6237 | AD141: 3.6237 | AE141: 3.6165 | AF141: 3.635 | AG141: 3.659 | AH141: 3.659 | AI141: 3.659 | AJ141: 3.6432 | AK141: 3.6083 | AN141: Ônibus Básico | AO141: =AO145*$Y141 -> 3.657153119 | AP141: 3.411839292 | AQ141: 3.427963206 | AR141: 3.477870557 | AS141: 3.477870557 | AT141: 3.470960309 | AU141: 3.488715809 | AV141: 3.511749971 | AW141: 3.511749971 | AX141: 3.511749971 | AY141: 3.496585814 | AZ141: 3.463090303 | BC141: Ônibus Básico | BD141: 408 | BE141: =BE135 -> 389 | BF141: 389 | BG141: 389 | BH141: 390 | BI141: 390 | BJ141: 390 | BK141: 389 | BL141: 389 | BM141: 389 | BN141: 389 | BO141: 389 | BP141: 389
B142: Padron | C142: 787.52 | E142: 0.38747873 | F142: 1092.667249 | G142: 591.582 | H142: =(($F142*Z142)+($G142*AO142))*BE142 -> 0 | I142: 0 | J142: 0 | K142: 0 | L142: 0 | M142: 0 | N142: 0 | O142: 0 | P142: 0 | Q142: 0 | R142: 0 | S142: 0 | T142: 0 | W142: Padron | X142: 2.12955 | Y142: =X142/X145 -> 1 | Z142: =Z145*$Y142+Z131 -> 3.8105 | AA142: 3.5549 | AB142: 3.5717 | AC142: 3.6237 | AD142: 3.6237 | AE142: 3.6165 | AF142: 3.635 | AG142: 3.659 | AH142: 3.659 | AI142: 3.659 | AJ142: 3.6432 | AK142: 3.6083 | AN142: Padron | AO142: =AO145*$Y142 -> 3.657153119 | AP142: 3.411839292 | AQ142: 3.427963206 | AR142: 3.477870557 | AS142: 3.477870557 | AT142: 3.470960309 | AU142: 3.488715809 | AV142: 3.511749971 | AW142: 3.511749971 | AX142: 3.511749971 | AY142: 3.496585814 | AZ142: 3.463090303 | BC142: Padron | BD142: 0 | BE142: =BE136 -> 0 | BF142: 0 | BG142: 0 | BH142: 0 | BI142: 0 | BJ142: 0 | BK142: 0 | BL142: 0 | BM142: 0 | BN142: 0 | BO142: 0 | BP142: 0
B143: Articulado | C143: 787.52 | E143: 0.38747873 | F143: 1092.667249 | G143: 591.582 | H143: =(($F143*Z143)+($G143*AO143))*BE143 -> 392281.0997 | I143: 365967.7421 | J143: 367697.2585 | K143: 373050.5238 | L143: 373050.5238 | M143: 372309.3024 | N143: 374213.8295 | O143: 376684.5673 | P143: 376684.5673 | Q143: 376684.5673 | R143: 375057.9982 | S143: 371465.1337 | T143: 4495147.113 | W143: Articulado | X143: 2.12955 | Y143: =X143/X145 -> 1 | Z143: =Z145*$Y143+Z131 -> 3.8105 | AA143: 3.5549 | AB143: 3.5717 | AC143: 3.6237 | AD143: 3.6237 | AE143: 3.6165 | AF143: 3.635 | AG143: 3.659 | AH143: 3.659 | AI143: 3.659 | AJ143: 3.6432 | AK143: 3.6083 | AN143: Articulado | AO143: =AO145*$Y143 -> 3.657153119 | AP143: 3.411839292 | AQ143: 3.427963206 | AR143: 3.477870557 | AS143: 3.477870557 | AT143: 3.470960309 | AU143: 3.488715809 | AV143: 3.511749971 | AW143: 3.511749971 | AX143: 3.511749971 | AY143: 3.496585814 | AZ143: 3.463090303 | BC143: Articulado | BD143: 65 | BE143: =BE137 -> 62 | BF143: 62 | BG143: 62 | BH143: 62 | BI143: 62 | BJ143: 62 | BK143: 62 | BL143: 62 | BM143: 62 | BN143: 62 | BO143: 62 | BP143: 62
B144: Articulado BRT | C144: 787.52 | E144: 0.38747873 | F144: 1092.667249 | G144: 591.582 | H144: =(($F144*Z144)+($G144*AO144))*BE144 -> 0 | I144: 0 | J144: 0 | K144: 0 | L144: 0 | M144: 0 | N144: 0 | O144: 0 | P144: 0 | Q144: 0 | R144: 0 | S144: 0 | T144: 0 | W144: Articulado BRT | X144: 2.12955 | Y144: =X144/X145 -> 1 | Z144: =Z145*$Y144+Z131 -> 3.8105 | AA144: 3.5549 | AB144: 3.5717 | AC144: 3.6237 | AD144: 3.6237 | AE144: 3.6165 | AF144: 3.635 | AG144: 3.659 | AH144: 3.659 | AI144: 3.659 | AJ144: 3.6432 | AK144: 3.6083 | AN144: Articulado BRT | AO144: =AO145*$Y144 -> 3.657153119 | AP144: 3.411839292 | AQ144: 3.427963206 | AR144: 3.477870557 | AS144: 3.477870557 | AT144: 3.470960309 | AU144: 3.488715809 | AV144: 3.511749971 | AW144: 3.511749971 | AX144: 3.511749971 | AY144: 3.496585814 | AZ144: 3.463090303 | BC144: Articulado BRT | BD144: 0 | BE144: =BE138 -> 0 | BF144: 0 | BG144: 0 | BH144: 0 | BI144: 0 | BJ144: 0 | BK144: 0 | BL144: 0 | BM144: 0 | BN144: 0 | BO144: 0 | BP144: 0
B145: Totais........................ | F145: Totais... | H145: =SUM(H140:H144) -> 3188865.713 | I145: 2974963.581 | J145: 2989022.876 | K145: 3038556.686 | L145: 3038556.686 | M145: 3032519.318 | N145: 3041996.291 | O145: 3062080.999 | P145: 3062080.999 | Q145: 3062080.999 | R145: 3048858.566 | S145: 3019652.054 | T145: 36559234.77 | W145: Totais........................ | X145: 2.12955 | Z145: ='FU Folha FGV'!$AL$59 -> 3.8105 | AA145: ='FU Folha FGV'!$AL$60 -> 3.5549 | AB145: ='FU Folha FGV'!$AL$61 -> 3.5717 | AC145: ='FU Folha FGV'!$AL$62 -> 3.6237 | AD145: ='FU Folha FGV'!$AL$63 -> 3.6237 | AE145: ='FU Folha FGV'!$AL$64 -> 3.6165 | AF145: ='FU Folha FGV'!$AL$65 -> 3.635 | AG145: ='FU Folha FGV'!$AL$66 -> 3.659 | AH145: ='FU Folha FGV'!$AL$67 -> 3.659 | AI145: ='FU Folha FGV'!$AL$68 -> 3.659 | AJ145: ='FU Folha FGV'!$AL$69 -> 3.6432 | AK145: ='FU Folha FGV'!$AL$70 -> 3.6083 | AN145: Totais........................ | AO145: ='FU Folha FGV'!$AS$59 -> 3.657153119 | AP145: ='FU Folha FGV'!$AS$60 -> 3.411839292 | AQ145: ='FU Folha FGV'!$AS$61 -> 3.427963206 | AR145: ='FU Folha FGV'!$AS$62 -> 3.477870557 | AS145: ='FU Folha FGV'!$AS$63 -> 3.477870557 | AT145: ='FU Folha FGV'!$AS$64 -> 3.470960309 | AU145: ='FU Folha FGV'!$AS$65 -> 3.488715809 | AV145: ='FU Folha FGV'!$AS$66 -> 3.511749971 | AW145: ='FU Folha FGV'!$AS$67 -> 3.511749971 | AX145: ='FU Folha FGV'!$AS$68 -> 3.511749971 | AY145: ='FU Folha FGV'!$AS$69 -> 3.496585814 | AZ145: ='FU Folha FGV'!$AS$70 -> 3.463090303 | BC145: Totais........................ | BD145: =SUM(BD140:BD144) -> 530 | BE145: 504 | BF145: 504 | BG145: 504 | BH145: 505 | BI145: 505 | BJ145: 505 | BK145: 504 | BL145: 504 | BM145: 504 | BN145: 504 | BO145: 504 | BP145: 504
F146: Total Mensal Mot./Cob. | H146: =H139+H145 -> 8208422.776 | I146: 7656928.06 | J146: 7693287.541 | K146: 7820578.616 | L146: 7820578.616 | M146: 7804715.268 | N146: 7828879.118 | O146: 7880533.367 | P146: 7880533.367 | Q146: 7880533.367 | R146: 7846354.132 | S146: 7771875.555 | T146: 94093219.78
A148: Controle Operacional - Composição do Custo Unitário Por Função | G148: Ano 3 | H148: Controle Operacional - Composição de Custo Total Mensal | T148: R$
A149: Funções | B149: Cargo | C149: Salário | D149: Hs Extras | E149: Enc. | F149: R$ Total | G149: Benefícios | H149: =H131 -> 2016-01-01 | I149: =DATE(YEAR(H149),MONTH(H149)+1,DAY(H149)) -> 2016-02-01 | J149: 2016-03-01 | K149: 2016-04-01 | L149: 2016-05-01 | M149: 2016-06-01 | N149: 2016-07-01 | O149: 2016-08-01 | P149: 2016-09-01 | Q149: 2016-10-01 | R149: 2016-11-01 | S149: 2016-12-01 | T149: Total | V149: Fator Utilização Mensal | X149: =U129 -> Ano 3 | Z149: FU FOLHA DE PAGAMENTO | AM149: =X149 -> Ano 3 | AN149: FU Benefícios | AO149: FU FÍSICO PARA CÁLCULOS DOS BENEFÍCIOS | BB149: Frota Mensal | BE149: =BE131 -> Ano 3
C150: base | D150: e Adic. | E150: Soc. | F150: Por | G150: R$ por | H150: R$ | I150: R$ | J150: R$ | K150: R$ | L150: R$ | M150: R$ | N150: R$ | O150: R$ | P150: R$ | Q150: R$ | R150: R$ | S150: R$ | T150: Durante o | V150: Funções | W150: Cargo | X150: FU | Z150: =H149 -> 2016-01-01 | AA150: 2016-02-01 | AB150: 2016-03-01 | AC150: 2016-04-01 | AD150: 2016-05-01 | AE150: 2016-06-01 | AF150: 2016-07-01 | AG150: 2016-08-01 | AH150: 2016-09-01 | AI150: 2016-10-01 | AJ150: 2016-11-01 | AK150: 2016-12-01 | AM150: Funções | AN150: Cargo | AO150: =Z150 -> 2016-01-01 | AP150: 2016-02-01 | AQ150: 2016-03-01 | AR150: 2016-04-01 | AS150: 2016-05-01 | AT150: 2016-06-01 | AU150: 2016-07-01 | AV150: 2016-08-01 | AW150: 2016-09-01 | AX150: 2016-10-01 | AY150: 2016-11-01 | AZ150: 2016-12-01 | BB150: Funções | BC150: Cargo | BD150: Frota | BE150: =Z150 -> 2016-01-01 | BF150: 2016-02-01 | BG150: 2016-03-01 | BH150: 2016-04-01 | BI150: 2016-05-01 | BJ150: 2016-06-01 | BK150: 2016-07-01 | BL150: 2016-08-01 | BM150: 2016-09-01 | BN150: 2016-10-01 | BO150: 2016-11-01 | BP150: 2016-12-01
C151: (R$/mês) | D151: Not. | E151: % | F151: Função | G151: mês | T151: =T133 -> Ano 3 | X151: Licitação | Z151: FU | AA151: FU | AB151: FU | AC151: FU | AD151: FU | AE151: FU | AF151: FU | AG151: FU | AH151: FU | AI151: FU | AJ151: FU | AK151: FU | BD151: Licitação | BE151: Frota | BF151: Frota | BG151: Frota | BH151: Frota | BI151: Frota | BJ151: Frota | BK151: Frota | BL151: Frota | BM151: Frota | BN151: Frota | BO151: Frota | BP151: Frota
A152: Controle Operacional | B152: =B88 -> Chefe de Tráfego | C152: 5400 | D152: 0 | E152: 0.40106926 | F152: =(C152+D152)*(E152/100*100+1) -> 7565.774004 | G152: =G103 -> 591.582 | H152: =(($F152*Z152)+($G152*AO152))*BE152 -> 8921.537114 | I152: 8921.537114 | J152: 8921.537114 | K152: 8939.238577 | L152: 8939.238577 | M152: 8939.238577 | N152: 8921.537114 | O152: 8921.537114 | P152: 8921.537114 | Q152: 8921.537114 | R152: 8921.537114 | S152: 8921.537114 | T152: =SUM(H152:S152) -> 107111.5498 | V152: Controle Operacional | W152: =B152 -> Chefe de Tráfego | X152: =X88 -> 0.00217 | Y152: =X152/X159 -> 0.01848580059 | Z152: =Z159*$Y152 -> 0.00217 | AA152: 0.00217 | AB152: 0.00217 | AC152: 0.00217 | AD152: 0.00217 | AE152: 0.00217 | AF152: 0.00217 | AG152: 0.00217 | AH152: 0.00217 | AI152: 0.00217 | AJ152: 0.00217 | AK152: 0.00217 | AM152: Controle Operacional | AN152: =W152 -> Chefe de Tráfego | AO152: =AO159*$Y152 -> 0.00217 | AP152: 0.00217 | AQ152: 0.00217 | AR152: 0.00217 | AS152: 0.00217 | AT152: 0.00217 | AU152: 0.00217 | AV152: 0.00217 | AW152: 0.00217 | AX152: 0.00217 | AY152: 0.00217 | AZ152: 0.00217 | BB152: Controle Operacional | BC152: Fiscal | BD152: =BD$11 -> 530 | BE152: =BE139 -> 504 | BF152: 504 | BG152: 504 | BH152: 505 | BI152: 505 | BJ152: 505 | BK152: 504 | BL152: 504 | BM152: 504 | BN152: 504 | BO152: 504 | BP152: 504
B153: =B89 -> Inspetor de Tráfego | C153: 1800 | D153: 0 | E153: 0.40106926 | F153: 2521.924668 | G153: =G152 -> 591.582 | H153: =(($F153*Z153)+($G153*AO153))*BE153 -> 34113.20281 | I153: 34113.20281 | J153: 34113.20281 | K153: 34180.88774 | L153: 34180.88774 | M153: 34180.88774 | N153: 34113.20281 | O153: 34113.20281 | P153: 34113.20281 | Q153: 34113.20281 | R153: 34113.20281 | S153: 34113.20281 | T153: 409561.4885 | W153: Inspetor de Tráfego | X153: 0.02173913 | Y153: =X153/X159 -> 0.1851913466 | Z153: =Z159*$Y153 -> 0.02173913 | AA153: 0.02173913 | AB153: 0.02173913 | AC153: 0.02173913 | AD153: 0.02173913 | AE153: 0.02173913 | AF153: 0.02173913 | AG153: 0.02173913 | AH153: 0.02173913 | AI153: 0.02173913 | AJ153: 0.02173913 | AK153: 0.02173913 | AN153: Inspetor de Tráfego | AO153: =AO159*$Y153 -> 0.02173913 | AP153: 0.02173913 | AQ153: 0.02173913 | AR153: 0.02173913 | AS153: 0.02173913 | AT153: 0.02173913 | AU153: 0.02173913 | AV153: 0.02173913 | AW153: 0.02173913 | AX153: 0.02173913 | AY153: 0.02173913 | AZ153: 0.02173913 | BC153: Inspetores de Tráfego | BD153: 530 | BE153: =BE152 -> 504 | BF153: 504 | BG153: 504 | BH153: 505 | BI153: 505 | BJ153: 505 | BK153: 504 | BL153: 504 | BM153: 504 | BN153: 504 | BO153: 504 | BP153: 504
B154: =B90 -> Escalador | C154: 1350 | D154: 0 | E154: 0.40106926 | F154: 1891.443501 | G154: 591.582 | H154: =(($F154*Z154)+($G154*AO154))*BE154 -> 13602.65491 | I154: 13602.65491 | J154: 13602.65491 | K154: 13629.64431 | L154: 13629.64431 | M154: 13629.64431 | N154: 13602.65491 | O154: 13602.65491 | P154: 13602.65491 | Q154: 13602.65491 | R154: 13602.65491 | S154: 13602.65491 | T154: 163312.8271 | W154: Escalador | X154: 0.01086956 | Y154: =X154/X159 -> 0.09259563073 | Z154: =Z159*$Y154 -> 0.01086956 | AA154: 0.01086956 | AB154: 0.01086956 | AC154: 0.01086956 | AD154: 0.01086956 | AE154: 0.01086956 | AF154: 0.01086956 | AG154: 0.01086956 | AH154: 0.01086956 | AI154: 0.01086956 | AJ154: 0.01086956 | AK154: 0.01086956 | AN154: Escalador | AO154: =AO159*$Y154 -> 0.01086956 | AP154: 0.01086956 | AQ154: 0.01086956 | AR154: 0.01086956 | AS154: 0.01086956 | AT154: 0.01086956 | AU154: 0.01086956 | AV154: 0.01086956 | AW154: 0.01086956 | AX154: 0.01086956 | AY154: 0.01086956 | AZ154: 0.01086956 | BC154: Chefe de Tráfego | BD154: 530 | BE154: =BE153 -> 504 | BF154: 504 | BG154: 504 | BH154: 505 | BI154: 505 | BJ154: 505 | BK154: 504 | BL154: 504 | BM154: 504 | BN154: 504 | BO154: 504 | BP154: 504
B155: =B91 -> Programadores | C155: 1350 | D155: 0 | E155: 0.40106926 | F155: 1891.443501 | G155: 591.582 | H155: =(($F155*Z155)+($G155*AO155))*BE155 -> 5441.069473 | I155: 5441.069473 | J155: 5441.069473 | K155: 5451.865246 | L155: 5451.865246 | M155: 5451.865246 | N155: 5441.069473 | O155: 5441.069473 | P155: 5441.069473 | Q155: 5441.069473 | R155: 5441.069473 | S155: 5441.069473 | T155: 65325.221 | W155: Programadores | X155: 0.00434783 | Y155: =X155/X159 -> 0.0370383034 | Z155: =Z159*$Y155 -> 0.00434783 | AA155: 0.00434783 | AB155: 0.00434783 | AC155: 0.00434783 | AD155: 0.00434783 | AE155: 0.00434783 | AF155: 0.00434783 | AG155: 0.00434783 | AH155: 0.00434783 | AI155: 0.00434783 | AJ155: 0.00434783 | AK155: 0.00434783 | AN155: Programadores | AO155: =AO159*$Y155 -> 0.00434783 | AP155: 0.00434783 | AQ155: 0.00434783 | AR155: 0.00434783 | AS155: 0.00434783 | AT155: 0.00434783 | AU155: 0.00434783 | AV155: 0.00434783 | AW155: 0.00434783 | AX155: 0.00434783 | AY155: 0.00434783 | AZ155: 0.00434783 | BC155: Instrutor | BD155: 530 | BE155: =BE154 -> 504 | BF155: 504 | BG155: 504 | BH155: 505 | BI155: 505 | BJ155: 505 | BK155: 504 | BL155: 504 | BM155: 504 | BN155: 504 | BO155: 504 | BP155: 504
B156: =B92 -> Fiscal | C156: 1500 | D156: 0 | E156: 0.4010697 | F156: 2101.60455 | G156: 591.582 | H156: =(($F156*Z156)+($G156*AO156))*BE156 -> 76720.69789 | I156: 76720.69789 | J156: 76720.69789 | K156: 76872.92149 | L156: 76872.92149 | M156: 76872.92149 | N156: 76720.69789 | O156: 76720.69789 | P156: 76720.69789 | Q156: 76720.69789 | R156: 76720.69789 | S156: 76720.69789 | T156: 921105.0455 | W156: Fiscal | X156: 0.0565217463 | Y156: =X156/X159 -> 0.481497572 | Z156: =Z159*$Y156 -> 0.0565217463 | AA156: 0.0565217463 | AB156: 0.0565217463 | AC156: 0.0565217463 | AD156: 0.0565217463 | AE156: 0.0565217463 | AF156: 0.0565217463 | AG156: 0.0565217463 | AH156: 0.0565217463 | AI156: 0.0565217463 | AJ156: 0.0565217463 | AK156: 0.0565217463 | AN156: Fiscal | AO156: =AO159*$Y156 -> 0.0565217463 | AP156: 0.0565217463 | AQ156: 0.0565217463 | AR156: 0.0565217463 | AS156: 0.0565217463 | AT156: 0.0565217463 | AU156: 0.0565217463 | AV156: 0.0565217463 | AW156: 0.0565217463 | AX156: 0.0565217463 | AY156: 0.0565217463 | AZ156: 0.0565217463 | BC156: Programadores | BD156: 530 | BE156: =BE155 -> 504 | BF156: 504 | BG156: 504 | BH156: 505 | BI156: 505 | BJ156: 505 | BK156: 504 | BL156: 504 | BM156: 504 | BN156: 504 | BO156: 504 | BP156: 504
B157: =B93 -> Controle de Operação | C157: 2550 | D157: 0 | E157: 0.4010697 | F157: 3572.727735 | G157: 591.582 | H157: =(($F157*Z157)+($G157*AO157))*BE157 -> 18250.53549 | I157: 18250.53549 | J157: 18250.53549 | K157: 18286.74687 | L157: 18286.74687 | M157: 18286.74687 | N157: 18250.53549 | O157: 18250.53549 | P157: 18250.53549 | Q157: 18250.53549 | R157: 18250.53549 | S157: 18250.53549 | T157: 219115.0601 | W157: Controle de Operação | X157: 0.00869565 | Y157: =X157/X159 -> 0.07407652162 | Z157: =Z159*$Y157 -> 0.00869565 | AA157: 0.00869565 | AB157: 0.00869565 | AC157: 0.00869565 | AD157: 0.00869565 | AE157: 0.00869565 | AF157: 0.00869565 | AG157: 0.00869565 | AH157: 0.00869565 | AI157: 0.00869565 | AJ157: 0.00869565 | AK157: 0.00869565 | AN157: Controle de Operação | AO157: =AO159*$Y157 -> 0.00869565 | AP157: 0.00869565 | AQ157: 0.00869565 | AR157: 0.00869565 | AS157: 0.00869565 | AT157: 0.00869565 | AU157: 0.00869565 | AV157: 0.00869565 | AW157: 0.00869565 | AX157: 0.00869565 | AY157: 0.00869565 | AZ157: 0.00869565 | BC157: Escaladores | BD157: 530 | BE157: =BE156 -> 504 | BF157: 504 | BG157: 504 | BH157: 505 | BI157: 505 | BJ157: 505 | BK157: 504 | BL157: 504 | BM157: 504 | BN157: 504 | BO157: 504 | BP157: 504
B158: =B94 -> Auxiliares | C158: 1000 | D158: 0 | E158: 0.4010697 | F158: 1401.0697 | G158: 591.582 | H158: =(($F158*Z158)+($G158*AO158))*BE158 -> 13099.52075 | I158: 13099.52075 | J158: 13099.52075 | K158: 13125.51186 | L158: 13125.51186 | M158: 13125.51186 | N158: 13099.52075 | O158: 13099.52075 | P158: 13099.52075 | Q158: 13099.52075 | R158: 13099.52075 | S158: 13099.52075 | T158: 157272.2223 | W158: Auxiliares | X158: 0.01304348 | Y158: =X158/X159 -> 0.111114825 | Z158: =Z159*$Y158 -> 0.01304348 | AA158: 0.01304348 | AB158: 0.01304348 | AC158: 0.01304348 | AD158: 0.01304348 | AE158: 0.01304348 | AF158: 0.01304348 | AG158: 0.01304348 | AH158: 0.01304348 | AI158: 0.01304348 | AJ158: 0.01304348 | AK158: 0.01304348 | AN158: Auxiliares | AO158: =AO159*$Y158 -> 0.01304348 | AP158: 0.01304348 | AQ158: 0.01304348 | AR158: 0.01304348 | AS158: 0.01304348 | AT158: 0.01304348 | AU158: 0.01304348 | AV158: 0.01304348 | AW158: 0.01304348 | AX158: 0.01304348 | AY158: 0.01304348 | AZ158: 0.01304348 | BC158: Auxiliares | BD158: 530 | BE158: =BE157 -> 504 | BF158: 504 | BG158: 504 | BH158: 505 | BI158: 505 | BJ158: 505 | BK158: 504 | BL158: 504 | BM158: 504 | BN158: 504 | BO158: 504 | BP158: 504
B159: =B95 -> Totais........................ | F159: Totais... | G159: 591.582 | H159: =SUM(H152:H158) -> 170149.2184 | I159: 170149.2184 | J159: 170149.2184 | K159: 170486.8161 | L159: 170486.8161 | M159: 170486.8161 | N159: 170149.2184 | O159: 170149.2184 | P159: 170149.2184 | Q159: 170149.2184 | R159: 170149.2184 | S159: 170149.2184 | T159: 2042803.414 | W159: Totais........................ | X159: =SUM(X152:X158) -> 0.1173873963 | Y159: 1 | Z159: ='FU Folha FGV'!$AM232 -> 0.1173873963 | AA159: ='FU Folha FGV'!$AM233 -> 0.1173873963 | AB159: ='FU Folha FGV'!$AM234 -> 0.1173873963 | AC159: ='FU Folha FGV'!$AM235 -> 0.1173873963 | AD159: ='FU Folha FGV'!$AM236 -> 0.1173873963 | AE159: ='FU Folha FGV'!$AM237 -> 0.1173873963 | AF159: ='FU Folha FGV'!$AM238 -> 0.1173873963 | AG159: ='FU Folha FGV'!$AM239 -> 0.1173873963 | AH159: ='FU Folha FGV'!$AM240 -> 0.1173873963 | AI159: ='FU Folha FGV'!$AM241 -> 0.1173873963 | AJ159: ='FU Folha FGV'!$AM242 -> 0.1173873963 | AK159: ='FU Folha FGV'!$AM243 -> 0.1173873963 | AN159: Totais........................ | AO159: ='FU Folha FGV'!$AT$232 -> 0.1173873963 | AP159: ='FU Folha FGV'!$AT$233 -> 0.1173873963 | AQ159: ='FU Folha FGV'!$AT$234 -> 0.1173873963 | AR159: ='FU Folha FGV'!$AT$235 -> 0.1173873963 | AS159: ='FU Folha FGV'!$AT$236 -> 0.1173873963 | AT159: ='FU Folha FGV'!$AT$237 -> 0.1173873963 | AU159: ='FU Folha FGV'!$AT$238 -> 0.1173873963 | AV159: ='FU Folha FGV'!$AT$239 -> 0.1173873963 | AW159: ='FU Folha FGV'!$AT$240 -> 0.1173873963 | AX159: ='FU Folha FGV'!$AT$241 -> 0.1173873963 | AY159: ='FU Folha FGV'!$AT$242 -> 0.1173873963 | AZ159: ='FU Folha FGV'!$AT$243 -> 0.1173873963 | BC159: Totais........................ | BD159: 530 | BE159: =BE158 -> 504 | BF159: 504 | BG159: 504 | BH159: 505 | BI159: 505 | BJ159: 505 | BK159: 504 | BL159: 504 | BM159: 504 | BN159: 504 | BO159: 504 | BP159: 504
A160: Manutenção | B160: Chefe de Manutenção | C160: =C96 -> 2250 | D160: 0 | E160: 0.4010699 | F160: =(C160+D160)*(E160/100*100+1) -> 3152.407275 | G160: 591.582 | H160: =(($F160*Z160)+($G160*AO160))*BE160 -> 45123.20331 | I160: 45123.20331 | J160: 45123.20331 | K160: 45212.73347 | L160: 45212.73347 | M160: 45212.73347 | N160: 45123.20331 | O160: 45123.20331 | P160: 45123.20331 | Q160: 45123.20331 | R160: 45123.20331 | S160: 45123.20331 | T160: =SUM(H160:S160) -> 541747.0302 | V160: Manutenção | W160: Chefe de Manutenção | X160: =X96 -> 0.02391304 | Y160: =X160/X168 -> 0.05238094627 | Z160: =Z168*$Y160 -> 0.02391304 | AA160: 0.02391304 | AB160: 0.02391304 | AC160: 0.02391304 | AD160: 0.02391304 | AE160: 0.02391304 | AF160: 0.02391304 | AG160: 0.02391304 | AH160: 0.02391304 | AI160: 0.02391304 | AJ160: 0.02391304 | AK160: 0.02391304 | AM160: Manutenção | AN160: Chefe de Manutenção | AO160: =AO168*$Y160 -> 0.02391304 | AP160: 0.02391304 | AQ160: 0.02391304 | AR160: 0.02391304 | AS160: 0.02391304 | AT160: 0.02391304 | AU160: 0.02391304 | AV160: 0.02391304 | AW160: 0.02391304 | AX160: 0.02391304 | AY160: 0.02391304 | AZ160: 0.02391304 | BB160: Manutenção | BC160: 1/2 Oficial Eletricista | BD160: 530 | BE160: =BE159 -> 504 | BF160: 504 | BG160: 504 | BH160: 505 | BI160: 505 | BJ160: 505 | BK160: 504 | BL160: 504 | BM160: 504 | BN160: 504 | BO160: 504 | BP160: 504
B161: Mecânicos | C161: =C97 -> 1500 | D161: 0 | E161: 0.4010697 | F161: 2101.60455 | G161: 591.582 | H161: =(($F161*Z161)+($G161*AO161))*BE161 -> 109179.4319 | I161: 109179.4319 | J161: 109179.4319 | K161: 109396.0577 | L161: 109396.0577 | M161: 109396.0577 | N161: 109179.4319 | O161: 109179.4319 | P161: 109179.4319 | Q161: 109179.4319 | R161: 109179.4319 | S161: 109179.4319 | T161: 1310803.06 | W161: Mecânicos | X161: 0.080434776 | Y161: =X161/X168 -> 0.1761904668 | Z161: =Z168*$Y161 -> 0.080434776 | AA161: 0.080434776 | AB161: 0.080434776 | AC161: 0.080434776 | AD161: 0.080434776 | AE161: 0.080434776 | AF161: 0.080434776 | AG161: 0.080434776 | AH161: 0.080434776 | AI161: 0.080434776 | AJ161: 0.080434776 | AK161: 0.080434776 | AN161: Mecânicos | AO161: =AO168*$Y161 -> 0.080434776 | AP161: 0.080434776 | AQ161: 0.080434776 | AR161: 0.080434776 | AS161: 0.080434776 | AT161: 0.080434776 | AU161: 0.080434776 | AV161: 0.080434776 | AW161: 0.080434776 | AX161: 0.080434776 | AY161: 0.080434776 | AZ161: 0.080434776 | BC161: 1/2 Oficial Funileiro | BD161: 530 | BE161: =BE160 -> 504 | BF161: 504 | BG161: 504 | BH161: 505 | BI161: 505 | BJ161: 505 | BK161: 504 | BL161: 504 | BM161: 504 | BN161: 504 | BO161: 504 | BP161: 504
B162: Eletricista | C162: =C98 -> 1500 | D162: 0 | E162: 0.4010697 | F162: 2101.60455 | G162: 591.582 | H162: =(($F162*Z162)+($G162*AO162))*BE162 -> 50163.52451 | I162: 50163.52451 | J162: 50163.52451 | K162: 50263.05531 | L162: 50263.05531 | M162: 50263.05531 | N162: 50163.52451 | O162: 50163.52451 | P162: 50163.52451 | Q162: 50163.52451 | R162: 50163.52451 | S162: 50163.52451 | T162: 602260.8865 | W162: Eletricista | X162: 0.03695652 | Y162: =X162/X168 -> 0.08095237947 | Z162: =Z168*$Y162 -> 0.03695652 | AA162: 0.03695652 | AB162: 0.03695652 | AC162: 0.03695652 | AD162: 0.03695652 | AE162: 0.03695652 | AF162: 0.03695652 | AG162: 0.03695652 | AH162: 0.03695652 | AI162: 0.03695652 | AJ162: 0.03695652 | AK162: 0.03695652 | AN162: Eletricista | AO162: =AO168*$Y162 -> 0.03695652 | AP162: 0.03695652 | AQ162: 0.03695652 | AR162: 0.03695652 | AS162: 0.03695652 | AT162: 0.03695652 | AU162: 0.03695652 | AV162: 0.03695652 | AW162: 0.03695652 | AX162: 0.03695652 | AY162: 0.03695652 | AZ162: 0.03695652 | BC162: Abastecedor | BD162: 530 | BE162: =BE161 -> 504 | BF162: 504 | BG162: 504 | BH162: 505 | BI162: 505 | BJ162: 505 | BK162: 504 | BL162: 504 | BM162: 504 | BN162: 504 | BO162: 504 | BP162: 504
B163: Funileiro | C163: =C99 -> 1500 | D163: 0 | E163: 0.4010697 | F163: 2101.60455 | G163: 591.582 | H163: =(($F163*Z163)+($G163*AO163))*BE163 -> 41311.13623 | I163: 41311.13623 | J163: 41311.13623 | K163: 41393.10277 | L163: 41393.10277 | M163: 41393.10277 | N163: 41311.13623 | O163: 41311.13623 | P163: 41311.13623 | Q163: 41311.13623 | R163: 41311.13623 | S163: 41311.13623 | T163: 495979.5344 | W163: Funileiro | X163: 0.03043478 | Y163: =X163/X168 -> 0.06666666287 | Z163: =Z168*$Y163 -> 0.03043478 | AA163: 0.03043478 | AB163: 0.03043478 | AC163: 0.03043478 | AD163: 0.03043478 | AE163: 0.03043478 | AF163: 0.03043478 | AG163: 0.03043478 | AH163: 0.03043478 | AI163: 0.03043478 | AJ163: 0.03043478 | AK163: 0.03043478 | AN163: Funileiro | AO163: =AO168*$Y163 -> 0.03043478 | AP163: 0.03043478 | AQ163: 0.03043478 | AR163: 0.03043478 | AS163: 0.03043478 | AT163: 0.03043478 | AU163: 0.03043478 | AV163: 0.03043478 | AW163: 0.03043478 | AX163: 0.03043478 | AY163: 0.03043478 | AZ163: 0.03043478 | BC163: Auxiliar Almoxarife | BD163: 530 | BE163: =BE162 -> 504 | BF163: 504 | BG163: 504 | BH163: 505 | BI163: 505 | BJ163: 505 | BK163: 504 | BL163: 504 | BM163: 504 | BN163: 504 | BO163: 504 | BP163: 504
B164: Pintor | C164: =C100 -> 1300 | D164: 0 | E164: 0.4010697 | F164: 1821.39061 | G164: 591.582 | H164: =(($F164*Z164)+($G164*AO164))*BE164 -> 29081.57347 | I164: 29081.57347 | J164: 29081.57347 | K164: 29139.27501 | L164: 29139.27501 | M164: 29139.27501 | N164: 29081.57347 | O164: 29081.57347 | P164: 29081.57347 | Q164: 29081.57347 | R164: 29081.57347 | S164: 29081.57347 | T164: 349151.9863 | W164: Pintor | X164: 0.02391305 | Y164: =X164/X168 -> 0.05238096817 | Z164: =Z168*$Y164 -> 0.02391305 | AA164: 0.02391305 | AB164: 0.02391305 | AC164: 0.02391305 | AD164: 0.02391305 | AE164: 0.02391305 | AF164: 0.02391305 | AG164: 0.02391305 | AH164: 0.02391305 | AI164: 0.02391305 | AJ164: 0.02391305 | AK164: 0.02391305 | AN164: Pintor | AO164: =AO168*$Y164 -> 0.02391305 | AP164: 0.02391305 | AQ164: 0.02391305 | AR164: 0.02391305 | AS164: 0.02391305 | AT164: 0.02391305 | AU164: 0.02391305 | AV164: 0.02391305 | AW164: 0.02391305 | AX164: 0.02391305 | AY164: 0.02391305 | AZ164: 0.02391305 | BC164: Auxiliar de serv.gerais | BD164: 530 | BE164: =BE163 -> 504 | BF164: 504 | BG164: 504 | BH164: 505 | BI164: 505 | BJ164: 505 | BK164: 504 | BL164: 504 | BM164: 504 | BN164: 504 | BO164: 504 | BP164: 504
B165: Borracheiro | C165: =C101 -> 1400 | D165: 0 | E165: 0.4010697 | F165: 1961.49758 | G165: 591.582 | H165: =(($F165*Z165)+($G165*AO165))*BE165 -> 30770.1675 | I165: 30770.1675 | J165: 30770.1675 | K165: 30831.21942 | L165: 30831.21942 | M165: 30831.21942 | N165: 30770.1675 | O165: 30770.1675 | P165: 30770.1675 | Q165: 30770.1675 | R165: 30770.1675 | S165: 30770.1675 | T165: 369425.1658 | W165: Borracheiro | X165: 0.02391305 | Y165: =X165/X168 -> 0.05238096817 | Z165: =Z168*$Y165 -> 0.02391305 | AA165: 0.02391305 | AB165: 0.02391305 | AC165: 0.02391305 | AD165: 0.02391305 | AE165: 0.02391305 | AF165: 0.02391305 | AG165: 0.02391305 | AH165: 0.02391305 | AI165: 0.02391305 | AJ165: 0.02391305 | AK165: 0.02391305 | AN165: Borracheiro | AO165: =AO168*$Y165 -> 0.02391305 | AP165: 0.02391305 | AQ165: 0.02391305 | AR165: 0.02391305 | AS165: 0.02391305 | AT165: 0.02391305 | AU165: 0.02391305 | AV165: 0.02391305 | AW165: 0.02391305 | AX165: 0.02391305 | AY165: 0.02391305 | AZ165: 0.02391305 | BC165: Borracheiro | BD165: 530 | BE165: =BE164 -> 504 | BF165: 504 | BG165: 504 | BH165: 505 | BI165: 505 | BJ165: 505 | BK165: 504 | BL165: 504 | BM165: 504 | BN165: 504 | BO165: 504 | BP165: 504
B166: Auxiliares | C166: =C102 -> 660 | D166: 0 | E166: 0.4010697 | F166: 924.706002 | G166: 591.582 | H166: =(($F166*Z166)+($G166*AO166))*BE166 -> 64791.63894 | I166: 64791.63894 | J166: 64791.63894 | K166: 64920.19377 | L166: 64920.19377 | M166: 64920.19377 | N166: 64791.63894 | O166: 64791.63894 | P166: 64791.63894 | Q166: 64791.63894 | R166: 64791.63894 | S166: 64791.63894 | T166: 777885.3317 | W166: Auxiliares | X166: 0.0847826 | Y166: =X166/X168 -> 0.185714272 | Z166: =Z168*$Y166 -> 0.0847826 | AA166: 0.0847826 | AB166: 0.0847826 | AC166: 0.0847826 | AD166: 0.0847826 | AE166: 0.0847826 | AF166: 0.0847826 | AG166: 0.0847826 | AH166: 0.0847826 | AI166: 0.0847826 | AJ166: 0.0847826 | AK166: 0.0847826 | AN166: Auxiliares | AO166: =AO168*$Y166 -> 0.0847826 | AP166: 0.0847826 | AQ166: 0.0847826 | AR166: 0.0847826 | AS166: 0.0847826 | AT166: 0.0847826 | AU166: 0.0847826 | AV166: 0.0847826 | AW166: 0.0847826 | AX166: 0.0847826 | AY166: 0.0847826 | AZ166: 0.0847826 | BC166: Comprador/Almoxarife | BD166: 530 | BE166: =BE165 -> 504 | BF166: 504 | BG166: 504 | BH166: 505 | BI166: 505 | BJ166: 505 | BK166: 504 | BL166: 504 | BM166: 504 | BN166: 504 | BO166: 504 | BP166: 504
B167: Outros | C167: =C103 -> 1000 | D167: 0 | E167: 0.4010697 | F167: 1401.0697 | G167: 591.582 | H167: =(($F167*Z167)+($G167*AO167))*BE167 -> 152827.7186 | I167: 152827.7186 | J167: 152827.7186 | K167: 153130.9482 | L167: 153130.9482 | M167: 153130.9482 | N167: 152827.7186 | O167: 152827.7186 | P167: 152827.7186 | Q167: 152827.7186 | R167: 152827.7186 | S167: 152827.7186 | T167: 1834842.312 | W167: Outros | X167: 0.15217391 | Y167: =X167/X168 -> 0.3333333363 | Z167: =Z168*$Y167 -> 0.15217391 | AA167: 0.15217391 | AB167: 0.15217391 | AC167: 0.15217391 | AD167: 0.15217391 | AE167: 0.15217391 | AF167: 0.15217391 | AG167: 0.15217391 | AH167: 0.15217391 | AI167: 0.15217391 | AJ167: 0.15217391 | AK167: 0.15217391 | AN167: Outros | AO167: =AO168*$Y167 -> 0.15217391 | AP167: 0.15217391 | AQ167: 0.15217391 | AR167: 0.15217391 | AS167: 0.15217391 | AT167: 0.15217391 | AU167: 0.15217391 | AV167: 0.15217391 | AW167: 0.15217391 | AX167: 0.15217391 | AY167: 0.15217391 | AZ167: 0.15217391 | BC167: Controlador de Manut. | BD167: 530 | BE167: =BE166 -> 504 | BF167: 504 | BG167: 504 | BH167: 505 | BI167: 505 | BJ167: 505 | BK167: 504 | BL167: 504 | BM167: 504 | BN167: 504 | BO167: 504 | BP167: 504
B168: Totais........................ | F168: Totais... | H168: =SUM(H160:H167) -> 523248.3945 | I168: 523248.3945 | J168: 523248.3945 | K168: 524286.5857 | L168: 524286.5857 | M168: 524286.5857 | N168: 523248.3945 | O168: 523248.3945 | P168: 523248.3945 | Q168: 523248.3945 | R168: 523248.3945 | S168: 523248.3945 | T168: 6282095.307 | W168: Totais........................ | X168: =SUM(X160:X167) -> 0.456521726 | Y168: 1 | Z168: ='FU Folha FGV'!$AN232 -> 0.456521726 | AA168: ='FU Folha FGV'!$AN233 -> 0.456521726 | AB168: ='FU Folha FGV'!$AN234 -> 0.456521726 | AC168: ='FU Folha FGV'!$AN235 -> 0.456521726 | AD168: ='FU Folha FGV'!$AN236 -> 0.456521726 | AE168: ='FU Folha FGV'!$AN237 -> 0.456521726 | AF168: ='FU Folha FGV'!$AN238 -> 0.456521726 | AG168: ='FU Folha FGV'!$AN239 -> 0.456521726 | AH168: ='FU Folha FGV'!$AN240 -> 0.456521726 | AI168: ='FU Folha FGV'!$AN241 -> 0.456521726 | AJ168: ='FU Folha FGV'!$AN242 -> 0.456521726 | AK168: ='FU Folha FGV'!$AN243 -> 0.456521726 | AN168: Totais........................ | AO168: ='FU Folha FGV'!$AU$232 -> 0.456521726 | AP168: ='FU Folha FGV'!$AU$233 -> 0.456521726 | AQ168: ='FU Folha FGV'!$AU$234 -> 0.456521726 | AR168: ='FU Folha FGV'!$AU$235 -> 0.456521726 | AS168: ='FU Folha FGV'!$AU$236 -> 0.456521726 | AT168: ='FU Folha FGV'!$AU$237 -> 0.456521726 | AU168: ='FU Folha FGV'!$AU$238 -> 0.456521726 | AV168: ='FU Folha FGV'!$AU$239 -> 0.456521726 | AW168: ='FU Folha FGV'!$AU$240 -> 0.456521726 | AX168: ='FU Folha FGV'!$AU$241 -> 0.456521726 | AY168: ='FU Folha FGV'!$AU$242 -> 0.456521726 | AZ168: ='FU Folha FGV'!$AU$243 -> 0.456521726 | BC168: Totais........................ | BD168: 530 | BE168: =BE159 -> 504 | BF168: 504 | BG168: 504 | BH168: 505 | BI168: 505 | BJ168: 505 | BK168: 504 | BL168: 504 | BM168: 504 | BN168: 504 | BO168: 504 | BP168: 504
F169: Total Geral Mensal Pessoal de Operação | H169: =H146+H159+H168 -> 8901820.389 | I169: 8350325.673 | J169: 8386685.154 | K169: 8515352.018 | L169: 8515352.018 | M169: 8499488.67 | N169: 8522276.731 | O169: 8573930.98 | P169: 8573930.98 | Q169: 8573930.98 | R169: 8539751.745 | S169: 8465273.168 | T169: 102418118.5
A171: Administração - Composição do Custo Unitário Por Função | G171: Ano 3 | H171: Administração - Composição de Custo Total Mensal | T171: R$
A172: Funções | B172: Cargo | C172: Salário | D172: Hs Extras | E172: Enc. | F172: R$ Total | G172: Benefícios | H172: =H131 -> 2016-01-01 | I172: =DATE(YEAR(H172),MONTH(H172)+1,DAY(H172)) -> 2016-02-01 | J172: 2016-03-01 | K172: 2016-04-01 | L172: 2016-05-01 | M172: 2016-06-01 | N172: 2016-07-01 | O172: 2016-08-01 | P172: 2016-09-01 | Q172: 2016-10-01 | R172: 2016-11-01 | S172: 2016-12-01 | T172: Total | V172: Fator Utilização Mensal | X172: =X149 -> Ano 3 | Z172: FU FOLHA DE PAGAMENTO | AM172: =X172 -> Ano 3 | AN172: FU Benefícios | AO172: FU FÍSICO PARA CÁLCULOS DOS BENEFÍCIOS | BB172: Frota Mensal | BE172: =BE149 -> Ano 3
C173: base | D173: e Adic. | E173: Soc. | F173: Por | G173: R$ por | H173: R$ | I173: R$ | J173: R$ | K173: R$ | L173: R$ | M173: R$ | N173: R$ | O173: R$ | P173: R$ | Q173: R$ | R173: R$ | S173: R$ | T173: Durante o | V173: Funções | W173: Cargo | X173: FU | Z173: =H172 -> 2016-01-01 | AA173: 2016-02-01 | AB173: 2016-03-01 | AC173: 2016-04-01 | AD173: 2016-05-01 | AE173: 2016-06-01 | AF173: 2016-07-01 | AG173: 2016-08-01 | AH173: 2016-09-01 | AI173: 2016-10-01 | AJ173: 2016-11-01 | AK173: 2016-12-01 | AM173: Funções | AN173: Cargo | AO173: =Z173 -> 2016-01-01 | AP173: 2016-02-01 | AQ173: 2016-03-01 | AR173: 2016-04-01 | AS173: 2016-05-01 | AT173: 2016-06-01 | AU173: 2016-07-01 | AV173: 2016-08-01 | AW173: 2016-09-01 | AX173: 2016-10-01 | AY173: 2016-11-01 | AZ173: 2016-12-01 | BB173: Funções | BC173: Cargo | BD173: Frota | BE173: =Z173 -> 2016-01-01 | BF173: 2016-02-01 | BG173: 2016-03-01 | BH173: 2016-04-01 | BI173: 2016-05-01 | BJ173: 2016-06-01 | BK173: 2016-07-01 | BL173: 2016-08-01 | BM173: 2016-09-01 | BN173: 2016-10-01 | BO173: 2016-11-01 | BP173: 2016-12-01
C174: (R$/mês) | D174: Not. | E174: % | F174: Função | G174: mês | T174: =T151 -> Ano 3 | X174: Licitação | Z174: FU | AA174: FU | AB174: FU | AC174: FU | AD174: FU | AE174: FU | AF174: FU | AG174: FU | AH174: FU | AI174: FU | AJ174: FU | AK174: FU | BD174: Licitação | BE174: Frota | BF174: Frota | BG174: Frota | BH174: Frota | BI174: Frota | BJ174: Frota | BK174: Frota | BL174: Frota | BM174: Frota | BN174: Frota | BO174: Frota | BP174: Frota
A175: Administração | B175: =B111 -> Assistente Administrativo | C175: 1800 | D175: 0 | E175: 0.40106926 | F175: =(C175+D175)*(E175/100*100+1) -> 2521.924668 | G175: =G167 -> 591.582 | H175: =(($F175*Z175)+($G175*AO175))*BE175 -> 34113.20281 | I175: 34113.20281 | J175: 34113.20281 | K175: 34180.88774 | L175: 34180.88774 | M175: 34180.88774 | N175: 34113.20281 | O175: 34113.20281 | P175: 34113.20281 | Q175: 34113.20281 | R175: 34113.20281 | S175: 34113.20281 | T175: =SUM(H175:S175) -> 409561.4885 | V175: Administração | W175: =B175 -> Assistente Administrativo | X175: =X111 -> 0.02173913 | Y175: =X175/X192 -> 0.1087010144 | Z175: =Z192*$Y175 -> 0.02173913 | AA175: 0.02173913 | AB175: 0.02173913 | AC175: 0.02173913 | AD175: 0.02173913 | AE175: 0.02173913 | AF175: 0.02173913 | AG175: 0.02173913 | AH175: 0.02173913 | AI175: 0.02173913 | AJ175: 0.02173913 | AK175: 0.02173913 | AM175: Administração | AN175: =W175 -> Assistente Administrativo | AO175: =AO192*$Y175 -> 0.02173913 | AP175: 0.02173913 | AQ175: 0.02173913 | AR175: 0.02173913 | AS175: 0.02173913 | AT175: 0.02173913 | AU175: 0.02173913 | AV175: 0.02173913 | AW175: 0.02173913 | AX175: 0.02173913 | AY175: 0.02173913 | AZ175: 0.02173913 | BB175: Administração | BC175: Gerente Adm. Financ. | BD175: =BD$11 -> 530 | BE175: =BE168 -> 504 | BF175: 504 | BG175: 504 | BH175: 505 | BI175: 505 | BJ175: 505 | BK175: 504 | BL175: 504 | BM175: 504 | BN175: 504 | BO175: 504 | BP175: 504
B176: =B112 -> Assistente Financeiro | C176: 2160 | D176: 0 | E176: 0.40106926 | F176: 3026.309602 | G176: =G175 -> 591.582 | H176: =(($F176*Z176)+($G176*AO176))*BE176 -> 31711.05143 | I176: 31711.05143 | J176: 31711.05143 | K176: 31773.97019 | L176: 31773.97019 | M176: 31773.97019 | N176: 31711.05143 | O176: 31711.05143 | P176: 31711.05143 | Q176: 31711.05143 | R176: 31711.05143 | S176: 31711.05143 | T176: 380721.3735 | W176: Assistente Financeiro | X176: 0.017391 | Y176: =X176/X192 -> 0.08695929144 | Z176: =Z192*$Y176 -> 0.017391 | AA176: 0.017391 | AB176: 0.017391 | AC176: 0.017391 | AD176: 0.017391 | AE176: 0.017391 | AF176: 0.017391 | AG176: 0.017391 | AH176: 0.017391 | AI176: 0.017391 | AJ176: 0.017391 | AK176: 0.017391 | AN176: Assistente Financeiro | AO176: =AO192*$Y176 -> 0.017391 | AP176: 0.017391 | AQ176: 0.017391 | AR176: 0.017391 | AS176: 0.017391 | AT176: 0.017391 | AU176: 0.017391 | AV176: 0.017391 | AW176: 0.017391 | AX176: 0.017391 | AY176: 0.017391 | AZ176: 0.017391 | BC176: Gerente de Operação | BD176: 530 | BE176: =BE175 -> 504 | BF176: 504 | BG176: 504 | BH176: 505 | BI176: 505 | BJ176: 505 | BK176: 504 | BL176: 504 | BM176: 504 | BN176: 504 | BO176: 504 | BP176: 504
B177: =B113 -> Auxiliar de CPD | C177: 2880 | D177: 0 | E177: 0.40106926 | F177: 4035.079469 | G177: 591.582 | H177: =(($F177*Z177)+($G177*AO177))*BE177 -> 30407.15944 | I177: 30407.15944 | J177: 30407.15944 | K177: 30467.4911 | L177: 30467.4911 | M177: 30467.4911 | N177: 30407.15944 | O177: 30407.15944 | P177: 30407.15944 | Q177: 30407.15944 | R177: 30407.15944 | S177: 30407.15944 | T177: 365066.9083 | W177: Auxiliar de CPD | X177: 0.01304 | Y177: =X177/X192 -> 0.06520321778 | Z177: =Z192*$Y177 -> 0.01304 | AA177: 0.01304 | AB177: 0.01304 | AC177: 0.01304 | AD177: 0.01304 | AE177: 0.01304 | AF177: 0.01304 | AG177: 0.01304 | AH177: 0.01304 | AI177: 0.01304 | AJ177: 0.01304 | AK177: 0.01304 | AN177: Auxiliar de CPD | AO177: =AO192*$Y177 -> 0.01304 | AP177: 0.01304 | AQ177: 0.01304 | AR177: 0.01304 | AS177: 0.01304 | AT177: 0.01304 | AU177: 0.01304 | AV177: 0.01304 | AW177: 0.01304 | AX177: 0.01304 | AY177: 0.01304 | AZ177: 0.01304 | BC177: Controle Manutenção | BD177: 530 | BE177: =BE176 -> 504 | BF177: 504 | BG177: 504 | BH177: 505 | BI177: 505 | BJ177: 505 | BK177: 504 | BL177: 504 | BM177: 504 | BN177: 504 | BO177: 504 | BP177: 504
B178: =B114 -> Auxiliar de Compra | C178: 1530 | D178: 0 | E178: 0.40106926 | F178: 2143.635968 | G178: 591.582 | H178: =(($F178*Z178)+($G178*AO178))*BE178 -> 11993.38375 | I178: 11993.38375 | J178: 11993.38375 | K178: 12017.18014 | L178: 12017.18014 | M178: 12017.18014 | N178: 11993.38375 | O178: 11993.38375 | P178: 11993.38375 | Q178: 11993.38375 | R178: 11993.38375 | S178: 11993.38375 | T178: 143991.9941 | W178: Auxiliar de Compra | X178: 0.0087 | Y178: =X178/X192 -> 0.04350214683 | Z178: =Z192*$Y178 -> 0.0087 | AA178: 0.0087 | AB178: 0.0087 | AC178: 0.0087 | AD178: 0.0087 | AE178: 0.0087 | AF178: 0.0087 | AG178: 0.0087 | AH178: 0.0087 | AI178: 0.0087 | AJ178: 0.0087 | AK178: 0.0087 | AN178: Auxiliar de Compra | AO178: =AO192*$Y178 -> 0.0087 | AP178: 0.0087 | AQ178: 0.0087 | AR178: 0.0087 | AS178: 0.0087 | AT178: 0.0087 | AU178: 0.0087 | AV178: 0.0087 | AW178: 0.0087 | AX178: 0.0087 | AY178: 0.0087 | AZ178: 0.0087 | BC178: Auxiliar Contabilidade | BD178: 530 | BE178: =BE177 -> 504 | BF178: 504 | BG178: 504 | BH178: 505 | BI178: 505 | BJ178: 505 | BK178: 504 | BL178: 504 | BM178: 504 | BN178: 504 | BO178: 504 | BP178: 504
B179: =B115 -> Auxiliar de Contabilidade | C179: 1800 | D179: 0 | E179: 0.4010697 | F179: 2521.92546 | G179: 591.582 | H179: =(($F179*Z179)+($G179*AO179))*BE179 -> 17057.28835 | I179: 17057.28835 | J179: 17057.28835 | K179: 17091.13218 | L179: 17091.13218 | M179: 17091.13218 | N179: 17057.28835 | O179: 17057.28835 | P179: 17057.28835 | Q179: 17057.28835 | R179: 17057.28835 | S179: 17057.28835 | T179: 204788.9917 | W179: Auxiliar de Contabilidade | X179: 0.01087 | Y179: =X179/X192 -> 0.0543526823 | Z179: =Z192*$Y179 -> 0.01087 | AA179: 0.01087 | AB179: 0.01087 | AC179: 0.01087 | AD179: 0.01087 | AE179: 0.01087 | AF179: 0.01087 | AG179: 0.01087 | AH179: 0.01087 | AI179: 0.01087 | AJ179: 0.01087 | AK179: 0.01087 | AN179: Auxiliar de Contabilidade | AO179: =AO192*$Y179 -> 0.01087 | AP179: 0.01087 | AQ179: 0.01087 | AR179: 0.01087 | AS179: 0.01087 | AT179: 0.01087 | AU179: 0.01087 | AV179: 0.01087 | AW179: 0.01087 | AX179: 0.01087 | AY179: 0.01087 | AZ179: 0.01087 | BC179: Assist. Adm./financeiro | BD179: 530 | BE179: =BE178 -> 504 | BF179: 504 | BG179: 504 | BH179: 505 | BI179: 505 | BJ179: 505 | BK179: 504 | BL179: 504 | BM179: 504 | BN179: 504 | BO179: 504 | BP179: 504
B180: =B116 -> Auxiliar Depto.Pessoal | C180: 1125 | D180: 0 | E180: 0.4010697 | F180: 1576.203413 | G180: 591.582 | H180: =(($F180*Z180)+($G180*AO180))*BE180 -> 42752.02337 | I180: 42752.02337 | J180: 42752.02337 | K180: 42836.84881 | L180: 42836.84881 | M180: 42836.84881 | N180: 42752.02337 | O180: 42752.02337 | P180: 42752.02337 | Q180: 42752.02337 | R180: 42752.02337 | S180: 42752.02337 | T180: 513278.7567 | W180: Auxiliar Depto.Pessoal | X180: 0.03913 | Y180: =X180/X192 -> 0.1956596558 | Z180: =Z192*$Y180 -> 0.03913 | AA180: 0.03913 | AB180: 0.03913 | AC180: 0.03913 | AD180: 0.03913 | AE180: 0.03913 | AF180: 0.03913 | AG180: 0.03913 | AH180: 0.03913 | AI180: 0.03913 | AJ180: 0.03913 | AK180: 0.03913 | AN180: Auxiliar Depto.Pessoal | AO180: =AO192*$Y180 -> 0.03913 | AP180: 0.03913 | AQ180: 0.03913 | AR180: 0.03913 | AS180: 0.03913 | AT180: 0.03913 | AU180: 0.03913 | AV180: 0.03913 | AW180: 0.03913 | AX180: 0.03913 | AY180: 0.03913 | AZ180: 0.03913 | BC180: Contador | BD180: 530 | BE180: =BE179 -> 504 | BF180: 504 | BG180: 504 | BH180: 505 | BI180: 505 | BJ180: 505 | BK180: 504 | BL180: 504 | BM180: 504 | BN180: 504 | BO180: 504 | BP180: 504
B181: =B117 -> Auxiliar de Serv.Gerais | C181: 750 | D181: 0 | E181: 0.4010697 | F181: 1050.802275 | G181: 591.582 | H181: =(($F181*Z181)+($G181*AO181))*BE181 -> 12598.53269 | I181: 12598.53269 | J181: 12598.53269 | K181: 12623.52978 | L181: 12623.52978 | M181: 12623.52978 | N181: 12598.53269 | O181: 12598.53269 | P181: 12598.53269 | Q181: 12598.53269 | R181: 12598.53269 | S181: 12598.53269 | T181: 151257.3835 | W181: Auxiliar de Serv.Gerais | X181: 0.01522 | Y181: =X181/X192 -> 0.07610375572 | Z181: =Z192*$Y181 -> 0.01522 | AA181: 0.01522 | AB181: 0.01522 | AC181: 0.01522 | AD181: 0.01522 | AE181: 0.01522 | AF181: 0.01522 | AG181: 0.01522 | AH181: 0.01522 | AI181: 0.01522 | AJ181: 0.01522 | AK181: 0.01522 | AN181: Auxiliar de Serv.Gerais | AO181: =AO192*$Y181 -> 0.01522 | AP181: 0.01522 | AQ181: 0.01522 | AR181: 0.01522 | AS181: 0.01522 | AT181: 0.01522 | AU181: 0.01522 | AV181: 0.01522 | AW181: 0.01522 | AX181: 0.01522 | AY181: 0.01522 | AZ181: 0.01522 | BC181: Auxiliar Adm./Financ. | BD181: 530 | BE181: =BE180 -> 504 | BF181: 504 | BG181: 504 | BH181: 505 | BI181: 505 | BJ181: 505 | BK181: 504 | BL181: 504 | BM181: 504 | BN181: 504 | BO181: 504 | BP181: 504
B182: =B118 -> Auxiliares Administrativ. | C182: 750 | D182: 0 | E182: 0.4010697 | F182: 1050.802275 | G182: 591.582 | H182: =(($F182*Z182)+($G182*AO182))*BE182 -> 16199.29597 | I182: 16199.29597 | J182: 16199.29597 | K182: 16231.43743 | L182: 16231.43743 | M182: 16231.43743 | N182: 16199.29597 | O182: 16199.29597 | P182: 16199.29597 | Q182: 16199.29597 | R182: 16199.29597 | S182: 16199.29597 | T182: 194487.976 | W182: Auxiliares Administrativ. | X182: 0.01957 | Y182: =X182/X192 -> 0.09785482914 | Z182: =Z192*$Y182 -> 0.01957 | AA182: 0.01957 | AB182: 0.01957 | AC182: 0.01957 | AD182: 0.01957 | AE182: 0.01957 | AF182: 0.01957 | AG182: 0.01957 | AH182: 0.01957 | AI182: 0.01957 | AJ182: 0.01957 | AK182: 0.01957 | AN182: Auxiliares Administrativ. | AO182: =AO192*$Y182 -> 0.01957 | AP182: 0.01957 | AQ182: 0.01957 | AR182: 0.01957 | AS182: 0.01957 | AT182: 0.01957 | AU182: 0.01957 | AV182: 0.01957 | AW182: 0.01957 | AX182: 0.01957 | AY182: 0.01957 | AZ182: 0.01957 | BC182: Secretária Executiva | BD182: 530 | BE182: =BE181 -> 504 | BF182: 504 | BG182: 504 | BH182: 505 | BI182: 505 | BJ182: 505 | BK182: 504 | BL182: 504 | BM182: 504 | BN182: 504 | BO182: 504 | BP182: 504
B183: =B119 -> Contador | C183: 4500 | D183: 0 | E183: 0.4010697 | F183: 6304.81365 | G183: 591.582 | H183: =(($F183*Z183)+($G183*AO183))*BE183 -> 7542.449994 | I183: 7542.449994 | J183: 7542.449994 | K183: 7557.415173 | L183: 7557.415173 | M183: 7557.415173 | N183: 7542.449994 | O183: 7542.449994 | P183: 7542.449994 | Q183: 7542.449994 | R183: 7542.449994 | S183: 7542.449994 | T183: 90554.29547 | W183: Contador | X183: 0.00217 | Y183: =X183/X192 -> 0.01085053547 | Z183: =Z192*$Y183 -> 0.00217 | AA183: 0.00217 | AB183: 0.00217 | AC183: 0.00217 | AD183: 0.00217 | AE183: 0.00217 | AF183: 0.00217 | AG183: 0.00217 | AH183: 0.00217 | AI183: 0.00217 | AJ183: 0.00217 | AK183: 0.00217 | AN183: Contador | AO183: =AO192*$Y183 -> 0.00217 | AP183: 0.00217 | AQ183: 0.00217 | AR183: 0.00217 | AS183: 0.00217 | AT183: 0.00217 | AU183: 0.00217 | AV183: 0.00217 | AW183: 0.00217 | AX183: 0.00217 | AY183: 0.00217 | AZ183: 0.00217 | BC183: Telefonista | BD183: 530 | BE183: =BE182 -> 504 | BF183: 504 | BG183: 504 | BH183: 505 | BI183: 505 | BJ183: 505 | BK183: 504 | BL183: 504 | BM183: 504 | BN183: 504 | BO183: 504 | BP183: 504
B184: =B120 -> Controle de Manutenção | C184: 5400 | D184: 0 | E184: 0.4010697 | F184: 7565.77638 | G184: 591.582 | H184: =(($F184*Z184)+($G184*AO184))*BE184 -> 8921.539713 | I184: 8921.539713 | J184: 8921.539713 | K184: 8939.241181 | L184: 8939.241181 | M184: 8939.241181 | N184: 8921.539713 | O184: 8921.539713 | P184: 8921.539713 | Q184: 8921.539713 | R184: 8921.539713 | S184: 8921.539713 | T184: 107111.581 | W184: Controle de Manutenção | X184: 0.00217 | Y184: =X184/X192 -> 0.01085053547 | Z184: =Z192*$Y184 -> 0.00217 | AA184: 0.00217 | AB184: 0.00217 | AC184: 0.00217 | AD184: 0.00217 | AE184: 0.00217 | AF184: 0.00217 | AG184: 0.00217 | AH184: 0.00217 | AI184: 0.00217 | AJ184: 0.00217 | AK184: 0.00217 | AN184: Controle de Manutenção | AO184: =AO192*$Y184 -> 0.00217 | AP184: 0.00217 | AQ184: 0.00217 | AR184: 0.00217 | AS184: 0.00217 | AT184: 0.00217 | AU184: 0.00217 | AV184: 0.00217 | AW184: 0.00217 | AX184: 0.00217 | AY184: 0.00217 | AZ184: 0.00217 | BC184: Aux de serviços gerais | BD184: 530 | BE184: =BE183 -> 504 | BF184: 504 | BG184: 504 | BH184: 505 | BI184: 505 | BJ184: 505 | BK184: 504 | BL184: 504 | BM184: 504 | BN184: 504 | BO184: 504 | BP184: 504
B185: =B121 -> Encarreg.Depto.Pessoal | C185: 3150 | D185: 0 | E185: 0.4010697 | F185: 4413.369555 | G185: 591.582 | H185: =(($F185*Z185)+($G185*AO185))*BE185 -> 16446.67121 | I185: 16446.67121 | J185: 16446.67121 | K185: 16479.30349 | L185: 16479.30349 | M185: 16479.30349 | N185: 16446.67121 | O185: 16446.67121 | P185: 16446.67121 | Q185: 16446.67121 | R185: 16446.67121 | S185: 16446.67121 | T185: 197457.9513 | W185: Encarreg.Depto.Pessoal | X185: 0.00652 | Y185: =X185/X192 -> 0.03260160889 | Z185: =Z192*$Y185 -> 0.00652 | AA185: 0.00652 | AB185: 0.00652 | AC185: 0.00652 | AD185: 0.00652 | AE185: 0.00652 | AF185: 0.00652 | AG185: 0.00652 | AH185: 0.00652 | AI185: 0.00652 | AJ185: 0.00652 | AK185: 0.00652 | AN185: Encarreg.Depto.Pessoal | AO185: =AO192*$Y185 -> 0.00652 | AP185: 0.00652 | AQ185: 0.00652 | AR185: 0.00652 | AS185: 0.00652 | AT185: 0.00652 | AU185: 0.00652 | AV185: 0.00652 | AW185: 0.00652 | AX185: 0.00652 | AY185: 0.00652 | AZ185: 0.00652 | BC185: Enc. Depto de Pessoal | BD185: 530 | BE185: =BE184 -> 504 | BF185: 504 | BG185: 504 | BH185: 505 | BI185: 505 | BJ185: 505 | BK185: 504 | BL185: 504 | BM185: 504 | BN185: 504 | BO185: 504 | BP185: 504
B186: =B122 -> Eng.Segurança Trabalho | C186: 3870 | D186: 0 | E186: 0.4010697 | F186: 5422.139739 | G186: 591.582 | H186: =(($F186*Z186)+($G186*AO186))*BE186 -> 6577.087192 | I186: 6577.087192 | J186: 6577.087192 | K186: 6590.136968 | L186: 6590.136968 | M186: 6590.136968 | N186: 6577.087192 | O186: 6577.087192 | P186: 6577.087192 | Q186: 6577.087192 | R186: 6577.087192 | S186: 6577.087192 | T186: 78964.19563 | W186: Eng.Segurança Trabalho | X186: 0.00217 | Y186: =X186/X192 -> 0.01085053547 | Z186: =Z192*$Y186 -> 0.00217 | AA186: 0.00217 | AB186: 0.00217 | AC186: 0.00217 | AD186: 0.00217 | AE186: 0.00217 | AF186: 0.00217 | AG186: 0.00217 | AH186: 0.00217 | AI186: 0.00217 | AJ186: 0.00217 | AK186: 0.00217 | AN186: Eng.Segurança Trabalho | AO186: =AO192*$Y186 -> 0.00217 | AP186: 0.00217 | AQ186: 0.00217 | AR186: 0.00217 | AS186: 0.00217 | AT186: 0.00217 | AU186: 0.00217 | AV186: 0.00217 | AW186: 0.00217 | AX186: 0.00217 | AY186: 0.00217 | AZ186: 0.00217 | BC186: Auxiliar Administrativo | BD186: 530 | BE186: =BE185 -> 504 | BF186: 504 | BG186: 504 | BH186: 505 | BI186: 505 | BJ186: 505 | BK186: 504 | BL186: 504 | BM186: 504 | BN186: 504 | BO186: 504 | BP186: 504
B187: =B123 -> Gerente Administrativo | C187: 8100 | D187: 0 | E187: 0.4010697 | F187: 11348.66457 | G187: 591.582 | H187: =(($F187*Z187)+($G187*AO187))*BE187 -> 104651.0075 | I187: 104651.0075 | J187: 104651.0075 | K187: 104858.6484 | L187: 104858.6484 | M187: 104858.6484 | N187: 104651.0075 | O187: 104651.0075 | P187: 104651.0075 | Q187: 104651.0075 | R187: 104651.0075 | S187: 104651.0075 | T187: 1256435.012 | W187: Gerente Administrativo | X187: 0.01739 | Y187: =X187/X192 -> 0.08695429119 | Z187: =Z192*$Y187 -> 0.01739 | AA187: 0.01739 | AB187: 0.01739 | AC187: 0.01739 | AD187: 0.01739 | AE187: 0.01739 | AF187: 0.01739 | AG187: 0.01739 | AH187: 0.01739 | AI187: 0.01739 | AJ187: 0.01739 | AK187: 0.01739 | AN187: Gerente Administrativo | AO187: =AO192*$Y187 -> 0.01739 | AP187: 0.01739 | AQ187: 0.01739 | AR187: 0.01739 | AS187: 0.01739 | AT187: 0.01739 | AU187: 0.01739 | AV187: 0.01739 | AW187: 0.01739 | AX187: 0.01739 | AY187: 0.01739 | AZ187: 0.01739 | BC187: Psicólogo | BD187: 530 | BE187: =BE186 -> 504 | BF187: 504 | BG187: 504 | BH187: 505 | BI187: 505 | BJ187: 505 | BK187: 504 | BL187: 504 | BM187: 504 | BN187: 504 | BO187: 504 | BP187: 504
B188: =B124 -> Médico do trabalho | C188: 4500 | D188: 0 | E188: 0.4010697 | F188: 6304.81365 | G188: 591.582 | H188: =(($F188*Z188)+($G188*AO188))*BE188 -> 7542.449994 | I188: 7542.449994 | J188: 7542.449994 | K188: 7557.415173 | L188: 7557.415173 | M188: 7557.415173 | N188: 7542.449994 | O188: 7542.449994 | P188: 7542.449994 | Q188: 7542.449994 | R188: 7542.449994 | S188: 7542.449994 | T188: 90554.29547 | W188: Médico do trabalho | X188: 0.00217 | Y188: =X188/X192 -> 0.01085053547 | Z188: =Z192*$Y188 -> 0.00217 | AA188: 0.00217 | AB188: 0.00217 | AC188: 0.00217 | AD188: 0.00217 | AE188: 0.00217 | AF188: 0.00217 | AG188: 0.00217 | AH188: 0.00217 | AI188: 0.00217 | AJ188: 0.00217 | AK188: 0.00217 | AN188: Médico do trabalho | AO188: =AO192*$Y188 -> 0.00217 | AP188: 0.00217 | AQ188: 0.00217 | AR188: 0.00217 | AS188: 0.00217 | AT188: 0.00217 | AU188: 0.00217 | AV188: 0.00217 | AW188: 0.00217 | AX188: 0.00217 | AY188: 0.00217 | AZ188: 0.00217 | BC188: Auxiliar Administrativo | BD188: 530 | BE188: =BE187 -> 504 | BF188: 504 | BG188: 504 | BH188: 505 | BI188: 505 | BJ188: 505 | BK188: 504 | BL188: 504 | BM188: 504 | BN188: 504 | BO188: 504 | BP188: 504
B189: =B125 -> Secretaria | C189: 1260 | D189: 0 | E189: 0.4010697 | F189: 1765.347822 | G189: 591.582 | H189: =(($F189*Z189)+($G189*AO189))*BE189 -> 5167.332942 | I189: 5167.332942 | J189: 5167.332942 | K189: 5177.585586 | L189: 5177.585586 | M189: 5177.585586 | N189: 5167.332942 | O189: 5167.332942 | P189: 5167.332942 | Q189: 5167.332942 | R189: 5167.332942 | S189: 5167.332942 | T189: 62038.75324 | W189: Secretaria | X189: 0.00435 | Y189: =X189/X192 -> 0.02175107342 | Z189: =Z192*$Y189 -> 0.00435 | AA189: 0.00435 | AB189: 0.00435 | AC189: 0.00435 | AD189: 0.00435 | AE189: 0.00435 | AF189: 0.00435 | AG189: 0.00435 | AH189: 0.00435 | AI189: 0.00435 | AJ189: 0.00435 | AK189: 0.00435 | AN189: Secretaria | AO189: =AO192*$Y189 -> 0.00435 | AP189: 0.00435 | AQ189: 0.00435 | AR189: 0.00435 | AS189: 0.00435 | AT189: 0.00435 | AU189: 0.00435 | AV189: 0.00435 | AW189: 0.00435 | AX189: 0.00435 | AY189: 0.00435 | AZ189: 0.00435 | BC189: Assist.Recrut. e Seleção | BD189: 530 | BE189: =BE188 -> 504 | BF189: 504 | BG189: 504 | BH189: 505 | BI189: 505 | BJ189: 505 | BK189: 504 | BL189: 504 | BM189: 504 | BN189: 504 | BO189: 504 | BP189: 504
B190: =B126 -> Téc.Enfermag.Trabalho | C190: 1100 | D190: 0 | E190: 0.4010697 | F190: 1541.17667 | G190: 591.582 | H190: =(($F190*Z190)+($G190*AO190))*BE190 -> 4675.860108 | I190: 4675.860108 | J190: 4675.860108 | K190: 4685.137608 | L190: 4685.137608 | M190: 4685.137608 | N190: 4675.860108 | O190: 4675.860108 | P190: 4675.860108 | Q190: 4675.860108 | R190: 4675.860108 | S190: 4675.860108 | T190: 56138.1538 | W190: Téc.Enfermag.Trabalho | X190: 0.00435 | Y190: =X190/X192 -> 0.02175107342 | Z190: =Z192*$Y190 -> 0.00435 | AA190: 0.00435 | AB190: 0.00435 | AC190: 0.00435 | AD190: 0.00435 | AE190: 0.00435 | AF190: 0.00435 | AG190: 0.00435 | AH190: 0.00435 | AI190: 0.00435 | AJ190: 0.00435 | AK190: 0.00435 | AN190: Téc.Enfermag.Trabalho | AO190: =AO192*$Y190 -> 0.00435 | AP190: 0.00435 | AQ190: 0.00435 | AR190: 0.00435 | AS190: 0.00435 | AT190: 0.00435 | AU190: 0.00435 | AV190: 0.00435 | AW190: 0.00435 | AX190: 0.00435 | AY190: 0.00435 | AZ190: 0.00435 | BC190: Assist.Tre./capacitação | BD190: 530 | BE190: =BE189 -> 504 | BF190: 504 | BG190: 504 | BH190: 505 | BI190: 505 | BJ190: 505 | BK190: 504 | BL190: 504 | BM190: 504 | BN190: 504 | BO190: 504 | BP190: 504
B191: =B127 -> Téc.Segurança Trabalho | C191: 1260 | D191: 0 | E191: 0.4010697 | F191: 1765.347822 | G191: 591.582 | H191: =(($F191*Z191)+($G191*AO191))*BE191 -> 15490.1199 | I191: 15490.1199 | J191: 15490.1199 | K191: 15520.85426 | L191: 15520.85426 | M191: 15520.85426 | N191: 15490.1199 | O191: 15490.1199 | P191: 15490.1199 | Q191: 15490.1199 | R191: 15490.1199 | S191: 15490.1199 | T191: 185973.6419 | W191: Téc.Segurança Trabalho | X191: 0.01304 | Y191: =X191/X192 -> 0.06520321778 | Z191: =Z192*$Y191 -> 0.01304 | AA191: 0.01304 | AB191: 0.01304 | AC191: 0.01304 | AD191: 0.01304 | AE191: 0.01304 | AF191: 0.01304 | AG191: 0.01304 | AH191: 0.01304 | AI191: 0.01304 | AJ191: 0.01304 | AK191: 0.01304 | AN191: Téc.Segurança Trabalho | AO191: =AO192*$Y191 -> 0.01304 | AP191: 0.01304 | AQ191: 0.01304 | AR191: 0.01304 | AS191: 0.01304 | AT191: 0.01304 | AU191: 0.01304 | AV191: 0.01304 | AW191: 0.01304 | AX191: 0.01304 | AY191: 0.01304 | AZ191: 0.01304 | BC191: Assessor Jurídico | BD191: 530 | BE191: =BE190 -> 504 | BF191: 504 | BG191: 504 | BH191: 505 | BI191: 505 | BJ191: 505 | BK191: 504 | BL191: 504 | BM191: 504 | BN191: 504 | BO191: 504 | BP191: 504
B192: Totais......................... | F192: Totais... | H192: =SUM(H175:H191) -> 373846.4563 | I192: 373846.4563 | J192: 373846.4563 | K192: 374588.2152 | L192: 374588.2152 | M192: 374588.2152 | N192: 373846.4563 | O192: 373846.4563 | P192: 373846.4563 | Q192: 373846.4563 | R192: 373846.4563 | S192: 373846.4563 | T192: 4488382.752 | W192: Totais......................... | X192: =SUM(X175:X191) -> 0.19999013 | Y192: 1 | Z192: ='FU Folha FGV'!$AO232 -> 0.19999013 | AA192: ='FU Folha FGV'!$AO233 -> 0.19999013 | AB192: ='FU Folha FGV'!$AO234 -> 0.19999013 | AC192: ='FU Folha FGV'!$AO235 -> 0.19999013 | AD192: ='FU Folha FGV'!$AO236 -> 0.19999013 | AE192: ='FU Folha FGV'!$AO237 -> 0.19999013 | AF192: ='FU Folha FGV'!$AO238 -> 0.19999013 | AG192: ='FU Folha FGV'!$AO239 -> 0.19999013 | AH192: ='FU Folha FGV'!$AO240 -> 0.19999013 | AI192: ='FU Folha FGV'!$AO241 -> 0.19999013 | AJ192: ='FU Folha FGV'!$AO242 -> 0.19999013 | AK192: ='FU Folha FGV'!$AO243 -> 0.19999013 | AN192: Totais......................... | AO192: ='FU Folha FGV'!$AV$232 -> 0.19999013 | AP192: ='FU Folha FGV'!$AV$233 -> 0.19999013 | AQ192: ='FU Folha FGV'!$AV$234 -> 0.19999013 | AR192: ='FU Folha FGV'!$AV$235 -> 0.19999013 | AS192: ='FU Folha FGV'!$AV$236 -> 0.19999013 | AT192: ='FU Folha FGV'!$AV$237 -> 0.19999013 | AU192: ='FU Folha FGV'!$AV$238 -> 0.19999013 | AV192: ='FU Folha FGV'!$AV$239 -> 0.19999013 | AW192: ='FU Folha FGV'!$AV$240 -> 0.19999013 | AX192: ='FU Folha FGV'!$AV$241 -> 0.19999013 | AY192: ='FU Folha FGV'!$AV$242 -> 0.19999013 | AZ192: ='FU Folha FGV'!$AV$243 -> 0.19999013 | BC192: Totais......................... | BD192: 530 | BE192: =BE168 -> 504 | BF192: 504 | BG192: 504 | BH192: 505 | BI192: 505 | BJ192: 505 | BK192: 504 | BL192: 504 | BM192: 504 | BN192: 504 | BO192: 504 | BP192: 504
A193: Planilha 2 - Demonstração do Custo com Pessoal | F193: =G194 -> Ano 4 | K193: =F193 -> Ano 4 | P193: =K193 -> Ano 4 | U193: =P193 -> Ano 4 | AA193: =U193 -> Ano 4 | AF193: =AA193 -> Ano 4 | AK193: =AF193 -> Ano 4 | BE193: =AK193 -> Ano 4 | BJ193: =BE193 -> Ano 4
A194: Motoristas e Cobradores - Composição do Custo Unitário Por Função | G194: Ano 4 | H194: Motoristas e Cobradores - Composição de Custo Total Mensal | T194: R$ | X194: FU Lei Motorista Salário | Y194: FU Mot. | Z194: =$Z$2 -> 0 | AA194: =Z194 -> 0 | AB194: 0 | AC194: 0 | AD194: 0 | AE194: 0 | AF194: 0 | AG194: 0 | AH194: 0 | AI194: 0 | AJ194: 0 | AK194: 0
A195: Funções | B195: Cargo | C195: Salário | D195: Hs Extras | E195: Enc. | F195: R$ Total | G195: Benefícios | H195: =DATE(YEAR(S172),MONTH(S172)+1,DAY(S172)) -> 2017-01-01 | I195: =DATE(YEAR(H195),MONTH(H195)+1,DAY(H195)) -> 2017-02-01 | J195: 2017-03-01 | K195: 2017-04-01 | L195: 2017-05-01 | M195: 2017-06-01 | N195: 2017-07-01 | O195: 2017-08-01 | P195: 2017-09-01 | Q195: 2017-10-01 | R195: 2017-11-01 | S195: 2017-12-01 | T195: Total | V195: Fator Utilização Mensal | X195: =U193 -> Ano 4 | Y195: FU Cob. | Z195: =$Z$3 -> 0 | AA195: =Z195 -> 0 | AB195: 0 | AC195: 0 | AD195: 0 | AE195: 0 | AF195: 0 | AG195: 0 | AH195: 0 | AI195: 0 | AJ195: 0 | AK195: 0 | AM195: =X195 -> Ano 4 | AN195: FU Benefícios | AO195: FU FÍSICO PARA CÁLCULOS DOS BENEFÍCIOS | BB195: Frota Mensal | BE195: =BE193 -> Ano 4
C196: base | D196: e Adic. | E196: Soc. | F196: Por | G196: R$ por | H196: R$ | I196: R$ | J196: R$ | K196: R$ | L196: R$ | M196: R$ | N196: R$ | O196: R$ | P196: R$ | Q196: R$ | R196: R$ | S196: R$ | T196: Durante o | V196: Funções | W196: Cargo | X196: FU | Z196: =H195 -> 2017-01-01 | AA196: 2017-02-01 | AB196: 2017-03-01 | AC196: 2017-04-01 | AD196: 2017-05-01 | AE196: 2017-06-01 | AF196: 2017-07-01 | AG196: 2017-08-01 | AH196: 2017-09-01 | AI196: 2017-10-01 | AJ196: 2017-11-01 | AK196: 2017-12-01 | AM196: Funções | AN196: Cargo | AO196: =Z196 -> 2017-01-01 | AP196: 2017-02-01 | AQ196: 2017-03-01 | AR196: 2017-04-01 | AS196: 2017-05-01 | AT196: 2017-06-01 | AU196: 2017-07-01 | AV196: 2017-08-01 | AW196: 2017-09-01 | AX196: 2017-10-01 | AY196: 2017-11-01 | AZ196: 2017-12-01 | BB196: Funções | BC196: Cargo | BD196: Frota | BE196: =Z196 -> 2017-01-01 | BF196: 2017-02-01 | BG196: 2017-03-01 | BH196: 2017-04-01 | BI196: 2017-05-01 | BJ196: 2017-06-01 | BK196: 2017-07-01 | BL196: 2017-08-01 | BM196: 2017-09-01 | BN196: 2017-10-01 | BO196: 2017-11-01 | BP196: 2017-12-01
C197: (R$/mês) | D197: Not. | E197: % | F197: Função | G197: mês | T197: =P193 -> Ano 4 | X197: Licitação | Z197: FU | AA197: FU | AB197: FU | AC197: FU | AD197: FU | AE197: FU | AF197: FU | AG197: FU | AH197: FU | AI197: FU | AJ197: FU | AK197: FU | BD197: Licitação | BE197: Frota | BF197: Frota | BG197: Frota | BH197: Frota | BI197: Frota | BJ197: Frota | BK197: Frota | BL197: Frota | BM197: Frota | BN197: Frota | BO197: Frota | BP197: Frota | BS197: ='Histórico Frota Alocada'!AX16 -> 2017-01-31 | BT197: ='Histórico Frota Alocada'!AY16 -> 2017-02-28 | BU197: ='Histórico Frota Alocada'!AZ16 -> 2017-03-31 | BV197: ='Histórico Frota Alocada'!BA16 -> 2017-04-30 | BW197: ='Histórico Frota Alocada'!BB16 -> 2017-05-31 | BX197: ='Histórico Frota Alocada'!BC16 -> 2017-06-30 | BY197: ='Histórico Frota Alocada'!BD16 -> 2017-07-31 | BZ197: ='Histórico Frota Alocada'!BE16 -> 2017-08-31 | CA197: ='Histórico Frota Alocada'!BF16 -> 2017-09-30 | CB197: ='Histórico Frota Alocada'!BG16 -> 2017-10-31 | CC197: ='Histórico Frota Alocada'!BH16 -> 2017-11-30 | CD197: ='Histórico Frota Alocada'!BI16 -> 2017-12-31
A198: Motorista | B198: Miniônibus | C198: =C134 -> 1506.5 | D198: 0 | E198: 0.375275345 | F198: =(C198+D198)*(E198/100*100+1) -> 2071.852307 | G198: =G134 -> 591.582 | H198: =(($F198*Z198)+($G198*AO198))*BE198 -> 494959.2813 | I198: 497267.9253 | J198: 497267.9253 | K198: 497267.9253 | L198: 509132.9563 | M198: 509132.9563 | N198: 497407.8432 | O198: 489320.5933 | P198: 463757.6079 | Q198: 462484.3558 | R198: 458006.9856 | S198: 422957.5722 | T198: =SUM(H198:S198) -> 5798963.928 | V198: Motorista | W198: =B198 -> Miniônibus | X198: =X134 -> 2.09034 | Y198: =X198/X203 -> 1 | Z198: =Z203*$Y198+Z194 -> 3.5375 | AA198: 3.554 | AB198: 3.554 | AC198: 3.554 | AD198: 3.6388 | AE198: 3.6388 | AF198: 3.555 | AG198: 3.4972 | AH198: 3.3145 | AI198: 3.3054 | AJ198: 3.2734 | AK198: 3.0229 | AM198: Motorista | AN198: =W198 -> Miniônibus | AO198: =AO203*$Y198 -> 3.397123016 | AP198: 3.412968254 | AQ198: 3.412968254 | AR198: 3.412968254 | AS198: 3.494403175 | AT198: 3.494403175 | AU198: 3.413928571 | AV198: 3.358422222 | AW198: 3.182972222 | AX198: 3.174233333 | AY198: 3.143503175 | AZ198: 2.902943651 | BB198: Motorista | BC198: =W198 -> Miniônibus | BD198: =BD134 -> 57 | BE198: 53 | BF198: 53 | BG198: 53 | BH198: 53 | BI198: 53 | BJ198: 53 | BK198: 53 | BL198: 53 | BM198: 53 | BN198: 53 | BO198: 53 | BP198: 53 | BR198: Miniônibus | BS198: ='Histórico Frota Alocada'!AX17 -> 59 | BT198: ='Histórico Frota Alocada'!AY17 -> 55 | BU198: ='Histórico Frota Alocada'!AZ17 -> 55 | BV198: ='Histórico Frota Alocada'!BA17 -> 55 | BW198: ='Histórico Frota Alocada'!BB17 -> 55 | BX198: ='Histórico Frota Alocada'!BC17 -> 55 | BY198: ='Histórico Frota Alocada'!BD17 -> 52 | BZ198: ='Histórico Frota Alocada'!BE17 -> 51 | CA198: ='Histórico Frota Alocada'!BF17 -> 44 | CB198: ='Histórico Frota Alocada'!BG17 -> 28 | CC198: ='Histórico Frota Alocada'!BH17 -> 26 | CD198: ='Histórico Frota Alocada'!BI17 -> 20
B199: Ônibus Básico | C199: =C135 -> 1506.5 | D199: 0 | E199: 0.375275345 | F199: 2071.852307 | G199: =G198 -> 591.582 | H199: =(($F199*Z199)+($G199*AO199))*BE199 -> 3632814.348 | I199: 3649758.924 | J199: 3649758.924 | K199: 3649758.924 | L199: 3736843.774 | M199: 3736843.774 | N199: 3650785.868 | O199: 3591428.505 | P199: 3403805.839 | Q199: 3394460.649 | R199: 3361598.441 | S199: 3104348.973 | T199: 42562206.94 | W199: Ônibus Básico | X199: =X198 -> 2.09034 | Y199: =X199/X203 -> 1 | Z199: =Z203*$Y199+Z194 -> 3.5375 | AA199: 3.554 | AB199: 3.554 | AC199: 3.554 | AD199: 3.6388 | AE199: 3.6388 | AF199: 3.555 | AG199: 3.4972 | AH199: 3.3145 | AI199: 3.3054 | AJ199: 3.2734 | AK199: 3.0229 | AN199: Ônibus Básico | AO199: =AO203*$Y199 -> 3.397123016 | AP199: 3.412968254 | AQ199: 3.412968254 | AR199: 3.412968254 | AS199: 3.494403175 | AT199: 3.494403175 | AU199: 3.413928571 | AV199: 3.358422222 | AW199: 3.182972222 | AX199: 3.174233333 | AY199: 3.143503175 | AZ199: 2.902943651 | BC199: Ônibus Básico | BD199: 408 | BE199: 389 | BF199: 389 | BG199: 389 | BH199: 389 | BI199: 389 | BJ199: 389 | BK199: 389 | BL199: 389 | BM199: 389 | BN199: 389 | BO199: 389 | BP199: 389 | BR199: Ônibus Básico | BS199: ='Histórico Frota Alocada'!AX18 -> 391 | BT199: ='Histórico Frota Alocada'!AY18 -> 392 | BU199: ='Histórico Frota Alocada'!AZ18 -> 392 | BV199: ='Histórico Frota Alocada'!BA18 -> 392 | BW199: ='Histórico Frota Alocada'!BB18 -> 386 | BX199: ='Histórico Frota Alocada'!BC18 -> 386 | BY199: ='Histórico Frota Alocada'!BD18 -> 400 | BZ199: ='Histórico Frota Alocada'!BE18 -> 393 | CA199: ='Histórico Frota Alocada'!BF18 -> 402 | CB199: ='Histórico Frota Alocada'!BG18 -> 419 | CC199: ='Histórico Frota Alocada'!BH18 -> 423 | CD199: ='Histórico Frota Alocada'!BI18 -> 376
B200: Padron | C200: =C136 -> 1506.5 | D200: 0 | E200: 0.375275345 | F200: 2071.852307 | G200: 591.582 | H200: =(($F200*Z200)+($G200*AO200))*BE200 -> 0 | I200: 0 | J200: 0 | K200: 0 | L200: 0 | M200: 0 | N200: 0 | O200: 0 | P200: 0 | Q200: 0 | R200: 0 | S200: 0 | T200: 0 | W200: Padron | X200: 2.09034 | Y200: =X200/X203 -> 1 | Z200: =Z203*$Y200+Z194 -> 3.5375 | AA200: 3.554 | AB200: 3.554 | AC200: 3.554 | AD200: 3.6388 | AE200: 3.6388 | AF200: 3.555 | AG200: 3.4972 | AH200: 3.3145 | AI200: 3.3054 | AJ200: 3.2734 | AK200: 3.0229 | AN200: Padron | AO200: =AO203*$Y200 -> 3.397123016 | AP200: 3.412968254 | AQ200: 3.412968254 | AR200: 3.412968254 | AS200: 3.494403175 | AT200: 3.494403175 | AU200: 3.413928571 | AV200: 3.358422222 | AW200: 3.182972222 | AX200: 3.174233333 | AY200: 3.143503175 | AZ200: 2.902943651 | BC200: Padron | BD200: 0 | BE200: 0 | BF200: 0 | BG200: 0 | BH200: 0 | BI200: 0 | BJ200: 0 | BK200: 0 | BL200: 0 | BM200: 0 | BN200: 0 | BO200: 0 | BP200: 0 | BR200: Padron | BS200: ='Histórico Frota Alocada'!AX19 -> 0 | BT200: ='Histórico Frota Alocada'!AY19 -> 0 | BU200: ='Histórico Frota Alocada'!AZ19 -> 0 | BV200: ='Histórico Frota Alocada'!BA19 -> 0 | BW200: ='Histórico Frota Alocada'!BB19 -> 0 | BX200: ='Histórico Frota Alocada'!BC19 -> 0 | BY200: ='Histórico Frota Alocada'!BD19 -> 0 | BZ200: ='Histórico Frota Alocada'!BE19 -> 0 | CA200: ='Histórico Frota Alocada'!BF19 -> 0 | CB200: ='Histórico Frota Alocada'!BG19 -> 0 | CC200: ='Histórico Frota Alocada'!BH19 -> 0 | CD200: ='Histórico Frota Alocada'!BI19 -> 0
B201: Articulado | C201: =C137 -> 1657.15 | D201: 0 | E201: 0.375275345 | F201: 2279.037538 | G201: 591.582 | H201: =(($F201*Z201)+($G201*AO201))*BE201 -> 624449.8713 | I201: 627362.4997 | J201: 627362.4997 | K201: 627362.4997 | L201: 642331.6443 | M201: 642331.6443 | N201: 627539.0227 | O201: 617335.9972 | P201: 585085.2576 | Q201: 583478.8989 | R201: 577830.1651 | S201: 533611.1706 | T201: 7316081.171 | W201: Articulado | X201: 2.09034 | Y201: =X201/X203 -> 1 | Z201: =Z203*$Y201+Z194 -> 3.5375 | AA201: 3.554 | AB201: 3.554 | AC201: 3.554 | AD201: 3.6388 | AE201: 3.6388 | AF201: 3.555 | AG201: 3.4972 | AH201: 3.3145 | AI201: 3.3054 | AJ201: 3.2734 | AK201: 3.0229 | AN201: Articulado | AO201: =AO203*$Y201 -> 3.397123016 | AP201: 3.412968254 | AQ201: 3.412968254 | AR201: 3.412968254 | AS201: 3.494403175 | AT201: 3.494403175 | AU201: 3.413928571 | AV201: 3.358422222 | AW201: 3.182972222 | AX201: 3.174233333 | AY201: 3.143503175 | AZ201: 2.902943651 | BC201: Articulado | BD201: 65 | BE201: 62 | BF201: 62 | BG201: 62 | BH201: 62 | BI201: 62 | BJ201: 62 | BK201: 62 | BL201: 62 | BM201: 62 | BN201: 62 | BO201: 62 | BP201: 62 | BR201: Articulado | BS201: ='Histórico Frota Alocada'!AX20 -> 65 | BT201: ='Histórico Frota Alocada'!AY20 -> 65 | BU201: ='Histórico Frota Alocada'!AZ20 -> 65 | BV201: ='Histórico Frota Alocada'!BA20 -> 65 | BW201: ='Histórico Frota Alocada'!BB20 -> 63 | BX201: ='Histórico Frota Alocada'!BC20 -> 63 | BY201: ='Histórico Frota Alocada'!BD20 -> 64 | BZ201: ='Histórico Frota Alocada'!BE20 -> 64 | CA201: ='Histórico Frota Alocada'!BF20 -> 66 | CB201: ='Histórico Frota Alocada'!BG20 -> 66 | CC201: ='Histórico Frota Alocada'!BH20 -> 66 | CD201: ='Histórico Frota Alocada'!BI20 -> 41
B202: Articulado BRT | C202: =C138 -> 1657.15 | D202: 0 | E202: 0.375275345 | F202: 2279.037538 | G202: 591.582 | H202: =(($F202*Z202)+($G202*AO202))*BE202 -> 0 | I202: 0 | J202: 0 | K202: 0 | L202: 0 | M202: 0 | N202: 0 | O202: 0 | P202: 0 | Q202: 0 | R202: 0 | S202: 0 | T202: 0 | W202: Articulado BRT | X202: 2.09034 | Y202: =X202/X203 -> 1 | Z202: =Z203*$Y202+Z194 -> 3.5375 | AA202: 3.554 | AB202: 3.554 | AC202: 3.554 | AD202: 3.6388 | AE202: 3.6388 | AF202: 3.555 | AG202: 3.4972 | AH202: 3.3145 | AI202: 3.3054 | AJ202: 3.2734 | AK202: 3.0229 | AN202: Articulado BRT | AO202: =AO203*$Y202 -> 3.397123016 | AP202: 3.412968254 | AQ202: 3.412968254 | AR202: 3.412968254 | AS202: 3.494403175 | AT202: 3.494403175 | AU202: 3.413928571 | AV202: 3.358422222 | AW202: 3.182972222 | AX202: 3.174233333 | AY202: 3.143503175 | AZ202: 2.902943651 | BC202: Articulado BRT | BD202: 0 | BE202: =IF(BS202>$BD202,ROUNDUP($BD202*0.95,0),BS202) -> 0 | BF202: 0 | BG202: 0 | BH202: 0 | BI202: 0 | BJ202: 0 | BK202: 0 | BL202: 0 | BM202: 0 | BN202: 0 | BO202: 0 | BP202: 0 | BR202: Articulado BRT | BS202: ='Histórico Frota Alocada'!AX21 -> 0 | BT202: ='Histórico Frota Alocada'!AY21 -> 0 | BU202: ='Histórico Frota Alocada'!AZ21 -> 0 | BV202: ='Histórico Frota Alocada'!BA21 -> 0 | BW202: ='Histórico Frota Alocada'!BB21 -> 0 | BX202: ='Histórico Frota Alocada'!BC21 -> 0 | BY202: ='Histórico Frota Alocada'!BD21 -> 0 | BZ202: ='Histórico Frota Alocada'!BE21 -> 0 | CA202: ='Histórico Frota Alocada'!BF21 -> 0 | CB202: ='Histórico Frota Alocada'!BG21 -> 0 | CC202: ='Histórico Frota Alocada'!BH21 -> 0 | CD202: ='Histórico Frota Alocada'!BI21 -> 0
B203: Totais........................ | F203: Totais... | G203: 591.582 | H203: =SUM(H198:H202) -> 4752223.501 | I203: 4774389.349 | J203: 4774389.349 | K203: 4774389.349 | L203: 4888308.374 | M203: 4888308.374 | N203: 4775732.733 | O203: 4698085.096 | P203: 4452648.705 | Q203: 4440423.904 | R203: 4397435.592 | S203: 4060917.716 | T203: 55677252.04 | W203: Totais........................ | X203: 2.09034 | Z203: ='FU Folha FGV'!$AK$76 -> 3.5375 | AA203: ='FU Folha FGV'!$AK$77 -> 3.554 | AB203: ='FU Folha FGV'!$AK$78 -> 3.554 | AC203: ='FU Folha FGV'!$AK$79 -> 3.554 | AD203: ='FU Folha FGV'!$AK$80 -> 3.6388 | AE203: ='FU Folha FGV'!$AK$81 -> 3.6388 | AF203: ='FU Folha FGV'!$AK$82 -> 3.555 | AG203: ='FU Folha FGV'!$AK$83 -> 3.4972 | AH203: ='FU Folha FGV'!$AK$84 -> 3.3145 | AI203: ='FU Folha FGV'!$AK$85 -> 3.3054 | AJ203: ='FU Folha FGV'!$AK$86 -> 3.2734 | AK203: ='FU Folha FGV'!$AK$87 -> 3.0229 | AN203: Totais........................ | AO203: ='FU Folha FGV'!$AR$76 -> 3.397123016 | AP203: ='FU Folha FGV'!$AR$77 -> 3.412968254 | AQ203: ='FU Folha FGV'!$AR$78 -> 3.412968254 | AR203: ='FU Folha FGV'!$AR$79 -> 3.412968254 | AS203: ='FU Folha FGV'!$AR$80 -> 3.494403175 | AT203: ='FU Folha FGV'!$AR$81 -> 3.494403175 | AU203: ='FU Folha FGV'!$AR$82 -> 3.413928571 | AV203: ='FU Folha FGV'!$AR$83 -> 3.358422222 | AW203: ='FU Folha FGV'!$AR$84 -> 3.182972222 | AX203: ='FU Folha FGV'!$AR$85 -> 3.174233333 | AY203: ='FU Folha FGV'!$AR$86 -> 3.143503175 | AZ203: ='FU Folha FGV'!$AR$87 -> 2.902943651 | BC203: Totais........................ | BD203: =SUM(BD198:BD202) -> 530 | BE203: 504 | BF203: 504 | BG203: 504 | BH203: 504 | BI203: 504 | BJ203: 504 | BK203: 504 | BL203: 504 | BM203: 504 | BN203: 504 | BO203: 504 | BP203: 504 | BR203: TOTAL | BS203: =SUM(BS198:BS202) -> 515 | BT203: 512 | BU203: 512 | BV203: 512 | BW203: 504 | BX203: 504 | BY203: 516 | BZ203: 508 | CA203: 512 | CB203: 513 | CC203: 515 | CD203: 437
A204: Cobrador | B204: Miniônibus | C204: =$C$140 -> 787.52 | D204: =$D$134 -> 0 | E204: =$E$140 -> 0.38747873 | F204: =(C204+D204)*(E204/100*100+1) -> 1092.667249 | G204: =$G$198 -> 591.582 | H204: =(($F204*Z204)+($G204*AO204))*BE204 -> 317542.7756 | I204: 319082.8356 | J204: 319082.8356 | K204: 319082.8356 | L204: 326642.3302 | M204: 326642.3302 | N204: 319065.2349 | O204: 313864.2322 | P204: 297460.3929 | Q204: 296659.5617 | R204: 293808.2506 | S204: 271279.3725 | T204: =SUM(H204:S204) -> 3720212.988 | V204: Cobrador | W204: =B204 -> Miniônibus | X204: =X140 -> 2.12955 | Y204: =X204/X209 -> 1 | Z204: =Z209*$Y204+Z195 -> 3.6083 | AA204: 3.6258 | AB204: 3.6258 | AC204: 3.6258 | AD204: 3.7117 | AE204: 3.7117 | AF204: 3.6256 | AG204: 3.5665 | AH204: 3.3801 | AI204: 3.371 | AJ204: 3.3386 | AK204: 3.0826 | AM204: Cobrador | AN204: Miniônibus | AO204: =AO209*$Y204 -> 3.463090303 | AP204: 3.479886046 | AQ204: 3.479886046 | AR204: 3.479886046 | AS204: 3.562329152 | AT204: 3.562329152 | AU204: 3.479694095 | AV204: 3.422972471 | AW204: 3.244073811 | AX204: 3.235340025 | AY204: 3.204243906 | AZ204: 2.958546176 | BB204: Cobrador | BC204: =W204 -> Miniônibus | BD204: =BD140 -> 57 | BE204: =BE198 -> 53 | BF204: 53 | BG204: 53 | BH204: 53 | BI204: 53 | BJ204: 53 | BK204: 53 | BL204: 53 | BM204: 53 | BN204: 53 | BO204: 53 | BP204: 53
B205: Ônibus Básico | C205: 787.52 | D205: 0 | E205: 0.38747873 | F205: 1092.667249 | G205: 591.582 | H205: =(($F205*Z205)+($G205*AO205))*BE205 -> 2330644.145 | I205: 2341947.605 | J205: 2341947.605 | K205: 2341947.605 | L205: 2397431.442 | M205: 2397431.442 | N205: 2341818.422 | O205: 2303645.025 | P205: 2183247.035 | Q205: 2177369.236 | R205: 2156441.688 | S205: 1991088.225 | T205: 27304959.47 | W205: Ônibus Básico | X205: =X204 -> 2.12955 | Y205: =X205/X209 -> 1 | Z205: =Z209*$Y205+Z195 -> 3.6083 | AA205: 3.6258 | AB205: 3.6258 | AC205: 3.6258 | AD205: 3.7117 | AE205: 3.7117 | AF205: 3.6256 | AG205: 3.5665 | AH205: 3.3801 | AI205: 3.371 | AJ205: 3.3386 | AK205: 3.0826 | AN205: Ônibus Básico | AO205: =AO209*$Y205 -> 3.463090303 | AP205: 3.479886046 | AQ205: 3.479886046 | AR205: 3.479886046 | AS205: 3.562329152 | AT205: 3.562329152 | AU205: 3.479694095 | AV205: 3.422972471 | AW205: 3.244073811 | AX205: 3.235340025 | AY205: 3.204243906 | AZ205: 2.958546176 | BC205: Ônibus Básico | BD205: 408 | BE205: =BE199 -> 389 | BF205: 389 | BG205: 389 | BH205: 389 | BI205: 389 | BJ205: 389 | BK205: 389 | BL205: 389 | BM205: 389 | BN205: 389 | BO205: 389 | BP205: 389
B206: Padron | C206: 787.52 | D206: 0 | E206: 0.38747873 | F206: 1092.667249 | G206: 591.582 | H206: =(($F206*Z206)+($G206*AO206))*BE206 -> 0 | I206: 0 | J206: 0 | K206: 0 | L206: 0 | M206: 0 | N206: 0 | O206: 0 | P206: 0 | Q206: 0 | R206: 0 | S206: 0 | T206: 0 | W206: Padron | X206: 2.12955 | Y206: =X206/X209 -> 1 | Z206: =Z209*$Y206+Z195 -> 3.6083 | AA206: 3.6258 | AB206: 3.6258 | AC206: 3.6258 | AD206: 3.7117 | AE206: 3.7117 | AF206: 3.6256 | AG206: 3.5665 | AH206: 3.3801 | AI206: 3.371 | AJ206: 3.3386 | AK206: 3.0826 | AN206: Padron | AO206: =AO209*$Y206 -> 3.463090303 | AP206: 3.479886046 | AQ206: 3.479886046 | AR206: 3.479886046 | AS206: 3.562329152 | AT206: 3.562329152 | AU206: 3.479694095 | AV206: 3.422972471 | AW206: 3.244073811 | AX206: 3.235340025 | AY206: 3.204243906 | AZ206: 2.958546176 | BC206: Padron | BD206: 0 | BE206: =BE200 -> 0 | BF206: 0 | BG206: 0 | BH206: 0 | BI206: 0 | BJ206: 0 | BK206: 0 | BL206: 0 | BM206: 0 | BN206: 0 | BO206: 0 | BP206: 0
... 420 more rows

Sheet MO Oper_Adm. ano 11
A1: Planilha 2 - Demonstração do Custo com Pessoal | F1: =G2 -> Ano 11 | K1: =F1 -> Ano 11 | P1: =K1 -> Ano 11 | U1: =P1 -> Ano 11 | AA1: =U1 -> Ano 11 | AF1: =AA1 -> Ano 11 | AK1: =AF1 -> Ano 11 | BE1: =AK1 -> Ano 11 | BJ1: =BE1 -> Ano 11
A2: Motoristas e Cobradores - Composição do Custo Unitário Por Função | G2: Ano 11 | H2: Motoristas e Cobradores - Composição de Custo Total Mensal | T2: R$ | X2: FU Lei Motorista Salário | Y2: FU Mot. | AA2: =Z2 -> 0 | AB2: 0 | AC2: 0 | AD2: 0 | AE2: 0 | AF2: 0 | AG2: 0 | AH2: 0 | AI2: 0 | AJ2: 0 | AK2: 0
A3: Funções | B3: Cargo | C3: Salário | D3: Hs Extras | E3: Enc. | F3: R$ Total | G3: Benefícios | H3: 2024-01-01 | I3: =DATE(YEAR(H3),MONTH(H3)+1,DAY(H3)) -> 2024-02-01 | J3: 2024-03-01 | K3: 2024-04-01 | L3: 2024-05-01 | M3: 2024-06-01 | N3: 2024-07-01 | O3: 2024-08-01 | P3: 2024-09-01 | Q3: 2024-10-01 | R3: 2024-11-01 | S3: 2024-12-01 | T3: Total | V3: Fator Utilização Mensal | X3: =U1 -> Ano 11 | Y3: FU Cob. | AA3: =Z3 -> 0 | AB3: 0 | AC3: 0 | AD3: 0 | AE3: 0 | AF3: 0 | AG3: 0 | AH3: 0 | AI3: 0 | AJ3: 0 | AK3: 0 | AM3: =X3 -> Ano 11 | AN3: FU Benefícios | AO3: FU FÍSICO PARA CÁLCULOS DOS BENEFÍCIOS | BB3: Frota Mensal | BE3: =AK1 -> Ano 11
C4: base | D4: e Adic. | E4: Soc. | F4: Por | G4: R$ por | H4: R$ | I4: R$ | J4: R$ | K4: R$ | L4: R$ | M4: R$ | N4: R$ | O4: R$ | P4: R$ | Q4: R$ | R4: R$ | S4: R$ | T4: Durante o | V4: Funções | W4: Cargo | X4: FU | Z4: =H3 -> 2024-01-01 | AA4: 2024-02-01 | AB4: 2024-03-01 | AC4: 2024-04-01 | AD4: 2024-05-01 | AE4: 2024-06-01 | AF4: 2024-07-01 | AG4: 2024-08-01 | AH4: 2024-09-01 | AI4: 2024-10-01 | AJ4: 2024-11-01 | AK4: 2024-12-01 | AM4: Funções | AN4: Cargo | AO4: =Z4 -> 2024-01-01 | AP4: 2024-02-01 | AQ4: 2024-03-01 | AR4: 2024-04-01 | AS4: 2024-05-01 | AT4: 2024-06-01 | AU4: 2024-07-01 | AV4: 2024-08-01 | AW4: 2024-09-01 | AX4: 2024-10-01 | AY4: 2024-11-01 | AZ4: 2024-12-01 | BB4: Funções | BC4: Cargo | BD4: Frota | BE4: =Z4 -> 2024-01-01 | BF4: 2024-02-01 | BG4: 2024-03-01 | BH4: 2024-04-01 | BI4: 2024-05-01 | BJ4: 2024-06-01 | BK4: 2024-07-01 | BL4: 2024-08-01 | BM4: 2024-09-01 | BN4: 2024-10-01 | BO4: 2024-11-01 | BP4: 2024-12-01
C5: (R$/mês) | D5: Not. | E5: % | F5: Função | G5: mês | T5: =P1 -> Ano 11 | X5: Licitação | Z5: FU | AA5: FU | AB5: FU | AC5: FU | AD5: FU | AE5: FU | AF5: FU | AG5: FU | AH5: FU | AI5: FU | AJ5: FU | AK5: FU | BD5: Licitação | BE5: Frota | BF5: Frota | BG5: Frota | BH5: Frota | BI5: Frota | BJ5: Frota | BK5: Frota | BL5: Frota | BM5: Frota | BN5: Frota | BO5: Frota | BP5: Frota
A6: Motorista | B6: Miniônibus | C6: 1506.5 | D6: 0 | E6: 0.3753 | F6: =(C6+D6)*(E6/100*100+1) -> 2071.88945 | G6: =Benefícios!E11 -> 591.582 | H6: =(($F6*Z6)+($G6*AO6))*BE6 -> 375918.2667 | I6: 359476.3718 | J6: 364465.9642 | K6: 357908.2142 | L6: 358882.3727 | M6: 357623.0946 | N6: 353203.7413 | O6: 353263.1412 | P6: 353263.1412 | Q6: 359096.2124 | R6: 358846.7327 | S6: 350910.9048 | T6: =SUM(H6:S6) -> 4302858.158 | V6: Motorista | W6: =B6 -> Miniônibus | X6: ='Plan2 R$ Pessoal'!$D$8 -> 2.09034 | Y6: =X6/X11 -> 1 | Z6: =Z11*$Y6+Z2 -> 3.1643 | AA6: =AA11*$Y6+AA2 -> 3.0259 | AB6: 3.0679 | AC6: 3.0127 | AD6: 3.0209 | AE6: 3.0103 | AF6: 2.9731 | AG6: 2.9736 | AH6: 2.9736 | AI6: 3.0227 | AJ6: 3.0206 | AK6: 2.9538 | AM6: Motorista | AN6: =W6 -> Miniônibus | AO6: =AO11*$Y6 -> 3.03873254 | AP6: 2.905824603 | AQ6: 2.946157937 | AR6: 2.893148413 | AS6: 2.901023016 | AT6: 2.890843651 | AU6: 2.855119841 | AV6: 2.8556 | AW6: 2.8556 | AX6: 2.902751587 | AY6: 2.900734921 | AZ6: 2.836585714 | BB6: Motorista | BC6: =W6 -> Miniônibus | BD6: =Q.Frota!C5 -> 48 | BE6: 45 | BF6: 45 | BG6: 45 | BH6: 45 | BI6: 45 | BJ6: 45 | BK6: 45 | BL6: 45 | BM6: 45 | BN6: 45 | BO6: 45 | BP6: 45
B7: Ônibus Básico | C7: 1506.5 | D7: 0 | E7: =E6 -> 0.3753 | F7: 2071.88945 | G7: =G6 -> 591.582 | H7: =(($F7*Z7)+($G7*AO7))*BE7 -> 4252053.283 | I7: 4066077.183 | J7: 4122515.017 | K7: 4048339.578 | L7: 4059358.393 | M7: 4045114.559 | N7: 3995126.763 | O7: 3995798.642 | P7: 3995798.642 | Q7: 4061777.157 | R7: 4058955.266 | S7: 3969192.235 | T7: 48670106.72 | W7: Ônibus Básico | X7: =X6 -> 2.09034 | Y7: =X7/X11 -> 1 | Z7: =Z11*$Y7+Z2 -> 3.1643 | AA7: 3.0259 | AB7: 3.0679 | AC7: 3.0127 | AD7: 3.0209 | AE7: 3.0103 | AF7: 2.9731 | AG7: 2.9736 | AH7: 2.9736 | AI7: 3.0227 | AJ7: 3.0206 | AK7: 2.9538 | AN7: Ônibus Básico | AO7: =AO11*$Y7 -> 3.03873254 | AP7: 2.905824603 | AQ7: 2.946157937 | AR7: 2.893148413 | AS7: 2.901023016 | AT7: 2.890843651 | AU7: 2.855119841 | AV7: 2.8556 | AW7: 2.8556 | AX7: 2.902751587 | AY7: 2.900734921 | AZ7: 2.836585714 | BC7: Ônibus Básico | BD7: =Q.Frota!F5 -> 517 | BE7: 509 | BF7: 509 | BG7: 509 | BH7: 509 | BI7: 509 | BJ7: 509 | BK7: 509 | BL7: 509 | BM7: 509 | BN7: 509 | BO7: 509 | BP7: 509
B8: Padron | C8: 1506.5 | D8: 0 | E8: 0.3753 | F8: 2071.88945 | G8: 591.582 | H8: =(($F8*Z8)+($G8*AO8))*BE8 -> 0 | I8: 0 | J8: 0 | K8: 0 | L8: 0 | M8: 0 | N8: 0 | O8: 0 | P8: 0 | Q8: 0 | R8: 0 | S8: 0 | T8: 0 | W8: Padron | X8: 2.09034 | Y8: =X8/X11 -> 1 | Z8: =Z11*$Y8+Z2 -> 3.1643 | AA8: 3.0259 | AB8: 3.0679 | AC8: 3.0127 | AD8: 3.0209 | AE8: 3.0103 | AF8: 2.9731 | AG8: 2.9736 | AH8: 2.9736 | AI8: 3.0227 | AJ8: 3.0206 | AK8: 2.9538 | AN8: Padron | AO8: =AO11*$Y8 -> 3.03873254 | AP8: 2.905824603 | AQ8: 2.946157937 | AR8: 2.893148413 | AS8: 2.901023016 | AT8: 2.890843651 | AU8: 2.855119841 | AV8: 2.8556 | AW8: 2.8556 | AX8: 2.902751587 | AY8: 2.900734921 | AZ8: 2.836585714 | BC8: Padron | BD8: =Q.Frota!I5 -> 0 | BE8: =Q.Frota!K6 -> 0 | BF8: 0 | BG8: 0 | BH8: 0 | BI8: 0 | BJ8: 0 | BK8: 0 | BL8: 0 | BM8: 0 | BN8: 0 | BO8: 0 | BP8: 0
B9: Articulado | C9: 1506.5 | D9: 0 | E9: 0.3753 | F9: 2071.88945 | G9: 591.582 | H9: =(($F9*Z9)+($G9*AO9))*BE9 -> 0 | I9: 0 | J9: 0 | K9: 0 | L9: 0 | M9: 0 | N9: 0 | O9: 0 | P9: 0 | Q9: 0 | R9: 0 | S9: 0 | T9: 0 | W9: Articulado | X9: 2.09034 | Y9: =X9/X11 -> 1 | Z9: =Z11*$Y9+Z2 -> 3.1643 | AA9: 3.0259 | AB9: 3.0679 | AC9: 3.0127 | AD9: 3.0209 | AE9: 3.0103 | AF9: 2.9731 | AG9: 2.9736 | AH9: 2.9736 | AI9: 3.0227 | AJ9: 3.0206 | AK9: 2.9538 | AN9: Articulado | AO9: =AO11*$Y9 -> 3.03873254 | AP9: 2.905824603 | AQ9: 2.946157937 | AR9: 2.893148413 | AS9: 2.901023016 | AT9: 2.890843651 | AU9: 2.855119841 | AV9: 2.8556 | AW9: 2.8556 | AX9: 2.902751587 | AY9: 2.900734921 | AZ9: 2.836585714 | BC9: Articulado | BD9: =Q.Frota!L5 -> 0 | BE9: =Q.Frota!N6 -> 0 | BF9: =Q.Frota!N7 -> 0 | BG9: =Q.Frota!N8 -> 0 | BH9: =Q.Frota!N9 -> 0 | BI9: =Q.Frota!N10 -> 0 | BJ9: =Q.Frota!N11 -> 0 | BK9: =Q.Frota!N12 -> 0 | BL9: =Q.Frota!N13 -> 0 | BM9: =Q.Frota!N14 -> 0 | BN9: =Q.Frota!N15 -> 0 | BO9: =Q.Frota!N16 -> 0 | BP9: =Q.Frota!N17 -> 0 | BR9: =48*5% -> 2.4
B10: Articulado BRT | C10: 1506.5 | D10: 0 | E10: 0.3753 | F10: 2071.88945 | G10: 591.582 | H10: =(($F10*Z10)+($G10*AO10))*BE10 -> 0 | I10: 0 | J10: 0 | K10: 0 | L10: 0 | M10: 0 | N10: 0 | O10: 0 | P10: 0 | Q10: 0 | R10: 0 | S10: 0 | T10: 0 | W10: Articulado BRT | X10: 2.09034 | Y10: =X10/X11 -> 1 | Z10: =Z11*$Y10+Z2 -> 3.1643 | AA10: 3.0259 | AB10: 3.0679 | AC10: 3.0127 | AD10: 3.0209 | AE10: 3.0103 | AF10: 2.9731 | AG10: 2.9736 | AH10: 2.9736 | AI10: 3.0227 | AJ10: 3.0206 | AK10: 2.9538 | AN10: Articulado BRT | AO10: =AO11*$Y10 -> 3.03873254 | AP10: 2.905824603 | AQ10: 2.946157937 | AR10: 2.893148413 | AS10: 2.901023016 | AT10: 2.890843651 | AU10: 2.855119841 | AV10: 2.8556 | AW10: 2.8556 | AX10: 2.902751587 | AY10: 2.900734921 | AZ10: 2.836585714 | BC10: Articulado BRT | BD10: =Q.Frota!O5 -> 0 | BE10: =Q.Frota!Q6 -> 0 | BF10: =Q.Frota!Q7 -> 0 | BG10: =Q.Frota!Q8 -> 0 | BH10: =Q.Frota!Q8 -> 0 | BI10: =Q.Frota!Q10 -> 0 | BJ10: =Q.Frota!Q11 -> 0 | BK10: =Q.Frota!Q12 -> 0 | BL10: =Q.Frota!Q13 -> 0 | BM10: =Q.Frota!Q14 -> 0 | BN10: =Q.Frota!Q15 -> 0 | BO10: =Q.Frota!Q16 -> 0 | BP10: =Q.Frota!Q17 -> 0 | BR10: =517*5% -> 25.85
B11: Totais........................ | F11: Totais... | H11: =SUM(H6:H10) -> 4627971.55 | I11: 4425553.555 | J11: 4486980.981 | K11: 4406247.792 | L11: 4418240.766 | M11: 4402737.653 | N11: 4348330.504 | O11: 4349061.783 | P11: 4349061.783 | Q11: 4420873.37 | R11: 4417801.999 | S11: 4320103.14 | T11: 52972964.88 | W11: Totais........................ | X11: 2.09034 | Z11: ='FU Folha FGV'!AK198 -> 3.1643 | AA11: ='FU Folha FGV'!AK199 -> 3.0259 | AB11: ='FU Folha FGV'!AK200 -> 3.0679 | AC11: ='FU Folha FGV'!AK201 -> 3.0127 | AD11: ='FU Folha FGV'!AK202 -> 3.0209 | AE11: ='FU Folha FGV'!AK203 -> 3.0103 | AF11: ='FU Folha FGV'!AK204 -> 2.9731 | AG11: ='FU Folha FGV'!AK205 -> 2.9736 | AH11: ='FU Folha FGV'!AK206 -> 2.9736 | AI11: ='FU Folha FGV'!AK207 -> 3.0227 | AJ11: ='FU Folha FGV'!AK208 -> 3.0206 | AK11: ='FU Folha FGV'!AK209 -> 2.9538 | AL11: 3.0135 | AN11: Totais........................ | AO11: ='FU Folha FGV'!$AR$198 -> 3.03873254 | AP11: ='FU Folha FGV'!$AR$199 -> 2.905824603 | AQ11: ='FU Folha FGV'!$AR$200 -> 2.946157937 | AR11: ='FU Folha FGV'!$AR$201 -> 2.893148413 | AS11: ='FU Folha FGV'!$AR$202 -> 2.901023016 | AT11: ='FU Folha FGV'!$AR$203 -> 2.890843651 | AU11: ='FU Folha FGV'!$AR$204 -> 2.855119841 | AV11: ='FU Folha FGV'!$AR$205 -> 2.8556 | AW11: ='FU Folha FGV'!$AR$206 -> 2.8556 | AX11: ='FU Folha FGV'!$AR$207 -> 2.902751587 | AY11: ='FU Folha FGV'!$AR$208 -> 2.900734921 | AZ11: ='FU Folha FGV'!$AR$209 -> 2.836585714 | BC11: Totais........................ | BD11: =SUM(BD6:BD10) -> 565 | BE11: 554 | BF11: 554 | BG11: 554 | BH11: 554 | BI11: 554 | BJ11: 554 | BK11: 554 | BL11: 554 | BM11: 554 | BN11: 554 | BO11: 554 | BP11: 554 | BR11: =517-26 -> 491
A12: Cobrador | B12: Miniônibus | C12: 787.52 | D12: 0 | E12: 0.3875 | F12: =(C12+D12)*(E12/100*100+1) -> 1092.684 | G12: =$G$6 -> 591.582 | H12: =(($F12*Z12)+($G12*AO12))*BE12 -> 241138.4719 | I12: 230602.8606 | J12: 233853.2088 | K12: 229609.076 | L12: 230214.3133 | M12: 229392.3862 | N12: 226545.5295 | O12: 226582.8898 | P12: 226582.8898 | Q12: 230326.3942 | R12: 230162.0088 | S12: 222201.9592 | T12: =SUM(H12:S12) -> 2757211.988 | V12: Cobrador | W12: =B12 -> Miniônibus | X12: ='Plan2 R$ Pessoal'!$D$11 -> 2.12955 | Y12: =X12/X17 -> 1 | Z12: =Z17*$Y12+Z3 -> 3.2272 | AA12: 3.0862 | AB12: 3.1297 | AC12: 3.0729 | AD12: 3.081 | AE12: 3.07 | AF12: 3.0319 | AG12: 3.0324 | AH12: 3.0324 | AI12: 3.0825 | AJ12: 3.0803 | AK12: 2.9538 | AM12: Cobrador | AN12: Miniônibus | AO12: =AO17*$Y12 -> 3.097327003 | AP12: 2.962001301 | AQ12: 3.00375072 | AR12: 2.949236536 | AS12: 2.957010566 | AT12: 2.946453241 | AU12: 2.909886509 | AV12: 2.910366387 | AW12: 2.910366387 | AX12: 2.958450201 | AY12: 2.956338736 | AZ12: 2.890979301 | BB12: Cobrador | BC12: =W12 -> Miniônibus | BD12: =BD6 -> 48 | BE12: 45 | BF12: 45 | BG12: 45 | BH12: 45 | BI12: 45 | BJ12: 45 | BK12: 45 | BL12: 45 | BM12: 45 | BN12: 45 | BO12: 45 | BP12: 45
B13: Ônibus Básico | C13: 787.52 | D13: 0 | E13: 0.3875 | F13: 1092.684 | G13: 591.582 | H13: =(($F13*Z13)+($G13*AO13))*BE13 -> 2727544.048 | I13: 2608374.579 | J13: 2645139.628 | K13: 2597133.771 | L13: 2603979.677 | M13: 2594682.768 | N13: 2562481.656 | O13: 2562904.243 | P13: 2562904.243 | Q13: 2605247.437 | R13: 2603388.055 | S13: 2513351.05 | T13: 31187131.16 | W13: Ônibus Básico | X13: =X12 -> 2.12955 | Y13: =X13/X17 -> 1 | Z13: =Z17*$Y13+Z3 -> 3.2272 | AA13: 3.0862 | AB13: 3.1297 | AC13: 3.0729 | AD13: 3.081 | AE13: 3.07 | AF13: 3.0319 | AG13: 3.0324 | AH13: 3.0324 | AI13: 3.0825 | AJ13: 3.0803 | AK13: 2.9538 | AN13: Ônibus Básico | AO13: =AO17*$Y13 -> 3.097327003 | AP13: 2.962001301 | AQ13: 3.00375072 | AR13: 2.949236536 | AS13: 2.957010566 | AT13: 2.946453241 | AU13: 2.909886509 | AV13: 2.910366387 | AW13: 2.910366387 | AX13: 2.958450201 | AY13: 2.956338736 | AZ13: 2.890979301 | BC13: Ônibus Básico | BD13: =BD7 -> 517 | BE13: 509 | BF13: 509 | BG13: 509 | BH13: 509 | BI13: 509 | BJ13: 509 | BK13: 509 | BL13: 509 | BM13: 509 | BN13: 509 | BO13: 509 | BP13: 509
B14: Padron | C14: 787.52 | D14: 0 | E14: 0.3875 | F14: 1092.684 | G14: 591.582 | H14: =(($F14*Z14)+($G14*AO14))*BE14 -> 0 | I14: 0 | J14: 0 | K14: 0 | L14: 0 | M14: 0 | N14: 0 | O14: 0 | P14: 0 | Q14: 0 | R14: 0 | S14: 0 | T14: 0 | W14: Padron | X14: 2.12955 | Y14: =X14/X17 -> 1 | Z14: =Z17*$Y14+Z3 -> 3.2272 | AA14: 3.0862 | AB14: 3.1297 | AC14: 3.0729 | AD14: 3.081 | AE14: 3.07 | AF14: 3.0319 | AG14: 3.0324 | AH14: 3.0324 | AI14: 3.0825 | AJ14: 3.0803 | AK14: 2.9538 | AN14: Padron | AO14: =AO17*$Y14 -> 3.097327003 | AP14: 2.962001301 | AQ14: 3.00375072 | AR14: 2.949236536 | AS14: 2.957010566 | AT14: 2.946453241 | AU14: 2.909886509 | AV14: 2.910366387 | AW14: 2.910366387 | AX14: 2.958450201 | AY14: 2.956338736 | AZ14: 2.890979301 | BC14: Padron | BD14: =BD8 -> 0 | BE14: 0 | BF14: 0 | BG14: 0 | BH14: 0 | BI14: 0 | BJ14: 0 | BK14: 0 | BL14: 0 | BM14: 0 | BN14: 0 | BO14: 0 | BP14: 0
B15: Articulado | C15: 787.52 | D15: 0 | E15: 0.3875 | F15: 1092.684 | G15: 591.582 | H15: =(($F15*Z15)+($G15*AO15))*BE15 -> 0 | I15: 0 | J15: 0 | K15: 0 | L15: 0 | M15: 0 | N15: 0 | O15: 0 | P15: 0 | Q15: 0 | R15: 0 | S15: 0 | T15: 0 | W15: Articulado | X15: 2.12955 | Y15: =X15/X17 -> 1 | Z15: =Z17*$Y15+Z3 -> 3.2272 | AA15: 3.0862 | AB15: 3.1297 | AC15: 3.0729 | AD15: 3.081 | AE15: 3.07 | AF15: 3.0319 | AG15: 3.0324 | AH15: 3.0324 | AI15: 3.0825 | AJ15: 3.0803 | AK15: 2.9538 | AN15: Articulado | AO15: =AO17*$Y15 -> 3.097327003 | AP15: 2.962001301 | AQ15: 3.00375072 | AR15: 2.949236536 | AS15: 2.957010566 | AT15: 2.946453241 | AU15: 2.909886509 | AV15: 2.910366387 | AW15: 2.910366387 | AX15: 2.958450201 | AY15: 2.956338736 | AZ15: 2.890979301 | BC15: Articulado | BD15: =BD9 -> 0 | BE15: 0 | BF15: 0 | BG15: 0 | BH15: 0 | BI15: 0 | BJ15: 0 | BK15: 0 | BL15: 0 | BM15: 0 | BN15: 0 | BO15: 0 | BP15: 0
B16: Articulado BRT | C16: 787.52 | D16: 0 | E16: 0.3875 | F16: 1092.684 | G16: 591.582 | H16: =(($F16*Z16)+($G16*AO16))*BE16 -> 0 | I16: 0 | J16: 0 | K16: 0 | L16: 0 | M16: 0 | N16: 0 | O16: 0 | P16: 0 | Q16: 0 | R16: 0 | S16: 0 | T16: 0 | W16: Articulado BRT | X16: 2.12955 | Y16: =X16/X17 -> 1 | Z16: =Z17*$Y16+Z3 -> 3.2272 | AA16: 3.0862 | AB16: 3.1297 | AC16: 3.0729 | AD16: 3.081 | AE16: 3.07 | AF16: 3.0319 | AG16: 3.0324 | AH16: 3.0324 | AI16: 3.0825 | AJ16: 3.0803 | AK16: 2.9538 | AN16: Articulado BRT | AO16: =AO17*$Y16 -> 3.097327003 | AP16: 2.962001301 | AQ16: 3.00375072 | AR16: 2.949236536 | AS16: 2.957010566 | AT16: 2.946453241 | AU16: 2.909886509 | AV16: 2.910366387 | AW16: 2.910366387 | AX16: 2.958450201 | AY16: 2.956338736 | AZ16: 2.890979301 | BC16: Articulado BRT | BD16: =BD10 -> 0 | BE16: 0 | BF16: 0 | BG16: 0 | BH16: 0 | BI16: 0 | BJ16: 0 | BK16: 0 | BL16: 0 | BM16: 0 | BN16: 0 | BO16: 0 | BP16: 0
B17: Totais........................ | F17: Totais... | H17: =SUM(H12:H16) -> 2968682.52 | I17: 2838977.44 | J17: 2878992.837 | K17: 2826742.847 | L17: 2834193.99 | M17: 2824075.154 | N17: 2789027.186 | O17: 2789487.133 | P17: 2789487.133 | Q17: 2835573.831 | R17: 2833550.064 | S17: 2735553.009 | T17: 33944343.14 | W17: Totais........................ | X17: 2.12955 | Z17: ='FU Folha FGV'!AL198 -> 3.2272 | AA17: ='FU Folha FGV'!AL199 -> 3.0862 | AB17: ='FU Folha FGV'!AL200 -> 3.1297 | AC17: ='FU Folha FGV'!AL201 -> 3.0729 | AD17: ='FU Folha FGV'!AL202 -> 3.081 | AE17: ='FU Folha FGV'!AL203 -> 3.07 | AF17: ='FU Folha FGV'!AL204 -> 3.0319 | AG17: ='FU Folha FGV'!AL205 -> 3.0324 | AH17: ='FU Folha FGV'!AL206 -> 3.0324 | AI17: ='FU Folha FGV'!AL207 -> 3.0825 | AJ17: ='FU Folha FGV'!AL208 -> 3.0803 | AK17: ='FU Folha FGV'!AK209 -> 2.9538 | AL17: =AK17 -> 2.9538 | AN17: Totais........................ | AO17: ='FU Folha FGV'!$AS$198 -> 3.097327003 | AP17: ='FU Folha FGV'!$AS$199 -> 2.962001301 | AQ17: ='FU Folha FGV'!$AS$200 -> 3.00375072 | AR17: ='FU Folha FGV'!$AS$201 -> 2.949236536 | AS17: ='FU Folha FGV'!$AS$202 -> 2.957010566 | AT17: ='FU Folha FGV'!$AS$203 -> 2.946453241 | AU17: ='FU Folha FGV'!$AS$204 -> 2.909886509 | AV17: ='FU Folha FGV'!$AS$205 -> 2.910366387 | AW17: ='FU Folha FGV'!$AS$206 -> 2.910366387 | AX17: ='FU Folha FGV'!$AS$207 -> 2.958450201 | AY17: ='FU Folha FGV'!$AS$208 -> 2.956338736 | AZ17: ='FU Folha FGV'!$AS$209 -> 2.890979301 | BC17: Totais........................ | BD17: =SUM(BD12:BD16) -> 565 | BE17: 554 | BF17: 554 | BG17: 554 | BH17: 554 | BI17: 554 | BJ17: 554 | BK17: 554 | BL17: 554 | BM17: 554 | BN17: 554 | BO17: 554 | BP17: 554
F18: Total Mensal Mot./Cob. | H18: =H11+H17 -> 7596654.07 | I18: 7264530.995 | J18: 7365973.818 | K18: 7232990.639 | L18: 7252434.756 | M18: 7226812.808 | N18: 7137357.69 | O18: 7138548.916 | P18: 7138548.916 | Q18: 7256447.201 | R18: 7251352.063 | S18: 7055656.149 | T18: 86917308.02 | Z18: 0.959902
A20: Controle Operacional - Composição do Custo Unitário Por Função | G20: Ano 1 | H20: Controle Operacional - Composição de Custo Total Mensal | T20: R$
A21: Funções | B21: Cargo | C21: Salário | D21: Hs Extras | E21: Enc. | F21: R$ Total | G21: Benefícios | H21: =H3 -> 2024-01-01 | I21: =DATE(YEAR(H21),MONTH(H21)+1,DAY(H21)) -> 2024-02-01 | J21: 2024-03-01 | K21: 2024-04-01 | L21: 2024-05-01 | M21: 2024-06-01 | N21: 2024-07-01 | O21: 2024-08-01 | P21: 2024-09-01 | Q21: 2024-10-01 | R21: 2024-11-01 | S21: 2024-12-01 | T21: Total | V21: Fator Utilização Mensal | X21: =U1 -> Ano 11 | Z21: FU FOLHA DE PAGAMENTO | AM21: =X21 -> Ano 11 | AN21: FU Benefícios | AO21: FU FÍSICO PARA CÁLCULOS DOS BENEFÍCIOS | BE21: =BE3 -> Ano 11
C22: base | D22: e Adic. | E22: Soc. | F22: Por | G22: R$ por | H22: R$ | I22: R$ | J22: R$ | K22: R$ | L22: R$ | M22: R$ | N22: R$ | O22: R$ | P22: R$ | Q22: R$ | R22: R$ | S22: R$ | T22: Durante o | V22: Funções | W22: Cargo | X22: FU | Z22: =H21 -> 2024-01-01 | AA22: 2024-02-01 | AB22: 2024-03-01 | AC22: 2024-04-01 | AD22: 2024-05-01 | AE22: 2024-06-01 | AF22: 2024-07-01 | AG22: 2024-08-01 | AH22: 2024-09-01 | AI22: 2024-10-01 | AJ22: 2024-11-01 | AK22: 2024-12-01 | AM22: Funções | AN22: Cargo | AO22: =Z22 -> 2024-01-01 | AP22: 2024-02-01 | AQ22: 2024-03-01 | AR22: 2024-04-01 | AS22: 2024-05-01 | AT22: 2024-06-01 | AU22: 2024-07-01 | AV22: 2024-08-01 | AW22: 2024-09-01 | AX22: 2024-10-01 | AY22: 2024-11-01 | AZ22: 2024-12-01 | BB22: Funções | BC22: Cargo | BD22: Frota | BE22: =Z22 -> 2024-01-01 | BF22: 2024-02-01 | BG22: 2024-03-01 | BH22: 2024-04-01 | BI22: 2024-05-01 | BJ22: 2024-06-01 | BK22: 2024-07-01 | BL22: 2024-08-01 | BM22: 2024-09-01 | BN22: 2024-10-01 | BO22: 2024-11-01 | BP22: 2024-12-01
C23: (R$/mês) | D23: Not. | E23: % | F23: Função | G23: mês | T23: =T5 -> Ano 11 | X23: Licitação | Z23: FU | AA23: FU | AB23: FU | AC23: FU | AD23: FU | AE23: FU | AF23: FU | AG23: FU | AH23: FU | AI23: FU | AJ23: FU | AK23: FU | BD23: Licitação | BE23: Frota | BF23: Frota | BG23: Frota | BH23: Frota | BI23: Frota | BJ23: Frota | BK23: Frota | BL23: Frota | BM23: Frota | BN23: Frota | BO23: Frota | BP23: Frota
A24: Controle Operacional | B24: Chefe de Tráfego | C24: 5400 | D24: 0 | E24: 0.4011 | F24: =(C24+D24)*(E24/100*100+1) -> 7565.94 | G24: =G16 -> 591.582 | H24: =(($F24*Z24)+($G24*AO24))*BE24 -> 9806.809798 | I24: 9806.809798 | J24: 9806.809798 | K24: 9806.809798 | L24: 9806.809798 | M24: 9806.809798 | N24: 9806.809798 | O24: 9806.809798 | P24: 9806.809798 | Q24: 9806.809798 | R24: 9806.809798 | S24: 9806.809798 | T24: =SUM(H24:S24) -> 117681.7176 | V24: Controle Operacional | W24: =B24 -> Chefe de Tráfego | X24: ='Plan2 R$ Pessoal'!D14 -> 0.00217 | Y24: =X24/X31 -> 0.01848580059 | Z24: =Z31*$Y24 -> 0.00217 | AA24: 0.00217 | AB24: 0.00217 | AC24: 0.00217 | AD24: 0.00217 | AE24: 0.00217 | AF24: 0.00217 | AG24: 0.00217 | AH24: 0.00217 | AI24: 0.00217 | AJ24: 0.00217 | AK24: 0.00217 | AM24: Controle Operacional | AN24: =W24 -> Chefe de Tráfego | AO24: =AO31*$Y24 -> 0.00217 | AP24: 0.00217 | AQ24: 0.00217 | AR24: 0.00217 | AS24: 0.00217 | AT24: 0.00217 | AU24: 0.00217 | AV24: 0.00217 | AW24: 0.00217 | AX24: 0.00217 | AY24: 0.00217 | AZ24: 0.00217 | BB24: Controle Operacional | BC24: Fiscal | BD24: =BD$11 -> 565 | BE24: 554 | BF24: 554 | BG24: 554 | BH24: 554 | BI24: 554 | BJ24: 554 | BK24: 554 | BL24: 554 | BM24: 554 | BN24: 554 | BO24: 554 | BP24: 554
B25: Inspetor de Tráfego | C25: 1800 | D25: 0 | E25: 0.4011 | F25: 2521.98 | G25: =G24 -> 591.582 | H25: =(($F25*Z25)+($G25*AO25))*BE25 -> 37498.11551 | I25: 37498.11551 | J25: 37498.11551 | K25: 37498.11551 | L25: 37498.11551 | M25: 37498.11551 | N25: 37498.11551 | O25: 37498.11551 | P25: 37498.11551 | Q25: 37498.11551 | R25: 37498.11551 | S25: 37498.11551 | T25: 449977.3861 | W25: Inspetor de Tráfego | X25: ='Plan2 R$ Pessoal'!D15 -> 0.02173913 | Y25: =X25/X31 -> 0.1851913466 | Z25: =Z31*$Y25 -> 0.02173913 | AA25: 0.02173913 | AB25: 0.02173913 | AC25: 0.02173913 | AD25: 0.02173913 | AE25: 0.02173913 | AF25: 0.02173913 | AG25: 0.02173913 | AH25: 0.02173913 | AI25: 0.02173913 | AJ25: 0.02173913 | AK25: 0.02173913 | AN25: Inspetor de Tráfego | AO25: =AO31*$Y25 -> 0.02173913 | AP25: 0.02173913 | AQ25: 0.02173913 | AR25: 0.02173913 | AS25: 0.02173913 | AT25: 0.02173913 | AU25: 0.02173913 | AV25: 0.02173913 | AW25: 0.02173913 | AX25: 0.02173913 | AY25: 0.02173913 | AZ25: 0.02173913 | BC25: Inspetores de Tráfego | BD25: =BD$11 -> 565 | BE25: 554 | BF25: 554 | BG25: 554 | BH25: 554 | BI25: 554 | BJ25: 554 | BK25: 554 | BL25: 554 | BM25: 554 | BN25: 554 | BO25: 554 | BP25: 554
B26: Escalador | C26: 1350 | D26: 0 | E26: 0.4011 | F26: 1891.485 | G26: 591.582 | H26: =(($F26*Z26)+($G26*AO26))*BE26 -> 14952.37454 | I26: 14952.37454 | J26: 14952.37454 | K26: 14952.37454 | L26: 14952.37454 | M26: 14952.37454 | N26: 14952.37454 | O26: 14952.37454 | P26: 14952.37454 | Q26: 14952.37454 | R26: 14952.37454 | S26: 14952.37454 | T26: 179428.4945 | W26: Escalador | X26: ='Plan2 R$ Pessoal'!D16 -> 0.01086956 | Y26: =X26/X31 -> 0.09259563073 | Z26: =Z31*$Y26 -> 0.01086956 | AA26: 0.01086956 | AB26: 0.01086956 | AC26: 0.01086956 | AD26: 0.01086956 | AE26: 0.01086956 | AF26: 0.01086956 | AG26: 0.01086956 | AH26: 0.01086956 | AI26: 0.01086956 | AJ26: 0.01086956 | AK26: 0.01086956 | AN26: Escalador | AO26: =AO31*$Y26 -> 0.01086956 | AP26: 0.01086956 | AQ26: 0.01086956 | AR26: 0.01086956 | AS26: 0.01086956 | AT26: 0.01086956 | AU26: 0.01086956 | AV26: 0.01086956 | AW26: 0.01086956 | AX26: 0.01086956 | AY26: 0.01086956 | AZ26: 0.01086956 | BC26: Chefe de Tráfego | BD26: =BD$11 -> 565 | BE26: 554 | BF26: 554 | BG26: 554 | BH26: 554 | BI26: 554 | BJ26: 554 | BK26: 554 | BL26: 554 | BM26: 554 | BN26: 554 | BO26: 554 | BP26: 554
B27: Programadores | C27: 1350 | D27: 0 | E27: 0.4011 | F27: 1891.485 | G27: 591.582 | H27: =(($F27*Z27)+($G27*AO27))*BE27 -> 5980.95807 | I27: 5980.95807 | J27: 5980.95807 | K27: 5980.95807 | L27: 5980.95807 | M27: 5980.95807 | N27: 5980.95807 | O27: 5980.95807 | P27: 5980.95807 | Q27: 5980.95807 | R27: 5980.95807 | S27: 5980.95807 | T27: 71771.49684 | W27: Programadores | X27: ='Plan2 R$ Pessoal'!D17 -> 0.00434783 | Y27: =X27/X31 -> 0.0370383034 | Z27: =Z31*$Y27 -> 0.00434783 | AA27: 0.00434783 | AB27: 0.00434783 | AC27: 0.00434783 | AD27: 0.00434783 | AE27: 0.00434783 | AF27: 0.00434783 | AG27: 0.00434783 | AH27: 0.00434783 | AI27: 0.00434783 | AJ27: 0.00434783 | AK27: 0.00434783 | AN27: Programadores | AO27: =AO31*$Y27 -> 0.00434783 | AP27: 0.00434783 | AQ27: 0.00434783 | AR27: 0.00434783 | AS27: 0.00434783 | AT27: 0.00434783 | AU27: 0.00434783 | AV27: 0.00434783 | AW27: 0.00434783 | AX27: 0.00434783 | AY27: 0.00434783 | AZ27: 0.00434783 | BC27: Instrutor | BD27: =BD$11 -> 565 | BE27: 554 | BF27: 554 | BG27: 554 | BH27: 554 | BI27: 554 | BJ27: 554 | BK27: 554 | BL27: 554 | BM27: 554 | BN27: 554 | BO27: 554 | BP27: 554
B28: Fiscal | C28: 1500 | D28: 0 | E28: 0.4011 | F28: 2101.65 | G28: 591.582 | H28: =(($F28*Z28)+($G28*AO28))*BE28 -> 84333.30141 | I28: 84333.30141 | J28: 84333.30141 | K28: 84333.30141 | L28: 84333.30141 | M28: 84333.30141 | N28: 84333.30141 | O28: 84333.30141 | P28: 84333.30141 | Q28: 84333.30141 | R28: 84333.30141 | S28: 84333.30141 | T28: 1011999.617 | W28: Fiscal | X28: ='Plan2 R$ Pessoal'!D18 -> 0.0565217463 | Y28: =X28/X31 -> 0.481497572 | Z28: =Z31*$Y28 -> 0.0565217463 | AA28: 0.0565217463 | AB28: 0.0565217463 | AC28: 0.0565217463 | AD28: 0.0565217463 | AE28: 0.0565217463 | AF28: 0.0565217463 | AG28: 0.0565217463 | AH28: 0.0565217463 | AI28: 0.0565217463 | AJ28: 0.0565217463 | AK28: 0.0565217463 | AN28: Fiscal | AO28: =AO31*$Y28 -> 0.0565217463 | AP28: 0.0565217463 | AQ28: 0.0565217463 | AR28: 0.0565217463 | AS28: 0.0565217463 | AT28: 0.0565217463 | AU28: 0.0565217463 | AV28: 0.0565217463 | AW28: 0.0565217463 | AX28: 0.0565217463 | AY28: 0.0565217463 | AZ28: 0.0565217463 | BC28: Programadores | BD28: =BD$11 -> 565 | BE28: 554 | BF28: 554 | BG28: 554 | BH28: 554 | BI28: 554 | BJ28: 554 | BK28: 554 | BL28: 554 | BM28: 554 | BN28: 554 | BO28: 554 | BP28: 554
B29: Controle de Operação | C29: 2550 | D29: 0 | E29: 0.4011 | F29: 3572.805 | G29: 591.582 | H29: =(($F29*Z29)+($G29*AO29))*BE29 -> 20061.47671 | I29: 20061.47671 | J29: 20061.47671 | K29: 20061.47671 | L29: 20061.47671 | M29: 20061.47671 | N29: 20061.47671 | O29: 20061.47671 | P29: 20061.47671 | Q29: 20061.47671 | R29: 20061.47671 | S29: 20061.47671 | T29: 240737.7205 | W29: Controle de Operação | X29: ='Plan2 R$ Pessoal'!D19 -> 0.00869565 | Y29: =X29/X31 -> 0.07407652162 | Z29: =Z31*$Y29 -> 0.00869565 | AA29: 0.00869565 | AB29: 0.00869565 | AC29: 0.00869565 | AD29: 0.00869565 | AE29: 0.00869565 | AF29: 0.00869565 | AG29: 0.00869565 | AH29: 0.00869565 | AI29: 0.00869565 | AJ29: 0.00869565 | AK29: 0.00869565 | AN29: Controle de Operação | AO29: =AO31*$Y29 -> 0.00869565 | AP29: 0.00869565 | AQ29: 0.00869565 | AR29: 0.00869565 | AS29: 0.00869565 | AT29: 0.00869565 | AU29: 0.00869565 | AV29: 0.00869565 | AW29: 0.00869565 | AX29: 0.00869565 | AY29: 0.00869565 | AZ29: 0.00869565 | BC29: Escaladores | BD29: =BD$11 -> 565 | BE29: 554 | BF29: 554 | BG29: 554 | BH29: 554 | BI29: 554 | BJ29: 554 | BK29: 554 | BL29: 554 | BM29: 554 | BN29: 554 | BO29: 554 | BP29: 554
B30: Auxiliares | C30: 1000 | D30: 0 | E30: 0.4011 | F30: 1401.1 | G30: 591.582 | H30: =(($F30*Z30)+($G30*AO30))*BE30 -> 14399.29533 | I30: 14399.29533 | J30: 14399.29533 | K30: 14399.29533 | L30: 14399.29533 | M30: 14399.29533 | N30: 14399.29533 | O30: 14399.29533 | P30: 14399.29533 | Q30: 14399.29533 | R30: 14399.29533 | S30: 14399.29533 | T30: 172791.5439 | W30: Auxiliares | X30: ='Plan2 R$ Pessoal'!D20 -> 0.01304348 | Y30: =X30/X31 -> 0.111114825 | Z30: =Z31*$Y30 -> 0.01304348 | AA30: 0.01304348 | AB30: 0.01304348 | AC30: 0.01304348 | AD30: 0.01304348 | AE30: 0.01304348 | AF30: 0.01304348 | AG30: 0.01304348 | AH30: 0.01304348 | AI30: 0.01304348 | AJ30: 0.01304348 | AK30: 0.01304348 | AN30: Auxiliares | AO30: =AO31*$Y30 -> 0.01304348 | AP30: 0.01304348 | AQ30: 0.01304348 | AR30: 0.01304348 | AS30: 0.01304348 | AT30: 0.01304348 | AU30: 0.01304348 | AV30: 0.01304348 | AW30: 0.01304348 | AX30: 0.01304348 | AY30: 0.01304348 | AZ30: 0.01304348 | BC30: Auxiliares | BD30: =BD$11 -> 565 | BE30: 554 | BF30: 554 | BG30: 554 | BH30: 554 | BI30: 554 | BJ30: 554 | BK30: 554 | BL30: 554 | BM30: 554 | BN30: 554 | BO30: 554 | BP30: 554
B31: Totais........................ | F31: Totais... | G31: 591.582 | H31: =SUM(H24:H30) -> 187032.3314 | I31: 187032.3314 | J31: 187032.3314 | K31: 187032.3314 | L31: 187032.3314 | M31: 187032.3314 | N31: 187032.3314 | O31: 187032.3314 | P31: 187032.3314 | Q31: 187032.3314 | R31: 187032.3314 | S31: 187032.3314 | T31: 2244387.976 | W31: Totais........................ | X31: =SUM(X24:X30) -> 0.1173873963 | Y31: 1 | Z31: ='FU Folha FGV'!$AM198 -> 0.1173873963 | AA31: ='FU Folha FGV'!$AM199 -> 0.1173873963 | AB31: ='FU Folha FGV'!$AM200 -> 0.1173873963 | AC31: ='FU Folha FGV'!$AM201 -> 0.1173873963 | AD31: ='FU Folha FGV'!$AM202 -> 0.1173873963 | AE31: ='FU Folha FGV'!$AM203 -> 0.1173873963 | AF31: ='FU Folha FGV'!$AM204 -> 0.1173873963 | AG31: ='FU Folha FGV'!$AM205 -> 0.1173873963 | AH31: ='FU Folha FGV'!$AM206 -> 0.1173873963 | AI31: ='FU Folha FGV'!$AM207 -> 0.1173873963 | AJ31: ='FU Folha FGV'!$AM208 -> 0.1173873963 | AK31: ='FU Folha FGV'!$AM209 -> 0.1173873963 | AN31: Totais........................ | AO31: ='FU Folha FGV'!$AT$198 -> 0.1173873963 | AP31: ='FU Folha FGV'!$AT$199 -> 0.1173873963 | AQ31: ='FU Folha FGV'!$AT$200 -> 0.1173873963 | AR31: ='FU Folha FGV'!$AT$201 -> 0.1173873963 | AS31: ='FU Folha FGV'!$AT$202 -> 0.1173873963 | AT31: ='FU Folha FGV'!$AT$203 -> 0.1173873963 | AU31: ='FU Folha FGV'!$AT$204 -> 0.1173873963 | AV31: ='FU Folha FGV'!$AT$205 -> 0.1173873963 | AW31: ='FU Folha FGV'!$AT$206 -> 0.1173873963 | AX31: ='FU Folha FGV'!$AT$207 -> 0.1173873963 | AY31: ='FU Folha FGV'!$AT$208 -> 0.1173873963 | AZ31: ='FU Folha FGV'!$AT$209 -> 0.1173873963 | BC31: Totais........................ | BD31: =BD$11 -> 565 | BE31: 554 | BF31: 554 | BG31: 554 | BH31: 554 | BI31: 554 | BJ31: 554 | BK31: 554 | BL31: 554 | BM31: 554 | BN31: 554 | BO31: 554 | BP31: 554
A32: Manutenção | B32: Chefe de Manutenção | C32: 2250 | D32: 0 | E32: 0.4011 | F32: =(C32+D32)*(E32/100*100+1) -> 3152.475 | G32: 591.582 | H32: =(($F32*Z32)+($G32*AO32))*BE32 -> 49600.60878 | I32: 49600.60878 | J32: 49600.60878 | K32: 49600.60878 | L32: 49600.60878 | M32: 49600.60878 | N32: 49600.60878 | O32: 49600.60878 | P32: 49600.60878 | Q32: 49600.60878 | R32: 49600.60878 | S32: 49600.60878 | T32: =SUM(H32:S32) -> 595207.3054 | V32: Manutenção | W32: Chefe de Manutenção | X32: ='Plan2 R$ Pessoal'!D23 -> 0.02391304 | Y32: =X32/X40 -> 0.05238094627 | Z32: =Z40*$Y32 -> 0.02391304 | AA32: 0.02391304 | AB32: 0.02391304 | AC32: 0.02391304 | AD32: 0.02391304 | AE32: 0.02391304 | AF32: 0.02391304 | AG32: 0.02391304 | AH32: 0.02391304 | AI32: 0.02391304 | AJ32: 0.02391304 | AK32: 0.02391304 | AM32: Manutenção | AN32: Chefe de Manutenção | AO32: =AO40*$Y32 -> 0.02391304 | AP32: 0.02391304 | AQ32: 0.02391304 | AR32: 0.02391304 | AS32: 0.02391304 | AT32: 0.02391304 | AU32: 0.02391304 | AV32: 0.02391304 | AW32: 0.02391304 | AX32: 0.02391304 | AY32: 0.02391304 | AZ32: 0.02391304 | BB32: Manutenção | BC32: 1/2 Oficial Eletricista | BD32: =BD$11 -> 565 | BE32: 554 | BF32: 554 | BG32: 554 | BH32: 554 | BI32: 554 | BJ32: 554 | BK32: 554 | BL32: 554 | BM32: 554 | BN32: 554 | BO32: 554 | BP32: 554
B33: Mecânicos | C33: 1500 | D33: 0 | E33: 0.4011 | F33: 2101.65 | G33: 591.582 | H33: =(($F33*Z33)+($G33*AO33))*BE33 -> 120012.75 | I33: 120012.75 | J33: 120012.75 | K33: 120012.75 | L33: 120012.75 | M33: 120012.75 | N33: 120012.75 | O33: 120012.75 | P33: 120012.75 | Q33: 120012.75 | R33: 120012.75 | S33: 120012.75 | T33: 1440153 | W33: Mecânicos | X33: ='Plan2 R$ Pessoal'!D24 -> 0.080434776 | Y33: =X33/X40 -> 0.1761904668 | Z33: =Z40*$Y33 -> 0.080434776 | AA33: 0.080434776 | AB33: 0.080434776 | AC33: 0.080434776 | AD33: 0.080434776 | AE33: 0.080434776 | AF33: 0.080434776 | AG33: 0.080434776 | AH33: 0.080434776 | AI33: 0.080434776 | AJ33: 0.080434776 | AK33: 0.080434776 | AN33: Mecânicos | AO33: =AO40*$Y33 -> 0.080434776 | AP33: 0.080434776 | AQ33: 0.080434776 | AR33: 0.080434776 | AS33: 0.080434776 | AT33: 0.080434776 | AU33: 0.080434776 | AV33: 0.080434776 | AW33: 0.080434776 | AX33: 0.080434776 | AY33: 0.080434776 | AZ33: 0.080434776 | BC33: 1/2 Oficial Funileiro | BD33: =BD$11 -> 565 | BE33: 554 | BF33: 554 | BG33: 554 | BH33: 554 | BI33: 554 | BJ33: 554 | BK33: 554 | BL33: 554 | BM33: 554 | BN33: 554 | BO33: 554 | BP33: 554
B34: Eletricista | C34: 1500 | D34: 0 | E34: 0.4011 | F34: 2101.65 | G34: 591.582 | H34: =(($F34*Z34)+($G34*AO34))*BE34 -> 55140.99518 | I34: 55140.99518 | J34: 55140.99518 | K34: 55140.99518 | L34: 55140.99518 | M34: 55140.99518 | N34: 55140.99518 | O34: 55140.99518 | P34: 55140.99518 | Q34: 55140.99518 | R34: 55140.99518 | S34: 55140.99518 | T34: 661691.9421 | W34: Eletricista | X34: ='Plan2 R$ Pessoal'!D25 -> 0.03695652 | Y34: =X34/X40 -> 0.08095237947 | Z34: =Z40*$Y34 -> 0.03695652 | AA34: 0.03695652 | AB34: 0.03695652 | AC34: 0.03695652 | AD34: 0.03695652 | AE34: 0.03695652 | AF34: 0.03695652 | AG34: 0.03695652 | AH34: 0.03695652 | AI34: 0.03695652 | AJ34: 0.03695652 | AK34: 0.03695652 | AN34: Eletricista | AO34: =AO40*$Y34 -> 0.03695652 | AP34: 0.03695652 | AQ34: 0.03695652 | AR34: 0.03695652 | AS34: 0.03695652 | AT34: 0.03695652 | AU34: 0.03695652 | AV34: 0.03695652 | AW34: 0.03695652 | AX34: 0.03695652 | AY34: 0.03695652 | AZ34: 0.03695652 | BC34: Abastecedor | BD34: =BD$11 -> 565 | BE34: 554 | BF34: 554 | BG34: 554 | BH34: 554 | BI34: 554 | BJ34: 554 | BK34: 554 | BL34: 554 | BM34: 554 | BN34: 554 | BO34: 554 | BP34: 554
B35: Funileiro | C35: 1500 | D35: 0 | E35: 0.4011 | F35: 2101.65 | G35: 591.582 | H35: =(($F35*Z35)+($G35*AO35))*BE35 -> 45410.22957 | I35: 45410.22957 | J35: 45410.22957 | K35: 45410.22957 | L35: 45410.22957 | M35: 45410.22957 | N35: 45410.22957 | O35: 45410.22957 | P35: 45410.22957 | Q35: 45410.22957 | R35: 45410.22957 | S35: 45410.22957 | T35: 544922.7548 | W35: Funileiro | X35: ='Plan2 R$ Pessoal'!D26 -> 0.03043478 | Y35: =X35/X40 -> 0.06666666287 | Z35: =Z40*$Y35 -> 0.03043478 | AA35: 0.03043478 | AB35: 0.03043478 | AC35: 0.03043478 | AD35: 0.03043478 | AE35: 0.03043478 | AF35: 0.03043478 | AG35: 0.03043478 | AH35: 0.03043478 | AI35: 0.03043478 | AJ35: 0.03043478 | AK35: 0.03043478 | AN35: Funileiro | AO35: =AO40*$Y35 -> 0.03043478 | AP35: 0.03043478 | AQ35: 0.03043478 | AR35: 0.03043478 | AS35: 0.03043478 | AT35: 0.03043478 | AU35: 0.03043478 | AV35: 0.03043478 | AW35: 0.03043478 | AX35: 0.03043478 | AY35: 0.03043478 | AZ35: 0.03043478 | BC35: Auxiliar Almoxarife | BD35: =BD$11 -> 565 | BE35: 554 | BF35: 554 | BG35: 554 | BH35: 554 | BI35: 554 | BJ35: 554 | BK35: 554 | BL35: 554 | BM35: 554 | BN35: 554 | BO35: 554 | BP35: 554
B36: Pintor | C36: 1300 | D36: 0 | E36: 0.4011 | F36: 1821.43 | G36: 591.582 | H36: =(($F36*Z36)+($G36*AO36))*BE36 -> 31967.17204 | I36: 31967.17204 | J36: 31967.17204 | K36: 31967.17204 | L36: 31967.17204 | M36: 31967.17204 | N36: 31967.17204 | O36: 31967.17204 | P36: 31967.17204 | Q36: 31967.17204 | R36: 31967.17204 | S36: 31967.17204 | T36: 383606.0645 | W36: Pintor | X36: ='Plan2 R$ Pessoal'!D27 -> 0.02391305 | Y36: =X36/X40 -> 0.05238096817 | Z36: =Z40*$Y36 -> 0.02391305 | AA36: 0.02391305 | AB36: 0.02391305 | AC36: 0.02391305 | AD36: 0.02391305 | AE36: 0.02391305 | AF36: 0.02391305 | AG36: 0.02391305 | AH36: 0.02391305 | AI36: 0.02391305 | AJ36: 0.02391305 | AK36: 0.02391305 | AN36: Pintor | AO36: =AO40*$Y36 -> 0.02391305 | AP36: 0.02391305 | AQ36: 0.02391305 | AR36: 0.02391305 | AS36: 0.02391305 | AT36: 0.02391305 | AU36: 0.02391305 | AV36: 0.02391305 | AW36: 0.02391305 | AX36: 0.02391305 | AY36: 0.02391305 | AZ36: 0.02391305 | BC36: Auxiliar de serv.gerais | BD36: =BD$11 -> 565 | BE36: 554 | BF36: 554 | BG36: 554 | BH36: 554 | BI36: 554 | BJ36: 554 | BK36: 554 | BL36: 554 | BM36: 554 | BN36: 554 | BO36: 554 | BP36: 554
B37: Borracheiro | C37: 1400 | D37: 0 | E37: 0.4011 | F37: 1961.54 | G37: 591.582 | H37: =(($F37*Z37)+($G37*AO37))*BE37 -> 33823.32546 | I37: 33823.32546 | J37: 33823.32546 | K37: 33823.32546 | L37: 33823.32546 | M37: 33823.32546 | N37: 33823.32546 | O37: 33823.32546 | P37: 33823.32546 | Q37: 33823.32546 | R37: 33823.32546 | S37: 33823.32546 | T37: 405879.9055 | W37: Borracheiro | X37: ='Plan2 R$ Pessoal'!D28 -> 0.02391305 | Y37: =X37/X40 -> 0.05238096817 | Z37: =Z40*$Y37 -> 0.02391305 | AA37: 0.02391305 | AB37: 0.02391305 | AC37: 0.02391305 | AD37: 0.02391305 | AE37: 0.02391305 | AF37: 0.02391305 | AG37: 0.02391305 | AH37: 0.02391305 | AI37: 0.02391305 | AJ37: 0.02391305 | AK37: 0.02391305 | AN37: Borracheiro | AO37: =AO40*$Y37 -> 0.02391305 | AP37: 0.02391305 | AQ37: 0.02391305 | AR37: 0.02391305 | AS37: 0.02391305 | AT37: 0.02391305 | AU37: 0.02391305 | AV37: 0.02391305 | AW37: 0.02391305 | AX37: 0.02391305 | AY37: 0.02391305 | AZ37: 0.02391305 | BC37: Borracheiro | BD37: =BD$11 -> 565 | BE37: 554 | BF37: 554 | BG37: 554 | BH37: 554 | BI37: 554 | BJ37: 554 | BK37: 554 | BL37: 554 | BM37: 554 | BN37: 554 | BO37: 554 | BP37: 554
B38: Auxiliares | C38: 660 | D38: 0 | E38: 0.4011 | F38: 924.726 | G38: 591.582 | H38: =(($F38*Z38)+($G38*AO38))*BE38 -> 71220.32019 | I38: 71220.32019 | J38: 71220.32019 | K38: 71220.32019 | L38: 71220.32019 | M38: 71220.32019 | N38: 71220.32019 | O38: 71220.32019 | P38: 71220.32019 | Q38: 71220.32019 | R38: 71220.32019 | S38: 71220.32019 | T38: 854643.8423 | W38: Auxiliares | X38: ='Plan2 R$ Pessoal'!D29 -> 0.0847826 | Y38: =X38/X40 -> 0.185714272 | Z38: =Z40*$Y38 -> 0.0847826 | AA38: 0.0847826 | AB38: 0.0847826 | AC38: 0.0847826 | AD38: 0.0847826 | AE38: 0.0847826 | AF38: 0.0847826 | AG38: 0.0847826 | AH38: 0.0847826 | AI38: 0.0847826 | AJ38: 0.0847826 | AK38: 0.0847826 | AN38: Auxiliares | AO38: =AO40*$Y38 -> 0.0847826 | AP38: 0.0847826 | AQ38: 0.0847826 | AR38: 0.0847826 | AS38: 0.0847826 | AT38: 0.0847826 | AU38: 0.0847826 | AV38: 0.0847826 | AW38: 0.0847826 | AX38: 0.0847826 | AY38: 0.0847826 | AZ38: 0.0847826 | BC38: Comprador/Almoxarife | BD38: =BD$11 -> 565 | BE38: 554 | BF38: 554 | BG38: 554 | BH38: 554 | BI38: 554 | BJ38: 554 | BK38: 554 | BL38: 554 | BM38: 554 | BN38: 554 | BO38: 554 | BP38: 554
B39: Outros | C39: 1000 | D39: 0 | E39: 0.4011 | F39: 1401.1 | G39: 591.582 | H39: =(($F39*Z39)+($G39*AO39))*BE39 -> 167991.7531 | I39: 167991.7531 | J39: 167991.7531 | K39: 167991.7531 | L39: 167991.7531 | M39: 167991.7531 | N39: 167991.7531 | O39: 167991.7531 | P39: 167991.7531 | Q39: 167991.7531 | R39: 167991.7531 | S39: 167991.7531 | T39: 2015901.037 | W39: Outros | X39: ='Plan2 R$ Pessoal'!D30 -> 0.15217391 | Y39: =X39/X40 -> 0.3333333363 | Z39: =Z40*$Y39 -> 0.15217391 | AA39: 0.15217391 | AB39: 0.15217391 | AC39: 0.15217391 | AD39: 0.15217391 | AE39: 0.15217391 | AF39: 0.15217391 | AG39: 0.15217391 | AH39: 0.15217391 | AI39: 0.15217391 | AJ39: 0.15217391 | AK39: 0.15217391 | AN39: Outros | AO39: =AO40*$Y39 -> 0.15217391 | AP39: 0.15217391 | AQ39: 0.15217391 | AR39: 0.15217391 | AS39: 0.15217391 | AT39: 0.15217391 | AU39: 0.15217391 | AV39: 0.15217391 | AW39: 0.15217391 | AX39: 0.15217391 | AY39: 0.15217391 | AZ39: 0.15217391 | BC39: Controlador de Manut. | BD39: =BD$11 -> 565 | BE39: 554 | BF39: 554 | BG39: 554 | BH39: 554 | BI39: 554 | BJ39: 554 | BK39: 554 | BL39: 554 | BM39: 554 | BN39: 554 | BO39: 554 | BP39: 554
B40: Totais........................ | F40: Totais... | H40: =SUM(H32:H39) -> 575167.1543 | I40: 575167.1543 | J40: 575167.1543 | K40: 575167.1543 | L40: 575167.1543 | M40: 575167.1543 | N40: 575167.1543 | O40: 575167.1543 | P40: 575167.1543 | Q40: 575167.1543 | R40: 575167.1543 | S40: 575167.1543 | T40: 6902005.852 | W40: Totais........................ | X40: =SUM(X32:X39) -> 0.456521726 | Y40: 1 | Z40: ='FU Folha FGV'!$AN198 -> 0.456521726 | AA40: ='FU Folha FGV'!$AN199 -> 0.456521726 | AB40: ='FU Folha FGV'!$AN200 -> 0.456521726 | AC40: ='FU Folha FGV'!$AN201 -> 0.456521726 | AD40: ='FU Folha FGV'!$AN202 -> 0.456521726 | AE40: ='FU Folha FGV'!$AN203 -> 0.456521726 | AF40: ='FU Folha FGV'!$AN204 -> 0.456521726 | AG40: ='FU Folha FGV'!$AN205 -> 0.456521726 | AH40: ='FU Folha FGV'!$AN206 -> 0.456521726 | AI40: ='FU Folha FGV'!$AN207 -> 0.456521726 | AJ40: ='FU Folha FGV'!$AN208 -> 0.456521726 | AK40: ='FU Folha FGV'!$AN209 -> 0.456521726 | AN40: Totais........................ | AO40: ='FU Folha FGV'!$AU$198 -> 0.456521726 | AP40: ='FU Folha FGV'!$AU$199 -> 0.456521726 | AQ40: ='FU Folha FGV'!$AU$200 -> 0.456521726 | AR40: ='FU Folha FGV'!$AU$201 -> 0.456521726 | AS40: ='FU Folha FGV'!$AU$202 -> 0.456521726 | AT40: ='FU Folha FGV'!$AU$203 -> 0.456521726 | AU40: ='FU Folha FGV'!$AU$204 -> 0.456521726 | AV40: ='FU Folha FGV'!$AU$205 -> 0.456521726 | AW40: ='FU Folha FGV'!$AU$206 -> 0.456521726 | AX40: ='FU Folha FGV'!$AU$207 -> 0.456521726 | AY40: ='FU Folha FGV'!$AU$208 -> 0.456521726 | AZ40: ='FU Folha FGV'!$AU$209 -> 0.456521726 | BC40: Totais........................ | BD40: =BD$11 -> 565 | BE40: 554 | BF40: 554 | BG40: 554 | BH40: 554 | BI40: 554 | BJ40: 554 | BK40: 554 | BL40: 554 | BM40: 554 | BN40: 554 | BO40: 554 | BP40: 554
F41: Total Geral Mensal Pessoal de Operação | H41: =H18+H31+H40 -> 8358853.556 | I41: 8026730.48 | J41: 8128173.304 | K41: 7995190.125 | L41: 8014634.242 | M41: 7989012.293 | N41: 7899557.176 | O41: 7900748.402 | P41: 7900748.402 | Q41: 8018646.687 | R41: 8013551.548 | S41: 7817855.634 | T41: 96063701.85
A43: Administração - Composição do Custo Unitário Por Função | G43: Ano 1 | H43: Administração - Composição de Custo Total Mensal | T43: R$
A44: Funções | B44: Cargo | C44: Salário | D44: Hs Extras | E44: Enc. | F44: R$ Total | G44: Benefícios | H44: =H3 -> 2024-01-01 | I44: =DATE(YEAR(H44),MONTH(H44)+1,DAY(H44)) -> 2024-02-01 | J44: 2024-03-01 | K44: 2024-04-01 | L44: 2024-05-01 | M44: 2024-06-01 | N44: 2024-07-01 | O44: 2024-08-01 | P44: 2024-09-01 | Q44: 2024-10-01 | R44: 2024-11-01 | S44: 2024-12-01 | T44: Total | V44: Fator Utilização Mensal | X44: =X21 -> Ano 11 | Z44: FU FOLHA DE PAGAMENTO | AM44: =X44 -> Ano 11 | AN44: FU Benefícios | AO44: FU FÍSICO PARA CÁLCULOS DOS BENEFÍCIOS | BB44: Frota Mensal | BE44: =BE21 -> Ano 11
C45: base | D45: e Adic. | E45: Soc. | F45: Por | G45: R$ por | H45: R$ | I45: R$ | J45: R$ | K45: R$ | L45: R$ | M45: R$ | N45: R$ | O45: R$ | P45: R$ | Q45: R$ | R45: R$ | S45: R$ | T45: Durante o | V45: Funções | W45: Cargo | X45: FU | Z45: =H44 -> 2024-01-01 | AA45: 2024-02-01 | AB45: 2024-03-01 | AC45: 2024-04-01 | AD45: 2024-05-01 | AE45: 2024-06-01 | AF45: 2024-07-01 | AG45: 2024-08-01 | AH45: 2024-09-01 | AI45: 2024-10-01 | AJ45: 2024-11-01 | AK45: 2024-12-01 | AM45: Funções | AN45: Cargo | AO45: =Z45 -> 2024-01-01 | AP45: 2024-02-01 | AQ45: 2024-03-01 | AR45: 2024-04-01 | AS45: 2024-05-01 | AT45: 2024-06-01 | AU45: 2024-07-01 | AV45: 2024-08-01 | AW45: 2024-09-01 | AX45: 2024-10-01 | AY45: 2024-11-01 | AZ45: 2024-12-01 | BB45: Funções | BC45: Cargo | BD45: Frota | BE45: =Z45 -> 2024-01-01 | BF45: 2024-02-01 | BG45: 2024-03-01 | BH45: 2024-04-01 | BI45: 2024-05-01 | BJ45: 2024-06-01 | BK45: 2024-07-01 | BL45: 2024-08-01 | BM45: 2024-09-01 | BN45: 2024-10-01 | BO45: 2024-11-01 | BP45: 2024-12-01
C46: (R$/mês) | D46: Not. | E46: % | F46: Função | G46: mês | T46: =T23 -> Ano 11 | X46: Licitação | Z46: FU | AA46: FU | AB46: FU | AC46: FU | AD46: FU | AE46: FU | AF46: FU | AG46: FU | AH46: FU | AI46: FU | AJ46: FU | AK46: FU | BD46: Licitação | BE46: Frota | BF46: Frota | BG46: Frota | BH46: Frota | BI46: Frota | BJ46: Frota | BK46: Frota | BL46: Frota | BM46: Frota | BN46: Frota | BO46: Frota | BP46: Frota
A47: Administração | B47: Assistente Administrativo | C47: 1800 | D47: 0 | E47: 0.4011 | F47: =(C47+D47)*(E47/100*100+1) -> 2521.98 | G47: =G39 -> 591.582 | H47: =(($F47*Z47)+($G47*AO47))*BE47 -> 37498.11551 | I47: 37498.11551 | J47: 37498.11551 | K47: 37498.11551 | L47: 37498.11551 | M47: 37498.11551 | N47: 37498.11551 | O47: 37498.11551 | P47: 37498.11551 | Q47: 37498.11551 | R47: 37498.11551 | S47: 37498.11551 | T47: =SUM(H47:S47) -> 449977.3861 | V47: Administração | W47: =B47 -> Assistente Administrativo | X47: ='Plan4 R$ Pessoal'!D8 -> 0.02173913 | Y47: =X47/X64 -> 0.1087010144 | Z47: =Z64*$Y47 -> 0.02173913 | AA47: 0.02173913 | AB47: 0.02173913 | AC47: 0.02173913 | AD47: 0.02173913 | AE47: 0.02173913 | AF47: 0.02173913 | AG47: 0.02173913 | AH47: 0.02173913 | AI47: 0.02173913 | AJ47: 0.02173913 | AK47: 0.02173913 | AM47: Administração | AN47: =W47 -> Assistente Administrativo | AO47: =AO64*$Y47 -> 0.02173913 | AP47: 0.02173913 | AQ47: 0.02173913 | AR47: 0.02173913 | AS47: 0.02173913 | AT47: 0.02173913 | AU47: 0.02173913 | AV47: 0.02173913 | AW47: 0.02173913 | AX47: 0.02173913 | AY47: 0.02173913 | AZ47: 0.02173913 | BB47: Administração | BC47: Gerente Adm. Financ. | BD47: =BD$11 -> 565 | BE47: 554 | BF47: 554 | BG47: 554 | BH47: 554 | BI47: 554 | BJ47: 554 | BK47: 554 | BL47: 554 | BM47: 554 | BN47: 554 | BO47: 554 | BP47: 554
B48: Assistente Financeiro | C48: 2160 | D48: 0 | E48: 0.4011 | F48: 3026.376 | G48: =G47 -> 591.582 | H48: =(($F48*Z48)+($G48*AO48))*BE48 -> 34857.6288 | I48: 34857.6288 | J48: 34857.6288 | K48: 34857.6288 | L48: 34857.6288 | M48: 34857.6288 | N48: 34857.6288 | O48: 34857.6288 | P48: 34857.6288 | Q48: 34857.6288 | R48: 34857.6288 | S48: 34857.6288 | T48: 418291.5456 | W48: Assistente Financeiro | X48: ='Plan4 R$ Pessoal'!D9 -> 0.017391 | Y48: =X48/X64 -> 0.08695929144 | Z48: =Z64*$Y48 -> 0.017391 | AA48: 0.017391 | AB48: 0.017391 | AC48: 0.017391 | AD48: 0.017391 | AE48: 0.017391 | AF48: 0.017391 | AG48: 0.017391 | AH48: 0.017391 | AI48: 0.017391 | AJ48: 0.017391 | AK48: 0.017391 | AN48: Assistente Financeiro | AO48: =AO64*$Y48 -> 0.017391 | AP48: 0.017391 | AQ48: 0.017391 | AR48: 0.017391 | AS48: 0.017391 | AT48: 0.017391 | AU48: 0.017391 | AV48: 0.017391 | AW48: 0.017391 | AX48: 0.017391 | AY48: 0.017391 | AZ48: 0.017391 | BC48: Gerente de Operação | BD48: =BD$11 -> 565 | BE48: 554 | BF48: 554 | BG48: 554 | BH48: 554 | BI48: 554 | BJ48: 554 | BK48: 554 | BL48: 554 | BM48: 554 | BN48: 554 | BO48: 554 | BP48: 554
B49: Auxiliar de CPD | C49: 2880 | D49: 0 | E49: 0.4011 | F49: 4035.168 | G49: 591.582 | H49: =(($F49*Z49)+($G49*AO49))*BE49 -> 33424.38228 | I49: 33424.38228 | J49: 33424.38228 | K49: 33424.38228 | L49: 33424.38228 | M49: 33424.38228 | N49: 33424.38228 | O49: 33424.38228 | P49: 33424.38228 | Q49: 33424.38228 | R49: 33424.38228 | S49: 33424.38228 | T49: 401092.5874 | W49: Auxiliar de CPD | X49: ='Plan4 R$ Pessoal'!D10 -> 0.01304 | Y49: =X49/X64 -> 0.06520321778 | Z49: =Z64*$Y49 -> 0.01304 | AA49: 0.01304 | AB49: 0.01304 | AC49: 0.01304 | AD49: 0.01304 | AE49: 0.01304 | AF49: 0.01304 | AG49: 0.01304 | AH49: 0.01304 | AI49: 0.01304 | AJ49: 0.01304 | AK49: 0.01304 | AN49: Auxiliar de CPD | AO49: =AO64*$Y49 -> 0.01304 | AP49: 0.01304 | AQ49: 0.01304 | AR49: 0.01304 | AS49: 0.01304 | AT49: 0.01304 | AU49: 0.01304 | AV49: 0.01304 | AW49: 0.01304 | AX49: 0.01304 | AY49: 0.01304 | AZ49: 0.01304 | BC49: Controle Manutenção | BD49: =BD$11 -> 565 | BE49: 554 | BF49: 554 | BG49: 554 | BH49: 554 | BI49: 554 | BJ49: 554 | BK49: 554 | BL49: 554 | BM49: 554 | BN49: 554 | BO49: 554 | BP49: 554
B50: Auxiliar de Compra | C50: 1530 | D50: 0 | E50: 0.4011 | F50: 2143.683 | G50: 591.582 | H50: =(($F50*Z50)+($G50*AO50))*BE50 -> 13183.43025 | I50: 13183.43025 | J50: 13183.43025 | K50: 13183.43025 | L50: 13183.43025 | M50: 13183.43025 | N50: 13183.43025 | O50: 13183.43025 | P50: 13183.43025 | Q50: 13183.43025 | R50: 13183.43025 | S50: 13183.43025 | T50: 158201.163 | W50: Auxiliar de Compra | X50: ='Plan4 R$ Pessoal'!D11 -> 0.0087 | Y50: =X50/X64 -> 0.04350214683 | Z50: =Z64*$Y50 -> 0.0087 | AA50: 0.0087 | AB50: 0.0087 | AC50: 0.0087 | AD50: 0.0087 | AE50: 0.0087 | AF50: 0.0087 | AG50: 0.0087 | AH50: 0.0087 | AI50: 0.0087 | AJ50: 0.0087 | AK50: 0.0087 | AN50: Auxiliar de Compra | AO50: =AO64*$Y50 -> 0.0087 | AP50: 0.0087 | AQ50: 0.0087 | AR50: 0.0087 | AS50: 0.0087 | AT50: 0.0087 | AU50: 0.0087 | AV50: 0.0087 | AW50: 0.0087 | AX50: 0.0087 | AY50: 0.0087 | AZ50: 0.0087 | BC50: Auxiliar Contabilidade | BD50: =BD$11 -> 565 | BE50: 554 | BF50: 554 | BG50: 554 | BH50: 554 | BI50: 554 | BJ50: 554 | BK50: 554 | BL50: 554 | BM50: 554 | BN50: 554 | BO50: 554 | BP50: 554
B51: Auxiliar de Contabilidade | C51: 1800 | D51: 0 | E51: 0.4011 | F51: 2521.98 | G51: 591.582 | H51: =(($F51*Z51)+($G51*AO51))*BE51 -> 18749.80809 | I51: 18749.80809 | J51: 18749.80809 | K51: 18749.80809 | L51: 18749.80809 | M51: 18749.80809 | N51: 18749.80809 | O51: 18749.80809 | P51: 18749.80809 | Q51: 18749.80809 | R51: 18749.80809 | S51: 18749.80809 | T51: 224997.6971 | W51: Auxiliar de Contabilidade | X51: ='Plan4 R$ Pessoal'!D12 -> 0.01087 | Y51: =X51/X64 -> 0.0543526823 | Z51: =Z64*$Y51 -> 0.01087 | AA51: 0.01087 | AB51: 0.01087 | AC51: 0.01087 | AD51: 0.01087 | AE51: 0.01087 | AF51: 0.01087 | AG51: 0.01087 | AH51: 0.01087 | AI51: 0.01087 | AJ51: 0.01087 | AK51: 0.01087 | AN51: Auxiliar de Contabilidade | AO51: =AO64*$Y51 -> 0.01087 | AP51: 0.01087 | AQ51: 0.01087 | AR51: 0.01087 | AS51: 0.01087 | AT51: 0.01087 | AU51: 0.01087 | AV51: 0.01087 | AW51: 0.01087 | AX51: 0.01087 | AY51: 0.01087 | AZ51: 0.01087 | BC51: Assist. Adm./financeiro | BD51: =BD$11 -> 565 | BE51: 554 | BF51: 554 | BG51: 554 | BH51: 554 | BI51: 554 | BJ51: 554 | BK51: 554 | BL51: 554 | BM51: 554 | BN51: 554 | BO51: 554 | BP51: 554
B52: Auxiliar Depto.Pessoal | C52: 1125 | D52: 0 | E52: 0.4011 | F52: 1576.2375 | G52: 591.582 | H52: =(($F52*Z52)+($G52*AO52))*BE52 -> 46994.03448 | I52: 46994.03448 | J52: 46994.03448 | K52: 46994.03448 | L52: 46994.03448 | M52: 46994.03448 | N52: 46994.03448 | O52: 46994.03448 | P52: 46994.03448 | Q52: 46994.03448 | R52: 46994.03448 | S52: 46994.03448 | T52: 563928.4137 | W52: Auxiliar Depto.Pessoal | X52: ='Plan4 R$ Pessoal'!D13 -> 0.03913 | Y52: =X52/X64 -> 0.1956596558 | Z52: =Z64*$Y52 -> 0.03913 | AA52: 0.03913 | AB52: 0.03913 | AC52: 0.03913 | AD52: 0.03913 | AE52: 0.03913 | AF52: 0.03913 | AG52: 0.03913 | AH52: 0.03913 | AI52: 0.03913 | AJ52: 0.03913 | AK52: 0.03913 | AN52: Auxiliar Depto.Pessoal | AO52: =AO64*$Y52 -> 0.03913 | AP52: 0.03913 | AQ52: 0.03913 | AR52: 0.03913 | AS52: 0.03913 | AT52: 0.03913 | AU52: 0.03913 | AV52: 0.03913 | AW52: 0.03913 | AX52: 0.03913 | AY52: 0.03913 | AZ52: 0.03913 | BC52: Contador | BD52: =BD$11 -> 565 | BE52: 554 | BF52: 554 | BG52: 554 | BH52: 554 | BI52: 554 | BJ52: 554 | BK52: 554 | BL52: 554 | BM52: 554 | BN52: 554 | BO52: 554 | BP52: 554
B53: Auxiliar de Serv.Gerais | C53: 750 | D53: 0 | E53: 0.4011 | F53: 1050.825 | G53: 591.582 | H53: =(($F53*Z53)+($G53*AO53))*BE53 -> 13848.57874 | I53: 13848.57874 | J53: 13848.57874 | K53: 13848.57874 | L53: 13848.57874 | M53: 13848.57874 | N53: 13848.57874 | O53: 13848.57874 | P53: 13848.57874 | Q53: 13848.57874 | R53: 13848.57874 | S53: 13848.57874 | T53: 166182.9448 | W53: Auxiliar de Serv.Gerais | X53: ='Plan4 R$ Pessoal'!D14 -> 0.01522 | Y53: =X53/X64 -> 0.07610375572 | Z53: =Z64*$Y53 -> 0.01522 | AA53: 0.01522 | AB53: 0.01522 | AC53: 0.01522 | AD53: 0.01522 | AE53: 0.01522 | AF53: 0.01522 | AG53: 0.01522 | AH53: 0.01522 | AI53: 0.01522 | AJ53: 0.01522 | AK53: 0.01522 | AN53: Auxiliar de Serv.Gerais | AO53: =AO64*$Y53 -> 0.01522 | AP53: 0.01522 | AQ53: 0.01522 | AR53: 0.01522 | AS53: 0.01522 | AT53: 0.01522 | AU53: 0.01522 | AV53: 0.01522 | AW53: 0.01522 | AX53: 0.01522 | AY53: 0.01522 | AZ53: 0.01522 | BC53: Auxiliar Adm./Financ. | BD53: =BD$11 -> 565 | BE53: 554 | BF53: 554 | BG53: 554 | BH53: 554 | BI53: 554 | BJ53: 554 | BK53: 554 | BL53: 554 | BM53: 554 | BN53: 554 | BO53: 554 | BP53: 554
B54: Auxiliares Administrativ. | C54: 750 | D54: 0 | E54: 0.4011 | F54: 1050.825 | G54: 591.582 | H54: =(($F54*Z54)+($G54*AO54))*BE54 -> 17806.61536 | I54: 17806.61536 | J54: 17806.61536 | K54: 17806.61536 | L54: 17806.61536 | M54: 17806.61536 | N54: 17806.61536 | O54: 17806.61536 | P54: 17806.61536 | Q54: 17806.61536 | R54: 17806.61536 | S54: 17806.61536 | T54: 213679.3844 | W54: Auxiliares Administrativ. | X54: ='Plan4 R$ Pessoal'!D15 -> 0.01957 | Y54: =X54/X64 -> 0.09785482914 | Z54: =Z64*$Y54 -> 0.01957 | AA54: 0.01957 | AB54: 0.01957 | AC54: 0.01957 | AD54: 0.01957 | AE54: 0.01957 | AF54: 0.01957 | AG54: 0.01957 | AH54: 0.01957 | AI54: 0.01957 | AJ54: 0.01957 | AK54: 0.01957 | AN54: Auxiliares Administrativ. | AO54: =AO64*$Y54 -> 0.01957 | AP54: 0.01957 | AQ54: 0.01957 | AR54: 0.01957 | AS54: 0.01957 | AT54: 0.01957 | AU54: 0.01957 | AV54: 0.01957 | AW54: 0.01957 | AX54: 0.01957 | AY54: 0.01957 | AZ54: 0.01957 | BC54: Secretária Executiva | BD54: =BD$11 -> 565 | BE54: 554 | BF54: 554 | BG54: 554 | BH54: 554 | BI54: 554 | BJ54: 554 | BK54: 554 | BL54: 554 | BM54: 554 | BN54: 554 | BO54: 554 | BP54: 554
B55: Contador | C55: 4500 | D55: 0 | E55: 0.4011 | F55: 6304.95 | G55: 591.582 | H55: =(($F55*Z55)+($G55*AO55))*BE55 -> 8290.87284 | I55: 8290.87284 | J55: 8290.87284 | K55: 8290.87284 | L55: 8290.87284 | M55: 8290.87284 | N55: 8290.87284 | O55: 8290.87284 | P55: 8290.87284 | Q55: 8290.87284 | R55: 8290.87284 | S55: 8290.87284 | T55: 99490.47408 | W55: Contador | X55: ='Plan4 R$ Pessoal'!D16 -> 0.00217 | Y55: =X55/X64 -> 0.01085053547 | Z55: =Z64*$Y55 -> 0.00217 | AA55: 0.00217 | AB55: 0.00217 | AC55: 0.00217 | AD55: 0.00217 | AE55: 0.00217 | AF55: 0.00217 | AG55: 0.00217 | AH55: 0.00217 | AI55: 0.00217 | AJ55: 0.00217 | AK55: 0.00217 | AN55: Contador | AO55: =AO64*$Y55 -> 0.00217 | AP55: 0.00217 | AQ55: 0.00217 | AR55: 0.00217 | AS55: 0.00217 | AT55: 0.00217 | AU55: 0.00217 | AV55: 0.00217 | AW55: 0.00217 | AX55: 0.00217 | AY55: 0.00217 | AZ55: 0.00217 | BC55: Telefonista | BD55: =BD$11 -> 565 | BE55: 554 | BF55: 554 | BG55: 554 | BH55: 554 | BI55: 554 | BJ55: 554 | BK55: 554 | BL55: 554 | BM55: 554 | BN55: 554 | BO55: 554 | BP55: 554
B56: Controle de Manutenção | C56: 5400 | D56: 0 | E56: 0.4011 | F56: 7565.94 | G56: 591.582 | H56: =(($F56*Z56)+($G56*AO56))*BE56 -> 9806.809798 | I56: 9806.809798 | J56: 9806.809798 | K56: 9806.809798 | L56: 9806.809798 | M56: 9806.809798 | N56: 9806.809798 | O56: 9806.809798 | P56: 9806.809798 | Q56: 9806.809798 | R56: 9806.809798 | S56: 9806.809798 | T56: 117681.7176 | W56: Controle de Manutenção | X56: ='Plan4 R$ Pessoal'!D17 -> 0.00217 | Y56: =X56/X64 -> 0.01085053547 | Z56: =Z64*$Y56 -> 0.00217 | AA56: 0.00217 | AB56: 0.00217 | AC56: 0.00217 | AD56: 0.00217 | AE56: 0.00217 | AF56: 0.00217 | AG56: 0.00217 | AH56: 0.00217 | AI56: 0.00217 | AJ56: 0.00217 | AK56: 0.00217 | AN56: Controle de Manutenção | AO56: =AO64*$Y56 -> 0.00217 | AP56: 0.00217 | AQ56: 0.00217 | AR56: 0.00217 | AS56: 0.00217 | AT56: 0.00217 | AU56: 0.00217 | AV56: 0.00217 | AW56: 0.00217 | AX56: 0.00217 | AY56: 0.00217 | AZ56: 0.00217 | BC56: Aux de serviços gerais | BD56: =BD$11 -> 565 | BE56: 554 | BF56: 554 | BG56: 554 | BH56: 554 | BI56: 554 | BJ56: 554 | BK56: 554 | BL56: 554 | BM56: 554 | BN56: 554 | BO56: 554 | BP56: 554
B57: Encarreg.Depto.Pessoal | C57: 3150 | D57: 0 | E57: 0.4011 | F57: 4413.465 | G57: 591.582 | H57: =(($F57*Z57)+($G57*AO57))*BE57 -> 18078.63017 | I57: 18078.63017 | J57: 18078.63017 | K57: 18078.63017 | L57: 18078.63017 | M57: 18078.63017 | N57: 18078.63017 | O57: 18078.63017 | P57: 18078.63017 | Q57: 18078.63017 | R57: 18078.63017 | S57: 18078.63017 | T57: 216943.562 | W57: Encarreg.Depto.Pessoal | X57: ='Plan4 R$ Pessoal'!D18 -> 0.00652 | Y57: =X57/X64 -> 0.03260160889 | Z57: =Z64*$Y57 -> 0.00652 | AA57: 0.00652 | AB57: 0.00652 | AC57: 0.00652 | AD57: 0.00652 | AE57: 0.00652 | AF57: 0.00652 | AG57: 0.00652 | AH57: 0.00652 | AI57: 0.00652 | AJ57: 0.00652 | AK57: 0.00652 | AN57: Encarreg.Depto.Pessoal | AO57: =AO64*$Y57 -> 0.00652 | AP57: 0.00652 | AQ57: 0.00652 | AR57: 0.00652 | AS57: 0.00652 | AT57: 0.00652 | AU57: 0.00652 | AV57: 0.00652 | AW57: 0.00652 | AX57: 0.00652 | AY57: 0.00652 | AZ57: 0.00652 | BC57: Enc. Depto de Pessoal | BD57: =BD$11 -> 565 | BE57: 554 | BF57: 554 | BG57: 554 | BH57: 554 | BI57: 554 | BJ57: 554 | BK57: 554 | BL57: 554 | BM57: 554 | BN57: 554 | BO57: 554 | BP57: 554
B58: Eng.Segurança Trabalho | C58: 3870 | D58: 0 | E58: 0.4011 | F58: 5422.257 | G58: 591.582 | H58: =(($F58*Z58)+($G58*AO58))*BE58 -> 7229.716969 | I58: 7229.716969 | J58: 7229.716969 | K58: 7229.716969 | L58: 7229.716969 | M58: 7229.716969 | N58: 7229.716969 | O58: 7229.716969 | P58: 7229.716969 | Q58: 7229.716969 | R58: 7229.716969 | S58: 7229.716969 | T58: 86756.60363 | W58: Eng.Segurança Trabalho | X58: ='Plan4 R$ Pessoal'!D19 -> 0.00217 | Y58: =X58/X64 -> 0.01085053547 | Z58: =Z64*$Y58 -> 0.00217 | AA58: 0.00217 | AB58: 0.00217 | AC58: 0.00217 | AD58: 0.00217 | AE58: 0.00217 | AF58: 0.00217 | AG58: 0.00217 | AH58: 0.00217 | AI58: 0.00217 | AJ58: 0.00217 | AK58: 0.00217 | AN58: Eng.Segurança Trabalho | AO58: =AO64*$Y58 -> 0.00217 | AP58: 0.00217 | AQ58: 0.00217 | AR58: 0.00217 | AS58: 0.00217 | AT58: 0.00217 | AU58: 0.00217 | AV58: 0.00217 | AW58: 0.00217 | AX58: 0.00217 | AY58: 0.00217 | AZ58: 0.00217 | BC58: Auxiliar Administrativo | BD58: =BD$11 -> 565 | BE58: 554 | BF58: 554 | BG58: 554 | BH58: 554 | BI58: 554 | BJ58: 554 | BK58: 554 | BL58: 554 | BM58: 554 | BN58: 554 | BO58: 554 | BP58: 554
B59: Gerente Administrativo | C59: 8100 | D59: 0 | E59: 0.4011 | F59: 11348.91 | G59: 591.582 | H59: =(($F59*Z59)+($G59*AO59))*BE59 -> 115035.4164 | I59: 115035.4164 | J59: 115035.4164 | K59: 115035.4164 | L59: 115035.4164 | M59: 115035.4164 | N59: 115035.4164 | O59: 115035.4164 | P59: 115035.4164 | Q59: 115035.4164 | R59: 115035.4164 | S59: 115035.4164 | T59: 1380424.996 | W59: Gerente Administrativo | X59: ='Plan4 R$ Pessoal'!D20 -> 0.01739 | Y59: =X59/X64 -> 0.08695429119 | Z59: =Z64*$Y59 -> 0.01739 | AA59: 0.01739 | AB59: 0.01739 | AC59: 0.01739 | AD59: 0.01739 | AE59: 0.01739 | AF59: 0.01739 | AG59: 0.01739 | AH59: 0.01739 | AI59: 0.01739 | AJ59: 0.01739 | AK59: 0.01739 | AN59: Gerente Administrativo | AO59: =AO64*$Y59 -> 0.01739 | AP59: 0.01739 | AQ59: 0.01739 | AR59: 0.01739 | AS59: 0.01739 | AT59: 0.01739 | AU59: 0.01739 | AV59: 0.01739 | AW59: 0.01739 | AX59: 0.01739 | AY59: 0.01739 | AZ59: 0.01739 | BC59: Psicólogo | BD59: =BD$11 -> 565 | BE59: 554 | BF59: 554 | BG59: 554 | BH59: 554 | BI59: 554 | BJ59: 554 | BK59: 554 | BL59: 554 | BM59: 554 | BN59: 554 | BO59: 554 | BP59: 554
B60: Médico do trabalho | C60: 4500 | D60: 0 | E60: 0.4011 | F60: 6304.95 | G60: 591.582 | H60: =(($F60*Z60)+($G60*AO60))*BE60 -> 8290.87284 | I60: 8290.87284 | J60: 8290.87284 | K60: 8290.87284 | L60: 8290.87284 | M60: 8290.87284 | N60: 8290.87284 | O60: 8290.87284 | P60: 8290.87284 | Q60: 8290.87284 | R60: 8290.87284 | S60: 8290.87284 | T60: 99490.47408 | W60: Médico do trabalho | X60: ='Plan4 R$ Pessoal'!D21 -> 0.00217 | Y60: =X60/X64 -> 0.01085053547 | Z60: =Z64*$Y60 -> 0.00217 | AA60: 0.00217 | AB60: 0.00217 | AC60: 0.00217 | AD60: 0.00217 | AE60: 0.00217 | AF60: 0.00217 | AG60: 0.00217 | AH60: 0.00217 | AI60: 0.00217 | AJ60: 0.00217 | AK60: 0.00217 | AN60: Médico do trabalho | AO60: =AO64*$Y60 -> 0.00217 | AP60: 0.00217 | AQ60: 0.00217 | AR60: 0.00217 | AS60: 0.00217 | AT60: 0.00217 | AU60: 0.00217 | AV60: 0.00217 | AW60: 0.00217 | AX60: 0.00217 | AY60: 0.00217 | AZ60: 0.00217 | BC60: Auxiliar Administrativo | BD60: =BD$11 -> 565 | BE60: 554 | BF60: 554 | BG60: 554 | BH60: 554 | BI60: 554 | BJ60: 554 | BK60: 554 | BL60: 554 | BM60: 554 | BN60: 554 | BO60: 554 | BP60: 554
